Workbook

Sheet TC3 (GMIM) DECISION
C3: TEORIA DE LA DECISION
C5: Técnicas Cuantitativas 3
C6: Decisión en ambiente de incertidumbre:
D7: Criterio de Laplace.
D8: Criterio de Wald.
D9: Criterio de Hurwicz
D10: Criterio de Savage
C11: Decisión en ambiente de riesgo:
D12: Criterio del valor monetario esperado.
D13: Valor de la información perfecta.
C14: Decisión Bayesiana:
D15: Decisión condicional de Bayes.
D16: Valor de la información imperfecta.
C18: Grado en Marketing e Investigación de Mercados. Universidad de Granada.
C20: © TC3. José Alberto Hermoso Gutiérrez

Sheet DISEÑO TABLA DE DECISION
A1: © TC3. José Alberto Hermoso Gutiérrez
C2: =IF(OR(B8=0,B13=0,B17=0,B21=0),"COMPLETE EL FORMULARIO",IF(B29=1,"Error: sólo un estado con información imperfecta",1)) -> 1
B8: 2
B13: 3 | D13: =B13 -> 3
B17: 3 | D17: =B17 -> 3
B21: 2
C26: Seleccione "0" cuando no se tenga información imperfecta
B28: 3 | D28: =B29 -> 3
B29: =IF(B8=1,0,B28) -> 3
C33: =C2 -> 1

Sheet TABLA DE DECISION
BG1: probabilidad a posteriori p(ej/ck) ↘ | BH1: e1 | BI1: e2 | BJ1: e3 | BK1: e4 | BL1: e5 | BM1: e6 | BN1: e7 | BO1: e8 | BP1: e9 | BQ1: e10 | BR1: e11 | BS1: e12 | BT1: e13 | BU1: e14 | BV1: e15 | BW1: e16 | BX1: e17 | BY1: e18 | BZ1: e19 | CA1: e20 | CB1: e21 | CC1: e22 | CD1: e23 | CE1: e24 | CF1: e25 | CG1: e26 | CH1: e27 | CI1: e28 | CJ1: e29 | CK1: e30 | CL1: e31 | CM1: e32 | CN1: e33 | CO1: e34 | CP1: e35 | CQ1: e36 | CR1: e37 | CS1: e38 | CT1: e39 | CU1: e40 | CV1: e41 | CW1: e42 | CX1: e43 | CY1: e44 | CZ1: e45 | DA1: e46 | DB1: e47 | DC1: e48 | DD1: e49 | DE1: e50
BG2: p(ej/c1) | BH2: =IF($BF53=0,0,BH53/$BF53) -> 0.8695652174 | BI2: =IF($BF53=0,0,BI53/$BF53) -> 0.1304347826 | BJ2: 0 | BK2: 0 | BL2: 0 | BM2: 0 | BN2: 0 | BO2: 0 | BP2: 0 | BQ2: 0 | BR2: 0 | BS2: 0 | BT2: 0 | BU2: 0 | BV2: 0 | BW2: 0 | BX2: 0 | BY2: 0 | BZ2: 0 | CA2: 0 | CB2: 0 | CC2: 0 | CD2: 0 | CE2: 0 | CF2: 0 | CG2: 0 | CH2: 0 | CI2: 0 | CJ2: 0 | CK2: 0 | CL2: 0 | CM2: 0 | CN2: 0 | CO2: 0 | CP2: 0 | CQ2: 0 | CR2: 0 | CS2: 0 | CT2: 0 | CU2: 0 | CV2: 0 | CW2: 0 | CX2: 0 | CY2: 0 | CZ2: 0 | DA2: 0 | DB2: 0 | DC2: 0 | DD2: 0 | DE2: 0 | DH2: p(c1)= | DI2: =SUMPRODUCT(BH104:DE104,BH$156:DE$156) -> 0.46
BG3: p(ej/c2) | BH3: =IF($BF54=0,0,BH54/$BF54) -> 0.1923076923 | BI3: 0.8076923077 | BJ3: 0 | BK3: 0 | BL3: 0 | BM3: 0 | BN3: 0 | BO3: 0 | BP3: 0 | BQ3: 0 | BR3: 0 | BS3: 0 | BT3: 0 | BU3: 0 | BV3: 0 | BW3: 0 | BX3: 0 | BY3: 0 | BZ3: 0 | CA3: 0 | CB3: 0 | CC3: 0 | CD3: 0 | CE3: 0 | CF3: 0 | CG3: 0 | CH3: 0 | CI3: 0 | CJ3: 0 | CK3: 0 | CL3: 0 | CM3: 0 | CN3: 0 | CO3: 0 | CP3: 0 | CQ3: 0 | CR3: 0 | CS3: 0 | CT3: 0 | CU3: 0 | CV3: 0 | CW3: 0 | CX3: 0 | CY3: 0 | CZ3: 0 | DA3: 0 | DB3: 0 | DC3: 0 | DD3: 0 | DE3: 0 | DH3: p(c2)= | DI3: =SUMPRODUCT(BH105:DE105,BH$156:DE$156) -> 0.26
BG4: p(ej/c3) | BH4: 0.1785714286 | BI4: 0.1071428571 | BJ4: 0.7142857143 | BK4: 0 | BL4: 0 | BM4: 0 | BN4: 0 | BO4: 0 | BP4: 0 | BQ4: 0 | BR4: 0 | BS4: 0 | BT4: 0 | BU4: 0 | BV4: 0 | BW4: 0 | BX4: 0 | BY4: 0 | BZ4: 0 | CA4: 0 | CB4: 0 | CC4: 0 | CD4: 0 | CE4: 0 | CF4: 0 | CG4: 0 | CH4: 0 | CI4: 0 | CJ4: 0 | CK4: 0 | CL4: 0 | CM4: 0 | CN4: 0 | CO4: 0 | CP4: 0 | CQ4: 0 | CR4: 0 | CS4: 0 | CT4: 0 | CU4: 0 | CV4: 0 | CW4: 0 | CX4: 0 | CY4: 0 | CZ4: 0 | DA4: 0 | DB4: 0 | DC4: 0 | DD4: 0 | DE4: 0 | DH4: p(c3)= | DI4: 0.28
BG5: p(ej/c4) | BH5: 0 | BI5: 0 | BJ5: 0 | BK5: 0 | BL5: 0 | BM5: 0 | BN5: 0 | BO5: 0 | BP5: 0 | BQ5: 0 | BR5: 0 | BS5: 0 | BT5: 0 | BU5: 0 | BV5: 0 | BW5: 0 | BX5: 0 | BY5: 0 | BZ5: 0 | CA5: 0 | CB5: 0 | CC5: 0 | CD5: 0 | CE5: 0 | CF5: 0 | CG5: 0 | CH5: 0 | CI5: 0 | CJ5: 0 | CK5: 0 | CL5: 0 | CM5: 0 | CN5: 0 | CO5: 0 | CP5: 0 | CQ5: 0 | CR5: 0 | CS5: 0 | CT5: 0 | CU5: 0 | CV5: 0 | CW5: 0 | CX5: 0 | CY5: 0 | CZ5: 0 | DA5: 0 | DB5: 0 | DC5: 0 | DD5: 0 | DE5: 0 | DH5: p(c4)= | DI5: 0
BG6: p(ej/c5) | BH6: 0 | BI6: 0 | BJ6: 0 | BK6: 0 | BL6: 0 | BM6: 0 | BN6: 0 | BO6: 0 | BP6: 0 | BQ6: 0 | BR6: 0 | BS6: 0 | BT6: 0 | BU6: 0 | BV6: 0 | BW6: 0 | BX6: 0 | BY6: 0 | BZ6: 0 | CA6: 0 | CB6: 0 | CC6: 0 | CD6: 0 | CE6: 0 | CF6: 0 | CG6: 0 | CH6: 0 | CI6: 0 | CJ6: 0 | CK6: 0 | CL6: 0 | CM6: 0 | CN6: 0 | CO6: 0 | CP6: 0 | CQ6: 0 | CR6: 0 | CS6: 0 | CT6: 0 | CU6: 0 | CV6: 0 | CW6: 0 | CX6: 0 | CY6: 0 | CZ6: 0 | DA6: 0 | DB6: 0 | DC6: 0 | DD6: 0 | DE6: 0 | DH6: p(c5)= | DI6: 0
BG7: p(ej/c6) | BH7: 0 | BI7: 0 | BJ7: 0 | BK7: 0 | BL7: 0 | BM7: 0 | BN7: 0 | BO7: 0 | BP7: 0 | BQ7: 0 | BR7: 0 | BS7: 0 | BT7: 0 | BU7: 0 | BV7: 0 | BW7: 0 | BX7: 0 | BY7: 0 | BZ7: 0 | CA7: 0 | CB7: 0 | CC7: 0 | CD7: 0 | CE7: 0 | CF7: 0 | CG7: 0 | CH7: =IF($BF58=0,0,CH58/$BF58) -> 0 | CI7: 0 | CJ7: 0 | CK7: 0 | CL7: 0 | CM7: 0 | CN7: 0 | CO7: 0 | CP7: 0 | CQ7: 0 | CR7: 0 | CS7: 0 | CT7: 0 | CU7: 0 | CV7: 0 | CW7: 0 | CX7: 0 | CY7: 0 | CZ7: 0 | DA7: 0 | DB7: 0 | DC7: 0 | DD7: 0 | DE7: 0 | DH7: p(c6)= | DI7: 0
BG8: p(ej/c7) | BH8: 0 | BI8: 0 | BJ8: 0 | BK8: 0 | BL8: 0 | BM8: 0 | BN8: 0 | BO8: 0 | BP8: 0 | BQ8: 0 | BR8: 0 | BS8: 0 | BT8: 0 | BU8: 0 | BV8: 0 | BW8: 0 | BX8: 0 | BY8: 0 | BZ8: 0 | CA8: 0 | CB8: 0 | CC8: 0 | CD8: 0 | CE8: 0 | CF8: 0 | CG8: 0 | CH8: 0 | CI8: 0 | CJ8: 0 | CK8: 0 | CL8: 0 | CM8: 0 | CN8: 0 | CO8: 0 | CP8: 0 | CQ8: 0 | CR8: 0 | CS8: 0 | CT8: 0 | CU8: 0 | CV8: 0 | CW8: 0 | CX8: 0 | CY8: 0 | CZ8: 0 | DA8: 0 | DB8: 0 | DC8: 0 | DD8: 0 | DE8: 0 | DH8: p(c7)= | DI8: 0
BG9: p(ej/c8) | BH9: 0 | BI9: 0 | BJ9: 0 | BK9: 0 | BL9: 0 | BM9: 0 | BN9: 0 | BO9: 0 | BP9: 0 | BQ9: 0 | BR9: 0 | BS9: 0 | BT9: 0 | BU9: 0 | BV9: 0 | BW9: 0 | BX9: 0 | BY9: 0 | BZ9: 0 | CA9: 0 | CB9: 0 | CC9: 0 | CD9: 0 | CE9: 0 | CF9: 0 | CG9: 0 | CH9: 0 | CI9: 0 | CJ9: 0 | CK9: 0 | CL9: 0 | CM9: 0 | CN9: 0 | CO9: 0 | CP9: 0 | CQ9: 0 | CR9: 0 | CS9: 0 | CT9: 0 | CU9: 0 | CV9: 0 | CW9: 0 | CX9: 0 | CY9: 0 | CZ9: 0 | DA9: 0 | DB9: 0 | DC9: 0 | DD9: 0 | DE9: 0 | DH9: p(c8)= | DI9: 0
BG10: p(ej/c9) | BH10: 0 | BI10: 0 | BJ10: 0 | BK10: 0 | BL10: 0 | BM10: 0 | BN10: 0 | BO10: 0 | BP10: 0 | BQ10: 0 | BR10: 0 | BS10: 0 | BT10: 0 | BU10: 0 | BV10: 0 | BW10: 0 | BX10: 0 | BY10: 0 | BZ10: 0 | CA10: 0 | CB10: 0 | CC10: 0 | CD10: 0 | CE10: 0 | CF10: 0 | CG10: 0 | CH10: 0 | CI10: 0 | CJ10: 0 | CK10: 0 | CL10: 0 | CM10: 0 | CN10: 0 | CO10: 0 | CP10: 0 | CQ10: 0 | CR10: 0 | CS10: 0 | CT10: 0 | CU10: 0 | CV10: 0 | CW10: 0 | CX10: 0 | CY10: 0 | CZ10: 0 | DA10: 0 | DB10: 0 | DC10: 0 | DD10: 0 | DE10: 0 | DH10: p(c9)= | DI10: 0
BG11: p(ej/c10) | BH11: 0 | BI11: 0 | BJ11: 0 | BK11: 0 | BL11: 0 | BM11: 0 | BN11: 0 | BO11: 0 | BP11: 0 | BQ11: 0 | BR11: 0 | BS11: 0 | BT11: 0 | BU11: 0 | BV11: 0 | BW11: 0 | BX11: 0 | BY11: 0 | BZ11: 0 | CA11: 0 | CB11: 0 | CC11: 0 | CD11: 0 | CE11: 0 | CF11: 0 | CG11: 0 | CH11: 0 | CI11: 0 | CJ11: 0 | CK11: 0 | CL11: 0 | CM11: 0 | CN11: 0 | CO11: 0 | CP11: 0 | CQ11: 0 | CR11: 0 | CS11: 0 | CT11: 0 | CU11: 0 | CV11: 0 | CW11: 0 | CX11: 0 | CY11: 0 | CZ11: 0 | DA11: 0 | DB11: 0 | DC11: 0 | DD11: 0 | DE11: 0 | DH11: p(c10)= | DI11: 0
BG12: p(ej/c11) | BH12: 0 | BI12: 0 | BJ12: 0 | BK12: 0 | BL12: 0 | BM12: 0 | BN12: 0 | BO12: 0 | BP12: 0 | BQ12: 0 | BR12: 0 | BS12: 0 | BT12: 0 | BU12: 0 | BV12: 0 | BW12: 0 | BX12: 0 | BY12: 0 | BZ12: 0 | CA12: 0 | CB12: 0 | CC12: 0 | CD12: 0 | CE12: 0 | CF12: 0 | CG12: 0 | CH12: 0 | CI12: 0 | CJ12: 0 | CK12: 0 | CL12: 0 | CM12: 0 | CN12: 0 | CO12: 0 | CP12: 0 | CQ12: 0 | CR12: =IF($BF63=0,0,CR63/$BF63) -> 0 | CS12: 0 | CT12: 0 | CU12: 0 | CV12: 0 | CW12: 0 | CX12: 0 | CY12: 0 | CZ12: 0 | DA12: 0 | DB12: 0 | DC12: 0 | DD12: 0 | DE12: 0 | DH12: p(c11)= | DI12: 0
BG13: p(ej/c12) | BH13: 0 | BI13: 0 | BJ13: 0 | BK13: 0 | BL13: 0 | BM13: 0 | BN13: 0 | BO13: 0 | BP13: 0 | BQ13: 0 | BR13: 0 | BS13: 0 | BT13: 0 | BU13: 0 | BV13: 0 | BW13: 0 | BX13: 0 | BY13: 0 | BZ13: 0 | CA13: 0 | CB13: 0 | CC13: 0 | CD13: 0 | CE13: 0 | CF13: 0 | CG13: 0 | CH13: 0 | CI13: 0 | CJ13: 0 | CK13: 0 | CL13: 0 | CM13: 0 | CN13: 0 | CO13: 0 | CP13: 0 | CQ13: 0 | CR13: 0 | CS13: 0 | CT13: 0 | CU13: 0 | CV13: 0 | CW13: 0 | CX13: 0 | CY13: 0 | CZ13: 0 | DA13: 0 | DB13: 0 | DC13: 0 | DD13: 0 | DE13: 0 | DH13: p(c12)= | DI13: 0
BG14: p(ej/c13) | BH14: 0 | BI14: 0 | BJ14: 0 | BK14: 0 | BL14: 0 | BM14: 0 | BN14: 0 | BO14: 0 | BP14: 0 | BQ14: 0 | BR14: 0 | BS14: 0 | BT14: 0 | BU14: 0 | BV14: 0 | BW14: 0 | BX14: 0 | BY14: 0 | BZ14: 0 | CA14: 0 | CB14: 0 | CC14: 0 | CD14: 0 | CE14: 0 | CF14: 0 | CG14: 0 | CH14: 0 | CI14: 0 | CJ14: 0 | CK14: 0 | CL14: 0 | CM14: 0 | CN14: 0 | CO14: 0 | CP14: 0 | CQ14: 0 | CR14: 0 | CS14: 0 | CT14: 0 | CU14: 0 | CV14: 0 | CW14: 0 | CX14: 0 | CY14: 0 | CZ14: 0 | DA14: 0 | DB14: 0 | DC14: 0 | DD14: 0 | DE14: 0 | DH14: p(c13)= | DI14: 0
BG15: p(ej/c14) | BH15: 0 | BI15: 0 | BJ15: 0 | BK15: 0 | BL15: 0 | BM15: 0 | BN15: 0 | BO15: 0 | BP15: 0 | BQ15: 0 | BR15: 0 | BS15: 0 | BT15: 0 | BU15: 0 | BV15: 0 | BW15: 0 | BX15: 0 | BY15: 0 | BZ15: 0 | CA15: 0 | CB15: 0 | CC15: 0 | CD15: 0 | CE15: 0 | CF15: 0 | CG15: 0 | CH15: 0 | CI15: 0 | CJ15: 0 | CK15: 0 | CL15: 0 | CM15: 0 | CN15: 0 | CO15: 0 | CP15: 0 | CQ15: 0 | CR15: 0 | CS15: 0 | CT15: 0 | CU15: 0 | CV15: 0 | CW15: 0 | CX15: 0 | CY15: 0 | CZ15: 0 | DA15: 0 | DB15: 0 | DC15: 0 | DD15: 0 | DE15: 0 | DH15: p(c14)= | DI15: 0
BG16: p(ej/c15) | BH16: 0 | BI16: 0 | BJ16: 0 | BK16: 0 | BL16: 0 | BM16: 0 | BN16: 0 | BO16: 0 | BP16: 0 | BQ16: 0 | BR16: 0 | BS16: 0 | BT16: 0 | BU16: 0 | BV16: 0 | BW16: 0 | BX16: 0 | BY16: 0 | BZ16: 0 | CA16: 0 | CB16: 0 | CC16: 0 | CD16: 0 | CE16: 0 | CF16: 0 | CG16: 0 | CH16: 0 | CI16: 0 | CJ16: 0 | CK16: 0 | CL16: 0 | CM16: 0 | CN16: 0 | CO16: 0 | CP16: 0 | CQ16: 0 | CR16: 0 | CS16: 0 | CT16: 0 | CU16: 0 | CV16: 0 | CW16: 0 | CX16: 0 | CY16: 0 | CZ16: 0 | DA16: 0 | DB16: 0 | DC16: 0 | DD16: 0 | DE16: 0 | DH16: p(c15)= | DI16: 0
BG17: p(ej/c16) | BH17: 0 | BI17: 0 | BJ17: 0 | BK17: 0 | BL17: 0 | BM17: 0 | BN17: 0 | BO17: 0 | BP17: 0 | BQ17: 0 | BR17: 0 | BS17: 0 | BT17: 0 | BU17: 0 | BV17: 0 | BW17: 0 | BX17: 0 | BY17: 0 | BZ17: 0 | CA17: 0 | CB17: 0 | CC17: 0 | CD17: 0 | CE17: 0 | CF17: 0 | CG17: 0 | CH17: 0 | CI17: 0 | CJ17: 0 | CK17: 0 | CL17: 0 | CM17: 0 | CN17: 0 | CO17: 0 | CP17: 0 | CQ17: 0 | CR17: 0 | CS17: 0 | CT17: 0 | CU17: 0 | CV17: 0 | CW17: 0 | CX17: 0 | CY17: 0 | CZ17: 0 | DA17: 0 | DB17: =IF($BF68=0,0,DB68/$BF68) -> 0 | DC17: 0 | DD17: 0 | DE17: 0 | DH17: p(c16)= | DI17: 0
BG18: p(ej/c17) | BH18: 0 | BI18: 0 | BJ18: 0 | BK18: 0 | BL18: 0 | BM18: 0 | BN18: 0 | BO18: 0 | BP18: 0 | BQ18: 0 | BR18: 0 | BS18: 0 | BT18: 0 | BU18: 0 | BV18: 0 | BW18: 0 | BX18: 0 | BY18: 0 | BZ18: 0 | CA18: 0 | CB18: 0 | CC18: 0 | CD18: 0 | CE18: 0 | CF18: 0 | CG18: 0 | CH18: 0 | CI18: 0 | CJ18: 0 | CK18: 0 | CL18: 0 | CM18: 0 | CN18: 0 | CO18: 0 | CP18: 0 | CQ18: 0 | CR18: 0 | CS18: 0 | CT18: 0 | CU18: 0 | CV18: 0 | CW18: 0 | CX18: 0 | CY18: 0 | CZ18: 0 | DA18: 0 | DB18: 0 | DC18: 0 | DD18: 0 | DE18: 0 | DH18: p(c17)= | DI18: 0
BG19: p(ej/c18) | BH19: 0 | BI19: 0 | BJ19: 0 | BK19: 0 | BL19: 0 | BM19: 0 | BN19: 0 | BO19: 0 | BP19: 0 | BQ19: 0 | BR19: 0 | BS19: 0 | BT19: 0 | BU19: 0 | BV19: 0 | BW19: 0 | BX19: 0 | BY19: 0 | BZ19: 0 | CA19: 0 | CB19: 0 | CC19: 0 | CD19: 0 | CE19: 0 | CF19: 0 | CG19: 0 | CH19: 0 | CI19: 0 | CJ19: 0 | CK19: 0 | CL19: 0 | CM19: 0 | CN19: 0 | CO19: 0 | CP19: 0 | CQ19: 0 | CR19: 0 | CS19: 0 | CT19: 0 | CU19: 0 | CV19: 0 | CW19: 0 | CX19: 0 | CY19: 0 | CZ19: 0 | DA19: 0 | DB19: 0 | DC19: 0 | DD19: 0 | DE19: 0 | DH19: p(c18)= | DI19: 0
BG20: p(ej/c19) | BH20: 0 | BI20: 0 | BJ20: 0 | BK20: 0 | BL20: 0 | BM20: 0 | BN20: 0 | BO20: 0 | BP20: 0 | BQ20: 0 | BR20: 0 | BS20: 0 | BT20: 0 | BU20: 0 | BV20: 0 | BW20: 0 | BX20: 0 | BY20: 0 | BZ20: 0 | CA20: 0 | CB20: 0 | CC20: 0 | CD20: 0 | CE20: 0 | CF20: 0 | CG20: 0 | CH20: 0 | CI20: 0 | CJ20: 0 | CK20: 0 | CL20: 0 | CM20: 0 | CN20: 0 | CO20: 0 | CP20: 0 | CQ20: 0 | CR20: 0 | CS20: 0 | CT20: 0 | CU20: 0 | CV20: 0 | CW20: 0 | CX20: 0 | CY20: 0 | CZ20: 0 | DA20: 0 | DB20: 0 | DC20: 0 | DD20: 0 | DE20: 0 | DH20: p(c19)= | DI20: 0
BG21: p(ej/c20) | BH21: 0 | BI21: 0 | BJ21: 0 | BK21: 0 | BL21: 0 | BM21: 0 | BN21: 0 | BO21: 0 | BP21: 0 | BQ21: 0 | BR21: 0 | BS21: 0 | BT21: 0 | BU21: 0 | BV21: 0 | BW21: 0 | BX21: 0 | BY21: 0 | BZ21: 0 | CA21: 0 | CB21: 0 | CC21: 0 | CD21: 0 | CE21: 0 | CF21: 0 | CG21: 0 | CH21: 0 | CI21: 0 | CJ21: 0 | CK21: 0 | CL21: 0 | CM21: 0 | CN21: 0 | CO21: 0 | CP21: 0 | CQ21: 0 | CR21: 0 | CS21: 0 | CT21: 0 | CU21: 0 | CV21: 0 | CW21: 0 | CX21: 0 | CY21: 0 | CZ21: 0 | DA21: 0 | DB21: 0 | DC21: 0 | DD21: 0 | DE21: 0 | DH21: p(c20)= | DI21: 0
BG22: p(ej/c21) | BH22: 0 | BI22: 0 | BJ22: 0 | BK22: 0 | BL22: 0 | BM22: 0 | BN22: 0 | BO22: 0 | BP22: 0 | BQ22: 0 | BR22: 0 | BS22: 0 | BT22: 0 | BU22: 0 | BV22: 0 | BW22: 0 | BX22: 0 | BY22: 0 | BZ22: 0 | CA22: 0 | CB22: 0 | CC22: 0 | CD22: 0 | CE22: 0 | CF22: 0 | CG22: 0 | CH22: 0 | CI22: 0 | CJ22: 0 | CK22: 0 | CL22: 0 | CM22: 0 | CN22: 0 | CO22: 0 | CP22: 0 | CQ22: 0 | CR22: 0 | CS22: 0 | CT22: 0 | CU22: 0 | CV22: 0 | CW22: 0 | CX22: 0 | CY22: 0 | CZ22: 0 | DA22: 0 | DB22: 0 | DC22: 0 | DD22: 0 | DE22: 0 | DH22: p(c21)= | DI22: 0
BG23: p(ej/c22) | BH23: 0 | BI23: 0 | BJ23: 0 | BK23: 0 | BL23: 0 | BM23: 0 | BN23: 0 | BO23: =IF($BF74=0,0,BO74/$BF74) -> 0 | BP23: 0 | BQ23: 0 | BR23: 0 | BS23: 0 | BT23: 0 | BU23: 0 | BV23: 0 | BW23: 0 | BX23: 0 | BY23: 0 | BZ23: 0 | CA23: 0 | CB23: 0 | CC23: 0 | CD23: 0 | CE23: 0 | CF23: 0 | CG23: 0 | CH23: 0 | CI23: 0 | CJ23: 0 | CK23: 0 | CL23: 0 | CM23: 0 | CN23: 0 | CO23: 0 | CP23: 0 | CQ23: 0 | CR23: 0 | CS23: 0 | CT23: 0 | CU23: 0 | CV23: 0 | CW23: 0 | CX23: 0 | CY23: 0 | CZ23: 0 | DA23: 0 | DB23: 0 | DC23: 0 | DD23: 0 | DE23: 0 | DH23: p(c22)= | DI23: 0
BG24: p(ej/c23) | BH24: 0 | BI24: 0 | BJ24: 0 | BK24: 0 | BL24: 0 | BM24: 0 | BN24: 0 | BO24: 0 | BP24: 0 | BQ24: 0 | BR24: 0 | BS24: 0 | BT24: 0 | BU24: 0 | BV24: 0 | BW24: 0 | BX24: 0 | BY24: 0 | BZ24: 0 | CA24: 0 | CB24: 0 | CC24: 0 | CD24: 0 | CE24: 0 | CF24: 0 | CG24: 0 | CH24: 0 | CI24: 0 | CJ24: 0 | CK24: 0 | CL24: 0 | CM24: 0 | CN24: 0 | CO24: 0 | CP24: 0 | CQ24: 0 | CR24: 0 | CS24: 0 | CT24: 0 | CU24: 0 | CV24: 0 | CW24: 0 | CX24: 0 | CY24: 0 | CZ24: 0 | DA24: 0 | DB24: 0 | DC24: 0 | DD24: 0 | DE24: 0 | DH24: p(c23)= | DI24: 0
BG25: p(ej/c24) | BH25: 0 | BI25: 0 | BJ25: 0 | BK25: 0 | BL25: 0 | BM25: 0 | BN25: 0 | BO25: 0 | BP25: 0 | BQ25: 0 | BR25: 0 | BS25: 0 | BT25: 0 | BU25: 0 | BV25: 0 | BW25: 0 | BX25: 0 | BY25: 0 | BZ25: 0 | CA25: 0 | CB25: 0 | CC25: 0 | CD25: 0 | CE25: 0 | CF25: 0 | CG25: 0 | CH25: 0 | CI25: 0 | CJ25: 0 | CK25: 0 | CL25: 0 | CM25: 0 | CN25: 0 | CO25: 0 | CP25: 0 | CQ25: 0 | CR25: 0 | CS25: 0 | CT25: 0 | CU25: 0 | CV25: 0 | CW25: 0 | CX25: 0 | CY25: 0 | CZ25: 0 | DA25: 0 | DB25: 0 | DC25: 0 | DD25: 0 | DE25: 0 | DH25: p(c24)= | DI25: 0
BG26: p(ej/c25) | BH26: 0 | BI26: 0 | BJ26: 0 | BK26: 0 | BL26: 0 | BM26: 0 | BN26: 0 | BO26: 0 | BP26: 0 | BQ26: 0 | BR26: 0 | BS26: 0 | BT26: 0 | BU26: 0 | BV26: 0 | BW26: 0 | BX26: 0 | BY26: 0 | BZ26: 0 | CA26: 0 | CB26: 0 | CC26: 0 | CD26: 0 | CE26: 0 | CF26: 0 | CG26: 0 | CH26: 0 | CI26: 0 | CJ26: 0 | CK26: 0 | CL26: 0 | CM26: 0 | CN26: 0 | CO26: 0 | CP26: 0 | CQ26: 0 | CR26: 0 | CS26: 0 | CT26: 0 | CU26: 0 | CV26: 0 | CW26: 0 | CX26: 0 | CY26: 0 | CZ26: 0 | DA26: 0 | DB26: 0 | DC26: 0 | DD26: 0 | DE26: 0 | DH26: p(c25)= | DI26: 0
BG27: p(ej/c26) | BH27: 0 | BI27: 0 | BJ27: 0 | BK27: 0 | BL27: 0 | BM27: 0 | BN27: 0 | BO27: 0 | BP27: 0 | BQ27: 0 | BR27: 0 | BS27: 0 | BT27: 0 | BU27: 0 | BV27: 0 | BW27: 0 | BX27: 0 | BY27: 0 | BZ27: 0 | CA27: 0 | CB27: 0 | CC27: 0 | CD27: 0 | CE27: 0 | CF27: 0 | CG27: 0 | CH27: 0 | CI27: 0 | CJ27: 0 | CK27: 0 | CL27: 0 | CM27: 0 | CN27: 0 | CO27: 0 | CP27: 0 | CQ27: 0 | CR27: 0 | CS27: 0 | CT27: 0 | CU27: 0 | CV27: 0 | CW27: 0 | CX27: 0 | CY27: 0 | CZ27: 0 | DA27: 0 | DB27: 0 | DC27: 0 | DD27: 0 | DE27: 0 | DH27: p(c26)= | DI27: 0
BG28: p(ej/c27) | BH28: 0 | BI28: 0 | BJ28: 0 | BK28: 0 | BL28: 0 | BM28: 0 | BN28: 0 | BO28: 0 | BP28: 0 | BQ28: 0 | BR28: 0 | BS28: 0 | BT28: 0 | BU28: 0 | BV28: 0 | BW28: 0 | BX28: 0 | BY28: =IF($BF79=0,0,BY79/$BF79) -> 0 | BZ28: 0 | CA28: 0 | CB28: 0 | CC28: 0 | CD28: 0 | CE28: 0 | CF28: 0 | CG28: 0 | CH28: 0 | CI28: 0 | CJ28: 0 | CK28: 0 | CL28: 0 | CM28: 0 | CN28: 0 | CO28: 0 | CP28: 0 | CQ28: 0 | CR28: 0 | CS28: 0 | CT28: 0 | CU28: 0 | CV28: 0 | CW28: 0 | CX28: 0 | CY28: 0 | CZ28: 0 | DA28: 0 | DB28: 0 | DC28: 0 | DD28: 0 | DE28: 0 | DH28: p(c27)= | DI28: 0
BG29: p(ej/c28) | BH29: 0 | BI29: 0 | BJ29: 0 | BK29: 0 | BL29: 0 | BM29: 0 | BN29: 0 | BO29: 0 | BP29: 0 | BQ29: 0 | BR29: 0 | BS29: 0 | BT29: 0 | BU29: 0 | BV29: 0 | BW29: 0 | BX29: 0 | BY29: 0 | BZ29: 0 | CA29: 0 | CB29: 0 | CC29: 0 | CD29: 0 | CE29: 0 | CF29: 0 | CG29: 0 | CH29: 0 | CI29: 0 | CJ29: 0 | CK29: 0 | CL29: 0 | CM29: 0 | CN29: 0 | CO29: 0 | CP29: 0 | CQ29: 0 | CR29: 0 | CS29: 0 | CT29: 0 | CU29: 0 | CV29: 0 | CW29: 0 | CX29: 0 | CY29: 0 | CZ29: 0 | DA29: 0 | DB29: 0 | DC29: 0 | DD29: 0 | DE29: 0 | DH29: p(c28)= | DI29: 0
BG30: p(ej/c29) | BH30: 0 | BI30: 0 | BJ30: 0 | BK30: 0 | BL30: 0 | BM30: 0 | BN30: 0 | BO30: 0 | BP30: 0 | BQ30: 0 | BR30: 0 | BS30: 0 | BT30: 0 | BU30: 0 | BV30: 0 | BW30: 0 | BX30: 0 | BY30: 0 | BZ30: 0 | CA30: 0 | CB30: 0 | CC30: 0 | CD30: 0 | CE30: 0 | CF30: 0 | CG30: 0 | CH30: 0 | CI30: 0 | CJ30: 0 | CK30: 0 | CL30: 0 | CM30: 0 | CN30: 0 | CO30: 0 | CP30: 0 | CQ30: 0 | CR30: 0 | CS30: 0 | CT30: 0 | CU30: 0 | CV30: 0 | CW30: 0 | CX30: 0 | CY30: 0 | CZ30: 0 | DA30: 0 | DB30: 0 | DC30: 0 | DD30: 0 | DE30: 0 | DH30: p(c29)= | DI30: 0
BG31: p(ej/c30) | BH31: 0 | BI31: 0 | BJ31: 0 | BK31: 0 | BL31: 0 | BM31: 0 | BN31: 0 | BO31: 0 | BP31: 0 | BQ31: 0 | BR31: 0 | BS31: 0 | BT31: 0 | BU31: 0 | BV31: 0 | BW31: 0 | BX31: 0 | BY31: 0 | BZ31: 0 | CA31: 0 | CB31: 0 | CC31: 0 | CD31: 0 | CE31: 0 | CF31: 0 | CG31: 0 | CH31: 0 | CI31: 0 | CJ31: 0 | CK31: 0 | CL31: 0 | CM31: 0 | CN31: 0 | CO31: 0 | CP31: 0 | CQ31: 0 | CR31: 0 | CS31: 0 | CT31: 0 | CU31: 0 | CV31: 0 | CW31: 0 | CX31: 0 | CY31: 0 | CZ31: 0 | DA31: 0 | DB31: 0 | DC31: 0 | DD31: 0 | DE31: 0 | DH31: p(c30)= | DI31: 0
BG32: p(ej/c31) | BH32: 0 | BI32: 0 | BJ32: 0 | BK32: 0 | BL32: 0 | BM32: 0 | BN32: 0 | BO32: 0 | BP32: 0 | BQ32: 0 | BR32: 0 | BS32: 0 | BT32: 0 | BU32: 0 | BV32: 0 | BW32: 0 | BX32: 0 | BY32: 0 | BZ32: 0 | CA32: 0 | CB32: 0 | CC32: 0 | CD32: 0 | CE32: 0 | CF32: 0 | CG32: 0 | CH32: 0 | CI32: 0 | CJ32: 0 | CK32: 0 | CL32: 0 | CM32: 0 | CN32: 0 | CO32: 0 | CP32: 0 | CQ32: 0 | CR32: 0 | CS32: 0 | CT32: 0 | CU32: 0 | CV32: 0 | CW32: 0 | CX32: 0 | CY32: 0 | CZ32: 0 | DA32: 0 | DB32: 0 | DC32: 0 | DD32: 0 | DE32: 0 | DH32: p(c31)= | DI32: 0
BG33: p(ej/c32) | BH33: 0 | BI33: 0 | BJ33: 0 | BK33: 0 | BL33: 0 | BM33: 0 | BN33: 0 | BO33: 0 | BP33: 0 | BQ33: 0 | BR33: 0 | BS33: 0 | BT33: 0 | BU33: 0 | BV33: 0 | BW33: 0 | BX33: 0 | BY33: 0 | BZ33: 0 | CA33: 0 | CB33: 0 | CC33: 0 | CD33: 0 | CE33: 0 | CF33: 0 | CG33: 0 | CH33: 0 | CI33: =IF($BF84=0,0,CI84/$BF84) -> 0 | CJ33: 0 | CK33: 0 | CL33: 0 | CM33: 0 | CN33: 0 | CO33: 0 | CP33: 0 | CQ33: 0 | CR33: 0 | CS33: 0 | CT33: 0 | CU33: 0 | CV33: 0 | CW33: 0 | CX33: 0 | CY33: 0 | CZ33: 0 | DA33: 0 | DB33: 0 | DC33: 0 | DD33: 0 | DE33: 0 | DH33: p(c32)= | DI33: 0
BG34: p(ej/c33) | BH34: 0 | BI34: 0 | BJ34: 0 | BK34: 0 | BL34: 0 | BM34: 0 | BN34: 0 | BO34: 0 | BP34: 0 | BQ34: 0 | BR34: 0 | BS34: 0 | BT34: 0 | BU34: 0 | BV34: 0 | BW34: 0 | BX34: 0 | BY34: 0 | BZ34: 0 | CA34: 0 | CB34: 0 | CC34: 0 | CD34: 0 | CE34: 0 | CF34: 0 | CG34: 0 | CH34: 0 | CI34: 0 | CJ34: 0 | CK34: 0 | CL34: 0 | CM34: 0 | CN34: 0 | CO34: 0 | CP34: 0 | CQ34: 0 | CR34: 0 | CS34: 0 | CT34: 0 | CU34: 0 | CV34: 0 | CW34: 0 | CX34: 0 | CY34: 0 | CZ34: 0 | DA34: 0 | DB34: 0 | DC34: 0 | DD34: 0 | DE34: 0 | DH34: p(c33)= | DI34: 0
BG35: p(ej/c34) | BH35: 0 | BI35: 0 | BJ35: 0 | BK35: 0 | BL35: 0 | BM35: 0 | BN35: 0 | BO35: 0 | BP35: 0 | BQ35: 0 | BR35: 0 | BS35: 0 | BT35: 0 | BU35: 0 | BV35: 0 | BW35: 0 | BX35: 0 | BY35: 0 | BZ35: 0 | CA35: 0 | CB35: 0 | CC35: 0 | CD35: 0 | CE35: 0 | CF35: 0 | CG35: 0 | CH35: 0 | CI35: 0 | CJ35: 0 | CK35: 0 | CL35: 0 | CM35: 0 | CN35: 0 | CO35: 0 | CP35: 0 | CQ35: 0 | CR35: 0 | CS35: 0 | CT35: 0 | CU35: 0 | CV35: 0 | CW35: 0 | CX35: 0 | CY35: 0 | CZ35: 0 | DA35: 0 | DB35: 0 | DC35: 0 | DD35: 0 | DE35: 0 | DH35: p(c34)= | DI35: 0
BG36: p(ej/c35) | BH36: 0 | BI36: 0 | BJ36: 0 | BK36: 0 | BL36: 0 | BM36: 0 | BN36: 0 | BO36: 0 | BP36: 0 | BQ36: 0 | BR36: 0 | BS36: 0 | BT36: 0 | BU36: 0 | BV36: 0 | BW36: 0 | BX36: 0 | BY36: 0 | BZ36: 0 | CA36: 0 | CB36: 0 | CC36: 0 | CD36: 0 | CE36: 0 | CF36: 0 | CG36: 0 | CH36: 0 | CI36: 0 | CJ36: 0 | CK36: 0 | CL36: 0 | CM36: 0 | CN36: 0 | CO36: 0 | CP36: 0 | CQ36: 0 | CR36: 0 | CS36: 0 | CT36: 0 | CU36: 0 | CV36: 0 | CW36: 0 | CX36: 0 | CY36: 0 | CZ36: 0 | DA36: 0 | DB36: 0 | DC36: 0 | DD36: 0 | DE36: 0 | DH36: p(c35)= | DI36: 0
BG37: p(ej/c36) | BH37: 0 | BI37: 0 | BJ37: 0 | BK37: 0 | BL37: 0 | BM37: 0 | BN37: 0 | BO37: 0 | BP37: 0 | BQ37: 0 | BR37: 0 | BS37: 0 | BT37: 0 | BU37: 0 | BV37: 0 | BW37: 0 | BX37: 0 | BY37: 0 | BZ37: 0 | CA37: 0 | CB37: 0 | CC37: 0 | CD37: 0 | CE37: 0 | CF37: 0 | CG37: 0 | CH37: 0 | CI37: 0 | CJ37: 0 | CK37: 0 | CL37: 0 | CM37: 0 | CN37: 0 | CO37: 0 | CP37: 0 | CQ37: 0 | CR37: 0 | CS37: 0 | CT37: 0 | CU37: 0 | CV37: 0 | CW37: 0 | CX37: 0 | CY37: 0 | CZ37: 0 | DA37: 0 | DB37: 0 | DC37: 0 | DD37: 0 | DE37: 0 | DH37: p(c36)= | DI37: 0
BG38: p(ej/c37) | BH38: 0 | BI38: 0 | BJ38: 0 | BK38: 0 | BL38: 0 | BM38: 0 | BN38: 0 | BO38: 0 | BP38: 0 | BQ38: 0 | BR38: 0 | BS38: 0 | BT38: 0 | BU38: 0 | BV38: 0 | BW38: 0 | BX38: 0 | BY38: 0 | BZ38: 0 | CA38: 0 | CB38: 0 | CC38: 0 | CD38: 0 | CE38: 0 | CF38: 0 | CG38: 0 | CH38: 0 | CI38: 0 | CJ38: 0 | CK38: 0 | CL38: 0 | CM38: 0 | CN38: 0 | CO38: 0 | CP38: 0 | CQ38: 0 | CR38: 0 | CS38: =IF($BF89=0,0,CS89/$BF89) -> 0 | CT38: 0 | CU38: 0 | CV38: 0 | CW38: 0 | CX38: 0 | CY38: 0 | CZ38: 0 | DA38: 0 | DB38: 0 | DC38: 0 | DD38: 0 | DE38: 0 | DH38: p(c37)= | DI38: 0
BG39: p(ej/c38) | BH39: 0 | BI39: 0 | BJ39: 0 | BK39: 0 | BL39: 0 | BM39: 0 | BN39: 0 | BO39: 0 | BP39: 0 | BQ39: 0 | BR39: 0 | BS39: 0 | BT39: 0 | BU39: 0 | BV39: 0 | BW39: 0 | BX39: 0 | BY39: 0 | BZ39: 0 | CA39: 0 | CB39: 0 | CC39: 0 | CD39: 0 | CE39: 0 | CF39: 0 | CG39: 0 | CH39: 0 | CI39: 0 | CJ39: 0 | CK39: 0 | CL39: 0 | CM39: 0 | CN39: 0 | CO39: 0 | CP39: 0 | CQ39: 0 | CR39: 0 | CS39: 0 | CT39: 0 | CU39: 0 | CV39: 0 | CW39: 0 | CX39: 0 | CY39: 0 | CZ39: 0 | DA39: 0 | DB39: 0 | DC39: 0 | DD39: 0 | DE39: 0 | DH39: p(c38)= | DI39: 0
BG40: p(ej/c39) | BH40: 0 | BI40: 0 | BJ40: 0 | BK40: 0 | BL40: 0 | BM40: 0 | BN40: 0 | BO40: 0 | BP40: 0 | BQ40: 0 | BR40: 0 | BS40: 0 | BT40: 0 | BU40: 0 | BV40: 0 | BW40: 0 | BX40: 0 | BY40: 0 | BZ40: 0 | CA40: 0 | CB40: 0 | CC40: 0 | CD40: 0 | CE40: 0 | CF40: 0 | CG40: 0 | CH40: 0 | CI40: 0 | CJ40: 0 | CK40: 0 | CL40: 0 | CM40: 0 | CN40: 0 | CO40: 0 | CP40: 0 | CQ40: 0 | CR40: 0 | CS40: 0 | CT40: 0 | CU40: 0 | CV40: 0 | CW40: 0 | CX40: 0 | CY40: 0 | CZ40: 0 | DA40: 0 | DB40: 0 | DC40: 0 | DD40: 0 | DE40: 0 | DH40: p(c39)= | DI40: 0
BG41: p(ej/c40) | BH41: 0 | BI41: 0 | BJ41: 0 | BK41: 0 | BL41: 0 | BM41: 0 | BN41: 0 | BO41: 0 | BP41: 0 | BQ41: 0 | BR41: 0 | BS41: 0 | BT41: 0 | BU41: 0 | BV41: 0 | BW41: 0 | BX41: 0 | BY41: 0 | BZ41: 0 | CA41: 0 | CB41: 0 | CC41: 0 | CD41: 0 | CE41: 0 | CF41: 0 | CG41: 0 | CH41: 0 | CI41: 0 | CJ41: 0 | CK41: 0 | CL41: 0 | CM41: 0 | CN41: 0 | CO41: 0 | CP41: 0 | CQ41: 0 | CR41: 0 | CS41: 0 | CT41: 0 | CU41: 0 | CV41: 0 | CW41: 0 | CX41: 0 | CY41: 0 | CZ41: 0 | DA41: 0 | DB41: 0 | DC41: 0 | DD41: 0 | DE41: 0 | DH41: p(c40)= | DI41: 0
BG42: p(ej/c41) | BH42: 0 | BI42: 0 | BJ42: 0 | BK42: 0 | BL42: 0 | BM42: 0 | BN42: 0 | BO42: 0 | BP42: 0 | BQ42: 0 | BR42: 0 | BS42: 0 | BT42: 0 | BU42: 0 | BV42: 0 | BW42: 0 | BX42: 0 | BY42: 0 | BZ42: 0 | CA42: 0 | CB42: 0 | CC42: 0 | CD42: 0 | CE42: 0 | CF42: 0 | CG42: 0 | CH42: 0 | CI42: 0 | CJ42: 0 | CK42: 0 | CL42: 0 | CM42: 0 | CN42: 0 | CO42: 0 | CP42: 0 | CQ42: 0 | CR42: 0 | CS42: 0 | CT42: 0 | CU42: 0 | CV42: 0 | CW42: 0 | CX42: 0 | CY42: 0 | CZ42: 0 | DA42: 0 | DB42: 0 | DC42: 0 | DD42: 0 | DE42: 0 | DH42: p(c41)= | DI42: 0
BG43: p(ej/c42) | BH43: 0 | BI43: 0 | BJ43: 0 | BK43: 0 | BL43: 0 | BM43: 0 | BN43: 0 | BO43: 0 | BP43: 0 | BQ43: 0 | BR43: 0 | BS43: 0 | BT43: 0 | BU43: 0 | BV43: 0 | BW43: 0 | BX43: 0 | BY43: 0 | BZ43: 0 | CA43: 0 | CB43: 0 | CC43: 0 | CD43: 0 | CE43: 0 | CF43: 0 | CG43: 0 | CH43: 0 | CI43: 0 | CJ43: 0 | CK43: 0 | CL43: 0 | CM43: 0 | CN43: 0 | CO43: 0 | CP43: 0 | CQ43: 0 | CR43: 0 | CS43: 0 | CT43: 0 | CU43: 0 | CV43: 0 | CW43: 0 | CX43: 0 | CY43: 0 | CZ43: 0 | DA43: 0 | DB43: 0 | DC43: =IF($BF94=0,0,DC94/$BF94) -> 0 | DD43: 0 | DE43: 0 | DH43: p(c42)= | DI43: 0
BG44: p(ej/c43) | BH44: 0 | BI44: 0 | BJ44: 0 | BK44: 0 | BL44: 0 | BM44: 0 | BN44: 0 | BO44: 0 | BP44: 0 | BQ44: 0 | BR44: 0 | BS44: 0 | BT44: 0 | BU44: 0 | BV44: 0 | BW44: 0 | BX44: 0 | BY44: 0 | BZ44: 0 | CA44: 0 | CB44: 0 | CC44: 0 | CD44: 0 | CE44: 0 | CF44: 0 | CG44: 0 | CH44: 0 | CI44: 0 | CJ44: 0 | CK44: 0 | CL44: 0 | CM44: 0 | CN44: 0 | CO44: 0 | CP44: 0 | CQ44: 0 | CR44: 0 | CS44: 0 | CT44: 0 | CU44: 0 | CV44: 0 | CW44: 0 | CX44: 0 | CY44: 0 | CZ44: 0 | DA44: 0 | DB44: 0 | DC44: 0 | DD44: 0 | DE44: 0 | DH44: p(c43)= | DI44: 0
BG45: p(ej/c44) | BH45: 0 | BI45: 0 | BJ45: 0 | BK45: 0 | BL45: 0 | BM45: 0 | BN45: 0 | BO45: 0 | BP45: 0 | BQ45: 0 | BR45: 0 | BS45: 0 | BT45: 0 | BU45: 0 | BV45: 0 | BW45: 0 | BX45: 0 | BY45: 0 | BZ45: 0 | CA45: 0 | CB45: 0 | CC45: 0 | CD45: 0 | CE45: 0 | CF45: 0 | CG45: 0 | CH45: 0 | CI45: 0 | CJ45: 0 | CK45: 0 | CL45: 0 | CM45: 0 | CN45: 0 | CO45: 0 | CP45: 0 | CQ45: 0 | CR45: 0 | CS45: 0 | CT45: 0 | CU45: 0 | CV45: 0 | CW45: 0 | CX45: 0 | CY45: 0 | CZ45: 0 | DA45: 0 | DB45: 0 | DC45: 0 | DD45: 0 | DE45: 0 | DH45: p(c44)= | DI45: 0
BG46: p(ej/c45) | BH46: 0 | BI46: 0 | BJ46: 0 | BK46: 0 | BL46: 0 | BM46: 0 | BN46: 0 | BO46: 0 | BP46: 0 | BQ46: 0 | BR46: 0 | BS46: 0 | BT46: 0 | BU46: 0 | BV46: 0 | BW46: 0 | BX46: 0 | BY46: 0 | BZ46: 0 | CA46: 0 | CB46: 0 | CC46: 0 | CD46: 0 | CE46: 0 | CF46: 0 | CG46: 0 | CH46: 0 | CI46: 0 | CJ46: 0 | CK46: 0 | CL46: 0 | CM46: 0 | CN46: 0 | CO46: 0 | CP46: 0 | CQ46: 0 | CR46: 0 | CS46: 0 | CT46: 0 | CU46: 0 | CV46: 0 | CW46: 0 | CX46: 0 | CY46: 0 | CZ46: 0 | DA46: 0 | DB46: 0 | DC46: 0 | DD46: 0 | DE46: 0 | DH46: p(c45)= | DI46: 0
BG47: p(ej/c46) | BH47: 0 | BI47: 0 | BJ47: 0 | BK47: 0 | BL47: 0 | BM47: 0 | BN47: 0 | BO47: 0 | BP47: 0 | BQ47: 0 | BR47: 0 | BS47: 0 | BT47: 0 | BU47: 0 | BV47: 0 | BW47: 0 | BX47: 0 | BY47: 0 | BZ47: 0 | CA47: 0 | CB47: 0 | CC47: 0 | CD47: 0 | CE47: 0 | CF47: 0 | CG47: 0 | CH47: 0 | CI47: 0 | CJ47: 0 | CK47: 0 | CL47: 0 | CM47: 0 | CN47: 0 | CO47: 0 | CP47: 0 | CQ47: 0 | CR47: 0 | CS47: 0 | CT47: 0 | CU47: 0 | CV47: 0 | CW47: 0 | CX47: 0 | CY47: 0 | CZ47: 0 | DA47: 0 | DB47: 0 | DC47: 0 | DD47: 0 | DE47: 0 | DH47: p(c46)= | DI47: 0
BG48: p(ej/c47) | BH48: 0 | BI48: 0 | BJ48: 0 | BK48: 0 | BL48: 0 | BM48: 0 | BN48: 0 | BO48: 0 | BP48: 0 | BQ48: 0 | BR48: 0 | BS48: 0 | BT48: 0 | BU48: 0 | BV48: 0 | BW48: 0 | BX48: 0 | BY48: 0 | BZ48: 0 | CA48: 0 | CB48: 0 | CC48: 0 | CD48: 0 | CE48: 0 | CF48: 0 | CG48: 0 | CH48: 0 | CI48: 0 | CJ48: 0 | CK48: 0 | CL48: 0 | CM48: 0 | CN48: 0 | CO48: 0 | CP48: 0 | CQ48: 0 | CR48: 0 | CS48: 0 | CT48: 0 | CU48: 0 | CV48: 0 | CW48: 0 | CX48: 0 | CY48: 0 | CZ48: 0 | DA48: 0 | DB48: 0 | DC48: 0 | DD48: 0 | DE48: 0 | DH48: p(c47)= | DI48: 0
BG49: p(ej/c48) | BH49: 0 | BI49: 0 | BJ49: 0 | BK49: 0 | BL49: 0 | BM49: 0 | BN49: 0 | BO49: 0 | BP49: =IF($BF100=0,0,BP100/$BF100) -> 0 | BQ49: 0 | BR49: 0 | BS49: 0 | BT49: 0 | BU49: 0 | BV49: 0 | BW49: 0 | BX49: 0 | BY49: 0 | BZ49: 0 | CA49: 0 | CB49: 0 | CC49: 0 | CD49: 0 | CE49: 0 | CF49: 0 | CG49: 0 | CH49: 0 | CI49: 0 | CJ49: 0 | CK49: 0 | CL49: 0 | CM49: 0 | CN49: 0 | CO49: 0 | CP49: 0 | CQ49: 0 | CR49: 0 | CS49: 0 | CT49: 0 | CU49: 0 | CV49: 0 | CW49: 0 | CX49: 0 | CY49: 0 | CZ49: 0 | DA49: 0 | DB49: 0 | DC49: 0 | DD49: 0 | DE49: 0 | DH49: p(c48)= | DI49: 0
BG50: p(ej/c49) | BH50: 0 | BI50: 0 | BJ50: 0 | BK50: 0 | BL50: 0 | BM50: 0 | BN50: 0 | BO50: 0 | BP50: 0 | BQ50: 0 | BR50: 0 | BS50: 0 | BT50: 0 | BU50: 0 | BV50: 0 | BW50: 0 | BX50: 0 | BY50: 0 | BZ50: 0 | CA50: 0 | CB50: 0 | CC50: 0 | CD50: 0 | CE50: 0 | CF50: 0 | CG50: 0 | CH50: 0 | CI50: 0 | CJ50: 0 | CK50: 0 | CL50: 0 | CM50: 0 | CN50: 0 | CO50: 0 | CP50: 0 | CQ50: 0 | CR50: 0 | CS50: 0 | CT50: 0 | CU50: 0 | CV50: 0 | CW50: 0 | CX50: 0 | CY50: 0 | CZ50: 0 | DA50: 0 | DB50: 0 | DC50: 0 | DD50: 0 | DE50: 0 | DH50: p(c49)= | DI50: 0
BG51: p(ej/c50) | BH51: 0 | BI51: 0 | BJ51: 0 | BK51: 0 | BL51: 0 | BM51: 0 | BN51: 0 | BO51: 0 | BP51: 0 | BQ51: 0 | BR51: 0 | BS51: 0 | BT51: 0 | BU51: 0 | BV51: 0 | BW51: 0 | BX51: 0 | BY51: 0 | BZ51: 0 | CA51: 0 | CB51: 0 | CC51: 0 | CD51: 0 | CE51: 0 | CF51: 0 | CG51: 0 | CH51: 0 | CI51: 0 | CJ51: 0 | CK51: 0 | CL51: 0 | CM51: 0 | CN51: 0 | CO51: 0 | CP51: 0 | CQ51: 0 | CR51: 0 | CS51: 0 | CT51: 0 | CU51: 0 | CV51: 0 | CW51: 0 | CX51: 0 | CY51: 0 | CZ51: 0 | DA51: 0 | DB51: 0 | DC51: 0 | DD51: 0 | DE51: 0 | DH51: p(c50)= | DI51: 0
BE53: p(c1)= | BF53: =SUM(BH53:DE53) -> 0.46 | BG53: p(c1/ei)xp(ei) → | BH53: =BH104*BH$156 -> 0.4 | BI53: 0.06 | BJ53: 0 | BK53: 0 | BL53: 0 | BM53: 0 | BN53: 0 | BO53: 0 | BP53: 0 | BQ53: 0 | BR53: 0 | BS53: 0 | BT53: 0 | BU53: 0 | BV53: 0 | BW53: 0 | BX53: 0 | BY53: 0 | BZ53: 0 | CA53: 0 | CB53: 0 | CC53: 0 | CD53: 0 | CE53: 0 | CF53: 0 | CG53: 0 | CH53: 0 | CI53: 0 | CJ53: 0 | CK53: 0 | CL53: 0 | CM53: 0 | CN53: =CN104*CN$156 -> 0 | CO53: 0 | CP53: 0 | CQ53: 0 | CR53: 0 | CS53: 0 | CT53: 0 | CU53: 0 | CV53: 0 | CW53: 0 | CX53: 0 | CY53: 0 | CZ53: 0 | DA53: 0 | DB53: 0 | DC53: 0 | DD53: 0 | DE53: 0
BE54: p(c2)= | BF54: =SUM(BH54:DE54) -> 0.26 | BG54: p(c2/ei)xp(ei) → | BH54: =BH105*BH$156 -> 0.05 | BI54: 0.21 | BJ54: 0 | BK54: 0 | BL54: 0 | BM54: 0 | BN54: 0 | BO54: 0 | BP54: 0 | BQ54: 0 | BR54: 0 | BS54: 0 | BT54: 0 | BU54: 0 | BV54: 0 | BW54: 0 | BX54: 0 | BY54: 0 | BZ54: 0 | CA54: 0 | CB54: 0 | CC54: 0 | CD54: 0 | CE54: 0 | CF54: 0 | CG54: 0 | CH54: 0 | CI54: 0 | CJ54: 0 | CK54: 0 | CL54: 0 | CM54: 0 | CN54: =CN105*CN$156 -> 0 | CO54: 0 | CP54: 0 | CQ54: 0 | CR54: 0 | CS54: 0 | CT54: 0 | CU54: 0 | CV54: 0 | CW54: 0 | CX54: 0 | CY54: 0 | CZ54: 0 | DA54: 0 | DB54: 0 | DC54: 0 | DD54: 0 | DE54: 0
BE55: p(c3)= | BF55: 0.28 | BG55: p(c3/ei)xp(ei) → | BH55: =BH106*BH$156 -> 0.05 | BI55: 0.03 | BJ55: 0.2 | BK55: 0 | BL55: 0 | BM55: 0 | BN55: 0 | BO55: 0 | BP55: 0 | BQ55: 0 | BR55: 0 | BS55: 0 | BT55: 0 | BU55: 0 | BV55: 0 | BW55: 0 | BX55: 0 | BY55: 0 | BZ55: 0 | CA55: 0 | CB55: 0 | CC55: 0 | CD55: 0 | CE55: 0 | CF55: 0 | CG55: 0 | CH55: 0 | CI55: 0 | CJ55: 0 | CK55: 0 | CL55: 0 | CM55: 0 | CN55: =CN106*CN$156 -> 0 | CO55: 0 | CP55: 0 | CQ55: 0 | CR55: 0 | CS55: 0 | CT55: 0 | CU55: 0 | CV55: 0 | CW55: 0 | CX55: 0 | CY55: 0 | CZ55: 0 | DA55: 0 | DB55: 0 | DC55: 0 | DD55: 0 | DE55: 0
BE56: p(c4)= | BF56: 0 | BG56: p(c4/ei)xp(ei) → | BH56: =BH107*BH$156 -> 0 | BI56: 0 | BJ56: 0 | BK56: 0 | BL56: 0 | BM56: 0 | BN56: 0 | BO56: 0 | BP56: 0 | BQ56: 0 | BR56: 0 | BS56: 0 | BT56: 0 | BU56: 0 | BV56: 0 | BW56: 0 | BX56: 0 | BY56: 0 | BZ56: 0 | CA56: 0 | CB56: 0 | CC56: 0 | CD56: 0 | CE56: 0 | CF56: 0 | CG56: 0 | CH56: 0 | CI56: 0 | CJ56: 0 | CK56: 0 | CL56: 0 | CM56: 0 | CN56: =CN107*CN$156 -> 0 | CO56: 0 | CP56: 0 | CQ56: 0 | CR56: 0 | CS56: 0 | CT56: 0 | CU56: 0 | CV56: 0 | CW56: 0 | CX56: 0 | CY56: 0 | CZ56: 0 | DA56: 0 | DB56: 0 | DC56: 0 | DD56: 0 | DE56: 0
BE57: p(c5)= | BF57: 0 | BG57: p(c5/ei)xp(ei) → | BH57: =BH108*BH$156 -> 0 | BI57: 0 | BJ57: 0 | BK57: 0 | BL57: 0 | BM57: 0 | BN57: 0 | BO57: 0 | BP57: 0 | BQ57: 0 | BR57: 0 | BS57: 0 | BT57: 0 | BU57: 0 | BV57: 0 | BW57: 0 | BX57: 0 | BY57: 0 | BZ57: 0 | CA57: 0 | CB57: 0 | CC57: 0 | CD57: 0 | CE57: 0 | CF57: 0 | CG57: 0 | CH57: 0 | CI57: 0 | CJ57: 0 | CK57: 0 | CL57: 0 | CM57: 0 | CN57: =CN108*CN$156 -> 0 | CO57: 0 | CP57: 0 | CQ57: 0 | CR57: 0 | CS57: 0 | CT57: 0 | CU57: 0 | CV57: 0 | CW57: 0 | CX57: 0 | CY57: 0 | CZ57: 0 | DA57: 0 | DB57: 0 | DC57: 0 | DD57: 0 | DE57: 0
BE58: p(c6)= | BF58: 0 | BG58: p(c6/ei)xp(ei) → | BH58: =BH109*BH$156 -> 0 | BI58: 0 | BJ58: 0 | BK58: 0 | BL58: 0 | BM58: 0 | BN58: 0 | BO58: 0 | BP58: 0 | BQ58: 0 | BR58: 0 | BS58: 0 | BT58: 0 | BU58: 0 | BV58: 0 | BW58: 0 | BX58: 0 | BY58: 0 | BZ58: 0 | CA58: 0 | CB58: 0 | CC58: 0 | CD58: 0 | CE58: 0 | CF58: 0 | CG58: 0 | CH58: 0 | CI58: 0 | CJ58: 0 | CK58: 0 | CL58: 0 | CM58: 0 | CN58: =CN109*CN$156 -> 0 | CO58: 0 | CP58: 0 | CQ58: 0 | CR58: 0 | CS58: 0 | CT58: 0 | CU58: 0 | CV58: 0 | CW58: 0 | CX58: 0 | CY58: 0 | CZ58: 0 | DA58: 0 | DB58: 0 | DC58: 0 | DD58: 0 | DE58: 0
BE59: p(c7)= | BF59: 0 | BG59: p(c7/ei)xp(ei) → | BH59: =BH110*BH$156 -> 0 | BI59: 0 | BJ59: 0 | BK59: 0 | BL59: 0 | BM59: 0 | BN59: 0 | BO59: 0 | BP59: 0 | BQ59: 0 | BR59: 0 | BS59: 0 | BT59: 0 | BU59: 0 | BV59: 0 | BW59: 0 | BX59: 0 | BY59: 0 | BZ59: 0 | CA59: 0 | CB59: 0 | CC59: 0 | CD59: 0 | CE59: 0 | CF59: 0 | CG59: 0 | CH59: 0 | CI59: 0 | CJ59: 0 | CK59: 0 | CL59: 0 | CM59: 0 | CN59: =CN110*CN$156 -> 0 | CO59: 0 | CP59: 0 | CQ59: 0 | CR59: 0 | CS59: 0 | CT59: 0 | CU59: 0 | CV59: 0 | CW59: 0 | CX59: 0 | CY59: 0 | CZ59: 0 | DA59: 0 | DB59: 0 | DC59: 0 | DD59: 0 | DE59: 0
BE60: p(c8)= | BF60: 0 | BG60: p(c8/ei)xp(ei) → | BH60: =BH111*BH$156 -> 0 | BI60: 0 | BJ60: 0 | BK60: 0 | BL60: 0 | BM60: 0 | BN60: 0 | BO60: 0 | BP60: 0 | BQ60: 0 | BR60: 0 | BS60: 0 | BT60: 0 | BU60: 0 | BV60: 0 | BW60: 0 | BX60: 0 | BY60: 0 | BZ60: 0 | CA60: 0 | CB60: 0 | CC60: 0 | CD60: 0 | CE60: 0 | CF60: 0 | CG60: 0 | CH60: 0 | CI60: 0 | CJ60: 0 | CK60: 0 | CL60: 0 | CM60: 0 | CN60: =CN111*CN$156 -> 0 | CO60: 0 | CP60: 0 | CQ60: 0 | CR60: 0 | CS60: 0 | CT60: 0 | CU60: 0 | CV60: 0 | CW60: 0 | CX60: 0 | CY60: 0 | CZ60: 0 | DA60: 0 | DB60: 0 | DC60: 0 | DD60: 0 | DE60: 0
BE61: p(c9)= | BF61: 0 | BG61: p(c9/ei)xp(ei) → | BH61: =BH112*BH$156 -> 0 | BI61: 0 | BJ61: 0 | BK61: 0 | BL61: 0 | BM61: 0 | BN61: 0 | BO61: 0 | BP61: 0 | BQ61: 0 | BR61: 0 | BS61: 0 | BT61: 0 | BU61: 0 | BV61: 0 | BW61: 0 | BX61: 0 | BY61: 0 | BZ61: 0 | CA61: 0 | CB61: 0 | CC61: 0 | CD61: 0 | CE61: 0 | CF61: 0 | CG61: 0 | CH61: 0 | CI61: 0 | CJ61: 0 | CK61: 0 | CL61: 0 | CM61: 0 | CN61: =CN112*CN$156 -> 0 | CO61: 0 | CP61: 0 | CQ61: 0 | CR61: 0 | CS61: 0 | CT61: 0 | CU61: 0 | CV61: 0 | CW61: 0 | CX61: 0 | CY61: 0 | CZ61: 0 | DA61: 0 | DB61: 0 | DC61: 0 | DD61: 0 | DE61: 0
BE62: p(c10)= | BF62: 0 | BG62: p(c10/ei)xp(ei) → | BH62: =BH113*BH$156 -> 0 | BI62: 0 | BJ62: 0 | BK62: 0 | BL62: 0 | BM62: 0 | BN62: 0 | BO62: 0 | BP62: 0 | BQ62: 0 | BR62: 0 | BS62: 0 | BT62: 0 | BU62: 0 | BV62: 0 | BW62: 0 | BX62: 0 | BY62: 0 | BZ62: 0 | CA62: 0 | CB62: 0 | CC62: 0 | CD62: 0 | CE62: 0 | CF62: 0 | CG62: 0 | CH62: 0 | CI62: 0 | CJ62: 0 | CK62: 0 | CL62: 0 | CM62: 0 | CN62: =CN113*CN$156 -> 0 | CO62: 0 | CP62: 0 | CQ62: 0 | CR62: 0 | CS62: 0 | CT62: 0 | CU62: 0 | CV62: 0 | CW62: 0 | CX62: 0 | CY62: 0 | CZ62: 0 | DA62: 0 | DB62: 0 | DC62: 0 | DD62: 0 | DE62: 0
BE63: p(c11)= | BF63: 0 | BG63: p(c11/ei)xp(ei) → | BH63: =BH114*BH$156 -> 0 | BI63: 0 | BJ63: 0 | BK63: 0 | BL63: 0 | BM63: 0 | BN63: 0 | BO63: 0 | BP63: 0 | BQ63: 0 | BR63: 0 | BS63: 0 | BT63: 0 | BU63: 0 | BV63: 0 | BW63: 0 | BX63: 0 | BY63: 0 | BZ63: 0 | CA63: 0 | CB63: 0 | CC63: 0 | CD63: 0 | CE63: 0 | CF63: 0 | CG63: 0 | CH63: 0 | CI63: 0 | CJ63: 0 | CK63: 0 | CL63: 0 | CM63: 0 | CN63: =CN114*CN$156 -> 0 | CO63: 0 | CP63: 0 | CQ63: 0 | CR63: 0 | CS63: 0 | CT63: 0 | CU63: 0 | CV63: 0 | CW63: 0 | CX63: 0 | CY63: 0 | CZ63: 0 | DA63: 0 | DB63: 0 | DC63: 0 | DD63: 0 | DE63: 0
BE64: p(c12)= | BF64: 0 | BG64: p(c12/ei)xp(ei) → | BH64: =BH115*BH$156 -> 0 | BI64: 0 | BJ64: 0 | BK64: 0 | BL64: 0 | BM64: 0 | BN64: 0 | BO64: 0 | BP64: 0 | BQ64: 0 | BR64: 0 | BS64: 0 | BT64: 0 | BU64: 0 | BV64: 0 | BW64: 0 | BX64: 0 | BY64: 0 | BZ64: 0 | CA64: 0 | CB64: 0 | CC64: 0 | CD64: 0 | CE64: 0 | CF64: 0 | CG64: 0 | CH64: 0 | CI64: 0 | CJ64: 0 | CK64: 0 | CL64: 0 | CM64: 0 | CN64: =CN115*CN$156 -> 0 | CO64: 0 | CP64: 0 | CQ64: 0 | CR64: 0 | CS64: 0 | CT64: 0 | CU64: 0 | CV64: 0 | CW64: 0 | CX64: 0 | CY64: 0 | CZ64: 0 | DA64: 0 | DB64: 0 | DC64: 0 | DD64: 0 | DE64: 0
BE65: p(c13)= | BF65: 0 | BG65: p(c13/ei)xp(ei) → | BH65: =BH116*BH$156 -> 0 | BI65: 0 | BJ65: 0 | BK65: 0 | BL65: 0 | BM65: 0 | BN65: 0 | BO65: 0 | BP65: 0 | BQ65: 0 | BR65: 0 | BS65: 0 | BT65: 0 | BU65: 0 | BV65: 0 | BW65: 0 | BX65: 0 | BY65: 0 | BZ65: 0 | CA65: 0 | CB65: 0 | CC65: 0 | CD65: 0 | CE65: 0 | CF65: 0 | CG65: 0 | CH65: 0 | CI65: 0 | CJ65: 0 | CK65: 0 | CL65: 0 | CM65: 0 | CN65: =CN116*CN$156 -> 0 | CO65: 0 | CP65: 0 | CQ65: 0 | CR65: 0 | CS65: 0 | CT65: 0 | CU65: 0 | CV65: 0 | CW65: 0 | CX65: 0 | CY65: 0 | CZ65: 0 | DA65: 0 | DB65: 0 | DC65: 0 | DD65: 0 | DE65: 0
BE66: p(c14)= | BF66: 0 | BG66: p(c14/ei)xp(ei) → | BH66: =BH117*BH$156 -> 0 | BI66: 0 | BJ66: 0 | BK66: 0 | BL66: 0 | BM66: 0 | BN66: 0 | BO66: 0 | BP66: 0 | BQ66: 0 | BR66: 0 | BS66: 0 | BT66: 0 | BU66: 0 | BV66: 0 | BW66: 0 | BX66: 0 | BY66: 0 | BZ66: 0 | CA66: 0 | CB66: 0 | CC66: 0 | CD66: 0 | CE66: 0 | CF66: 0 | CG66: 0 | CH66: 0 | CI66: 0 | CJ66: 0 | CK66: 0 | CL66: 0 | CM66: 0 | CN66: =CN117*CN$156 -> 0 | CO66: 0 | CP66: 0 | CQ66: 0 | CR66: 0 | CS66: 0 | CT66: 0 | CU66: 0 | CV66: 0 | CW66: 0 | CX66: 0 | CY66: 0 | CZ66: 0 | DA66: 0 | DB66: 0 | DC66: 0 | DD66: 0 | DE66: 0
BE67: p(c15)= | BF67: 0 | BG67: p(c15/ei)xp(ei) → | BH67: =BH118*BH$156 -> 0 | BI67: 0 | BJ67: 0 | BK67: 0 | BL67: 0 | BM67: 0 | BN67: 0 | BO67: 0 | BP67: 0 | BQ67: 0 | BR67: 0 | BS67: 0 | BT67: 0 | BU67: 0 | BV67: 0 | BW67: 0 | BX67: 0 | BY67: 0 | BZ67: 0 | CA67: 0 | CB67: 0 | CC67: 0 | CD67: 0 | CE67: 0 | CF67: 0 | CG67: 0 | CH67: 0 | CI67: 0 | CJ67: 0 | CK67: 0 | CL67: 0 | CM67: 0 | CN67: =CN118*CN$156 -> 0 | CO67: 0 | CP67: 0 | CQ67: 0 | CR67: 0 | CS67: 0 | CT67: 0 | CU67: 0 | CV67: 0 | CW67: 0 | CX67: 0 | CY67: 0 | CZ67: 0 | DA67: 0 | DB67: 0 | DC67: 0 | DD67: 0 | DE67: 0
BE68: p(c16)= | BF68: 0 | BG68: p(c16/ei)xp(ei) → | BH68: =BH119*BH$156 -> 0 | BI68: 0 | BJ68: 0 | BK68: 0 | BL68: 0 | BM68: 0 | BN68: 0 | BO68: 0 | BP68: 0 | BQ68: 0 | BR68: 0 | BS68: 0 | BT68: 0 | BU68: 0 | BV68: 0 | BW68: 0 | BX68: 0 | BY68: 0 | BZ68: 0 | CA68: 0 | CB68: 0 | CC68: 0 | CD68: 0 | CE68: 0 | CF68: 0 | CG68: 0 | CH68: 0 | CI68: 0 | CJ68: 0 | CK68: 0 | CL68: 0 | CM68: 0 | CN68: =CN119*CN$156 -> 0 | CO68: 0 | CP68: 0 | CQ68: 0 | CR68: 0 | CS68: 0 | CT68: 0 | CU68: 0 | CV68: 0 | CW68: 0 | CX68: 0 | CY68: 0 | CZ68: 0 | DA68: 0 | DB68: 0 | DC68: 0 | DD68: 0 | DE68: 0
BE69: p(c17)= | BF69: 0 | BG69: p(c17/ei)xp(ei) → | BH69: =BH120*BH$156 -> 0 | BI69: 0 | BJ69: 0 | BK69: 0 | BL69: 0 | BM69: 0 | BN69: 0 | BO69: 0 | BP69: 0 | BQ69: 0 | BR69: 0 | BS69: 0 | BT69: 0 | BU69: 0 | BV69: 0 | BW69: 0 | BX69: 0 | BY69: 0 | BZ69: 0 | CA69: 0 | CB69: 0 | CC69: 0 | CD69: 0 | CE69: 0 | CF69: 0 | CG69: 0 | CH69: 0 | CI69: 0 | CJ69: 0 | CK69: 0 | CL69: 0 | CM69: 0 | CN69: =CN120*CN$156 -> 0 | CO69: 0 | CP69: 0 | CQ69: 0 | CR69: 0 | CS69: 0 | CT69: 0 | CU69: 0 | CV69: 0 | CW69: 0 | CX69: 0 | CY69: 0 | CZ69: 0 | DA69: 0 | DB69: 0 | DC69: 0 | DD69: 0 | DE69: 0
BE70: p(c18)= | BF70: 0 | BG70: p(c18/ei)xp(ei) → | BH70: =BH121*BH$156 -> 0 | BI70: 0 | BJ70: 0 | BK70: 0 | BL70: 0 | BM70: 0 | BN70: 0 | BO70: 0 | BP70: 0 | BQ70: 0 | BR70: 0 | BS70: 0 | BT70: 0 | BU70: 0 | BV70: 0 | BW70: 0 | BX70: 0 | BY70: 0 | BZ70: 0 | CA70: 0 | CB70: 0 | CC70: 0 | CD70: 0 | CE70: 0 | CF70: 0 | CG70: 0 | CH70: 0 | CI70: 0 | CJ70: 0 | CK70: 0 | CL70: 0 | CM70: 0 | CN70: =CN121*CN$156 -> 0 | CO70: 0 | CP70: 0 | CQ70: 0 | CR70: 0 | CS70: 0 | CT70: 0 | CU70: 0 | CV70: 0 | CW70: 0 | CX70: 0 | CY70: 0 | CZ70: 0 | DA70: 0 | DB70: 0 | DC70: 0 | DD70: 0 | DE70: 0
BE71: p(c19)= | BF71: 0 | BG71: p(c19/ei)xp(ei) → | BH71: =BH122*BH$156 -> 0 | BI71: 0 | BJ71: 0 | BK71: 0 | BL71: 0 | BM71: 0 | BN71: 0 | BO71: 0 | BP71: 0 | BQ71: 0 | BR71: 0 | BS71: 0 | BT71: 0 | BU71: 0 | BV71: 0 | BW71: 0 | BX71: 0 | BY71: 0 | BZ71: 0 | CA71: 0 | CB71: 0 | CC71: 0 | CD71: 0 | CE71: 0 | CF71: 0 | CG71: 0 | CH71: 0 | CI71: 0 | CJ71: 0 | CK71: 0 | CL71: 0 | CM71: 0 | CN71: =CN122*CN$156 -> 0 | CO71: 0 | CP71: 0 | CQ71: 0 | CR71: 0 | CS71: 0 | CT71: 0 | CU71: 0 | CV71: 0 | CW71: 0 | CX71: 0 | CY71: 0 | CZ71: 0 | DA71: 0 | DB71: 0 | DC71: 0 | DD71: 0 | DE71: 0
BE72: p(c20)= | BF72: 0 | BG72: p(c20/ei)xp(ei) → | BH72: =BH123*BH$156 -> 0 | BI72: 0 | BJ72: 0 | BK72: 0 | BL72: 0 | BM72: 0 | BN72: 0 | BO72: 0 | BP72: 0 | BQ72: 0 | BR72: 0 | BS72: 0 | BT72: 0 | BU72: 0 | BV72: 0 | BW72: 0 | BX72: 0 | BY72: 0 | BZ72: 0 | CA72: 0 | CB72: 0 | CC72: 0 | CD72: 0 | CE72: 0 | CF72: 0 | CG72: 0 | CH72: 0 | CI72: 0 | CJ72: 0 | CK72: 0 | CL72: 0 | CM72: 0 | CN72: =CN123*CN$156 -> 0 | CO72: 0 | CP72: 0 | CQ72: 0 | CR72: 0 | CS72: 0 | CT72: 0 | CU72: 0 | CV72: 0 | CW72: 0 | CX72: 0 | CY72: 0 | CZ72: 0 | DA72: 0 | DB72: 0 | DC72: 0 | DD72: 0 | DE72: 0
BE73: p(c21)= | BF73: 0 | BG73: p(c21/ei)xp(ei) → | BH73: =BH124*BH$156 -> 0 | BI73: 0 | BJ73: 0 | BK73: 0 | BL73: 0 | BM73: 0 | BN73: 0 | BO73: 0 | BP73: 0 | BQ73: 0 | BR73: 0 | BS73: 0 | BT73: 0 | BU73: 0 | BV73: 0 | BW73: 0 | BX73: 0 | BY73: 0 | BZ73: 0 | CA73: 0 | CB73: 0 | CC73: 0 | CD73: 0 | CE73: 0 | CF73: 0 | CG73: 0 | CH73: 0 | CI73: 0 | CJ73: 0 | CK73: 0 | CL73: 0 | CM73: 0 | CN73: =CN124*CN$156 -> 0 | CO73: 0 | CP73: 0 | CQ73: 0 | CR73: 0 | CS73: 0 | CT73: 0 | CU73: 0 | CV73: 0 | CW73: 0 | CX73: 0 | CY73: 0 | CZ73: 0 | DA73: 0 | DB73: 0 | DC73: 0 | DD73: 0 | DE73: 0
BE74: p(c22)= | BF74: 0 | BG74: p(c22/ei)xp(ei) → | BH74: =BH125*BH$156 -> 0 | BI74: 0 | BJ74: 0 | BK74: 0 | BL74: 0 | BM74: 0 | BN74: 0 | BO74: 0 | BP74: 0 | BQ74: 0 | BR74: 0 | BS74: 0 | BT74: 0 | BU74: 0 | BV74: 0 | BW74: 0 | BX74: 0 | BY74: 0 | BZ74: 0 | CA74: 0 | CB74: 0 | CC74: 0 | CD74: 0 | CE74: 0 | CF74: 0 | CG74: 0 | CH74: 0 | CI74: 0 | CJ74: 0 | CK74: 0 | CL74: 0 | CM74: 0 | CN74: =CN125*CN$156 -> 0 | CO74: 0 | CP74: 0 | CQ74: 0 | CR74: 0 | CS74: 0 | CT74: 0 | CU74: 0 | CV74: 0 | CW74: 0 | CX74: 0 | CY74: 0 | CZ74: 0 | DA74: 0 | DB74: 0 | DC74: 0 | DD74: 0 | DE74: 0
BE75: p(c23)= | BF75: 0 | BG75: p(c23/ei)xp(ei) → | BH75: =BH126*BH$156 -> 0 | BI75: 0 | BJ75: 0 | BK75: 0 | BL75: 0 | BM75: 0 | BN75: 0 | BO75: 0 | BP75: 0 | BQ75: 0 | BR75: 0 | BS75: 0 | BT75: 0 | BU75: 0 | BV75: 0 | BW75: 0 | BX75: 0 | BY75: 0 | BZ75: 0 | CA75: 0 | CB75: 0 | CC75: 0 | CD75: 0 | CE75: 0 | CF75: 0 | CG75: 0 | CH75: 0 | CI75: 0 | CJ75: 0 | CK75: 0 | CL75: 0 | CM75: 0 | CN75: =CN126*CN$156 -> 0 | CO75: 0 | CP75: 0 | CQ75: 0 | CR75: 0 | CS75: 0 | CT75: 0 | CU75: 0 | CV75: 0 | CW75: 0 | CX75: 0 | CY75: 0 | CZ75: 0 | DA75: 0 | DB75: 0 | DC75: 0 | DD75: 0 | DE75: 0
BE76: p(c24)= | BF76: 0 | BG76: p(c24/ei)xp(ei) → | BH76: =BH127*BH$156 -> 0 | BI76: 0 | BJ76: 0 | BK76: 0 | BL76: 0 | BM76: 0 | BN76: 0 | BO76: 0 | BP76: 0 | BQ76: 0 | BR76: 0 | BS76: 0 | BT76: 0 | BU76: 0 | BV76: 0 | BW76: 0 | BX76: 0 | BY76: 0 | BZ76: 0 | CA76: 0 | CB76: 0 | CC76: 0 | CD76: 0 | CE76: 0 | CF76: 0 | CG76: 0 | CH76: 0 | CI76: 0 | CJ76: 0 | CK76: 0 | CL76: 0 | CM76: 0 | CN76: =CN127*CN$156 -> 0 | CO76: 0 | CP76: 0 | CQ76: 0 | CR76: 0 | CS76: 0 | CT76: 0 | CU76: 0 | CV76: 0 | CW76: 0 | CX76: 0 | CY76: 0 | CZ76: 0 | DA76: 0 | DB76: 0 | DC76: 0 | DD76: 0 | DE76: 0
BE77: p(c25)= | BF77: 0 | BG77: p(c25/ei)xp(ei) → | BH77: =BH128*BH$156 -> 0 | BI77: 0 | BJ77: 0 | BK77: 0 | BL77: 0 | BM77: 0 | BN77: 0 | BO77: 0 | BP77: 0 | BQ77: 0 | BR77: 0 | BS77: 0 | BT77: 0 | BU77: 0 | BV77: 0 | BW77: 0 | BX77: 0 | BY77: 0 | BZ77: 0 | CA77: 0 | CB77: 0 | CC77: 0 | CD77: 0 | CE77: 0 | CF77: 0 | CG77: 0 | CH77: 0 | CI77: 0 | CJ77: 0 | CK77: 0 | CL77: 0 | CM77: 0 | CN77: =CN128*CN$156 -> 0 | CO77: 0 | CP77: 0 | CQ77: 0 | CR77: 0 | CS77: 0 | CT77: 0 | CU77: 0 | CV77: 0 | CW77: 0 | CX77: 0 | CY77: 0 | CZ77: 0 | DA77: 0 | DB77: 0 | DC77: 0 | DD77: 0 | DE77: 0
BE78: p(c26)= | BF78: 0 | BG78: p(c26/ei)xp(ei) → | BH78: =BH129*BH$156 -> 0 | BI78: 0 | BJ78: 0 | BK78: 0 | BL78: 0 | BM78: 0 | BN78: 0 | BO78: 0 | BP78: 0 | BQ78: 0 | BR78: 0 | BS78: 0 | BT78: 0 | BU78: 0 | BV78: 0 | BW78: 0 | BX78: 0 | BY78: 0 | BZ78: 0 | CA78: 0 | CB78: 0 | CC78: 0 | CD78: 0 | CE78: 0 | CF78: 0 | CG78: 0 | CH78: 0 | CI78: 0 | CJ78: 0 | CK78: 0 | CL78: 0 | CM78: 0 | CN78: =CN129*CN$156 -> 0 | CO78: 0 | CP78: 0 | CQ78: 0 | CR78: 0 | CS78: 0 | CT78: 0 | CU78: 0 | CV78: 0 | CW78: 0 | CX78: 0 | CY78: 0 | CZ78: 0 | DA78: 0 | DB78: 0 | DC78: 0 | DD78: 0 | DE78: 0
BE79: p(c27)= | BF79: 0 | BG79: p(c27/ei)xp(ei) → | BH79: =BH130*BH$156 -> 0 | BI79: 0 | BJ79: 0 | BK79: 0 | BL79: 0 | BM79: 0 | BN79: 0 | BO79: 0 | BP79: 0 | BQ79: 0 | BR79: 0 | BS79: 0 | BT79: 0 | BU79: 0 | BV79: 0 | BW79: 0 | BX79: 0 | BY79: 0 | BZ79: 0 | CA79: 0 | CB79: 0 | CC79: 0 | CD79: 0 | CE79: 0 | CF79: 0 | CG79: 0 | CH79: 0 | CI79: 0 | CJ79: 0 | CK79: 0 | CL79: 0 | CM79: 0 | CN79: =CN130*CN$156 -> 0 | CO79: 0 | CP79: 0 | CQ79: 0 | CR79: 0 | CS79: 0 | CT79: 0 | CU79: 0 | CV79: 0 | CW79: 0 | CX79: 0 | CY79: 0 | CZ79: 0 | DA79: 0 | DB79: 0 | DC79: 0 | DD79: 0 | DE79: 0
BE80: p(c28)= | BF80: 0 | BG80: p(c28/ei)xp(ei) → | BH80: =BH131*BH$156 -> 0 | BI80: 0 | BJ80: 0 | BK80: 0 | BL80: 0 | BM80: 0 | BN80: 0 | BO80: 0 | BP80: 0 | BQ80: 0 | BR80: 0 | BS80: 0 | BT80: 0 | BU80: 0 | BV80: 0 | BW80: 0 | BX80: 0 | BY80: 0 | BZ80: 0 | CA80: 0 | CB80: 0 | CC80: 0 | CD80: 0 | CE80: 0 | CF80: 0 | CG80: 0 | CH80: 0 | CI80: 0 | CJ80: 0 | CK80: 0 | CL80: 0 | CM80: 0 | CN80: =CN131*CN$156 -> 0 | CO80: 0 | CP80: 0 | CQ80: 0 | CR80: 0 | CS80: 0 | CT80: 0 | CU80: 0 | CV80: 0 | CW80: 0 | CX80: 0 | CY80: 0 | CZ80: 0 | DA80: 0 | DB80: 0 | DC80: 0 | DD80: 0 | DE80: 0
BE81: p(c29)= | BF81: 0 | BG81: p(c29/ei)xp(ei) → | BH81: =BH132*BH$156 -> 0 | BI81: 0 | BJ81: 0 | BK81: 0 | BL81: 0 | BM81: 0 | BN81: 0 | BO81: 0 | BP81: 0 | BQ81: 0 | BR81: 0 | BS81: 0 | BT81: 0 | BU81: 0 | BV81: 0 | BW81: 0 | BX81: 0 | BY81: 0 | BZ81: 0 | CA81: 0 | CB81: 0 | CC81: 0 | CD81: 0 | CE81: 0 | CF81: 0 | CG81: 0 | CH81: 0 | CI81: 0 | CJ81: 0 | CK81: 0 | CL81: 0 | CM81: 0 | CN81: =CN132*CN$156 -> 0 | CO81: 0 | CP81: 0 | CQ81: 0 | CR81: 0 | CS81: 0 | CT81: 0 | CU81: 0 | CV81: 0 | CW81: 0 | CX81: 0 | CY81: 0 | CZ81: 0 | DA81: 0 | DB81: 0 | DC81: 0 | DD81: 0 | DE81: 0
BE82: p(c30)= | BF82: 0 | BG82: p(c30/ei)xp(ei) → | BH82: =BH133*BH$156 -> 0 | BI82: 0 | BJ82: 0 | BK82: 0 | BL82: 0 | BM82: 0 | BN82: 0 | BO82: 0 | BP82: 0 | BQ82: 0 | BR82: 0 | BS82: 0 | BT82: 0 | BU82: 0 | BV82: 0 | BW82: 0 | BX82: 0 | BY82: 0 | BZ82: 0 | CA82: 0 | CB82: 0 | CC82: 0 | CD82: 0 | CE82: 0 | CF82: 0 | CG82: 0 | CH82: 0 | CI82: 0 | CJ82: 0 | CK82: 0 | CL82: 0 | CM82: 0 | CN82: =CN133*CN$156 -> 0 | CO82: 0 | CP82: 0 | CQ82: 0 | CR82: 0 | CS82: 0 | CT82: 0 | CU82: 0 | CV82: 0 | CW82: 0 | CX82: 0 | CY82: 0 | CZ82: 0 | DA82: 0 | DB82: 0 | DC82: 0 | DD82: 0 | DE82: 0
BE83: p(c31)= | BF83: 0 | BG83: p(c31/ei)xp(ei) → | BH83: =BH134*BH$156 -> 0 | BI83: 0 | BJ83: 0 | BK83: 0 | BL83: 0 | BM83: 0 | BN83: 0 | BO83: 0 | BP83: 0 | BQ83: 0 | BR83: 0 | BS83: 0 | BT83: 0 | BU83: 0 | BV83: 0 | BW83: 0 | BX83: 0 | BY83: 0 | BZ83: 0 | CA83: 0 | CB83: 0 | CC83: 0 | CD83: 0 | CE83: 0 | CF83: 0 | CG83: 0 | CH83: 0 | CI83: 0 | CJ83: 0 | CK83: 0 | CL83: 0 | CM83: 0 | CN83: =CN134*CN$156 -> 0 | CO83: 0 | CP83: 0 | CQ83: 0 | CR83: 0 | CS83: 0 | CT83: 0 | CU83: 0 | CV83: 0 | CW83: 0 | CX83: 0 | CY83: 0 | CZ83: 0 | DA83: 0 | DB83: 0 | DC83: 0 | DD83: 0 | DE83: 0
BE84: p(c32)= | BF84: 0 | BG84: p(c32/ei)xp(ei) → | BH84: =BH135*BH$156 -> 0 | BI84: 0 | BJ84: 0 | BK84: 0 | BL84: 0 | BM84: 0 | BN84: 0 | BO84: 0 | BP84: 0 | BQ84: 0 | BR84: 0 | BS84: 0 | BT84: 0 | BU84: 0 | BV84: 0 | BW84: 0 | BX84: 0 | BY84: 0 | BZ84: 0 | CA84: 0 | CB84: 0 | CC84: 0 | CD84: 0 | CE84: 0 | CF84: 0 | CG84: 0 | CH84: 0 | CI84: 0 | CJ84: 0 | CK84: 0 | CL84: 0 | CM84: 0 | CN84: =CN135*CN$156 -> 0 | CO84: 0 | CP84: 0 | CQ84: 0 | CR84: 0 | CS84: 0 | CT84: 0 | CU84: 0 | CV84: 0 | CW84: 0 | CX84: 0 | CY84: 0 | CZ84: 0 | DA84: 0 | DB84: 0 | DC84: 0 | DD84: 0 | DE84: 0
BE85: p(c33)= | BF85: 0 | BG85: p(c33/ei)xp(ei) → | BH85: =BH136*BH$156 -> 0 | BI85: 0 | BJ85: 0 | BK85: 0 | BL85: 0 | BM85: 0 | BN85: 0 | BO85: 0 | BP85: 0 | BQ85: 0 | BR85: 0 | BS85: 0 | BT85: 0 | BU85: 0 | BV85: 0 | BW85: 0 | BX85: 0 | BY85: 0 | BZ85: 0 | CA85: 0 | CB85: 0 | CC85: 0 | CD85: 0 | CE85: 0 | CF85: 0 | CG85: 0 | CH85: 0 | CI85: 0 | CJ85: 0 | CK85: 0 | CL85: 0 | CM85: 0 | CN85: =CN136*CN$156 -> 0 | CO85: 0 | CP85: 0 | CQ85: 0 | CR85: 0 | CS85: 0 | CT85: 0 | CU85: 0 | CV85: 0 | CW85: 0 | CX85: 0 | CY85: 0 | CZ85: 0 | DA85: 0 | DB85: 0 | DC85: 0 | DD85: 0 | DE85: 0
BE86: p(c34)= | BF86: 0 | BG86: p(c34/ei)xp(ei) → | BH86: =BH137*BH$156 -> 0 | BI86: 0 | BJ86: 0 | BK86: 0 | BL86: 0 | BM86: 0 | BN86: 0 | BO86: 0 | BP86: 0 | BQ86: 0 | BR86: 0 | BS86: 0 | BT86: 0 | BU86: 0 | BV86: 0 | BW86: 0 | BX86: 0 | BY86: 0 | BZ86: 0 | CA86: 0 | CB86: 0 | CC86: 0 | CD86: 0 | CE86: 0 | CF86: 0 | CG86: 0 | CH86: 0 | CI86: 0 | CJ86: 0 | CK86: 0 | CL86: 0 | CM86: 0 | CN86: =CN137*CN$156 -> 0 | CO86: 0 | CP86: 0 | CQ86: 0 | CR86: 0 | CS86: 0 | CT86: 0 | CU86: 0 | CV86: 0 | CW86: 0 | CX86: 0 | CY86: 0 | CZ86: 0 | DA86: 0 | DB86: 0 | DC86: 0 | DD86: 0 | DE86: 0
BE87: p(c35)= | BF87: 0 | BG87: p(c35/ei)xp(ei) → | BH87: =BH138*BH$156 -> 0 | BI87: 0 | BJ87: 0 | BK87: 0 | BL87: 0 | BM87: 0 | BN87: 0 | BO87: 0 | BP87: 0 | BQ87: 0 | BR87: 0 | BS87: 0 | BT87: 0 | BU87: 0 | BV87: 0 | BW87: 0 | BX87: 0 | BY87: 0 | BZ87: 0 | CA87: 0 | CB87: 0 | CC87: 0 | CD87: 0 | CE87: 0 | CF87: 0 | CG87: 0 | CH87: 0 | CI87: 0 | CJ87: 0 | CK87: 0 | CL87: 0 | CM87: 0 | CN87: =CN138*CN$156 -> 0 | CO87: 0 | CP87: 0 | CQ87: 0 | CR87: 0 | CS87: 0 | CT87: 0 | CU87: 0 | CV87: 0 | CW87: 0 | CX87: 0 | CY87: 0 | CZ87: 0 | DA87: 0 | DB87: 0 | DC87: 0 | DD87: 0 | DE87: 0
BE88: p(c36)= | BF88: 0 | BG88: p(c36/ei)xp(ei) → | BH88: =BH139*BH$156 -> 0 | BI88: 0 | BJ88: 0 | BK88: 0 | BL88: 0 | BM88: 0 | BN88: 0 | BO88: 0 | BP88: 0 | BQ88: 0 | BR88: 0 | BS88: 0 | BT88: 0 | BU88: 0 | BV88: 0 | BW88: 0 | BX88: 0 | BY88: 0 | BZ88: 0 | CA88: 0 | CB88: 0 | CC88: 0 | CD88: 0 | CE88: 0 | CF88: 0 | CG88: 0 | CH88: 0 | CI88: 0 | CJ88: 0 | CK88: 0 | CL88: 0 | CM88: 0 | CN88: =CN139*CN$156 -> 0 | CO88: 0 | CP88: 0 | CQ88: 0 | CR88: 0 | CS88: 0 | CT88: 0 | CU88: 0 | CV88: 0 | CW88: 0 | CX88: 0 | CY88: 0 | CZ88: 0 | DA88: 0 | DB88: 0 | DC88: 0 | DD88: 0 | DE88: 0
BE89: p(c37)= | BF89: 0 | BG89: p(c37/ei)xp(ei) → | BH89: =BH140*BH$156 -> 0 | BI89: 0 | BJ89: 0 | BK89: 0 | BL89: 0 | BM89: 0 | BN89: 0 | BO89: 0 | BP89: 0 | BQ89: 0 | BR89: 0 | BS89: 0 | BT89: 0 | BU89: 0 | BV89: 0 | BW89: 0 | BX89: 0 | BY89: 0 | BZ89: 0 | CA89: 0 | CB89: 0 | CC89: 0 | CD89: 0 | CE89: 0 | CF89: 0 | CG89: 0 | CH89: 0 | CI89: 0 | CJ89: 0 | CK89: 0 | CL89: 0 | CM89: 0 | CN89: =CN140*CN$156 -> 0 | CO89: 0 | CP89: 0 | CQ89: 0 | CR89: 0 | CS89: 0 | CT89: 0 | CU89: 0 | CV89: 0 | CW89: 0 | CX89: 0 | CY89: 0 | CZ89: 0 | DA89: 0 | DB89: 0 | DC89: 0 | DD89: 0 | DE89: 0
BE90: p(c38)= | BF90: 0 | BG90: p(c38/ei)xp(ei) → | BH90: =BH141*BH$156 -> 0 | BI90: 0 | BJ90: 0 | BK90: 0 | BL90: 0 | BM90: 0 | BN90: 0 | BO90: 0 | BP90: 0 | BQ90: 0 | BR90: 0 | BS90: 0 | BT90: 0 | BU90: 0 | BV90: 0 | BW90: 0 | BX90: 0 | BY90: 0 | BZ90: 0 | CA90: 0 | CB90: 0 | CC90: 0 | CD90: 0 | CE90: 0 | CF90: 0 | CG90: 0 | CH90: 0 | CI90: 0 | CJ90: 0 | CK90: 0 | CL90: 0 | CM90: 0 | CN90: =CN141*CN$156 -> 0 | CO90: 0 | CP90: 0 | CQ90: 0 | CR90: 0 | CS90: 0 | CT90: 0 | CU90: 0 | CV90: 0 | CW90: 0 | CX90: 0 | CY90: 0 | CZ90: 0 | DA90: 0 | DB90: 0 | DC90: 0 | DD90: 0 | DE90: 0
BE91: p(c39)= | BF91: 0 | BG91: p(c39/ei)xp(ei) → | BH91: =BH142*BH$156 -> 0 | BI91: 0 | BJ91: 0 | BK91: 0 | BL91: 0 | BM91: 0 | BN91: 0 | BO91: 0 | BP91: 0 | BQ91: 0 | BR91: 0 | BS91: 0 | BT91: 0 | BU91: 0 | BV91: 0 | BW91: 0 | BX91: 0 | BY91: 0 | BZ91: 0 | CA91: 0 | CB91: 0 | CC91: 0 | CD91: 0 | CE91: 0 | CF91: 0 | CG91: 0 | CH91: 0 | CI91: 0 | CJ91: 0 | CK91: 0 | CL91: 0 | CM91: 0 | CN91: =CN142*CN$156 -> 0 | CO91: 0 | CP91: 0 | CQ91: 0 | CR91: 0 | CS91: 0 | CT91: 0 | CU91: 0 | CV91: 0 | CW91: 0 | CX91: 0 | CY91: 0 | CZ91: 0 | DA91: 0 | DB91: 0 | DC91: 0 | DD91: 0 | DE91: 0
BE92: p(c40)= | BF92: 0 | BG92: p(c40/ei)xp(ei) → | BH92: =BH143*BH$156 -> 0 | BI92: 0 | BJ92: 0 | BK92: 0 | BL92: 0 | BM92: 0 | BN92: 0 | BO92: 0 | BP92: 0 | BQ92: 0 | BR92: 0 | BS92: 0 | BT92: 0 | BU92: 0 | BV92: 0 | BW92: 0 | BX92: 0 | BY92: 0 | BZ92: 0 | CA92: 0 | CB92: 0 | CC92: 0 | CD92: 0 | CE92: 0 | CF92: 0 | CG92: 0 | CH92: 0 | CI92: 0 | CJ92: 0 | CK92: 0 | CL92: 0 | CM92: 0 | CN92: =CN143*CN$156 -> 0 | CO92: 0 | CP92: 0 | CQ92: 0 | CR92: 0 | CS92: 0 | CT92: 0 | CU92: 0 | CV92: 0 | CW92: 0 | CX92: 0 | CY92: 0 | CZ92: 0 | DA92: 0 | DB92: 0 | DC92: 0 | DD92: 0 | DE92: 0
BE93: p(c41)= | BF93: 0 | BG93: p(c41/ei)xp(ei) → | BH93: =BH144*BH$156 -> 0 | BI93: 0 | BJ93: 0 | BK93: 0 | BL93: 0 | BM93: 0 | BN93: 0 | BO93: 0 | BP93: 0 | BQ93: 0 | BR93: 0 | BS93: 0 | BT93: 0 | BU93: 0 | BV93: 0 | BW93: 0 | BX93: 0 | BY93: 0 | BZ93: 0 | CA93: 0 | CB93: 0 | CC93: 0 | CD93: 0 | CE93: 0 | CF93: 0 | CG93: 0 | CH93: 0 | CI93: 0 | CJ93: 0 | CK93: 0 | CL93: 0 | CM93: 0 | CN93: =CN144*CN$156 -> 0 | CO93: 0 | CP93: 0 | CQ93: 0 | CR93: 0 | CS93: 0 | CT93: 0 | CU93: 0 | CV93: 0 | CW93: 0 | CX93: 0 | CY93: 0 | CZ93: 0 | DA93: 0 | DB93: 0 | DC93: 0 | DD93: 0 | DE93: 0
BE94: p(c42)= | BF94: 0 | BG94: p(c42/ei)xp(ei) → | BH94: =BH145*BH$156 -> 0 | BI94: 0 | BJ94: 0 | BK94: 0 | BL94: 0 | BM94: 0 | BN94: 0 | BO94: 0 | BP94: 0 | BQ94: 0 | BR94: 0 | BS94: 0 | BT94: 0 | BU94: 0 | BV94: 0 | BW94: 0 | BX94: 0 | BY94: 0 | BZ94: 0 | CA94: 0 | CB94: 0 | CC94: 0 | CD94: 0 | CE94: 0 | CF94: 0 | CG94: 0 | CH94: 0 | CI94: 0 | CJ94: 0 | CK94: 0 | CL94: 0 | CM94: 0 | CN94: =CN145*CN$156 -> 0 | CO94: 0 | CP94: 0 | CQ94: 0 | CR94: 0 | CS94: 0 | CT94: 0 | CU94: 0 | CV94: 0 | CW94: 0 | CX94: 0 | CY94: 0 | CZ94: 0 | DA94: 0 | DB94: 0 | DC94: 0 | DD94: 0 | DE94: 0
BE95: p(c43)= | BF95: 0 | BG95: p(c43/ei)xp(ei) → | BH95: =BH146*BH$156 -> 0 | BI95: 0 | BJ95: 0 | BK95: 0 | BL95: 0 | BM95: 0 | BN95: 0 | BO95: 0 | BP95: 0 | BQ95: 0 | BR95: 0 | BS95: 0 | BT95: 0 | BU95: 0 | BV95: 0 | BW95: 0 | BX95: 0 | BY95: 0 | BZ95: 0 | CA95: 0 | CB95: 0 | CC95: 0 | CD95: 0 | CE95: 0 | CF95: 0 | CG95: 0 | CH95: 0 | CI95: 0 | CJ95: 0 | CK95: 0 | CL95: 0 | CM95: 0 | CN95: =CN146*CN$156 -> 0 | CO95: 0 | CP95: 0 | CQ95: 0 | CR95: 0 | CS95: 0 | CT95: 0 | CU95: 0 | CV95: 0 | CW95: 0 | CX95: 0 | CY95: 0 | CZ95: 0 | DA95: 0 | DB95: 0 | DC95: 0 | DD95: 0 | DE95: 0
BE96: p(c44)= | BF96: 0 | BG96: p(c44/ei)xp(ei) → | BH96: =BH147*BH$156 -> 0 | BI96: 0 | BJ96: 0 | BK96: 0 | BL96: 0 | BM96: 0 | BN96: 0 | BO96: 0 | BP96: 0 | BQ96: 0 | BR96: 0 | BS96: 0 | BT96: 0 | BU96: 0 | BV96: 0 | BW96: 0 | BX96: 0 | BY96: 0 | BZ96: 0 | CA96: 0 | CB96: 0 | CC96: 0 | CD96: 0 | CE96: 0 | CF96: 0 | CG96: 0 | CH96: 0 | CI96: 0 | CJ96: 0 | CK96: 0 | CL96: 0 | CM96: 0 | CN96: =CN147*CN$156 -> 0 | CO96: 0 | CP96: 0 | CQ96: 0 | CR96: 0 | CS96: 0 | CT96: 0 | CU96: 0 | CV96: 0 | CW96: 0 | CX96: 0 | CY96: 0 | CZ96: 0 | DA96: 0 | DB96: 0 | DC96: 0 | DD96: 0 | DE96: 0
BE97: p(c45)= | BF97: 0 | BG97: p(c45/ei)xp(ei) → | BH97: =BH148*BH$156 -> 0 | BI97: 0 | BJ97: 0 | BK97: 0 | BL97: 0 | BM97: 0 | BN97: 0 | BO97: 0 | BP97: 0 | BQ97: 0 | BR97: 0 | BS97: 0 | BT97: 0 | BU97: 0 | BV97: 0 | BW97: 0 | BX97: 0 | BY97: 0 | BZ97: 0 | CA97: 0 | CB97: 0 | CC97: 0 | CD97: 0 | CE97: 0 | CF97: 0 | CG97: 0 | CH97: 0 | CI97: 0 | CJ97: 0 | CK97: 0 | CL97: 0 | CM97: 0 | CN97: =CN148*CN$156 -> 0 | CO97: 0 | CP97: 0 | CQ97: 0 | CR97: 0 | CS97: 0 | CT97: 0 | CU97: 0 | CV97: 0 | CW97: 0 | CX97: 0 | CY97: 0 | CZ97: 0 | DA97: 0 | DB97: 0 | DC97: 0 | DD97: 0 | DE97: 0
BE98: p(c46)= | BF98: 0 | BG98: p(c46/ei)xp(ei) → | BH98: =BH149*BH$156 -> 0 | BI98: 0 | BJ98: 0 | BK98: 0 | BL98: 0 | BM98: 0 | BN98: 0 | BO98: 0 | BP98: 0 | BQ98: 0 | BR98: 0 | BS98: 0 | BT98: 0 | BU98: 0 | BV98: 0 | BW98: 0 | BX98: 0 | BY98: 0 | BZ98: 0 | CA98: 0 | CB98: 0 | CC98: 0 | CD98: 0 | CE98: 0 | CF98: 0 | CG98: 0 | CH98: 0 | CI98: 0 | CJ98: 0 | CK98: 0 | CL98: 0 | CM98: 0 | CN98: =CN149*CN$156 -> 0 | CO98: 0 | CP98: 0 | CQ98: 0 | CR98: 0 | CS98: 0 | CT98: 0 | CU98: 0 | CV98: 0 | CW98: 0 | CX98: 0 | CY98: 0 | CZ98: 0 | DA98: 0 | DB98: 0 | DC98: 0 | DD98: 0 | DE98: 0
BE99: p(c47)= | BF99: 0 | BG99: p(c47/ei)xp(ei) → | BH99: =BH150*BH$156 -> 0 | BI99: 0 | BJ99: 0 | BK99: 0 | BL99: 0 | BM99: 0 | BN99: 0 | BO99: 0 | BP99: 0 | BQ99: 0 | BR99: 0 | BS99: 0 | BT99: 0 | BU99: 0 | BV99: 0 | BW99: 0 | BX99: 0 | BY99: 0 | BZ99: 0 | CA99: 0 | CB99: 0 | CC99: 0 | CD99: 0 | CE99: 0 | CF99: 0 | CG99: 0 | CH99: 0 | CI99: 0 | CJ99: 0 | CK99: 0 | CL99: 0 | CM99: 0 | CN99: =CN150*CN$156 -> 0 | CO99: 0 | CP99: 0 | CQ99: 0 | CR99: 0 | CS99: 0 | CT99: 0 | CU99: 0 | CV99: 0 | CW99: 0 | CX99: 0 | CY99: 0 | CZ99: 0 | DA99: 0 | DB99: 0 | DC99: 0 | DD99: 0 | DE99: 0
BE100: p(c48)= | BF100: 0 | BG100: p(c48/ei)xp(ei) → | BH100: =BH151*BH$156 -> 0 | BI100: 0 | BJ100: 0 | BK100: 0 | BL100: 0 | BM100: 0 | BN100: 0 | BO100: 0 | BP100: 0 | BQ100: 0 | BR100: 0 | BS100: 0 | BT100: 0 | BU100: 0 | BV100: 0 | BW100: 0 | BX100: 0 | BY100: 0 | BZ100: 0 | CA100: 0 | CB100: 0 | CC100: 0 | CD100: 0 | CE100: 0 | CF100: 0 | CG100: 0 | CH100: 0 | CI100: 0 | CJ100: 0 | CK100: 0 | CL100: 0 | CM100: 0 | CN100: =CN151*CN$156 -> 0 | CO100: 0 | CP100: 0 | CQ100: 0 | CR100: 0 | CS100: 0 | CT100: 0 | CU100: 0 | CV100: 0 | CW100: 0 | CX100: 0 | CY100: 0 | CZ100: 0 | DA100: 0 | DB100: 0 | DC100: 0 | DD100: 0 | DE100: 0
BE101: p(c49)= | BF101: 0 | BG101: p(c49/ei)xp(ei) → | BH101: =BH152*BH$156 -> 0 | BI101: 0 | BJ101: 0 | BK101: 0 | BL101: 0 | BM101: 0 | BN101: 0 | BO101: 0 | BP101: 0 | BQ101: 0 | BR101: 0 | BS101: 0 | BT101: 0 | BU101: 0 | BV101: 0 | BW101: 0 | BX101: 0 | BY101: 0 | BZ101: 0 | CA101: 0 | CB101: 0 | CC101: 0 | CD101: 0 | CE101: 0 | CF101: 0 | CG101: 0 | CH101: 0 | CI101: 0 | CJ101: 0 | CK101: 0 | CL101: 0 | CM101: 0 | CN101: =CN152*CN$156 -> 0 | CO101: 0 | CP101: 0 | CQ101: 0 | CR101: 0 | CS101: 0 | CT101: 0 | CU101: 0 | CV101: 0 | CW101: 0 | CX101: 0 | CY101: 0 | CZ101: 0 | DA101: 0 | DB101: 0 | DC101: 0 | DD101: 0 | DE101: 0
BE102: p(c50)= | BF102: =SUM(BH102:DE102) -> 0 | BG102: p(c50/ei)xp(ei) → | BH102: =BH153*BH$156 -> 0 | BI102: 0 | BJ102: 0 | BK102: 0 | BL102: 0 | BM102: 0 | BN102: 0 | BO102: 0 | BP102: 0 | BQ102: 0 | BR102: 0 | BS102: 0 | BT102: 0 | BU102: 0 | BV102: 0 | BW102: 0 | BX102: 0 | BY102: 0 | BZ102: 0 | CA102: 0 | CB102: 0 | CC102: 0 | CD102: 0 | CE102: 0 | CF102: 0 | CG102: 0 | CH102: 0 | CI102: 0 | CJ102: 0 | CK102: 0 | CL102: 0 | CM102: 0 | CN102: =CN153*CN$156 -> 0 | CO102: 0 | CP102: 0 | CQ102: 0 | CR102: 0 | CS102: 0 | CT102: 0 | CU102: 0 | CV102: 0 | CW102: 0 | CX102: 0 | CY102: 0 | CZ102: 0 | DA102: 0 | DB102: 0 | DC102: 0 | DD102: 0 | DE102: 0
BF103: ↓ETIQUETAS ck (información): | BG103: verosimilitudes p(ck/ej) ↘ | BH103: e1 | BI103: e2 | BJ103: e3 | BK103: e4 | BL103: e5 | BM103: e6 | BN103: e7 | BO103: e8 | BP103: e9 | BQ103: e10 | BR103: e11 | BS103: e12 | BT103: e13 | BU103: e14 | BV103: e15 | BW103: e16 | BX103: e17 | BY103: e18 | BZ103: e19 | CA103: e20 | CB103: e21 | CC103: e22 | CD103: e23 | CE103: e24 | CF103: e25 | CG103: e26 | CH103: e27 | CI103: e28 | CJ103: e29 | CK103: e30 | CL103: e31 | CM103: e32 | CN103: e33 | CO103: e34 | CP103: e35 | CQ103: e36 | CR103: e37 | CS103: e38 | CT103: e39 | CU103: e40 | CV103: e41 | CW103: e42 | CX103: e43 | CY103: e44 | CZ103: e45 | DA103: e46 | DB103: e47 | DC103: e48 | DD103: e49 | DE103: e50
BG104: p(c1/ej) | BH104: 0.8 | BI104: 0.2 | BJ104: 0
BG105: p(c2/ej) | BH105: 0.1 | BI105: 0.7 | BJ105: 0
BG106: p(c3/ej) | BH106: 0.1 | BI106: 0.1 | BJ106: 1
BG107: p(c4/ej)
BG108: p(c5/ej)
BG109: p(c6/ej)
BG110: p(c7/ej)
BG111: p(c8/ej)
BG112: p(c9/ej)
BG113: p(c10/ej)
BG114: p(c11/ej)
BG115: p(c12/ej)
BG116: p(c13/ej)
BG117: p(c14/ej)
BG118: p(c15/ej)
BG119: p(c16/ej)
BG120: p(c17/ej)
BG121: p(c18/ej)
BG122: p(c19/ej)
BG123: p(c20/ej)
BG124: p(c21/ej)
BG125: p(c22/ej)
BG126: p(c23/ej)
BG127: p(c24/ej)
BG128: p(c25/ej)
BG129: p(c26/ej)
BG130: p(c27/ej)
BG131: p(c28/ej)
BG132: p(c29/ej)
BG133: p(c30/ej)
BG134: p(c31/ej)
BG135: p(c32/ej)
BG136: p(c33/ej)
BG137: p(c34/ej)
BG138: p(c35/ej)
BG139: p(c36/ej)
BG140: p(c37/ej)
BG141: p(c38/ej)
BG142: p(c39/ej)
BG143: p(c40/ej)
BG144: p(c41/ej)
BG145: p(c42/ej)
BG146: p(c43/ej)
BG147: p(c44/ej)
BG148: p(c45/ej)
BG149: p(c46/ej)
BG150: p(c47/ej)
BG151: p(c48/ej)
BG152: p(c49/ej)
BG153: p(c50/ej)
A155: BENEF/COST | C155: (Hurwicz) α= | E155: VIP= | F155: =IF(A156=1,F156-E157,E157-F156) -> 1750 | G155: VII= | H155: =IF(A156=1,H156-E157,E157-H156) -> 1150
A156: ='DISEÑO TABLA DE DECISION'!B21 -> 2 | C156: ='DECISIÓN ÓPTIMA'!E2 -> 0.5 | E156: VMEIP= | F156: =BG209 -> 4250 | G156: VMEII= | H156: =SUM(BE159:BE208) -> 4850 | BF156: probabilidades a priori p(ej): → | BH156: =30/60 -> 0.5 | BI156: =18/60 -> 0.3 | BJ156: =12/60 -> 0.2
A157: =IF(A156=1,MAX(A159:A208),MIN(A159:A208)) -> 6666.666667 | B157: =IF(A156=1,MAX(B159:B208),MIN(B159:B208)) -> 7500 | C157: =IF(A156=1,MAX(C159:C208),MIN(C159:C208)) -> 7500 | D157: =MIN(D159:D208) -> 2500 | E157: =IF($A$156=1,MAX(E159:E208),MIN(E159:E208)) -> 6000 | G157: =IF($A$156=1,MAX(G159:G208),MIN(G159:G208)) -> 3152.173913 | H157: =IF($A$156=1,MAX(H159:H208),MIN(H159:H208)) -> 5000 | I157: =IF($A$156=1,MAX(I159:I208),MIN(I159:I208)) -> 7500 | J157: =IF($A$156=1,MAX(J159:J208),MIN(J159:J208)) -> 0 | K157: 0 | L157: 0 | M157: 0 | N157: 0 | O157: 0 | P157: 0 | Q157: 0 | R157: 0 | S157: 0 | T157: 0 | U157: 0 | V157: 0 | W157: 0 | X157: 0 | Y157: 0 | Z157: 0 | AA157: 0 | AB157: 0 | AC157: 0 | AD157: 0 | AE157: 0 | AF157: 0 | AG157: 0 | AH157: 0 | AI157: 0 | AJ157: 0 | AK157: 0 | AL157: 0 | AM157: 0 | AN157: 0 | AO157: 0 | AP157: 0 | AQ157: 0 | AR157: 0 | AS157: 0 | AT157: 0 | AU157: 0 | AV157: 0 | AW157: 0 | AX157: 0 | AY157: 0 | AZ157: 0 | BA157: 0 | BB157: 0 | BC157: 0 | BD157: 0 | BF157: ↓ALTERNATIVAS \ ESTADOS→ | BG157: etiquetas de los ej: →
A158: LAPLACE | B158: WALD | C158: HURWICZ | D158: SAVAGE | E158: VME | G158: VME/c1 | H158: VME/c2 | I158: VME/c3 | J158: VME/c4 | K158: VME/c5 | L158: VME/c6 | M158: VME/c7 | N158: VME/c8 | O158: VME/c9 | P158: VME/c10 | Q158: VME/c11 | R158: VME/c12 | S158: VME/c13 | T158: VME/c14 | U158: VME/c15 | V158: VME/c16 | W158: VME/c17 | X158: VME/c18 | Y158: VME/c19 | Z158: VME/c20 | AA158: VME/c21 | AB158: VME/c22 | AC158: VME/c23 | AD158: VME/c24 | AE158: VME/c25 | AF158: VME/c26 | AG158: VME/c27 | AH158: VME/c28 | AI158: VME/c29 | AJ158: VME/c30 | AK158: VME/c31 | AL158: VME/c32 | AM158: VME/c33 | AN158: VME/c34 | AO158: VME/c35 | AP158: VME/c36 | AQ158: VME/c37 | AR158: VME/c38 | AS158: VME/c39 | AT158: VME/c40 | AU158: VME/c41 | AV158: VME/c42 | AW158: VME/c43 | AX158: VME/c44 | AY158: VME/c45 | AZ158: VME/c46 | BA158: VME/c47 | BB158: VME/c48 | BC158: VME/c49 | BD158: VME/c50 | BE158: ↓p(ci)Xvmeii/ci | BF158: etiquetas de las ai: ↓ | BG158: RESULTADOS (Xij)↘ | BH158: e1 | BI158: e2 | BJ158: e3 | BK158: e4 | BL158: e5 | BM158: e6 | BN158: e7 | BO158: e8 | BP158: e9 | BQ158: e10 | BR158: e11 | BS158: e12 | BT158: e13 | BU158: e14 | BV158: e15 | BW158: e16 | BX158: e17 | BY158: e18 | BZ158: e19 | CA158: e20 | CB158: e21 | CC158: e22 | CD158: e23 | CE158: e24 | CF158: e25 | CG158: e26 | CH158: e27 | CI158: e28 | CJ158: e29 | CK158: e30 | CL158: e31 | CM158: e32 | CN158: e33 | CO158: e34 | CP158: e35 | CQ158: e36 | CR158: e37 | CS158: e38 | CT158: e39 | CU158: e40 | CV158: e41 | CW158: e42 | CX158: e43 | CY158: e44 | CZ158: e45 | DA158: e46 | DB158: e47 | DC158: e48 | DD158: e49 | DE158: e50
A159: =IF(BH159="","",AVERAGE(BH159:DE159)) -> 7500 | B159: =IF(BH159="","",IF($A$156=1,MIN(BH159:DE159),MAX(BH159:DE159))) -> 12500 | C159: =IF(BH159="","",IF($A$156=1,($C$156*MAX(BH159:DE159))+((1-$C$156)*MIN(BH159:DE159)),($C$156*MIN(BH159:DE159))+((1-$C$156)*MAX(BH159:DE159)))) -> 7500 | D159: =IF(C159="","",MAX('MATRIZ-PÉRDIDA OPORTUNIDAD'!C3:AZ3)) -> 5000 | E159: =IF(OR(BH159="",BH$156=""),"",BH$156*BH159+BI$156*BI159+BJ$156*BJ159+BK$156*BK159+BL$156*BL159+BM$156*BM159+BN$156*BN159+BO$156*BO159+BP$156*BP159+BQ$156*BQ159+BR$156*BR159+BS$156*BS159+BT$156*BT159+BU$156*BU159+BV$156*BV159+BW$156*BW159+BX$156*BX159+BY$156*BY159+BZ$156*BZ159+CA$156*CA159+CB$156*CB159+CC$156*CC159+CD$156*CD159+CE$156*CE159+CF$156*CF159+CG$156*CG159+CH$156*CH159+CI$156*CI159+CJ$156*CJ159+CK$156*CK159+CL$156*CL159+CM$156*CM159+CN$156*CN159+CO$156*CO159+CP$156*CP159+CQ$156*CQ159+CR$156*CR159+CS$156*CS159+CT$156*CT159+CU$156*CU159+CV$156*CV159+CW$156*CW159+CX$156*CX159+CY$156*CY159+CZ$156*CZ159+DA$156*DA159+DB$156*DB159+DC$156*DC159+DD$156*DD159+DE$156*DE159) -> 6000 | G159: =BG210 -> 3152.173913 | H159: =BG211 -> 6538.461538 | I159: =BG212 -> 10178.57143 | J159: =BG213 -> 0 | K159: =BG214 -> 0 | L159: =BG215 -> 0 | M159: =BG216 -> 0 | N159: =BG217 -> 0 | O159: =BG218 -> 0 | P159: =BG219 -> 0 | Q159: =BG220 -> 0 | R159: =BG221 -> 0 | S159: =BG222 -> 0 | T159: =BG223 -> 0 | U159: =BG224 -> 0 | V159: =BG225 -> 0 | W159: =BG226 -> 0 | X159: =BG227 -> 0 | Y159: =BG228 -> 0 | Z159: =BG229 -> 0 | AA159: =BG230 -> 0 | AB159: =BG231 -> 0 | AC159: =BG232 -> 0 | AD159: =BG233 -> 0 | AE159: =BG234 -> 0 | AF159: =BG235 -> 0 | AG159: =BG236 -> 0 | AH159: =BG237 -> 0 | AI159: =BG238 -> 0 | AJ159: =BG239 -> 0 | AK159: =BG240 -> 0 | AL159: =BG241 -> 0 | AM159: =BG242 -> 0 | AN159: =BG243 -> 0 | AO159: =BG244 -> 0 | AP159: =BG245 -> 0 | AQ159: =BG246 -> 0 | AR159: =BG247 -> 0 | AS159: =BG248 -> 0 | AT159: =BG249 -> 0 | AU159: =BG250 -> 0 | AV159: =BG251 -> 0 | AW159: =BG252 -> 0 | AX159: =BG253 -> 0 | AY159: =BG254 -> 0 | AZ159: =BG255 -> 0 | BA159: =BG256 -> 0 | BB159: =BG257 -> 0 | BC159: =BG258 -> 0 | BD159: =BG259 -> 0 | BE159: =BF53*G157 -> 1450 | BG159: a1 | BH159: 2500 | BI159: 7500 | BJ159: 12500
A160: 6666.666667 | B160: =IF(BH160="","",IF('DISEÑO TABLA DE DECISION'!$B$21=1,MIN(BH160:DE160),MAX(BH160:DE160))) -> 10000 | C160: =IF(BH160="","",IF($A$156=1,($C$156*MAX(BH160:DE160))+((1-$C$156)*MIN(BH160:DE160)),($C$156*MIN(BH160:DE160))+((1-$C$156)*MAX(BH160:DE160)))) -> 7500 | D160: =IF(C160="","",MAX('MATRIZ-PÉRDIDA OPORTUNIDAD'!C4:AZ4)) -> 2500 | E160: 6000 | G160: =BG260 -> 5000 | H160: =BG261 -> 5000 | I160: =BG262 -> 8571.428571 | J160: =BG263 -> 0 | K160: =BG264 -> 0 | L160: =BG265 -> 0 | M160: =BG266 -> 0 | N160: =BG267 -> 0 | O160: =BG268 -> 0 | P160: =BG269 -> 0 | Q160: =BG270 -> 0 | R160: =BG271 -> 0 | S160: =BG272 -> 0 | T160: =BG273 -> 0 | U160: =BG274 -> 0 | V160: =BG275 -> 0 | W160: =BG276 -> 0 | X160: =BG277 -> 0 | Y160: =BG278 -> 0 | Z160: =BG279 -> 0 | AA160: =BG280 -> 0 | AB160: =BG281 -> 0 | AC160: =BG282 -> 0 | AD160: =BG283 -> 0 | AE160: =BG284 -> 0 | AF160: =BG285 -> 0 | AG160: =BG286 -> 0 | AH160: =BG287 -> 0 | AI160: =BG288 -> 0 | AJ160: =BG289 -> 0 | AK160: =BG290 -> 0 | AL160: =BG291 -> 0 | AM160: =BG292 -> 0 | AN160: =BG293 -> 0 | AO160: =BG294 -> 0 | AP160: =BG295 -> 0 | AQ160: =BG296 -> 0 | AR160: =BG297 -> 0 | AS160: =BG298 -> 0 | AT160: =BG299 -> 0 | AU160: =BG300 -> 0 | AV160: =BG301 -> 0 | AW160: =BG302 -> 0 | AX160: =BG303 -> 0 | AY160: =BG304 -> 0 | AZ160: =BG305 -> 0 | BA160: =BG306 -> 0 | BB160: =BG307 -> 0 | BC160: =BG308 -> 0 | BD160: =BG309 -> 0 | BE160: =BF54*H157 -> 1300 | BG160: a2 | BH160: 5000 | BI160: 5000 | BJ160: 10000
A161: 7500 | B161: =IF(BH161="","",IF('DISEÑO TABLA DE DECISION'!$B$21=1,MIN(BH161:DE161),MAX(BH161:DE161))) -> 7500 | C161: 7500 | D161: =IF(C161="","",MAX('MATRIZ-PÉRDIDA OPORTUNIDAD'!C5:AZ5)) -> 5000 | E161: 7500 | G161: =BG310 -> 7500 | H161: =BG311 -> 7500 | I161: =BG312 -> 7500 | J161: =BG313 -> 0 | K161: =BG314 -> 0 | L161: =BG315 -> 0 | M161: =BG316 -> 0 | N161: =BG317 -> 0 | O161: =BG318 -> 0 | P161: =BG319 -> 0 | Q161: =BG320 -> 0 | R161: =BG321 -> 0 | S161: =BG322 -> 0 | T161: =BG323 -> 0 | U161: =BG324 -> 0 | V161: =BG325 -> 0 | W161: =BG326 -> 0 | X161: =BG327 -> 0 | Y161: =BG328 -> 0 | Z161: =BG329 -> 0 | AA161: =BG330 -> 0 | AB161: =BG331 -> 0 | AC161: =BG332 -> 0 | AD161: =BG333 -> 0 | AE161: =BG334 -> 0 | AF161: =BG335 -> 0 | AG161: =BG336 -> 0 | AH161: =BG337 -> 0 | AI161: =BG338 -> 0 | AJ161: =BG339 -> 0 | AK161: =BG340 -> 0 | AL161: =BG341 -> 0 | AM161: =BG342 -> 0 | AN161: =BG343 -> 0 | AO161: =BG344 -> 0 | AP161: =BG345 -> 0 | AQ161: =BG346 -> 0 | AR161: =BG347 -> 0 | AS161: =BG348 -> 0 | AT161: =BG349 -> 0 | AU161: =BG350 -> 0 | AV161: =BG351 -> 0 | AW161: =BG352 -> 0 | AX161: =BG353 -> 0 | AY161: =BG354 -> 0 | AZ161: =BG355 -> 0 | BA161: =BG356 -> 0 | BB161: =BG357 -> 0 | BC161: =BG358 -> 0 | BD161: =BG359 -> 0 | BE161: =BF55*I157 -> 2100 | BG161: a3 | BH161: 7500 | BI161: 7500 | BJ161: 7500
B162: =IF(BH162="","",IF('DISEÑO TABLA DE DECISION'!$B$21=1,MIN(BH162:DE162),MAX(BH162:DE162))) ->  | D162: =IF(C162="","",MAX('MATRIZ-PÉRDIDA OPORTUNIDAD'!C6:AZ6)) ->  | G162: =BG360 ->  | H162: =BG361 ->  | I162: =BG362 ->  | J162: =BG363 ->  | K162: =BG364 ->  | L162: =BG365 ->  | M162: =BG366 ->  | N162: =BG367 ->  | O162: =BG368 ->  | P162: =BG369 ->  | Q162: =BG370 ->  | R162: =BG371 ->  | S162: =BG372 ->  | T162: =BG373 ->  | U162: =BG374 ->  | V162: =BG375 ->  | W162: =BG376 ->  | X162: =BG377 ->  | Y162: =BG378 ->  | Z162: =BG379 ->  | AA162: =BG380 ->  | AB162: =BG381 ->  | AC162: =BG382 ->  | AD162: =BG383 ->  | AE162: =BG384 ->  | AF162: =BG385 ->  | AG162: =BG386 ->  | AH162: =BG387 ->  | AI162: =BG388 ->  | AJ162: =BG389 ->  | AK162: =BG390 ->  | AL162: =BG391 ->  | AM162: =BG392 ->  | AN162: =BG393 ->  | AO162: =BG394 ->  | AP162: =BG395 ->  | AQ162: =BG396 ->  | AR162: =BG397 ->  | AS162: =BG398 ->  | AT162: =BG399 ->  | AU162: =BG400 ->  | AV162: =BG401 ->  | AW162: =BG402 ->  | AX162: =BG403 ->  | AY162: =BG404 ->  | AZ162: =BG405 ->  | BA162: =BG406 ->  | BB162: =BG407 ->  | BC162: =BG408 ->  | BD162: =BG409 ->  | BE162: =BF56*J157 -> 0 | BG162: a4
B163: =IF(BH163="","",IF('DISEÑO TABLA DE DECISION'!$B$21=1,MIN(BH163:DE163),MAX(BH163:DE163))) ->  | C163: =IF(BH163="","",IF($A$156=1,($C$156*MAX(BH163:DE163))+((1-$C$156)*MIN(BH163:DE163)),($C$156*MIN(BH163:DE163))+((1-$C$156)*MAX(BH163:DE163)))) ->  | D163: =IF(C163="","",MAX('MATRIZ-PÉRDIDA OPORTUNIDAD'!C7:AZ7)) ->  | G163: =BG410 ->  | H163: =BG411 ->  | I163: =BG412 ->  | J163: =BG413 ->  | K163: =BG414 ->  | L163: =BG415 ->  | M163: =BG416 ->  | N163: =BG417 ->  | O163: =BG418 ->  | P163: =BG419 ->  | Q163: =BG420 ->  | R163: =BG421 ->  | S163: =BG422 ->  | T163: =BG423 ->  | U163: =BG424 ->  | V163: =BG425 ->  | W163: =BG426 ->  | X163: =BG427 ->  | Y163: =BG428 ->  | Z163: =BG429 ->  | AA163: =BG430 ->  | AB163: =BG431 ->  | AC163: =BG432 ->  | AD163: =BG433 ->  | AE163: =BG434 ->  | AF163: =BG435 ->  | AG163: =BG436 ->  | AH163: =BG437 ->  | AI163: =BG438 ->  | AJ163: =BG439 ->  | AK163: =BG440 ->  | AL163: =BG441 ->  | AM163: =BG442 ->  | AN163: =BG443 ->  | AO163: =BG444 ->  | AP163: =BG445 ->  | AQ163: =BG446 ->  | AR163: =BG447 ->  | AS163: =BG448 ->  | AT163: =BG449 ->  | AU163: =BG450 ->  | AV163: =BG451 ->  | AW163: =BG452 ->  | AX163: =BG453 ->  | AY163: =BG454 ->  | AZ163: =BG455 ->  | BA163: =BG456 ->  | BB163: =BG457 ->  | BC163: =BG458 ->  | BD163: =BG459 ->  | BE163: =BF57*K157 -> 0 | BG163: a5
B164: =IF(BH164="","",IF('DISEÑO TABLA DE DECISION'!$B$21=1,MIN(BH164:DE164),MAX(BH164:DE164))) ->  | D164: =IF(C164="","",MAX('MATRIZ-PÉRDIDA OPORTUNIDAD'!C8:AZ8)) ->  | G164: =BG460 ->  | H164: =BG461 ->  | I164: =BG462 ->  | J164: =BG463 ->  | K164: =BG464 ->  | L164: =BG465 ->  | M164: =BG466 ->  | N164: =BG467 ->  | O164: =BG468 ->  | P164: =BG469 ->  | Q164: =BG470 ->  | R164: =BG471 ->  | S164: =BG472 ->  | T164: =BG473 ->  | U164: =BG474 ->  | V164: =BG475 ->  | W164: =BG476 ->  | X164: =BG477 ->  | Y164: =BG478 ->  | Z164: =BG479 ->  | AA164: =BG480 ->  | AB164: =BG481 ->  | AC164: =BG482 ->  | AD164: =BG483 ->  | AE164: =BG484 ->  | AF164: =BG485 ->  | AG164: =BG486 ->  | AH164: =BG487 ->  | AI164: =BG488 ->  | AJ164: =BG489 ->  | AK164: =BG490 ->  | AL164: =BG491 ->  | AM164: =BG492 ->  | AN164: =BG493 ->  | AO164: =BG494 ->  | AP164: =BG495 ->  | AQ164: =BG496 ->  | AR164: =BG497 ->  | AS164: =BG498 ->  | AT164: =BG499 ->  | AU164: =BG500 ->  | AV164: =BG501 ->  | AW164: =BG502 ->  | AX164: =BG503 ->  | AY164: =BG504 ->  | AZ164: =BG505 ->  | BA164: =BG506 ->  | BB164: =BG507 ->  | BC164: =BG508 ->  | BD164: =BG509 ->  | BE164: =BF58*L157 -> 0 | BG164: a6
B165: =IF(BH165="","",IF('DISEÑO TABLA DE DECISION'!$B$21=1,MIN(BH165:DE165),MAX(BH165:DE165))) ->  | D165: =IF(C165="","",MAX('MATRIZ-PÉRDIDA OPORTUNIDAD'!C9:AZ9)) ->  | G165: =BG510 ->  | H165: =BG511 ->  | I165: =BG512 ->  | J165: =BG513 ->  | K165: =BG514 ->  | L165: =BG515 ->  | M165: =BG516 ->  | N165: =BG517 ->  | O165: =BG518 ->  | P165: =BG519 ->  | Q165: =BG520 ->  | R165: =BG521 ->  | S165: =BG522 ->  | T165: =BG523 ->  | U165: =BG524 ->  | V165: =BG525 ->  | W165: =BG526 ->  | X165: =BG527 ->  | Y165: =BG528 ->  | Z165: =BG529 ->  | AA165: =BG530 ->  | AB165: =BG531 ->  | AC165: =BG532 ->  | AD165: =BG533 ->  | AE165: =BG534 ->  | AF165: =BG535 ->  | AG165: =BG536 ->  | AH165: =BG537 ->  | AI165: =BG538 ->  | AJ165: =BG539 ->  | AK165: =BG540 ->  | AL165: =BG541 ->  | AM165: =BG542 ->  | AN165: =BG543 ->  | AO165: =BG544 ->  | AP165: =BG545 ->  | AQ165: =BG546 ->  | AR165: =BG547 ->  | AS165: =BG548 ->  | AT165: =BG549 ->  | AU165: =BG550 ->  | AV165: =BG551 ->  | AW165: =BG552 ->  | AX165: =BG553 ->  | AY165: =BG554 ->  | AZ165: =BG555 ->  | BA165: =BG556 ->  | BB165: =BG557 ->  | BC165: =BG558 ->  | BD165: =BG559 ->  | BE165: =BF59*M157 -> 0 | BG165: a7
B166: =IF(BH166="","",IF('DISEÑO TABLA DE DECISION'!$B$21=1,MIN(BH166:DE166),MAX(BH166:DE166))) ->  | D166: =IF(C166="","",MAX('MATRIZ-PÉRDIDA OPORTUNIDAD'!C10:AZ10)) ->  | G166: =BG560 ->  | H166: =BG561 ->  | I166: =BG562 ->  | J166: =BG563 ->  | K166: =BG564 ->  | L166: =BG565 ->  | M166: =BG566 ->  | N166: =BG567 ->  | O166: =BG568 ->  | P166: =BG569 ->  | Q166: =BG570 ->  | R166: =BG571 ->  | S166: =BG572 ->  | T166: =BG573 ->  | U166: =BG574 ->  | V166: =BG575 ->  | W166: =BG576 ->  | X166: =BG577 ->  | Y166: =BG578 ->  | Z166: =BG579 ->  | AA166: =BG580 ->  | AB166: =BG581 ->  | AC166: =BG582 ->  | AD166: =BG583 ->  | AE166: =BG584 ->  | AF166: =BG585 ->  | AG166: =BG586 ->  | AH166: =BG587 ->  | AI166: =BG588 ->  | AJ166: =BG589 ->  | AK166: =BG590 ->  | AL166: =BG591 ->  | AM166: =BG592 ->  | AN166: =BG593 ->  | AO166: =BG594 ->  | AP166: =BG595 ->  | AQ166: =BG596 ->  | AR166: =BG597 ->  | AS166: =BG598 ->  | AT166: =BG599 ->  | AU166: =BG600 ->  | AV166: =BG601 ->  | AW166: =BG602 ->  | AX166: =BG603 ->  | AY166: =BG604 ->  | AZ166: =BG605 ->  | BA166: =BG606 ->  | BB166: =BG607 ->  | BC166: =BG608 ->  | BD166: =BG609 ->  | BE166: =BF60*N157 -> 0 | BG166: a8
B167: =IF(BH167="","",IF('DISEÑO TABLA DE DECISION'!$B$21=1,MIN(BH167:DE167),MAX(BH167:DE167))) ->  | D167: =IF(C167="","",MAX('MATRIZ-PÉRDIDA OPORTUNIDAD'!C11:AZ11)) ->  | G167: =BG610 ->  | H167: =BG611 ->  | I167: =BG612 ->  | J167: =BG613 ->  | K167: =BG614 ->  | L167: =BG615 ->  | M167: =BG616 ->  | N167: =BG617 ->  | O167: =BG618 ->  | P167: =BG619 ->  | Q167: =BG620 ->  | R167: =BG621 ->  | S167: =BG622 ->  | T167: =BG623 ->  | U167: =BG624 ->  | V167: =BG625 ->  | W167: =BG626 ->  | X167: =BG627 ->  | Y167: =BG628 ->  | Z167: =BG629 ->  | AA167: =BG630 ->  | AB167: =BG631 ->  | AC167: =BG632 ->  | AD167: =BG633 ->  | AE167: =BG634 ->  | AF167: =BG635 ->  | AG167: =BG636 ->  | AH167: =BG637 ->  | AI167: =BG638 ->  | AJ167: =BG639 ->  | AK167: =BG640 ->  | AL167: =BG641 ->  | AM167: =BG642 ->  | AN167: =BG643 ->  | AO167: =BG644 ->  | AP167: =BG645 ->  | AQ167: =BG646 ->  | AR167: =BG647 ->  | AS167: =BG648 ->  | AT167: =BG649 ->  | AU167: =BG650 ->  | AV167: =BG651 ->  | AW167: =BG652 ->  | AX167: =BG653 ->  | AY167: =BG654 ->  | AZ167: =BG655 ->  | BA167: =BG656 ->  | BB167: =BG657 ->  | BC167: =BG658 ->  | BD167: =BG659 ->  | BE167: =BF61*O157 -> 0 | BG167: a9
B168: =IF(BH168="","",IF('DISEÑO TABLA DE DECISION'!$B$21=1,MIN(BH168:DE168),MAX(BH168:DE168))) ->  | D168: =IF(C168="","",MAX('MATRIZ-PÉRDIDA OPORTUNIDAD'!C12:AZ12)) ->  | G168: =BG660 ->  | H168: =BG661 ->  | I168: =BG662 ->  | J168: =BG663 ->  | K168: =BG664 ->  | L168: =BG665 ->  | M168: =BG666 ->  | N168: =BG667 ->  | O168: =BG668 ->  | P168: =BG669 ->  | Q168: =BG670 ->  | R168: =BG671 ->  | S168: =BG672 ->  | T168: =BG673 ->  | U168: =BG674 ->  | V168: =BG675 ->  | W168: =BG676 ->  | X168: =BG677 ->  | Y168: =BG678 ->  | Z168: =BG679 ->  | AA168: =BG680 ->  | AB168: =BG681 ->  | AC168: =BG682 ->  | AD168: =BG683 ->  | AE168: =BG684 ->  | AF168: =BG685 ->  | AG168: =BG686 ->  | AH168: =BG687 ->  | AI168: =BG688 ->  | AJ168: =BG689 ->  | AK168: =BG690 ->  | AL168: =BG691 ->  | AM168: =BG692 ->  | AN168: =BG693 ->  | AO168: =BG694 ->  | AP168: =BG695 ->  | AQ168: =BG696 ->  | AR168: =BG697 ->  | AS168: =BG698 ->  | AT168: =BG699 ->  | AU168: =BG700 ->  | AV168: =BG701 ->  | AW168: =BG702 ->  | AX168: =BG703 ->  | AY168: =BG704 ->  | AZ168: =BG705 ->  | BA168: =BG706 ->  | BB168: =BG707 ->  | BC168: =BG708 ->  | BD168: =BG709 ->  | BE168: =BF62*P157 -> 0 | BG168: a10
B169: =IF(BH169="","",IF('DISEÑO TABLA DE DECISION'!$B$21=1,MIN(BH169:DE169),MAX(BH169:DE169))) ->  | D169: =IF(C169="","",MAX('MATRIZ-PÉRDIDA OPORTUNIDAD'!C13:AZ13)) ->  | G169: =BG710 ->  | H169: =BG711 ->  | I169: =BG712 ->  | J169: =BG713 ->  | K169: =BG714 ->  | L169: =BG715 ->  | M169: =BG716 ->  | N169: =BG717 ->  | O169: =BG718 ->  | P169: =BG719 ->  | Q169: =BG720 ->  | R169: =BG721 ->  | S169: =BG722 ->  | T169: =BG723 ->  | U169: =BG724 ->  | V169: =BG725 ->  | W169: =BG726 ->  | X169: =BG727 ->  | Y169: =BG728 ->  | Z169: =BG729 ->  | AA169: =BG730 ->  | AB169: =BG731 ->  | AC169: =BG732 ->  | AD169: =BG733 ->  | AE169: =BG734 ->  | AF169: =BG735 ->  | AG169: =BG736 ->  | AH169: =BG737 ->  | AI169: =BG738 ->  | AJ169: =BG739 ->  | AK169: =BG740 ->  | AL169: =BG741 ->  | AM169: =BG742 ->  | AN169: =BG743 ->  | AO169: =BG744 ->  | AP169: =BG745 ->  | AQ169: =BG746 ->  | AR169: =BG747 ->  | AS169: =BG748 ->  | AT169: =BG749 ->  | AU169: =BG750 ->  | AV169: =BG751 ->  | AW169: =BG752 ->  | AX169: =BG753 ->  | AY169: =BG754 ->  | AZ169: =BG755 ->  | BA169: =BG756 ->  | BB169: =BG757 ->  | BC169: =BG758 ->  | BD169: =BG759 ->  | BE169: =BF63*Q157 -> 0 | BG169: a11
B170: =IF(BH170="","",IF('DISEÑO TABLA DE DECISION'!$B$21=1,MIN(BH170:DE170),MAX(BH170:DE170))) ->  | D170: =IF(C170="","",MAX('MATRIZ-PÉRDIDA OPORTUNIDAD'!C14:AZ14)) ->  | G170: =BG760 ->  | H170: =BG761 ->  | I170: =BG762 ->  | J170: =BG763 ->  | K170: =BG764 ->  | L170: =BG765 ->  | M170: =BG766 ->  | N170: =BG767 ->  | O170: =BG768 ->  | P170: =BG769 ->  | Q170: =BG770 ->  | R170: =BG771 ->  | S170: =BG772 ->  | T170: =BG773 ->  | U170: =BG774 ->  | V170: =BG775 ->  | W170: =BG776 ->  | X170: =BG777 ->  | Y170: =BG778 ->  | Z170: =BG779 ->  | AA170: =BG780 ->  | AB170: =BG781 ->  | AC170: =BG782 ->  | AD170: =BG783 ->  | AE170: =BG784 ->  | AF170: =BG785 ->  | AG170: =BG786 ->  | AH170: =BG787 ->  | AI170: =BG788 ->  | AJ170: =BG789 ->  | AK170: =BG790 ->  | AL170: =BG791 ->  | AM170: =BG792 ->  | AN170: =BG793 ->  | AO170: =BG794 ->  | AP170: =BG795 ->  | AQ170: =BG796 ->  | AR170: =BG797 ->  | AS170: =BG798 ->  | AT170: =BG799 ->  | AU170: =BG800 ->  | AV170: =BG801 ->  | AW170: =BG802 ->  | AX170: =BG803 ->  | AY170: =BG804 ->  | AZ170: =BG805 ->  | BA170: =BG806 ->  | BB170: =BG807 ->  | BC170: =BG808 ->  | BD170: =BG809 ->  | BE170: =BF64*R157 -> 0 | BG170: a12
B171: =IF(BH171="","",IF('DISEÑO TABLA DE DECISION'!$B$21=1,MIN(BH171:DE171),MAX(BH171:DE171))) ->  | D171: =IF(C171="","",MAX('MATRIZ-PÉRDIDA OPORTUNIDAD'!C15:AZ15)) ->  | G171: =BG810 ->  | H171: =BG811 ->  | I171: =BG812 ->  | J171: =BG813 ->  | K171: =BG814 ->  | L171: =BG815 ->  | M171: =BG816 ->  | N171: =BG817 ->  | O171: =BG818 ->  | P171: =BG819 ->  | Q171: =BG820 ->  | R171: =BG821 ->  | S171: =BG822 ->  | T171: =BG823 ->  | U171: =BG824 ->  | V171: =BG825 ->  | W171: =BG826 ->  | X171: =BG827 ->  | Y171: =BG828 ->  | Z171: =BG829 ->  | AA171: =BG830 ->  | AB171: =BG831 ->  | AC171: =BG832 ->  | AD171: =BG833 ->  | AE171: =BG834 ->  | AF171: =BG835 ->  | AG171: =BG836 ->  | AH171: =BG837 ->  | AI171: =BG838 ->  | AJ171: =BG839 ->  | AK171: =BG840 ->  | AL171: =BG841 ->  | AM171: =BG842 ->  | AN171: =BG843 ->  | AO171: =BG844 ->  | AP171: =BG845 ->  | AQ171: =BG846 ->  | AR171: =BG847 ->  | AS171: =BG848 ->  | AT171: =BG849 ->  | AU171: =BG850 ->  | AV171: =BG851 ->  | AW171: =BG852 ->  | AX171: =BG853 ->  | AY171: =BG854 ->  | AZ171: =BG855 ->  | BA171: =BG856 ->  | BB171: =BG857 ->  | BC171: =BG858 ->  | BD171: =BG859 ->  | BE171: =BF65*S157 -> 0 | BG171: a13
B172: =IF(BH172="","",IF('DISEÑO TABLA DE DECISION'!$B$21=1,MIN(BH172:DE172),MAX(BH172:DE172))) ->  | D172: =IF(C172="","",MAX('MATRIZ-PÉRDIDA OPORTUNIDAD'!C16:AZ16)) ->  | G172: =BG860 ->  | H172: =BG861 ->  | I172: =BG862 ->  | J172: =BG863 ->  | K172: =BG864 ->  | L172: =BG865 ->  | M172: =BG866 ->  | N172: =BG867 ->  | O172: =BG868 ->  | P172: =BG869 ->  | Q172: =BG870 ->  | R172: =BG871 ->  | S172: =BG872 ->  | T172: =BG873 ->  | U172: =BG874 ->  | V172: =BG875 ->  | W172: =BG876 ->  | X172: =BG877 ->  | Y172: =BG878 ->  | Z172: =BG879 ->  | AA172: =BG880 ->  | AB172: =BG881 ->  | AC172: =BG882 ->  | AD172: =BG883 ->  | AE172: =BG884 ->  | AF172: =BG885 ->  | AG172: =BG886 ->  | AH172: =BG887 ->  | AI172: =BG888 ->  | AJ172: =BG889 ->  | AK172: =BG890 ->  | AL172: =BG891 ->  | AM172: =BG892 ->  | AN172: =BG893 ->  | AO172: =BG894 ->  | AP172: =BG895 ->  | AQ172: =BG896 ->  | AR172: =BG897 ->  | AS172: =BG898 ->  | AT172: =BG899 ->  | AU172: =BG900 ->  | AV172: =BG901 ->  | AW172: =BG902 ->  | AX172: =BG903 ->  | AY172: =BG904 ->  | AZ172: =BG905 ->  | BA172: =BG906 ->  | BB172: =BG907 ->  | BC172: =BG908 ->  | BD172: =BG909 ->  | BE172: =BF66*T157 -> 0 | BG172: a14
B173: =IF(BH173="","",IF('DISEÑO TABLA DE DECISION'!$B$21=1,MIN(BH173:DE173),MAX(BH173:DE173))) ->  | D173: =IF(C173="","",MAX('MATRIZ-PÉRDIDA OPORTUNIDAD'!C17:AZ17)) ->  | G173: =BG910 ->  | H173: =BG911 ->  | I173: =BG912 ->  | J173: =BG913 ->  | K173: =BG914 ->  | L173: =BG915 ->  | M173: =BG916 ->  | N173: =BG917 ->  | O173: =BG918 ->  | P173: =BG919 ->  | Q173: =BG920 ->  | R173: =BG921 ->  | S173: =BG922 ->  | T173: =BG923 ->  | U173: =BG924 ->  | V173: =BG925 ->  | W173: =BG926 ->  | X173: =BG927 ->  | Y173: =BG928 ->  | Z173: =BG929 ->  | AA173: =BG930 ->  | AB173: =BG931 ->  | AC173: =BG932 ->  | AD173: =BG933 ->  | AE173: =BG934 ->  | AF173: =BG935 ->  | AG173: =BG936 ->  | AH173: =BG937 ->  | AI173: =BG938 ->  | AJ173: =BG939 ->  | AK173: =BG940 ->  | AL173: =BG941 ->  | AM173: =BG942 ->  | AN173: =BG943 ->  | AO173: =BG944 ->  | AP173: =BG945 ->  | AQ173: =BG946 ->  | AR173: =BG947 ->  | AS173: =BG948 ->  | AT173: =BG949 ->  | AU173: =BG950 ->  | AV173: =BG951 ->  | AW173: =BG952 ->  | AX173: =BG953 ->  | AY173: =BG954 ->  | AZ173: =BG955 ->  | BA173: =BG956 ->  | BB173: =BG957 ->  | BC173: =BG958 ->  | BD173: =BG959 ->  | BE173: =BF67*U157 -> 0 | BG173: a15
B174: =IF(BH174="","",IF('DISEÑO TABLA DE DECISION'!$B$21=1,MIN(BH174:DE174),MAX(BH174:DE174))) ->  | D174: =IF(C174="","",MAX('MATRIZ-PÉRDIDA OPORTUNIDAD'!C18:AZ18)) ->  | G174: =BG960 ->  | H174: =BG961 ->  | I174: =BG962 ->  | J174: =BG963 ->  | K174: =BG964 ->  | L174: =BG965 ->  | M174: =BG966 ->  | N174: =BG967 ->  | O174: =BG968 ->  | P174: =BG969 ->  | Q174: =BG970 ->  | R174: =BG971 ->  | S174: =BG972 ->  | T174: =BG973 ->  | U174: =BG974 ->  | V174: =BG975 ->  | W174: =BG976 ->  | X174: =BG977 ->  | Y174: =BG978 ->  | Z174: =BG979 ->  | AA174: =BG980 ->  | AB174: =BG981 ->  | AC174: =BG982 ->  | AD174: =BG983 ->  | AE174: =BG984 ->  | AF174: =BG985 ->  | AG174: =BG986 ->  | AH174: =BG987 ->  | AI174: =BG988 ->  | AJ174: =BG989 ->  | AK174: =BG990 ->  | AL174: =BG991 ->  | AM174: =BG992 ->  | AN174: =BG993 ->  | AO174: =BG994 ->  | AP174: =BG995 ->  | AQ174: =BG996 ->  | AR174: =BG997 ->  | AS174: =BG998 ->  | AT174: =BG999 ->  | AU174: =BG1000 ->  | AV174: =BG1001 ->  | AW174: =BG1002 ->  | AX174: =BG1003 ->  | AY174: =BG1004 ->  | AZ174: =BG1005 ->  | BA174: =BG1006 ->  | BB174: =BG1007 ->  | BC174: =BG1008 ->  | BD174: =BG1009 ->  | BE174: =BF68*V157 -> 0 | BG174: a16
B175: =IF(BH175="","",IF('DISEÑO TABLA DE DECISION'!$B$21=1,MIN(BH175:DE175),MAX(BH175:DE175))) ->  | D175: =IF(C175="","",MAX('MATRIZ-PÉRDIDA OPORTUNIDAD'!C19:AZ19)) ->  | G175: =BG1010 ->  | H175: =BG1011 ->  | I175: =BG1012 ->  | J175: =BG1013 ->  | K175: =BG1014 ->  | L175: =BG1015 ->  | M175: =BG1016 ->  | N175: =BG1017 ->  | O175: =BG1018 ->  | P175: =BG1019 ->  | Q175: =BG1020 ->  | R175: =BG1021 ->  | S175: =BG1022 ->  | T175: =BG1023 ->  | U175: =BG1024 ->  | V175: =BG1025 ->  | W175: =BG1026 ->  | X175: =BG1027 ->  | Y175: =BG1028 ->  | Z175: =BG1029 ->  | AA175: =BG1030 ->  | AB175: =BG1031 ->  | AC175: =BG1032 ->  | AD175: =BG1033 ->  | AE175: =BG1034 ->  | AF175: =BG1035 ->  | AG175: =BG1036 ->  | AH175: =BG1037 ->  | AI175: =BG1038 ->  | AJ175: =BG1039 ->  | AK175: =BG1040 ->  | AL175: =BG1041 ->  | AM175: =BG1042 ->  | AN175: =BG1043 ->  | AO175: =BG1044 ->  | AP175: =BG1045 ->  | AQ175: =BG1046 ->  | AR175: =BG1047 ->  | AS175: =BG1048 ->  | AT175: =BG1049 ->  | AU175: =BG1050 ->  | AV175: =BG1051 ->  | AW175: =BG1052 ->  | AX175: =BG1053 ->  | AY175: =BG1054 ->  | AZ175: =BG1055 ->  | BA175: =BG1056 ->  | BB175: =BG1057 ->  | BC175: =BG1058 ->  | BD175: =BG1059 ->  | BE175: =BF69*W157 -> 0 | BG175: a17
B176: =IF(BH176="","",IF('DISEÑO TABLA DE DECISION'!$B$21=1,MIN(BH176:DE176),MAX(BH176:DE176))) ->  | D176: =IF(C176="","",MAX('MATRIZ-PÉRDIDA OPORTUNIDAD'!C20:AZ20)) ->  | G176: =BG1060 ->  | H176: =BG1061 ->  | I176: =BG1062 ->  | J176: =BG1063 ->  | K176: =BG1064 ->  | L176: =BG1065 ->  | M176: =BG1066 ->  | N176: =BG1067 ->  | O176: =BG1068 ->  | P176: =BG1069 ->  | Q176: =BG1070 ->  | R176: =BG1071 ->  | S176: =BG1072 ->  | T176: =BG1073 ->  | U176: =BG1074 ->  | V176: =BG1075 ->  | W176: =BG1076 ->  | X176: =BG1077 ->  | Y176: =BG1078 ->  | Z176: =BG1079 ->  | AA176: =BG1080 ->  | AB176: =BG1081 ->  | AC176: =BG1082 ->  | AD176: =BG1083 ->  | AE176: =BG1084 ->  | AF176: =BG1085 ->  | AG176: =BG1086 ->  | AH176: =BG1087 ->  | AI176: =BG1088 ->  | AJ176: =BG1089 ->  | AK176: =BG1090 ->  | AL176: =BG1091 ->  | AM176: =BG1092 ->  | AN176: =BG1093 ->  | AO176: =BG1094 ->  | AP176: =BG1095 ->  | AQ176: =BG1096 ->  | AR176: =BG1097 ->  | AS176: =BG1098 ->  | AT176: =BG1099 ->  | AU176: =BG1100 ->  | AV176: =BG1101 ->  | AW176: =BG1102 ->  | AX176: =BG1103 ->  | AY176: =BG1104 ->  | AZ176: =BG1105 ->  | BA176: =BG1106 ->  | BB176: =BG1107 ->  | BC176: =BG1108 ->  | BD176: =BG1109 ->  | BE176: =BF70*X157 -> 0 | BG176: a18
B177: =IF(BH177="","",IF('DISEÑO TABLA DE DECISION'!$B$21=1,MIN(BH177:DE177),MAX(BH177:DE177))) ->  | D177: =IF(C177="","",MAX('MATRIZ-PÉRDIDA OPORTUNIDAD'!C21:AZ21)) ->  | G177: =BG1110 ->  | H177: =BG1111 ->  | I177: =BG1112 ->  | J177: =BG1113 ->  | K177: =BG1114 ->  | L177: =BG1115 ->  | M177: =BG1116 ->  | N177: =BG1117 ->  | O177: =BG1118 ->  | P177: =BG1119 ->  | Q177: =BG1120 ->  | R177: =BG1121 ->  | S177: =BG1122 ->  | T177: =BG1123 ->  | U177: =BG1124 ->  | V177: =BG1125 ->  | W177: =BG1126 ->  | X177: =BG1127 ->  | Y177: =BG1128 ->  | Z177: =BG1129 ->  | AA177: =BG1130 ->  | AB177: =BG1131 ->  | AC177: =BG1132 ->  | AD177: =BG1133 ->  | AE177: =BG1134 ->  | AF177: =BG1135 ->  | AG177: =BG1136 ->  | AH177: =BG1137 ->  | AI177: =BG1138 ->  | AJ177: =BG1139 ->  | AK177: =BG1140 ->  | AL177: =BG1141 ->  | AM177: =BG1142 ->  | AN177: =BG1143 ->  | AO177: =BG1144 ->  | AP177: =BG1145 ->  | AQ177: =BG1146 ->  | AR177: =BG1147 ->  | AS177: =BG1148 ->  | AT177: =BG1149 ->  | AU177: =BG1150 ->  | AV177: =BG1151 ->  | AW177: =BG1152 ->  | AX177: =BG1153 ->  | AY177: =BG1154 ->  | AZ177: =BG1155 ->  | BA177: =BG1156 ->  | BB177: =BG1157 ->  | BC177: =BG1158 ->  | BD177: =BG1159 ->  | BE177: =BF71*Y157 -> 0 | BG177: a19
B178: =IF(BH178="","",IF('DISEÑO TABLA DE DECISION'!$B$21=1,MIN(BH178:DE178),MAX(BH178:DE178))) ->  | D178: =IF(C178="","",MAX('MATRIZ-PÉRDIDA OPORTUNIDAD'!C22:AZ22)) ->  | G178: =BG1160 ->  | H178: =BG1161 ->  | I178: =BG1162 ->  | J178: =BG1163 ->  | K178: =BG1164 ->  | L178: =BG1165 ->  | M178: =BG1166 ->  | N178: =BG1167 ->  | O178: =BG1168 ->  | P178: =BG1169 ->  | Q178: =BG1170 ->  | R178: =BG1171 ->  | S178: =BG1172 ->  | T178: =BG1173 ->  | U178: =BG1174 ->  | V178: =BG1175 ->  | W178: =BG1176 ->  | X178: =BG1177 ->  | Y178: =BG1178 ->  | Z178: =BG1179 ->  | AA178: =BG1180 ->  | AB178: =BG1181 ->  | AC178: =BG1182 ->  | AD178: =BG1183 ->  | AE178: =BG1184 ->  | AF178: =BG1185 ->  | AG178: =BG1186 ->  | AH178: =BG1187 ->  | AI178: =BG1188 ->  | AJ178: =BG1189 ->  | AK178: =BG1190 ->  | AL178: =BG1191 ->  | AM178: =BG1192 ->  | AN178: =BG1193 ->  | AO178: =BG1194 ->  | AP178: =BG1195 ->  | AQ178: =BG1196 ->  | AR178: =BG1197 ->  | AS178: =BG1198 ->  | AT178: =BG1199 ->  | AU178: =BG1200 ->  | AV178: =BG1201 ->  | AW178: =BG1202 ->  | AX178: =BG1203 ->  | AY178: =BG1204 ->  | AZ178: =BG1205 ->  | BA178: =BG1206 ->  | BB178: =BG1207 ->  | BC178: =BG1208 ->  | BD178: =BG1209 ->  | BE178: =BF72*Z157 -> 0 | BG178: a20
B179: =IF(BH179="","",IF('DISEÑO TABLA DE DECISION'!$B$21=1,MIN(BH179:DE179),MAX(BH179:DE179))) ->  | D179: =IF(C179="","",MAX('MATRIZ-PÉRDIDA OPORTUNIDAD'!C23:AZ23)) ->  | G179: =BG1210 ->  | H179: =BG1211 ->  | I179: =BG1212 ->  | J179: =BG1213 ->  | K179: =BG1214 ->  | L179: =BG1215 ->  | M179: =BG1216 ->  | N179: =BG1217 ->  | O179: =BG1218 ->  | P179: =BG1219 ->  | Q179: =BG1220 ->  | R179: =BG1221 ->  | S179: =BG1222 ->  | T179: =BG1223 ->  | U179: =BG1224 ->  | V179: =BG1225 ->  | W179: =BG1226 ->  | X179: =BG1227 ->  | Y179: =BG1228 ->  | Z179: =BG1229 ->  | AA179: =BG1230 ->  | AB179: =BG1231 ->  | AC179: =BG1232 ->  | AD179: =BG1233 ->  | AE179: =BG1234 ->  | AF179: =BG1235 ->  | AG179: =BG1236 ->  | AH179: =BG1237 ->  | AI179: =BG1238 ->  | AJ179: =BG1239 ->  | AK179: =BG1240 ->  | AL179: =BG1241 ->  | AM179: =BG1242 ->  | AN179: =BG1243 ->  | AO179: =BG1244 ->  | AP179: =BG1245 ->  | AQ179: =BG1246 ->  | AR179: =BG1247 ->  | AS179: =BG1248 ->  | AT179: =BG1249 ->  | AU179: =BG1250 ->  | AV179: =BG1251 ->  | AW179: =BG1252 ->  | AX179: =BG1253 ->  | AY179: =BG1254 ->  | AZ179: =BG1255 ->  | BA179: =BG1256 ->  | BB179: =BG1257 ->  | BC179: =BG1258 ->  | BD179: =BG1259 ->  | BE179: =BF73*AA157 -> 0 | BG179: a21
B180: =IF(BH180="","",IF('DISEÑO TABLA DE DECISION'!$B$21=1,MIN(BH180:DE180),MAX(BH180:DE180))) ->  | D180: =IF(C180="","",MAX('MATRIZ-PÉRDIDA OPORTUNIDAD'!C24:AZ24)) ->  | G180: =BG1260 ->  | H180: =BG1261 ->  | I180: =BG1262 ->  | J180: =BG1263 ->  | K180: =BG1264 ->  | L180: =BG1265 ->  | M180: =BG1266 ->  | N180: =BG1267 ->  | O180: =BG1268 ->  | P180: =BG1269 ->  | Q180: =BG1270 ->  | R180: =BG1271 ->  | S180: =BG1272 ->  | T180: =BG1273 ->  | U180: =BG1274 ->  | V180: =BG1275 ->  | W180: =BG1276 ->  | X180: =BG1277 ->  | Y180: =BG1278 ->  | Z180: =BG1279 ->  | AA180: =BG1280 ->  | AB180: =BG1281 ->  | AC180: =BG1282 ->  | AD180: =BG1283 ->  | AE180: =BG1284 ->  | AF180: =BG1285 ->  | AG180: =BG1286 ->  | AH180: =BG1287 ->  | AI180: =BG1288 ->  | AJ180: =BG1289 ->  | AK180: =BG1290 ->  | AL180: =BG1291 ->  | AM180: =BG1292 ->  | AN180: =BG1293 ->  | AO180: =BG1294 ->  | AP180: =BG1295 ->  | AQ180: =BG1296 ->  | AR180: =BG1297 ->  | AS180: =BG1298 ->  | AT180: =BG1299 ->  | AU180: =BG1300 ->  | AV180: =BG1301 ->  | AW180: =BG1302 ->  | AX180: =BG1303 ->  | AY180: =BG1304 ->  | AZ180: =BG1305 ->  | BA180: =BG1306 ->  | BB180: =BG1307 ->  | BC180: =BG1308 ->  | BD180: =BG1309 ->  | BE180: =BF74*AB157 -> 0 | BG180: a22
B181: =IF(BH181="","",IF('DISEÑO TABLA DE DECISION'!$B$21=1,MIN(BH181:DE181),MAX(BH181:DE181))) ->  | D181: =IF(C181="","",MAX('MATRIZ-PÉRDIDA OPORTUNIDAD'!C25:AZ25)) ->  | G181: =BG1310 ->  | H181: =BG1311 ->  | I181: =BG1312 ->  | J181: =BG1313 ->  | K181: =BG1314 ->  | L181: =BG1315 ->  | M181: =BG1316 ->  | N181: =BG1317 ->  | O181: =BG1318 ->  | P181: =BG1319 ->  | Q181: =BG1320 ->  | R181: =BG1321 ->  | S181: =BG1322 ->  | T181: =BG1323 ->  | U181: =BG1324 ->  | V181: =BG1325 ->  | W181: =BG1326 ->  | X181: =BG1327 ->  | Y181: =BG1328 ->  | Z181: =BG1329 ->  | AA181: =BG1330 ->  | AB181: =BG1331 ->  | AC181: =BG1332 ->  | AD181: =BG1333 ->  | AE181: =BG1334 ->  | AF181: =BG1335 ->  | AG181: =BG1336 ->  | AH181: =BG1337 ->  | AI181: =BG1338 ->  | AJ181: =BG1339 ->  | AK181: =BG1340 ->  | AL181: =BG1341 ->  | AM181: =BG1342 ->  | AN181: =BG1343 ->  | AO181: =BG1344 ->  | AP181: =BG1345 ->  | AQ181: =BG1346 ->  | AR181: =BG1347 ->  | AS181: =BG1348 ->  | AT181: =BG1349 ->  | AU181: =BG1350 ->  | AV181: =BG1351 ->  | AW181: =BG1352 ->  | AX181: =BG1353 ->  | AY181: =BG1354 ->  | AZ181: =BG1355 ->  | BA181: =BG1356 ->  | BB181: =BG1357 ->  | BC181: =BG1358 ->  | BD181: =BG1359 ->  | BE181: =BF75*AC157 -> 0 | BG181: a23
B182: =IF(BH182="","",IF('DISEÑO TABLA DE DECISION'!$B$21=1,MIN(BH182:DE182),MAX(BH182:DE182))) ->  | D182: =IF(C182="","",MAX('MATRIZ-PÉRDIDA OPORTUNIDAD'!C26:AZ26)) ->  | G182: =BG1360 ->  | H182: =BG1361 ->  | I182: =BG1362 ->  | J182: =BG1363 ->  | K182: =BG1364 ->  | L182: =BG1365 ->  | M182: =BG1366 ->  | N182: =BG1367 ->  | O182: =BG1368 ->  | P182: =BG1369 ->  | Q182: =BG1370 ->  | R182: =BG1371 ->  | S182: =BG1372 ->  | T182: =BG1373 ->  | U182: =BG1374 ->  | V182: =BG1375 ->  | W182: =BG1376 ->  | X182: =BG1377 ->  | Y182: =BG1378 ->  | Z182: =BG1379 ->  | AA182: =BG1380 ->  | AB182: =BG1381 ->  | AC182: =BG1382 ->  | AD182: =BG1383 ->  | AE182: =BG1384 ->  | AF182: =BG1385 ->  | AG182: =BG1386 ->  | AH182: =BG1387 ->  | AI182: =BG1388 ->  | AJ182: =BG1389 ->  | AK182: =BG1390 ->  | AL182: =BG1391 ->  | AM182: =BG1392 ->  | AN182: =BG1393 ->  | AO182: =BG1394 ->  | AP182: =BG1395 ->  | AQ182: =BG1396 ->  | AR182: =BG1397 ->  | AS182: =BG1398 ->  | AT182: =BG1399 ->  | AU182: =BG1400 ->  | AV182: =BG1401 ->  | AW182: =BG1402 ->  | AX182: =BG1403 ->  | AY182: =BG1404 ->  | AZ182: =BG1405 ->  | BA182: =BG1406 ->  | BB182: =BG1407 ->  | BC182: =BG1408 ->  | BD182: =BG1409 ->  | BE182: =BF76*AD157 -> 0 | BG182: a24
B183: =IF(BH183="","",IF('DISEÑO TABLA DE DECISION'!$B$21=1,MIN(BH183:DE183),MAX(BH183:DE183))) ->  | D183: =IF(C183="","",MAX('MATRIZ-PÉRDIDA OPORTUNIDAD'!C27:AZ27)) ->  | G183: =BG1410 ->  | H183: =BG1411 ->  | I183: =BG1412 ->  | J183: =BG1413 ->  | K183: =BG1414 ->  | L183: =BG1415 ->  | M183: =BG1416 ->  | N183: =BG1417 ->  | O183: =BG1418 ->  | P183: =BG1419 ->  | Q183: =BG1420 ->  | R183: =BG1421 ->  | S183: =BG1422 ->  | T183: =BG1423 ->  | U183: =BG1424 ->  | V183: =BG1425 ->  | W183: =BG1426 ->  | X183: =BG1427 ->  | Y183: =BG1428 ->  | Z183: =BG1429 ->  | AA183: =BG1430 ->  | AB183: =BG1431 ->  | AC183: =BG1432 ->  | AD183: =BG1433 ->  | AE183: =BG1434 ->  | AF183: =BG1435 ->  | AG183: =BG1436 ->  | AH183: =BG1437 ->  | AI183: =BG1438 ->  | AJ183: =BG1439 ->  | AK183: =BG1440 ->  | AL183: =BG1441 ->  | AM183: =BG1442 ->  | AN183: =BG1443 ->  | AO183: =BG1444 ->  | AP183: =BG1445 ->  | AQ183: =BG1446 ->  | AR183: =BG1447 ->  | AS183: =BG1448 ->  | AT183: =BG1449 ->  | AU183: =BG1450 ->  | AV183: =BG1451 ->  | AW183: =BG1452 ->  | AX183: =BG1453 ->  | AY183: =BG1454 ->  | AZ183: =BG1455 ->  | BA183: =BG1456 ->  | BB183: =BG1457 ->  | BC183: =BG1458 ->  | BD183: =BG1459 ->  | BE183: =BF77*AE157 -> 0 | BG183: a25
B184: =IF(BH184="","",IF('DISEÑO TABLA DE DECISION'!$B$21=1,MIN(BH184:DE184),MAX(BH184:DE184))) ->  | D184: =IF(C184="","",MAX('MATRIZ-PÉRDIDA OPORTUNIDAD'!C28:AZ28)) ->  | G184: =BG1460 ->  | H184: =BG1461 ->  | I184: =BG1462 ->  | J184: =BG1463 ->  | K184: =BG1464 ->  | L184: =BG1465 ->  | M184: =BG1466 ->  | N184: =BG1467 ->  | O184: =BG1468 ->  | P184: =BG1469 ->  | Q184: =BG1470 ->  | R184: =BG1471 ->  | S184: =BG1472 ->  | T184: =BG1473 ->  | U184: =BG1474 ->  | V184: =BG1475 ->  | W184: =BG1476 ->  | X184: =BG1477 ->  | Y184: =BG1478 ->  | Z184: =BG1479 ->  | AA184: =BG1480 ->  | AB184: =BG1481 ->  | AC184: =BG1482 ->  | AD184: =BG1483 ->  | AE184: =BG1484 ->  | AF184: =BG1485 ->  | AG184: =BG1486 ->  | AH184: =BG1487 ->  | AI184: =BG1488 ->  | AJ184: =BG1489 ->  | AK184: =BG1490 ->  | AL184: =BG1491 ->  | AM184: =BG1492 ->  | AN184: =BG1493 ->  | AO184: =BG1494 ->  | AP184: =BG1495 ->  | AQ184: =BG1496 ->  | AR184: =BG1497 ->  | AS184: =BG1498 ->  | AT184: =BG1499 ->  | AU184: =BG1500 ->  | AV184: =BG1501 ->  | AW184: =BG1502 ->  | AX184: =BG1503 ->  | AY184: =BG1504 ->  | AZ184: =BG1505 ->  | BA184: =BG1506 ->  | BB184: =BG1507 ->  | BC184: =BG1508 ->  | BD184: =BG1509 ->  | BE184: =BF78*AF157 -> 0 | BG184: a26
B185: =IF(BH185="","",IF('DISEÑO TABLA DE DECISION'!$B$21=1,MIN(BH185:DE185),MAX(BH185:DE185))) ->  | D185: =IF(C185="","",MAX('MATRIZ-PÉRDIDA OPORTUNIDAD'!C29:AZ29)) ->  | G185: =BG1510 ->  | H185: =BG1511 ->  | I185: =BG1512 ->  | J185: =BG1513 ->  | K185: =BG1514 ->  | L185: =BG1515 ->  | M185: =BG1516 ->  | N185: =BG1517 ->  | O185: =BG1518 ->  | P185: =BG1519 ->  | Q185: =BG1520 ->  | R185: =BG1521 ->  | S185: =BG1522 ->  | T185: =BG1523 ->  | U185: =BG1524 ->  | V185: =BG1525 ->  | W185: =BG1526 ->  | X185: =BG1527 ->  | Y185: =BG1528 ->  | Z185: =BG1529 ->  | AA185: =BG1530 ->  | AB185: =BG1531 ->  | AC185: =BG1532 ->  | AD185: =BG1533 ->  | AE185: =BG1534 ->  | AF185: =BG1535 ->  | AG185: =BG1536 ->  | AH185: =BG1537 ->  | AI185: =BG1538 ->  | AJ185: =BG1539 ->  | AK185: =BG1540 ->  | AL185: =BG1541 ->  | AM185: =BG1542 ->  | AN185: =BG1543 ->  | AO185: =BG1544 ->  | AP185: =BG1545 ->  | AQ185: =BG1546 ->  | AR185: =BG1547 ->  | AS185: =BG1548 ->  | AT185: =BG1549 ->  | AU185: =BG1550 ->  | AV185: =BG1551 ->  | AW185: =BG1552 ->  | AX185: =BG1553 ->  | AY185: =BG1554 ->  | AZ185: =BG1555 ->  | BA185: =BG1556 ->  | BB185: =BG1557 ->  | BC185: =BG1558 ->  | BD185: =BG1559 ->  | BE185: =BF79*AG157 -> 0 | BG185: a27
B186: =IF(BH186="","",IF('DISEÑO TABLA DE DECISION'!$B$21=1,MIN(BH186:DE186),MAX(BH186:DE186))) ->  | D186: =IF(C186="","",MAX('MATRIZ-PÉRDIDA OPORTUNIDAD'!C30:AZ30)) ->  | G186: =BG1560 ->  | H186: =BG1561 ->  | I186: =BG1562 ->  | J186: =BG1563 ->  | K186: =BG1564 ->  | L186: =BG1565 ->  | M186: =BG1566 ->  | N186: =BG1567 ->  | O186: =BG1568 ->  | P186: =BG1569 ->  | Q186: =BG1570 ->  | R186: =BG1571 ->  | S186: =BG1572 ->  | T186: =BG1573 ->  | U186: =BG1574 ->  | V186: =BG1575 ->  | W186: =BG1576 ->  | X186: =BG1577 ->  | Y186: =BG1578 ->  | Z186: =BG1579 ->  | AA186: =BG1580 ->  | AB186: =BG1581 ->  | AC186: =BG1582 ->  | AD186: =BG1583 ->  | AE186: =BG1584 ->  | AF186: =BG1585 ->  | AG186: =BG1586 ->  | AH186: =BG1587 ->  | AI186: =BG1588 ->  | AJ186: =BG1589 ->  | AK186: =BG1590 ->  | AL186: =BG1591 ->  | AM186: =BG1592 ->  | AN186: =BG1593 ->  | AO186: =BG1594 ->  | AP186: =BG1595 ->  | AQ186: =BG1596 ->  | AR186: =BG1597 ->  | AS186: =BG1598 ->  | AT186: =BG1599 ->  | AU186: =BG1600 ->  | AV186: =BG1601 ->  | AW186: =BG1602 ->  | AX186: =BG1603 ->  | AY186: =BG1604 ->  | AZ186: =BG1605 ->  | BA186: =BG1606 ->  | BB186: =BG1607 ->  | BC186: =BG1608 ->  | BD186: =BG1609 ->  | BE186: =BF80*AH157 -> 0 | BG186: a28
B187: =IF(BH187="","",IF('DISEÑO TABLA DE DECISION'!$B$21=1,MIN(BH187:DE187),MAX(BH187:DE187))) ->  | D187: =IF(C187="","",MAX('MATRIZ-PÉRDIDA OPORTUNIDAD'!C31:AZ31)) ->  | G187: =BG1610 ->  | H187: =BG1611 ->  | I187: =BG1612 ->  | J187: =BG1613 ->  | K187: =BG1614 ->  | L187: =BG1615 ->  | M187: =BG1616 ->  | N187: =BG1617 ->  | O187: =BG1618 ->  | P187: =BG1619 ->  | Q187: =BG1620 ->  | R187: =BG1621 ->  | S187: =BG1622 ->  | T187: =BG1623 ->  | U187: =BG1624 ->  | V187: =BG1625 ->  | W187: =BG1626 ->  | X187: =BG1627 ->  | Y187: =BG1628 ->  | Z187: =BG1629 ->  | AA187: =BG1630 ->  | AB187: =BG1631 ->  | AC187: =BG1632 ->  | AD187: =BG1633 ->  | AE187: =BG1634 ->  | AF187: =BG1635 ->  | AG187: =BG1636 ->  | AH187: =BG1637 ->  | AI187: =BG1638 ->  | AJ187: =BG1639 ->  | AK187: =BG1640 ->  | AL187: =BG1641 ->  | AM187: =BG1642 ->  | AN187: =BG1643 ->  | AO187: =BG1644 ->  | AP187: =BG1645 ->  | AQ187: =BG1646 ->  | AR187: =BG1647 ->  | AS187: =BG1648 ->  | AT187: =BG1649 ->  | AU187: =BG1650 ->  | AV187: =BG1651 ->  | AW187: =BG1652 ->  | AX187: =BG1653 ->  | AY187: =BG1654 ->  | AZ187: =BG1655 ->  | BA187: =BG1656 ->  | BB187: =BG1657 ->  | BC187: =BG1658 ->  | BD187: =BG1659 ->  | BE187: =BF81*AI157 -> 0 | BG187: a29
B188: =IF(BH188="","",IF('DISEÑO TABLA DE DECISION'!$B$21=1,MIN(BH188:DE188),MAX(BH188:DE188))) ->  | D188: =IF(C188="","",MAX('MATRIZ-PÉRDIDA OPORTUNIDAD'!C32:AZ32)) ->  | G188: =BG1660 ->  | H188: =BG1661 ->  | I188: =BG1662 ->  | J188: =BG1663 ->  | K188: =BG1664 ->  | L188: =BG1665 ->  | M188: =BG1666 ->  | N188: =BG1667 ->  | O188: =BG1668 ->  | P188: =BG1669 ->  | Q188: =BG1670 ->  | R188: =BG1671 ->  | S188: =BG1672 ->  | T188: =BG1673 ->  | U188: =BG1674 ->  | V188: =BG1675 ->  | W188: =BG1676 ->  | X188: =BG1677 ->  | Y188: =BG1678 ->  | Z188: =BG1679 ->  | AA188: =BG1680 ->  | AB188: =BG1681 ->  | AC188: =BG1682 ->  | AD188: =BG1683 ->  | AE188: =BG1684 ->  | AF188: =BG1685 ->  | AG188: =BG1686 ->  | AH188: =BG1687 ->  | AI188: =BG1688 ->  | AJ188: =BG1689 ->  | AK188: =BG1690 ->  | AL188: =BG1691 ->  | AM188: =BG1692 ->  | AN188: =BG1693 ->  | AO188: =BG1694 ->  | AP188: =BG1695 ->  | AQ188: =BG1696 ->  | AR188: =BG1697 ->  | AS188: =BG1698 ->  | AT188: =BG1699 ->  | AU188: =BG1700 ->  | AV188: =BG1701 ->  | AW188: =BG1702 ->  | AX188: =BG1703 ->  | AY188: =BG1704 ->  | AZ188: =BG1705 ->  | BA188: =BG1706 ->  | BB188: =BG1707 ->  | BC188: =BG1708 ->  | BD188: =BG1709 ->  | BE188: =BF82*AJ157 -> 0 | BG188: a30
B189: =IF(BH189="","",IF('DISEÑO TABLA DE DECISION'!$B$21=1,MIN(BH189:DE189),MAX(BH189:DE189))) ->  | D189: =IF(C189="","",MAX('MATRIZ-PÉRDIDA OPORTUNIDAD'!C33:AZ33)) ->  | G189: =BG1710 ->  | H189: =BG1711 ->  | I189: =BG1712 ->  | J189: =BG1713 ->  | K189: =BG1714 ->  | L189: =BG1715 ->  | M189: =BG1716 ->  | N189: =BG1717 ->  | O189: =BG1718 ->  | P189: =BG1719 ->  | Q189: =BG1720 ->  | R189: =BG1721 ->  | S189: =BG1722 ->  | T189: =BG1723 ->  | U189: =BG1724 ->  | V189: =BG1725 ->  | W189: =BG1726 ->  | X189: =BG1727 ->  | Y189: =BG1728 ->  | Z189: =BG1729 ->  | AA189: =BG1730 ->  | AB189: =BG1731 ->  | AC189: =BG1732 ->  | AD189: =BG1733 ->  | AE189: =BG1734 ->  | AF189: =BG1735 ->  | AG189: =BG1736 ->  | AH189: =BG1737 ->  | AI189: =BG1738 ->  | AJ189: =BG1739 ->  | AK189: =BG1740 ->  | AL189: =BG1741 ->  | AM189: =BG1742 ->  | AN189: =BG1743 ->  | AO189: =BG1744 ->  | AP189: =BG1745 ->  | AQ189: =BG1746 ->  | AR189: =BG1747 ->  | AS189: =BG1748 ->  | AT189: =BG1749 ->  | AU189: =BG1750 ->  | AV189: =BG1751 ->  | AW189: =BG1752 ->  | AX189: =BG1753 ->  | AY189: =BG1754 ->  | AZ189: =BG1755 ->  | BA189: =BG1756 ->  | BB189: =BG1757 ->  | BC189: =BG1758 ->  | BD189: =BG1759 ->  | BE189: =BF83*AK157 -> 0 | BG189: a31
B190: =IF(BH190="","",IF('DISEÑO TABLA DE DECISION'!$B$21=1,MIN(BH190:DE190),MAX(BH190:DE190))) ->  | D190: =IF(C190="","",MAX('MATRIZ-PÉRDIDA OPORTUNIDAD'!C34:AZ34)) ->  | G190: =BG1760 ->  | H190: =BG1761 ->  | I190: =BG1762 ->  | J190: =BG1763 ->  | K190: =BG1764 ->  | L190: =BG1765 ->  | M190: =BG1766 ->  | N190: =BG1767 ->  | O190: =BG1768 ->  | P190: =BG1769 ->  | Q190: =BG1770 ->  | R190: =BG1771 ->  | S190: =BG1772 ->  | T190: =BG1773 ->  | U190: =BG1774 ->  | V190: =BG1775 ->  | W190: =BG1776 ->  | X190: =BG1777 ->  | Y190: =BG1778 ->  | Z190: =BG1779 ->  | AA190: =BG1780 ->  | AB190: =BG1781 ->  | AC190: =BG1782 ->  | AD190: =BG1783 ->  | AE190: =BG1784 ->  | AF190: =BG1785 ->  | AG190: =BG1786 ->  | AH190: =BG1787 ->  | AI190: =BG1788 ->  | AJ190: =BG1789 ->  | AK190: =BG1790 ->  | AL190: =BG1791 ->  | AM190: =BG1792 ->  | AN190: =BG1793 ->  | AO190: =BG1794 ->  | AP190: =BG1795 ->  | AQ190: =BG1796 ->  | AR190: =BG1797 ->  | AS190: =BG1798 ->  | AT190: =BG1799 ->  | AU190: =BG1800 ->  | AV190: =BG1801 ->  | AW190: =BG1802 ->  | AX190: =BG1803 ->  | AY190: =BG1804 ->  | AZ190: =BG1805 ->  | BA190: =BG1806 ->  | BB190: =BG1807 ->  | BC190: =BG1808 ->  | BD190: =BG1809 ->  | BE190: =BF84*AL157 -> 0 | BG190: a32
A191: =IF(BH191="","",AVERAGE(BH191:DE191)) ->  | B191: =IF(BH191="","",IF('DISEÑO TABLA DE DECISION'!$B$21=1,MIN(BH191:DE191),MAX(BH191:DE191))) ->  | D191: =IF(C191="","",MAX('MATRIZ-PÉRDIDA OPORTUNIDAD'!C35:AZ35)) ->  | E191: =IF(OR(BH191="",BH$156=""),"",BH$156*BH191+BI$156*BI191+BJ$156*BJ191+BK$156*BK191+BL$156*BL191+BM$156*BM191+BN$156*BN191+BO$156*BO191+BP$156*BP191+BQ$156*BQ191+BR$156*BR191+BS$156*BS191+BT$156*BT191+BU$156*BU191+BV$156*BV191+BW$156*BW191+BX$156*BX191+BY$156*BY191+BZ$156*BZ191+CA$156*CA191+CB$156*CB191+CC$156*CC191+CD$156*CD191+CE$156*CE191+CF$156*CF191+CG$156*CG191+CH$156*CH191+CI$156*CI191+CJ$156*CJ191+CK$156*CK191+CL$156*CL191+CM$156*CM191+CN$156*CN191+CO$156*CO191+CP$156*CP191+CQ$156*CQ191+CR$156*CR191+CS$156*CS191+CT$156*CT191+CU$156*CU191+CV$156*CV191+CW$156*CW191+CX$156*CX191+CY$156*CY191+CZ$156*CZ191+DA$156*DA191+DB$156*DB191+DC$156*DC191+DD$156*DD191+DE$156*DE191) ->  | G191: =BG1810 ->  | H191: =BG1811 ->  | I191: =BG1812 ->  | J191: =BG1813 ->  | K191: =BG1814 ->  | L191: =BG1815 ->  | M191: =BG1816 ->  | N191: =BG1817 ->  | O191: =BG1818 ->  | P191: =BG1819 ->  | Q191: =BG1820 ->  | R191: =BG1821 ->  | S191: =BG1822 ->  | T191: =BG1823 ->  | U191: =BG1824 ->  | V191: =BG1825 ->  | W191: =BG1826 ->  | X191: =BG1827 ->  | Y191: =BG1828 ->  | Z191: =BG1829 ->  | AA191: =BG1830 ->  | AB191: =BG1831 ->  | AC191: =BG1832 ->  | AD191: =BG1833 ->  | AE191: =BG1834 ->  | AF191: =BG1835 ->  | AG191: =BG1836 ->  | AH191: =BG1837 ->  | AI191: =BG1838 ->  | AJ191: =BG1839 ->  | AK191: =BG1840 ->  | AL191: =BG1841 ->  | AM191: =BG1842 ->  | AN191: =BG1843 ->  | AO191: =BG1844 ->  | AP191: =BG1845 ->  | AQ191: =BG1846 ->  | AR191: =BG1847 ->  | AS191: =BG1848 ->  | AT191: =BG1849 ->  | AU191: =BG1850 ->  | AV191: =BG1851 ->  | AW191: =BG1852 ->  | AX191: =BG1853 ->  | AY191: =BG1854 ->  | AZ191: =BG1855 ->  | BA191: =BG1856 ->  | BB191: =BG1857 ->  | BC191: =BG1858 ->  | BD191: =BG1859 ->  | BE191: =BF85*AM157 -> 0 | BG191: a33
B192: =IF(BH192="","",IF('DISEÑO TABLA DE DECISION'!$B$21=1,MIN(BH192:DE192),MAX(BH192:DE192))) ->  | D192: =IF(C192="","",MAX('MATRIZ-PÉRDIDA OPORTUNIDAD'!C36:AZ36)) ->  | G192: =BG1860 ->  | H192: =BG1861 ->  | I192: =BG1862 ->  | J192: =BG1863 ->  | K192: =BG1864 ->  | L192: =BG1865 ->  | M192: =BG1866 ->  | N192: =BG1867 ->  | O192: =BG1868 ->  | P192: =BG1869 ->  | Q192: =BG1870 ->  | R192: =BG1871 ->  | S192: =BG1872 ->  | T192: =BG1873 ->  | U192: =BG1874 ->  | V192: =BG1875 ->  | W192: =BG1876 ->  | X192: =BG1877 ->  | Y192: =BG1878 ->  | Z192: =BG1879 ->  | AA192: =BG1880 ->  | AB192: =BG1881 ->  | AC192: =BG1882 ->  | AD192: =BG1883 ->  | AE192: =BG1884 ->  | AF192: =BG1885 ->  | AG192: =BG1886 ->  | AH192: =BG1887 ->  | AI192: =BG1888 ->  | AJ192: =BG1889 ->  | AK192: =BG1890 ->  | AL192: =BG1891 ->  | AM192: =BG1892 ->  | AN192: =BG1893 ->  | AO192: =BG1894 ->  | AP192: =BG1895 ->  | AQ192: =BG1896 ->  | AR192: =BG1897 ->  | AS192: =BG1898 ->  | AT192: =BG1899 ->  | AU192: =BG1900 ->  | AV192: =BG1901 ->  | AW192: =BG1902 ->  | AX192: =BG1903 ->  | AY192: =BG1904 ->  | AZ192: =BG1905 ->  | BA192: =BG1906 ->  | BB192: =BG1907 ->  | BC192: =BG1908 ->  | BD192: =BG1909 ->  | BE192: =BF86*AN157 -> 0 | BG192: a34
B193: =IF(BH193="","",IF('DISEÑO TABLA DE DECISION'!$B$21=1,MIN(BH193:DE193),MAX(BH193:DE193))) ->  | D193: =IF(C193="","",MAX('MATRIZ-PÉRDIDA OPORTUNIDAD'!C37:AZ37)) ->  | G193: =BG1910 ->  | H193: =BG1911 ->  | I193: =BG1912 ->  | J193: =BG1913 ->  | K193: =BG1914 ->  | L193: =BG1915 ->  | M193: =BG1916 ->  | N193: =BG1917 ->  | O193: =BG1918 ->  | P193: =BG1919 ->  | Q193: =BG1920 ->  | R193: =BG1921 ->  | S193: =BG1922 ->  | T193: =BG1923 ->  | U193: =BG1924 ->  | V193: =BG1925 ->  | W193: =BG1926 ->  | X193: =BG1927 ->  | Y193: =BG1928 ->  | Z193: =BG1929 ->  | AA193: =BG1930 ->  | AB193: =BG1931 ->  | AC193: =BG1932 ->  | AD193: =BG1933 ->  | AE193: =BG1934 ->  | AF193: =BG1935 ->  | AG193: =BG1936 ->  | AH193: =BG1937 ->  | AI193: =BG1938 ->  | AJ193: =BG1939 ->  | AK193: =BG1940 ->  | AL193: =BG1941 ->  | AM193: =BG1942 ->  | AN193: =BG1943 ->  | AO193: =BG1944 ->  | AP193: =BG1945 ->  | AQ193: =BG1946 ->  | AR193: =BG1947 ->  | AS193: =BG1948 ->  | AT193: =BG1949 ->  | AU193: =BG1950 ->  | AV193: =BG1951 ->  | AW193: =BG1952 ->  | AX193: =BG1953 ->  | AY193: =BG1954 ->  | AZ193: =BG1955 ->  | BA193: =BG1956 ->  | BB193: =BG1957 ->  | BC193: =BG1958 ->  | BD193: =BG1959 ->  | BE193: =BF87*AO157 -> 0 | BG193: a35
B194: =IF(BH194="","",IF('DISEÑO TABLA DE DECISION'!$B$21=1,MIN(BH194:DE194),MAX(BH194:DE194))) ->  | D194: =IF(C194="","",MAX('MATRIZ-PÉRDIDA OPORTUNIDAD'!C38:AZ38)) ->  | G194: =BG1960 ->  | H194: =BG1961 ->  | I194: =BG1962 ->  | J194: =BG1963 ->  | K194: =BG1964 ->  | L194: =BG1965 ->  | M194: =BG1966 ->  | N194: =BG1967 ->  | O194: =BG1968 ->  | P194: =BG1969 ->  | Q194: =BG1970 ->  | R194: =BG1971 ->  | S194: =BG1972 ->  | T194: =BG1973 ->  | U194: =BG1974 ->  | V194: =BG1975 ->  | W194: =BG1976 ->  | X194: =BG1977 ->  | Y194: =BG1978 ->  | Z194: =BG1979 ->  | AA194: =BG1980 ->  | AB194: =BG1981 ->  | AC194: =BG1982 ->  | AD194: =BG1983 ->  | AE194: =BG1984 ->  | AF194: =BG1985 ->  | AG194: =BG1986 ->  | AH194: =BG1987 ->  | AI194: =BG1988 ->  | AJ194: =BG1989 ->  | AK194: =BG1990 ->  | AL194: =BG1991 ->  | AM194: =BG1992 ->  | AN194: =BG1993 ->  | AO194: =BG1994 ->  | AP194: =BG1995 ->  | AQ194: =BG1996 ->  | AR194: =BG1997 ->  | AS194: =BG1998 ->  | AT194: =BG1999 ->  | AU194: =BG2000 ->  | AV194: =BG2001 ->  | AW194: =BG2002 ->  | AX194: =BG2003 ->  | AY194: =BG2004 ->  | AZ194: =BG2005 ->  | BA194: =BG2006 ->  | BB194: =BG2007 ->  | BC194: =BG2008 ->  | BD194: =BG2009 ->  | BE194: =BF88*AP157 -> 0 | BG194: a36
B195: =IF(BH195="","",IF('DISEÑO TABLA DE DECISION'!$B$21=1,MIN(BH195:DE195),MAX(BH195:DE195))) ->  | D195: =IF(C195="","",MAX('MATRIZ-PÉRDIDA OPORTUNIDAD'!C39:AZ39)) ->  | G195: =BG2010 ->  | H195: =BG2011 ->  | I195: =BG2012 ->  | J195: =BG2013 ->  | K195: =BG2014 ->  | L195: =BG2015 ->  | M195: =BG2016 ->  | N195: =BG2017 ->  | O195: =BG2018 ->  | P195: =BG2019 ->  | Q195: =BG2020 ->  | R195: =BG2021 ->  | S195: =BG2022 ->  | T195: =BG2023 ->  | U195: =BG2024 ->  | V195: =BG2025 ->  | W195: =BG2026 ->  | X195: =BG2027 ->  | Y195: =BG2028 ->  | Z195: =BG2029 ->  | AA195: =BG2030 ->  | AB195: =BG2031 ->  | AC195: =BG2032 ->  | AD195: =BG2033 ->  | AE195: =BG2034 ->  | AF195: =BG2035 ->  | AG195: =BG2036 ->  | AH195: =BG2037 ->  | AI195: =BG2038 ->  | AJ195: =BG2039 ->  | AK195: =BG2040 ->  | AL195: =BG2041 ->  | AM195: =BG2042 ->  | AN195: =BG2043 ->  | AO195: =BG2044 ->  | AP195: =BG2045 ->  | AQ195: =BG2046 ->  | AR195: =BG2047 ->  | AS195: =BG2048 ->  | AT195: =BG2049 ->  | AU195: =BG2050 ->  | AV195: =BG2051 ->  | AW195: =BG2052 ->  | AX195: =BG2053 ->  | AY195: =BG2054 ->  | AZ195: =BG2055 ->  | BA195: =BG2056 ->  | BB195: =BG2057 ->  | BC195: =BG2058 ->  | BD195: =BG2059 ->  | BE195: =BF89*AQ157 -> 0 | BG195: a37
B196: =IF(BH196="","",IF('DISEÑO TABLA DE DECISION'!$B$21=1,MIN(BH196:DE196),MAX(BH196:DE196))) ->  | D196: =IF(C196="","",MAX('MATRIZ-PÉRDIDA OPORTUNIDAD'!C40:AZ40)) ->  | G196: =BG2060 ->  | H196: =BG2061 ->  | I196: =BG2062 ->  | J196: =BG2063 ->  | K196: =BG2064 ->  | L196: =BG2065 ->  | M196: =BG2066 ->  | N196: =BG2067 ->  | O196: =BG2068 ->  | P196: =BG2069 ->  | Q196: =BG2070 ->  | R196: =BG2071 ->  | S196: =BG2072 ->  | T196: =BG2073 ->  | U196: =BG2074 ->  | V196: =BG2075 ->  | W196: =BG2076 ->  | X196: =BG2077 ->  | Y196: =BG2078 ->  | Z196: =BG2079 ->  | AA196: =BG2080 ->  | AB196: =BG2081 ->  | AC196: =BG2082 ->  | AD196: =BG2083 ->  | AE196: =BG2084 ->  | AF196: =BG2085 ->  | AG196: =BG2086 ->  | AH196: =BG2087 ->  | AI196: =BG2088 ->  | AJ196: =BG2089 ->  | AK196: =BG2090 ->  | AL196: =BG2091 ->  | AM196: =BG2092 ->  | AN196: =BG2093 ->  | AO196: =BG2094 ->  | AP196: =BG2095 ->  | AQ196: =BG2096 ->  | AR196: =BG2097 ->  | AS196: =BG2098 ->  | AT196: =BG2099 ->  | AU196: =BG2100 ->  | AV196: =BG2101 ->  | AW196: =BG2102 ->  | AX196: =BG2103 ->  | AY196: =BG2104 ->  | AZ196: =BG2105 ->  | BA196: =BG2106 ->  | BB196: =BG2107 ->  | BC196: =BG2108 ->  | BD196: =BG2109 ->  | BE196: =BF90*AR157 -> 0 | BG196: a38
B197: =IF(BH197="","",IF('DISEÑO TABLA DE DECISION'!$B$21=1,MIN(BH197:DE197),MAX(BH197:DE197))) ->  | D197: =IF(C197="","",MAX('MATRIZ-PÉRDIDA OPORTUNIDAD'!C41:AZ41)) ->  | G197: =BG2110 ->  | H197: =BG2111 ->  | I197: =BG2112 ->  | J197: =BG2113 ->  | K197: =BG2114 ->  | L197: =BG2115 ->  | M197: =BG2116 ->  | N197: =BG2117 ->  | O197: =BG2118 ->  | P197: =BG2119 ->  | Q197: =BG2120 ->  | R197: =BG2121 ->  | S197: =BG2122 ->  | T197: =BG2123 ->  | U197: =BG2124 ->  | V197: =BG2125 ->  | W197: =BG2126 ->  | X197: =BG2127 ->  | Y197: =BG2128 ->  | Z197: =BG2129 ->  | AA197: =BG2130 ->  | AB197: =BG2131 ->  | AC197: =BG2132 ->  | AD197: =BG2133 ->  | AE197: =BG2134 ->  | AF197: =BG2135 ->  | AG197: =BG2136 ->  | AH197: =BG2137 ->  | AI197: =BG2138 ->  | AJ197: =BG2139 ->  | AK197: =BG2140 ->  | AL197: =BG2141 ->  | AM197: =BG2142 ->  | AN197: =BG2143 ->  | AO197: =BG2144 ->  | AP197: =BG2145 ->  | AQ197: =BG2146 ->  | AR197: =BG2147 ->  | AS197: =BG2148 ->  | AT197: =BG2149 ->  | AU197: =BG2150 ->  | AV197: =BG2151 ->  | AW197: =BG2152 ->  | AX197: =BG2153 ->  | AY197: =BG2154 ->  | AZ197: =BG2155 ->  | BA197: =BG2156 ->  | BB197: =BG2157 ->  | BC197: =BG2158 ->  | BD197: =BG2159 ->  | BE197: =BF91*AS157 -> 0 | BG197: a39
B198: =IF(BH198="","",IF('DISEÑO TABLA DE DECISION'!$B$21=1,MIN(BH198:DE198),MAX(BH198:DE198))) ->  | D198: =IF(C198="","",MAX('MATRIZ-PÉRDIDA OPORTUNIDAD'!C42:AZ42)) ->  | G198: =BG2160 ->  | H198: =BG2161 ->  | I198: =BG2162 ->  | J198: =BG2163 ->  | K198: =BG2164 ->  | L198: =BG2165 ->  | M198: =BG2166 ->  | N198: =BG2167 ->  | O198: =BG2168 ->  | P198: =BG2169 ->  | Q198: =BG2170 ->  | R198: =BG2171 ->  | S198: =BG2172 ->  | T198: =BG2173 ->  | U198: =BG2174 ->  | V198: =BG2175 ->  | W198: =BG2176 ->  | X198: =BG2177 ->  | Y198: =BG2178 ->  | Z198: =BG2179 ->  | AA198: =BG2180 ->  | AB198: =BG2181 ->  | AC198: =BG2182 ->  | AD198: =BG2183 ->  | AE198: =BG2184 ->  | AF198: =BG2185 ->  | AG198: =BG2186 ->  | AH198: =BG2187 ->  | AI198: =BG2188 ->  | AJ198: =BG2189 ->  | AK198: =BG2190 ->  | AL198: =BG2191 ->  | AM198: =BG2192 ->  | AN198: =BG2193 ->  | AO198: =BG2194 ->  | AP198: =BG2195 ->  | AQ198: =BG2196 ->  | AR198: =BG2197 ->  | AS198: =BG2198 ->  | AT198: =BG2199 ->  | AU198: =BG2200 ->  | AV198: =BG2201 ->  | AW198: =BG2202 ->  | AX198: =BG2203 ->  | AY198: =BG2204 ->  | AZ198: =BG2205 ->  | BA198: =BG2206 ->  | BB198: =BG2207 ->  | BC198: =BG2208 ->  | BD198: =BG2209 ->  | BE198: =BF92*AT157 -> 0 | BG198: a40
B199: =IF(BH199="","",IF('DISEÑO TABLA DE DECISION'!$B$21=1,MIN(BH199:DE199),MAX(BH199:DE199))) ->  | D199: =IF(C199="","",MAX('MATRIZ-PÉRDIDA OPORTUNIDAD'!C43:AZ43)) ->  | G199: =BG2210 ->  | H199: =BG2211 ->  | I199: =BG2212 ->  | J199: =BG2213 ->  | K199: =BG2214 ->  | L199: =BG2215 ->  | M199: =BG2216 ->  | N199: =BG2217 ->  | O199: =BG2218 ->  | P199: =BG2219 ->  | Q199: =BG2220 ->  | R199: =BG2221 ->  | S199: =BG2222 ->  | T199: =BG2223 ->  | U199: =BG2224 ->  | V199: =BG2225 ->  | W199: =BG2226 ->  | X199: =BG2227 ->  | Y199: =BG2228 ->  | Z199: =BG2229 ->  | AA199: =BG2230 ->  | AB199: =BG2231 ->  | AC199: =BG2232 ->  | AD199: =BG2233 ->  | AE199: =BG2234 ->  | AF199: =BG2235 ->  | AG199: =BG2236 ->  | AH199: =BG2237 ->  | AI199: =BG2238 ->  | AJ199: =BG2239 ->  | AK199: =BG2240 ->  | AL199: =BG2241 ->  | AM199: =BG2242 ->  | AN199: =BG2243 ->  | AO199: =BG2244 ->  | AP199: =BG2245 ->  | AQ199: =BG2246 ->  | AR199: =BG2247 ->  | AS199: =BG2248 ->  | AT199: =BG2249 ->  | AU199: =BG2250 ->  | AV199: =BG2251 ->  | AW199: =BG2252 ->  | AX199: =BG2253 ->  | AY199: =BG2254 ->  | AZ199: =BG2255 ->  | BA199: =BG2256 ->  | BB199: =BG2257 ->  | BC199: =BG2258 ->  | BD199: =BG2259 ->  | BE199: =BF93*AU157 -> 0 | BG199: a41
B200: =IF(BH200="","",IF('DISEÑO TABLA DE DECISION'!$B$21=1,MIN(BH200:DE200),MAX(BH200:DE200))) ->  | D200: =IF(C200="","",MAX('MATRIZ-PÉRDIDA OPORTUNIDAD'!C44:AZ44)) ->  | G200: =BG2260 ->  | H200: =BG2261 ->  | I200: =BG2262 ->  | J200: =BG2263 ->  | K200: =BG2264 ->  | L200: =BG2265 ->  | M200: =BG2266 ->  | N200: =BG2267 ->  | O200: =BG2268 ->  | P200: =BG2269 ->  | Q200: =BG2270 ->  | R200: =BG2271 ->  | S200: =BG2272 ->  | T200: =BG2273 ->  | U200: =BG2274 ->  | V200: =BG2275 ->  | W200: =BG2276 ->  | X200: =BG2277 ->  | Y200: =BG2278 ->  | Z200: =BG2279 ->  | AA200: =BG2280 ->  | AB200: =BG2281 ->  | AC200: =BG2282 ->  | AD200: =BG2283 ->  | AE200: =BG2284 ->  | AF200: =BG2285 ->  | AG200: =BG2286 ->  | AH200: =BG2287 ->  | AI200: =BG2288 ->  | AJ200: =BG2289 ->  | AK200: =BG2290 ->  | AL200: =BG2291 ->  | AM200: =BG2292 ->  | AN200: =BG2293 ->  | AO200: =BG2294 ->  | AP200: =BG2295 ->  | AQ200: =BG2296 ->  | AR200: =BG2297 ->  | AS200: =BG2298 ->  | AT200: =BG2299 ->  | AU200: =BG2300 ->  | AV200: =BG2301 ->  | AW200: =BG2302 ->  | AX200: =BG2303 ->  | AY200: =BG2304 ->  | AZ200: =BG2305 ->  | BA200: =BG2306 ->  | BB200: =BG2307 ->  | BC200: =BG2308 ->  | BD200: =BG2309 ->  | BE200: =BF94*AV157 -> 0 | BG200: a42
B201: =IF(BH201="","",IF('DISEÑO TABLA DE DECISION'!$B$21=1,MIN(BH201:DE201),MAX(BH201:DE201))) ->  | D201: =IF(C201="","",MAX('MATRIZ-PÉRDIDA OPORTUNIDAD'!C45:AZ45)) ->  | G201: =BG2310 ->  | H201: =BG2311 ->  | I201: =BG2312 ->  | J201: =BG2313 ->  | K201: =BG2314 ->  | L201: =BG2315 ->  | M201: =BG2316 ->  | N201: =BG2317 ->  | O201: =BG2318 ->  | P201: =BG2319 ->  | Q201: =BG2320 ->  | R201: =BG2321 ->  | S201: =BG2322 ->  | T201: =BG2323 ->  | U201: =BG2324 ->  | V201: =BG2325 ->  | W201: =BG2326 ->  | X201: =BG2327 ->  | Y201: =BG2328 ->  | Z201: =BG2329 ->  | AA201: =BG2330 ->  | AB201: =BG2331 ->  | AC201: =BG2332 ->  | AD201: =BG2333 ->  | AE201: =BG2334 ->  | AF201: =BG2335 ->  | AG201: =BG2336 ->  | AH201: =BG2337 ->  | AI201: =BG2338 ->  | AJ201: =BG2339 ->  | AK201: =BG2340 ->  | AL201: =BG2341 ->  | AM201: =BG2342 ->  | AN201: =BG2343 ->  | AO201: =BG2344 ->  | AP201: =BG2345 ->  | AQ201: =BG2346 ->  | AR201: =BG2347 ->  | AS201: =BG2348 ->  | AT201: =BG2349 ->  | AU201: =BG2350 ->  | AV201: =BG2351 ->  | AW201: =BG2352 ->  | AX201: =BG2353 ->  | AY201: =BG2354 ->  | AZ201: =BG2355 ->  | BA201: =BG2356 ->  | BB201: =BG2357 ->  | BC201: =BG2358 ->  | BD201: =BG2359 ->  | BE201: =BF95*AW157 -> 0 | BG201: a43
B202: =IF(BH202="","",IF('DISEÑO TABLA DE DECISION'!$B$21=1,MIN(BH202:DE202),MAX(BH202:DE202))) ->  | D202: =IF(C202="","",MAX('MATRIZ-PÉRDIDA OPORTUNIDAD'!C46:AZ46)) ->  | G202: =BG2360 ->  | H202: =BG2361 ->  | I202: =BG2362 ->  | J202: =BG2363 ->  | K202: =BG2364 ->  | L202: =BG2365 ->  | M202: =BG2366 ->  | N202: =BG2367 ->  | O202: =BG2368 ->  | P202: =BG2369 ->  | Q202: =BG2370 ->  | R202: =BG2371 ->  | S202: =BG2372 ->  | T202: =BG2373 ->  | U202: =BG2374 ->  | V202: =BG2375 ->  | W202: =BG2376 ->  | X202: =BG2377 ->  | Y202: =BG2378 ->  | Z202: =BG2379 ->  | AA202: =BG2380 ->  | AB202: =BG2381 ->  | AC202: =BG2382 ->  | AD202: =BG2383 ->  | AE202: =BG2384 ->  | AF202: =BG2385 ->  | AG202: =BG2386 ->  | AH202: =BG2387 ->  | AI202: =BG2388 ->  | AJ202: =BG2389 ->  | AK202: =BG2390 ->  | AL202: =BG2391 ->  | AM202: =BG2392 ->  | AN202: =BG2393 ->  | AO202: =BG2394 ->  | AP202: =BG2395 ->  | AQ202: =BG2396 ->  | AR202: =BG2397 ->  | AS202: =BG2398 ->  | AT202: =BG2399 ->  | AU202: =BG2400 ->  | AV202: =BG2401 ->  | AW202: =BG2402 ->  | AX202: =BG2403 ->  | AY202: =BG2404 ->  | AZ202: =BG2405 ->  | BA202: =BG2406 ->  | BB202: =BG2407 ->  | BC202: =BG2408 ->  | BD202: =BG2409 ->  | BE202: =BF96*AX157 -> 0 | BG202: a44
... 360 more rows

Sheet MATRIZ-PÉRDIDA OPORTUNIDAD
A1: Pérdida de Oportunidad | B1: =IF('TABLA DE DECISION'!BG157="","",'TABLA DE DECISION'!BG157) -> etiquetas de los ej: → | C1: =IF('TABLA DE DECISION'!BH157="","",'TABLA DE DECISION'!BH157) ->  | D1: =IF('TABLA DE DECISION'!BI157="","",'TABLA DE DECISION'!BI157) ->  | E1: =IF('TABLA DE DECISION'!BJ157="","",'TABLA DE DECISION'!BJ157) ->  | F1: =IF('TABLA DE DECISION'!BK157="","",'TABLA DE DECISION'!BK157) ->  | G1: =IF('TABLA DE DECISION'!BL157="","",'TABLA DE DECISION'!BL157) ->  | H1: =IF('TABLA DE DECISION'!BM157="","",'TABLA DE DECISION'!BM157) ->  | I1: =IF('TABLA DE DECISION'!BN157="","",'TABLA DE DECISION'!BN157) ->  | J1: =IF('TABLA DE DECISION'!BO157="","",'TABLA DE DECISION'!BO157) ->  | K1: =IF('TABLA DE DECISION'!BP157="","",'TABLA DE DECISION'!BP157) ->  | L1: =IF('TABLA DE DECISION'!BQ157="","",'TABLA DE DECISION'!BQ157) ->  | M1: =IF('TABLA DE DECISION'!BR157="","",'TABLA DE DECISION'!BR157) ->  | N1: =IF('TABLA DE DECISION'!BS157="","",'TABLA DE DECISION'!BS157) ->  | O1: =IF('TABLA DE DECISION'!BT157="","",'TABLA DE DECISION'!BT157) ->  | P1: =IF('TABLA DE DECISION'!BU157="","",'TABLA DE DECISION'!BU157) ->  | Q1: =IF('TABLA DE DECISION'!BV157="","",'TABLA DE DECISION'!BV157) ->  | R1: =IF('TABLA DE DECISION'!BW157="","",'TABLA DE DECISION'!BW157) ->  | S1: =IF('TABLA DE DECISION'!BX157="","",'TABLA DE DECISION'!BX157) ->  | T1: =IF('TABLA DE DECISION'!BY157="","",'TABLA DE DECISION'!BY157) ->  | U1: =IF('TABLA DE DECISION'!BZ157="","",'TABLA DE DECISION'!BZ157) ->  | V1: =IF('TABLA DE DECISION'!CA157="","",'TABLA DE DECISION'!CA157) ->  | W1: =IF('TABLA DE DECISION'!CB157="","",'TABLA DE DECISION'!CB157) ->  | X1: =IF('TABLA DE DECISION'!CC157="","",'TABLA DE DECISION'!CC157) ->  | Y1: =IF('TABLA DE DECISION'!CD157="","",'TABLA DE DECISION'!CD157) ->  | Z1: =IF('TABLA DE DECISION'!CE157="","",'TABLA DE DECISION'!CE157) ->  | AA1: =IF('TABLA DE DECISION'!CF157="","",'TABLA DE DECISION'!CF157) ->  | AB1: =IF('TABLA DE DECISION'!CG157="","",'TABLA DE DECISION'!CG157) ->  | AC1: =IF('TABLA DE DECISION'!CH157="","",'TABLA DE DECISION'!CH157) ->  | AD1: =IF('TABLA DE DECISION'!CI157="","",'TABLA DE DECISION'!CI157) ->  | AE1: =IF('TABLA DE DECISION'!CJ157="","",'TABLA DE DECISION'!CJ157) ->  | AF1: =IF('TABLA DE DECISION'!CK157="","",'TABLA DE DECISION'!CK157) ->  | AG1: =IF('TABLA DE DECISION'!CL157="","",'TABLA DE DECISION'!CL157) ->  | AH1: =IF('TABLA DE DECISION'!CM157="","",'TABLA DE DECISION'!CM157) ->  | AI1: =IF('TABLA DE DECISION'!CN157="","",'TABLA DE DECISION'!CN157) ->  | AJ1: =IF('TABLA DE DECISION'!CO157="","",'TABLA DE DECISION'!CO157) ->  | AK1: =IF('TABLA DE DECISION'!CP157="","",'TABLA DE DECISION'!CP157) ->  | AL1: =IF('TABLA DE DECISION'!CQ157="","",'TABLA DE DECISION'!CQ157) ->  | AM1: =IF('TABLA DE DECISION'!CR157="","",'TABLA DE DECISION'!CR157) ->  | AN1: =IF('TABLA DE DECISION'!CS157="","",'TABLA DE DECISION'!CS157) ->  | AO1: =IF('TABLA DE DECISION'!CT157="","",'TABLA DE DECISION'!CT157) ->  | AP1: =IF('TABLA DE DECISION'!CU157="","",'TABLA DE DECISION'!CU157) ->  | AQ1: =IF('TABLA DE DECISION'!CV157="","",'TABLA DE DECISION'!CV157) ->  | AR1: =IF('TABLA DE DECISION'!CW157="","",'TABLA DE DECISION'!CW157) ->  | AS1: =IF('TABLA DE DECISION'!CX157="","",'TABLA DE DECISION'!CX157) ->  | AT1: =IF('TABLA DE DECISION'!CY157="","",'TABLA DE DECISION'!CY157) ->  | AU1: =IF('TABLA DE DECISION'!CZ157="","",'TABLA DE DECISION'!CZ157) ->  | AV1: =IF('TABLA DE DECISION'!DA157="","",'TABLA DE DECISION'!DA157) ->  | AW1: =IF('TABLA DE DECISION'!DB157="","",'TABLA DE DECISION'!DB157) ->  | AX1: =IF('TABLA DE DECISION'!DC157="","",'TABLA DE DECISION'!DC157) ->  | AY1: =IF('TABLA DE DECISION'!DD157="","",'TABLA DE DECISION'!DD157) ->  | AZ1: =IF('TABLA DE DECISION'!DE157="","",'TABLA DE DECISION'!DE157) -> 
A2: =IF('TABLA DE DECISION'!BF158="","",'TABLA DE DECISION'!BF158) -> etiquetas de las ai: ↓ | B2: Pij ↘ | C2: =IF('TABLA DE DECISION'!BH158="","",'TABLA DE DECISION'!BH158) -> e1 | D2: =IF('TABLA DE DECISION'!BI158="","",'TABLA DE DECISION'!BI158) -> e2 | E2: =IF('TABLA DE DECISION'!BJ158="","",'TABLA DE DECISION'!BJ158) -> e3 | F2: =IF('TABLA DE DECISION'!BK158="","",'TABLA DE DECISION'!BK158) -> e4 | G2: =IF('TABLA DE DECISION'!BL158="","",'TABLA DE DECISION'!BL158) -> e5 | H2: =IF('TABLA DE DECISION'!BM158="","",'TABLA DE DECISION'!BM158) -> e6 | I2: =IF('TABLA DE DECISION'!BN158="","",'TABLA DE DECISION'!BN158) -> e7 | J2: =IF('TABLA DE DECISION'!BO158="","",'TABLA DE DECISION'!BO158) -> e8 | K2: =IF('TABLA DE DECISION'!BP158="","",'TABLA DE DECISION'!BP158) -> e9 | L2: =IF('TABLA DE DECISION'!BQ158="","",'TABLA DE DECISION'!BQ158) -> e10 | M2: =IF('TABLA DE DECISION'!BR158="","",'TABLA DE DECISION'!BR158) -> e11 | N2: =IF('TABLA DE DECISION'!BS158="","",'TABLA DE DECISION'!BS158) -> e12 | O2: =IF('TABLA DE DECISION'!BT158="","",'TABLA DE DECISION'!BT158) -> e13 | P2: =IF('TABLA DE DECISION'!BU158="","",'TABLA DE DECISION'!BU158) -> e14 | Q2: =IF('TABLA DE DECISION'!BV158="","",'TABLA DE DECISION'!BV158) -> e15 | R2: =IF('TABLA DE DECISION'!BW158="","",'TABLA DE DECISION'!BW158) -> e16 | S2: =IF('TABLA DE DECISION'!BX158="","",'TABLA DE DECISION'!BX158) -> e17 | T2: =IF('TABLA DE DECISION'!BY158="","",'TABLA DE DECISION'!BY158) -> e18 | U2: =IF('TABLA DE DECISION'!BZ158="","",'TABLA DE DECISION'!BZ158) -> e19 | V2: =IF('TABLA DE DECISION'!CA158="","",'TABLA DE DECISION'!CA158) -> e20 | W2: =IF('TABLA DE DECISION'!CB158="","",'TABLA DE DECISION'!CB158) -> e21 | X2: =IF('TABLA DE DECISION'!CC158="","",'TABLA DE DECISION'!CC158) -> e22 | Y2: =IF('TABLA DE DECISION'!CD158="","",'TABLA DE DECISION'!CD158) -> e23 | Z2: =IF('TABLA DE DECISION'!CE158="","",'TABLA DE DECISION'!CE158) -> e24 | AA2: =IF('TABLA DE DECISION'!CF158="","",'TABLA DE DECISION'!CF158) -> e25 | AB2: =IF('TABLA DE DECISION'!CG158="","",'TABLA DE DECISION'!CG158) -> e26 | AC2: =IF('TABLA DE DECISION'!CH158="","",'TABLA DE DECISION'!CH158) -> e27 | AD2: =IF('TABLA DE DECISION'!CI158="","",'TABLA DE DECISION'!CI158) -> e28 | AE2: =IF('TABLA DE DECISION'!CJ158="","",'TABLA DE DECISION'!CJ158) -> e29 | AF2: =IF('TABLA DE DECISION'!CK158="","",'TABLA DE DECISION'!CK158) -> e30 | AG2: =IF('TABLA DE DECISION'!CL158="","",'TABLA DE DECISION'!CL158) -> e31 | AH2: =IF('TABLA DE DECISION'!CM158="","",'TABLA DE DECISION'!CM158) -> e32 | AI2: =IF('TABLA DE DECISION'!CN158="","",'TABLA DE DECISION'!CN158) -> e33 | AJ2: =IF('TABLA DE DECISION'!CO158="","",'TABLA DE DECISION'!CO158) -> e34 | AK2: =IF('TABLA DE DECISION'!CP158="","",'TABLA DE DECISION'!CP158) -> e35 | AL2: =IF('TABLA DE DECISION'!CQ158="","",'TABLA DE DECISION'!CQ158) -> e36 | AM2: =IF('TABLA DE DECISION'!CR158="","",'TABLA DE DECISION'!CR158) -> e37 | AN2: =IF('TABLA DE DECISION'!CS158="","",'TABLA DE DECISION'!CS158) -> e38 | AO2: =IF('TABLA DE DECISION'!CT158="","",'TABLA DE DECISION'!CT158) -> e39 | AP2: =IF('TABLA DE DECISION'!CU158="","",'TABLA DE DECISION'!CU158) -> e40 | AQ2: =IF('TABLA DE DECISION'!CV158="","",'TABLA DE DECISION'!CV158) -> e41 | AR2: =IF('TABLA DE DECISION'!CW158="","",'TABLA DE DECISION'!CW158) -> e42 | AS2: =IF('TABLA DE DECISION'!CX158="","",'TABLA DE DECISION'!CX158) -> e43 | AT2: =IF('TABLA DE DECISION'!CY158="","",'TABLA DE DECISION'!CY158) -> e44 | AU2: =IF('TABLA DE DECISION'!CZ158="","",'TABLA DE DECISION'!CZ158) -> e45 | AV2: =IF('TABLA DE DECISION'!DA158="","",'TABLA DE DECISION'!DA158) -> e46 | AW2: =IF('TABLA DE DECISION'!DB158="","",'TABLA DE DECISION'!DB158) -> e47 | AX2: =IF('TABLA DE DECISION'!DC158="","",'TABLA DE DECISION'!DC158) -> e48 | AY2: =IF('TABLA DE DECISION'!DD158="","",'TABLA DE DECISION'!DD158) -> e49 | AZ2: =IF('TABLA DE DECISION'!DE158="","",'TABLA DE DECISION'!DE158) -> e50 | BB2: =MIN(BB3:BB52) -> 1750
A3: =IF('TABLA DE DECISION'!BF159="","",'TABLA DE DECISION'!BF159) ->  | B3: =IF('TABLA DE DECISION'!BG159="","",'TABLA DE DECISION'!BG159) -> a1 | C3: =IF('TABLA DE DECISION'!BH159="","",IF('TABLA DE DECISION'!$A$156=1,MAX('TABLA DE DECISION'!BH$159:BH$208)-'TABLA DE DECISION'!BH159,'TABLA DE DECISION'!BH159-MIN('TABLA DE DECISION'!BH$159:BH$208))) -> 0 | D3: =IF('TABLA DE DECISION'!BI159="","",IF('TABLA DE DECISION'!$A$156=1,MAX('TABLA DE DECISION'!BI$159:BI$208)-'TABLA DE DECISION'!BI159,'TABLA DE DECISION'!BI159-MIN('TABLA DE DECISION'!BI$159:BI$208))) -> 2500 | E3: =IF('TABLA DE DECISION'!BJ159="","",IF('TABLA DE DECISION'!$A$156=1,MAX('TABLA DE DECISION'!BJ$159:BJ$208)-'TABLA DE DECISION'!BJ159,'TABLA DE DECISION'!BJ159-MIN('TABLA DE DECISION'!BJ$159:BJ$208))) -> 5000 | F3: =IF('TABLA DE DECISION'!BK159="","",IF('TABLA DE DECISION'!$A$156=1,MAX('TABLA DE DECISION'!BK$159:BK$208)-'TABLA DE DECISION'!BK159,'TABLA DE DECISION'!BK159-MIN('TABLA DE DECISION'!BK$159:BK$208))) ->  | G3: =IF('TABLA DE DECISION'!BL159="","",IF('TABLA DE DECISION'!$A$156=1,MAX('TABLA DE DECISION'!BL$159:BL$208)-'TABLA DE DECISION'!BL159,'TABLA DE DECISION'!BL159-MIN('TABLA DE DECISION'!BL$159:BL$208))) ->  | H3: =IF('TABLA DE DECISION'!BM159="","",IF('TABLA DE DECISION'!$A$156=1,MAX('TABLA DE DECISION'!BM$159:BM$208)-'TABLA DE DECISION'!BM159,'TABLA DE DECISION'!BM159-MIN('TABLA DE DECISION'!BM$159:BM$208))) ->  | I3: =IF('TABLA DE DECISION'!BN159="","",IF('TABLA DE DECISION'!$A$156=1,MAX('TABLA DE DECISION'!BN$159:BN$208)-'TABLA DE DECISION'!BN159,'TABLA DE DECISION'!BN159-MIN('TABLA DE DECISION'!BN$159:BN$208))) ->  | J3: =IF('TABLA DE DECISION'!BO159="","",IF('TABLA DE DECISION'!$A$156=1,MAX('TABLA DE DECISION'!BO$159:BO$208)-'TABLA DE DECISION'!BO159,'TABLA DE DECISION'!BO159-MIN('TABLA DE DECISION'!BO$159:BO$208))) ->  | K3: =IF('TABLA DE DECISION'!BP159="","",IF('TABLA DE DECISION'!$A$156=1,MAX('TABLA DE DECISION'!BP$159:BP$208)-'TABLA DE DECISION'!BP159,'TABLA DE DECISION'!BP159-MIN('TABLA DE DECISION'!BP$159:BP$208))) ->  | L3: =IF('TABLA DE DECISION'!BQ159="","",IF('TABLA DE DECISION'!$A$156=1,MAX('TABLA DE DECISION'!BQ$159:BQ$208)-'TABLA DE DECISION'!BQ159,'TABLA DE DECISION'!BQ159-MIN('TABLA DE DECISION'!BQ$159:BQ$208))) ->  | M3: =IF('TABLA DE DECISION'!BR159="","",IF('TABLA DE DECISION'!$A$156=1,MAX('TABLA DE DECISION'!BR$159:BR$208)-'TABLA DE DECISION'!BR159,'TABLA DE DECISION'!BR159-MIN('TABLA DE DECISION'!BR$159:BR$208))) ->  | N3: =IF('TABLA DE DECISION'!BS159="","",IF('TABLA DE DECISION'!$A$156=1,MAX('TABLA DE DECISION'!BS$159:BS$208)-'TABLA DE DECISION'!BS159,'TABLA DE DECISION'!BS159-MIN('TABLA DE DECISION'!BS$159:BS$208))) ->  | O3: =IF('TABLA DE DECISION'!BT159="","",IF('TABLA DE DECISION'!$A$156=1,MAX('TABLA DE DECISION'!BT$159:BT$208)-'TABLA DE DECISION'!BT159,'TABLA DE DECISION'!BT159-MIN('TABLA DE DECISION'!BT$159:BT$208))) ->  | P3: =IF('TABLA DE DECISION'!BU159="","",IF('TABLA DE DECISION'!$A$156=1,MAX('TABLA DE DECISION'!BU$159:BU$208)-'TABLA DE DECISION'!BU159,'TABLA DE DECISION'!BU159-MIN('TABLA DE DECISION'!BU$159:BU$208))) ->  | Q3: =IF('TABLA DE DECISION'!BV159="","",IF('TABLA DE DECISION'!$A$156=1,MAX('TABLA DE DECISION'!BV$159:BV$208)-'TABLA DE DECISION'!BV159,'TABLA DE DECISION'!BV159-MIN('TABLA DE DECISION'!BV$159:BV$208))) ->  | R3: =IF('TABLA DE DECISION'!BW159="","",IF('TABLA DE DECISION'!$A$156=1,MAX('TABLA DE DECISION'!BW$159:BW$208)-'TABLA DE DECISION'!BW159,'TABLA DE DECISION'!BW159-MIN('TABLA DE DECISION'!BW$159:BW$208))) ->  | S3: =IF('TABLA DE DECISION'!BX159="","",IF('TABLA DE DECISION'!$A$156=1,MAX('TABLA DE DECISION'!BX$159:BX$208)-'TABLA DE DECISION'!BX159,'TABLA DE DECISION'!BX159-MIN('TABLA DE DECISION'!BX$159:BX$208))) ->  | T3: =IF('TABLA DE DECISION'!BY159="","",IF('TABLA DE DECISION'!$A$156=1,MAX('TABLA DE DECISION'!BY$159:BY$208)-'TABLA DE DECISION'!BY159,'TABLA DE DECISION'!BY159-MIN('TABLA DE DECISION'!BY$159:BY$208))) ->  | U3: =IF('TABLA DE DECISION'!BZ159="","",IF('TABLA DE DECISION'!$A$156=1,MAX('TABLA DE DECISION'!BZ$159:BZ$208)-'TABLA DE DECISION'!BZ159,'TABLA DE DECISION'!BZ159-MIN('TABLA DE DECISION'!BZ$159:BZ$208))) ->  | V3: =IF('TABLA DE DECISION'!CA159="","",IF('TABLA DE DECISION'!$A$156=1,MAX('TABLA DE DECISION'!CA$159:CA$208)-'TABLA DE DECISION'!CA159,'TABLA DE DECISION'!CA159-MIN('TABLA DE DECISION'!CA$159:CA$208))) ->  | W3: =IF('TABLA DE DECISION'!CB159="","",IF('TABLA DE DECISION'!$A$156=1,MAX('TABLA DE DECISION'!CB$159:CB$208)-'TABLA DE DECISION'!CB159,'TABLA DE DECISION'!CB159-MIN('TABLA DE DECISION'!CB$159:CB$208))) ->  | X3: =IF('TABLA DE DECISION'!CC159="","",IF('TABLA DE DECISION'!$A$156=1,MAX('TABLA DE DECISION'!CC$159:CC$208)-'TABLA DE DECISION'!CC159,'TABLA DE DECISION'!CC159-MIN('TABLA DE DECISION'!CC$159:CC$208))) ->  | Y3: =IF('TABLA DE DECISION'!CD159="","",IF('TABLA DE DECISION'!$A$156=1,MAX('TABLA DE DECISION'!CD$159:CD$208)-'TABLA DE DECISION'!CD159,'TABLA DE DECISION'!CD159-MIN('TABLA DE DECISION'!CD$159:CD$208))) ->  | Z3: =IF('TABLA DE DECISION'!CE159="","",IF('TABLA DE DECISION'!$A$156=1,MAX('TABLA DE DECISION'!CE$159:CE$208)-'TABLA DE DECISION'!CE159,'TABLA DE DECISION'!CE159-MIN('TABLA DE DECISION'!CE$159:CE$208))) ->  | AA3: =IF('TABLA DE DECISION'!CF159="","",IF('TABLA DE DECISION'!$A$156=1,MAX('TABLA DE DECISION'!CF$159:CF$208)-'TABLA DE DECISION'!CF159,'TABLA DE DECISION'!CF159-MIN('TABLA DE DECISION'!CF$159:CF$208))) ->  | AB3: =IF('TABLA DE DECISION'!CG159="","",IF('TABLA DE DECISION'!$A$156=1,MAX('TABLA DE DECISION'!CG$159:CG$208)-'TABLA DE DECISION'!CG159,'TABLA DE DECISION'!CG159-MIN('TABLA DE DECISION'!CG$159:CG$208))) ->  | AC3: =IF('TABLA DE DECISION'!CH159="","",IF('TABLA DE DECISION'!$A$156=1,MAX('TABLA DE DECISION'!CH$159:CH$208)-'TABLA DE DECISION'!CH159,'TABLA DE DECISION'!CH159-MIN('TABLA DE DECISION'!CH$159:CH$208))) ->  | AD3: =IF('TABLA DE DECISION'!CI159="","",IF('TABLA DE DECISION'!$A$156=1,MAX('TABLA DE DECISION'!CI$159:CI$208)-'TABLA DE DECISION'!CI159,'TABLA DE DECISION'!CI159-MIN('TABLA DE DECISION'!CI$159:CI$208))) ->  | AE3: =IF('TABLA DE DECISION'!CJ159="","",IF('TABLA DE DECISION'!$A$156=1,MAX('TABLA DE DECISION'!CJ$159:CJ$208)-'TABLA DE DECISION'!CJ159,'TABLA DE DECISION'!CJ159-MIN('TABLA DE DECISION'!CJ$159:CJ$208))) ->  | AF3: =IF('TABLA DE DECISION'!CK159="","",IF('TABLA DE DECISION'!$A$156=1,MAX('TABLA DE DECISION'!CK$159:CK$208)-'TABLA DE DECISION'!CK159,'TABLA DE DECISION'!CK159-MIN('TABLA DE DECISION'!CK$159:CK$208))) ->  | AG3: =IF('TABLA DE DECISION'!CL159="","",IF('TABLA DE DECISION'!$A$156=1,MAX('TABLA DE DECISION'!CL$159:CL$208)-'TABLA DE DECISION'!CL159,'TABLA DE DECISION'!CL159-MIN('TABLA DE DECISION'!CL$159:CL$208))) ->  | AH3: =IF('TABLA DE DECISION'!CM159="","",IF('TABLA DE DECISION'!$A$156=1,MAX('TABLA DE DECISION'!CM$159:CM$208)-'TABLA DE DECISION'!CM159,'TABLA DE DECISION'!CM159-MIN('TABLA DE DECISION'!CM$159:CM$208))) ->  | AI3: =IF('TABLA DE DECISION'!CN159="","",IF('TABLA DE DECISION'!$A$156=1,MAX('TABLA DE DECISION'!CN$159:CN$208)-'TABLA DE DECISION'!CN159,'TABLA DE DECISION'!CN159-MIN('TABLA DE DECISION'!CN$159:CN$208))) ->  | AJ3: =IF('TABLA DE DECISION'!CO159="","",IF('TABLA DE DECISION'!$A$156=1,MAX('TABLA DE DECISION'!CO$159:CO$208)-'TABLA DE DECISION'!CO159,'TABLA DE DECISION'!CO159-MIN('TABLA DE DECISION'!CO$159:CO$208))) ->  | AK3: =IF('TABLA DE DECISION'!CP159="","",IF('TABLA DE DECISION'!$A$156=1,MAX('TABLA DE DECISION'!CP$159:CP$208)-'TABLA DE DECISION'!CP159,'TABLA DE DECISION'!CP159-MIN('TABLA DE DECISION'!CP$159:CP$208))) ->  | AL3: =IF('TABLA DE DECISION'!CQ159="","",IF('TABLA DE DECISION'!$A$156=1,MAX('TABLA DE DECISION'!CQ$159:CQ$208)-'TABLA DE DECISION'!CQ159,'TABLA DE DECISION'!CQ159-MIN('TABLA DE DECISION'!CQ$159:CQ$208))) ->  | AM3: =IF('TABLA DE DECISION'!CR159="","",IF('TABLA DE DECISION'!$A$156=1,MAX('TABLA DE DECISION'!CR$159:CR$208)-'TABLA DE DECISION'!CR159,'TABLA DE DECISION'!CR159-MIN('TABLA DE DECISION'!CR$159:CR$208))) ->  | AN3: =IF('TABLA DE DECISION'!CS159="","",IF('TABLA DE DECISION'!$A$156=1,MAX('TABLA DE DECISION'!CS$159:CS$208)-'TABLA DE DECISION'!CS159,'TABLA DE DECISION'!CS159-MIN('TABLA DE DECISION'!CS$159:CS$208))) ->  | AO3: =IF('TABLA DE DECISION'!CT159="","",IF('TABLA DE DECISION'!$A$156=1,MAX('TABLA DE DECISION'!CT$159:CT$208)-'TABLA DE DECISION'!CT159,'TABLA DE DECISION'!CT159-MIN('TABLA DE DECISION'!CT$159:CT$208))) ->  | AP3: =IF('TABLA DE DECISION'!CU159="","",IF('TABLA DE DECISION'!$A$156=1,MAX('TABLA DE DECISION'!CU$159:CU$208)-'TABLA DE DECISION'!CU159,'TABLA DE DECISION'!CU159-MIN('TABLA DE DECISION'!CU$159:CU$208))) ->  | AQ3: =IF('TABLA DE DECISION'!CV159="","",IF('TABLA DE DECISION'!$A$156=1,MAX('TABLA DE DECISION'!CV$159:CV$208)-'TABLA DE DECISION'!CV159,'TABLA DE DECISION'!CV159-MIN('TABLA DE DECISION'!CV$159:CV$208))) ->  | AR3: =IF('TABLA DE DECISION'!CW159="","",IF('TABLA DE DECISION'!$A$156=1,MAX('TABLA DE DECISION'!CW$159:CW$208)-'TABLA DE DECISION'!CW159,'TABLA DE DECISION'!CW159-MIN('TABLA DE DECISION'!CW$159:CW$208))) ->  | AS3: =IF('TABLA DE DECISION'!CX159="","",IF('TABLA DE DECISION'!$A$156=1,MAX('TABLA DE DECISION'!CX$159:CX$208)-'TABLA DE DECISION'!CX159,'TABLA DE DECISION'!CX159-MIN('TABLA DE DECISION'!CX$159:CX$208))) ->  | AT3: =IF('TABLA DE DECISION'!CY159="","",IF('TABLA DE DECISION'!$A$156=1,MAX('TABLA DE DECISION'!CY$159:CY$208)-'TABLA DE DECISION'!CY159,'TABLA DE DECISION'!CY159-MIN('TABLA DE DECISION'!CY$159:CY$208))) ->  | AU3: =IF('TABLA DE DECISION'!CZ159="","",IF('TABLA DE DECISION'!$A$156=1,MAX('TABLA DE DECISION'!CZ$159:CZ$208)-'TABLA DE DECISION'!CZ159,'TABLA DE DECISION'!CZ159-MIN('TABLA DE DECISION'!CZ$159:CZ$208))) ->  | AV3: =IF('TABLA DE DECISION'!DA159="","",IF('TABLA DE DECISION'!$A$156=1,MAX('TABLA DE DECISION'!DA$159:DA$208)-'TABLA DE DECISION'!DA159,'TABLA DE DECISION'!DA159-MIN('TABLA DE DECISION'!DA$159:DA$208))) ->  | AW3: =IF('TABLA DE DECISION'!DB159="","",IF('TABLA DE DECISION'!$A$156=1,MAX('TABLA DE DECISION'!DB$159:DB$208)-'TABLA DE DECISION'!DB159,'TABLA DE DECISION'!DB159-MIN('TABLA DE DECISION'!DB$159:DB$208))) ->  | AX3: =IF('TABLA DE DECISION'!DC159="","",IF('TABLA DE DECISION'!$A$156=1,MAX('TABLA DE DECISION'!DC$159:DC$208)-'TABLA DE DECISION'!DC159,'TABLA DE DECISION'!DC159-MIN('TABLA DE DECISION'!DC$159:DC$208))) ->  | AY3: =IF('TABLA DE DECISION'!DD159="","",IF('TABLA DE DECISION'!$A$156=1,MAX('TABLA DE DECISION'!DD$159:DD$208)-'TABLA DE DECISION'!DD159,'TABLA DE DECISION'!DD159-MIN('TABLA DE DECISION'!DD$159:DD$208))) ->  | AZ3: =IF('TABLA DE DECISION'!DE159="","",IF('TABLA DE DECISION'!$A$156=1,MAX('TABLA DE DECISION'!DE$159:DE$208)-'TABLA DE DECISION'!DE159,'TABLA DE DECISION'!DE159-MIN('TABLA DE DECISION'!DE$159:DE$208))) ->  | BB3: =IF(C3="","",SUMPRODUCT(C3:AZ3,'TABLA DE DECISION'!BH$156:DE$156)) -> 1750
A4: =IF('TABLA DE DECISION'!BF160="","",'TABLA DE DECISION'!BF160) ->  | B4: =IF('TABLA DE DECISION'!BG160="","",'TABLA DE DECISION'!BG160) -> a2 | C4: =IF('TABLA DE DECISION'!BH160="","",IF('TABLA DE DECISION'!$A$156=1,MAX('TABLA DE DECISION'!BH$159:BH$208)-'TABLA DE DECISION'!BH160,'TABLA DE DECISION'!BH160-MIN('TABLA DE DECISION'!BH$159:BH$208))) -> 2500 | D4: =IF('TABLA DE DECISION'!BI160="","",IF('TABLA DE DECISION'!$A$156=1,MAX('TABLA DE DECISION'!BI$159:BI$208)-'TABLA DE DECISION'!BI160,'TABLA DE DECISION'!BI160-MIN('TABLA DE DECISION'!BI$159:BI$208))) -> 0 | E4: =IF('TABLA DE DECISION'!BJ160="","",IF('TABLA DE DECISION'!$A$156=1,MAX('TABLA DE DECISION'!BJ$159:BJ$208)-'TABLA DE DECISION'!BJ160,'TABLA DE DECISION'!BJ160-MIN('TABLA DE DECISION'!BJ$159:BJ$208))) -> 2500 | F4: =IF('TABLA DE DECISION'!BK160="","",IF('TABLA DE DECISION'!$A$156=1,MAX('TABLA DE DECISION'!BK$159:BK$208)-'TABLA DE DECISION'!BK160,'TABLA DE DECISION'!BK160-MIN('TABLA DE DECISION'!BK$159:BK$208))) ->  | G4: =IF('TABLA DE DECISION'!BL160="","",IF('TABLA DE DECISION'!$A$156=1,MAX('TABLA DE DECISION'!BL$159:BL$208)-'TABLA DE DECISION'!BL160,'TABLA DE DECISION'!BL160-MIN('TABLA DE DECISION'!BL$159:BL$208))) ->  | H4: =IF('TABLA DE DECISION'!BM160="","",IF('TABLA DE DECISION'!$A$156=1,MAX('TABLA DE DECISION'!BM$159:BM$208)-'TABLA DE DECISION'!BM160,'TABLA DE DECISION'!BM160-MIN('TABLA DE DECISION'!BM$159:BM$208))) ->  | I4: =IF('TABLA DE DECISION'!BN160="","",IF('TABLA DE DECISION'!$A$156=1,MAX('TABLA DE DECISION'!BN$159:BN$208)-'TABLA DE DECISION'!BN160,'TABLA DE DECISION'!BN160-MIN('TABLA DE DECISION'!BN$159:BN$208))) ->  | J4: =IF('TABLA DE DECISION'!BO160="","",IF('TABLA DE DECISION'!$A$156=1,MAX('TABLA DE DECISION'!BO$159:BO$208)-'TABLA DE DECISION'!BO160,'TABLA DE DECISION'!BO160-MIN('TABLA DE DECISION'!BO$159:BO$208))) ->  | K4: =IF('TABLA DE DECISION'!BP160="","",IF('TABLA DE DECISION'!$A$156=1,MAX('TABLA DE DECISION'!BP$159:BP$208)-'TABLA DE DECISION'!BP160,'TABLA DE DECISION'!BP160-MIN('TABLA DE DECISION'!BP$159:BP$208))) ->  | L4: =IF('TABLA DE DECISION'!BQ160="","",IF('TABLA DE DECISION'!$A$156=1,MAX('TABLA DE DECISION'!BQ$159:BQ$208)-'TABLA DE DECISION'!BQ160,'TABLA DE DECISION'!BQ160-MIN('TABLA DE DECISION'!BQ$159:BQ$208))) ->  | M4: =IF('TABLA DE DECISION'!BR160="","",IF('TABLA DE DECISION'!$A$156=1,MAX('TABLA DE DECISION'!BR$159:BR$208)-'TABLA DE DECISION'!BR160,'TABLA DE DECISION'!BR160-MIN('TABLA DE DECISION'!BR$159:BR$208))) ->  | N4: =IF('TABLA DE DECISION'!BS160="","",IF('TABLA DE DECISION'!$A$156=1,MAX('TABLA DE DECISION'!BS$159:BS$208)-'TABLA DE DECISION'!BS160,'TABLA DE DECISION'!BS160-MIN('TABLA DE DECISION'!BS$159:BS$208))) ->  | O4: =IF('TABLA DE DECISION'!BT160="","",IF('TABLA DE DECISION'!$A$156=1,MAX('TABLA DE DECISION'!BT$159:BT$208)-'TABLA DE DECISION'!BT160,'TABLA DE DECISION'!BT160-MIN('TABLA DE DECISION'!BT$159:BT$208))) ->  | P4: =IF('TABLA DE DECISION'!BU160="","",IF('TABLA DE DECISION'!$A$156=1,MAX('TABLA DE DECISION'!BU$159:BU$208)-'TABLA DE DECISION'!BU160,'TABLA DE DECISION'!BU160-MIN('TABLA DE DECISION'!BU$159:BU$208))) ->  | Q4: =IF('TABLA DE DECISION'!BV160="","",IF('TABLA DE DECISION'!$A$156=1,MAX('TABLA DE DECISION'!BV$159:BV$208)-'TABLA DE DECISION'!BV160,'TABLA DE DECISION'!BV160-MIN('TABLA DE DECISION'!BV$159:BV$208))) ->  | R4: =IF('TABLA DE DECISION'!BW160="","",IF('TABLA DE DECISION'!$A$156=1,MAX('TABLA DE DECISION'!BW$159:BW$208)-'TABLA DE DECISION'!BW160,'TABLA DE DECISION'!BW160-MIN('TABLA DE DECISION'!BW$159:BW$208))) ->  | S4: =IF('TABLA DE DECISION'!BX160="","",IF('TABLA DE DECISION'!$A$156=1,MAX('TABLA DE DECISION'!BX$159:BX$208)-'TABLA DE DECISION'!BX160,'TABLA DE DECISION'!BX160-MIN('TABLA DE DECISION'!BX$159:BX$208))) ->  | T4: =IF('TABLA DE DECISION'!BY160="","",IF('TABLA DE DECISION'!$A$156=1,MAX('TABLA DE DECISION'!BY$159:BY$208)-'TABLA DE DECISION'!BY160,'TABLA DE DECISION'!BY160-MIN('TABLA DE DECISION'!BY$159:BY$208))) ->  | U4: =IF('TABLA DE DECISION'!BZ160="","",IF('TABLA DE DECISION'!$A$156=1,MAX('TABLA DE DECISION'!BZ$159:BZ$208)-'TABLA DE DECISION'!BZ160,'TABLA DE DECISION'!BZ160-MIN('TABLA DE DECISION'!BZ$159:BZ$208))) ->  | V4: =IF('TABLA DE DECISION'!CA160="","",IF('TABLA DE DECISION'!$A$156=1,MAX('TABLA DE DECISION'!CA$159:CA$208)-'TABLA DE DECISION'!CA160,'TABLA DE DECISION'!CA160-MIN('TABLA DE DECISION'!CA$159:CA$208))) ->  | W4: =IF('TABLA DE DECISION'!CB160="","",IF('TABLA DE DECISION'!$A$156=1,MAX('TABLA DE DECISION'!CB$159:CB$208)-'TABLA DE DECISION'!CB160,'TABLA DE DECISION'!CB160-MIN('TABLA DE DECISION'!CB$159:CB$208))) ->  | X4: =IF('TABLA DE DECISION'!CC160="","",IF('TABLA DE DECISION'!$A$156=1,MAX('TABLA DE DECISION'!CC$159:CC$208)-'TABLA DE DECISION'!CC160,'TABLA DE DECISION'!CC160-MIN('TABLA DE DECISION'!CC$159:CC$208))) ->  | Y4: =IF('TABLA DE DECISION'!CD160="","",IF('TABLA DE DECISION'!$A$156=1,MAX('TABLA DE DECISION'!CD$159:CD$208)-'TABLA DE DECISION'!CD160,'TABLA DE DECISION'!CD160-MIN('TABLA DE DECISION'!CD$159:CD$208))) ->  | Z4: =IF('TABLA DE DECISION'!CE160="","",IF('TABLA DE DECISION'!$A$156=1,MAX('TABLA DE DECISION'!CE$159:CE$208)-'TABLA DE DECISION'!CE160,'TABLA DE DECISION'!CE160-MIN('TABLA DE DECISION'!CE$159:CE$208))) ->  | AA4: =IF('TABLA DE DECISION'!CF160="","",IF('TABLA DE DECISION'!$A$156=1,MAX('TABLA DE DECISION'!CF$159:CF$208)-'TABLA DE DECISION'!CF160,'TABLA DE DECISION'!CF160-MIN('TABLA DE DECISION'!CF$159:CF$208))) ->  | AB4: =IF('TABLA DE DECISION'!CG160="","",IF('TABLA DE DECISION'!$A$156=1,MAX('TABLA DE DECISION'!CG$159:CG$208)-'TABLA DE DECISION'!CG160,'TABLA DE DECISION'!CG160-MIN('TABLA DE DECISION'!CG$159:CG$208))) ->  | AC4: =IF('TABLA DE DECISION'!CH160="","",IF('TABLA DE DECISION'!$A$156=1,MAX('TABLA DE DECISION'!CH$159:CH$208)-'TABLA DE DECISION'!CH160,'TABLA DE DECISION'!CH160-MIN('TABLA DE DECISION'!CH$159:CH$208))) ->  | AD4: =IF('TABLA DE DECISION'!CI160="","",IF('TABLA DE DECISION'!$A$156=1,MAX('TABLA DE DECISION'!CI$159:CI$208)-'TABLA DE DECISION'!CI160,'TABLA DE DECISION'!CI160-MIN('TABLA DE DECISION'!CI$159:CI$208))) ->  | AE4: =IF('TABLA DE DECISION'!CJ160="","",IF('TABLA DE DECISION'!$A$156=1,MAX('TABLA DE DECISION'!CJ$159:CJ$208)-'TABLA DE DECISION'!CJ160,'TABLA DE DECISION'!CJ160-MIN('TABLA DE DECISION'!CJ$159:CJ$208))) ->  | AF4: =IF('TABLA DE DECISION'!CK160="","",IF('TABLA DE DECISION'!$A$156=1,MAX('TABLA DE DECISION'!CK$159:CK$208)-'TABLA DE DECISION'!CK160,'TABLA DE DECISION'!CK160-MIN('TABLA DE DECISION'!CK$159:CK$208))) ->  | AG4: =IF('TABLA DE DECISION'!CL160="","",IF('TABLA DE DECISION'!$A$156=1,MAX('TABLA DE DECISION'!CL$159:CL$208)-'TABLA DE DECISION'!CL160,'TABLA DE DECISION'!CL160-MIN('TABLA DE DECISION'!CL$159:CL$208))) ->  | AH4: =IF('TABLA DE DECISION'!CM160="","",IF('TABLA DE DECISION'!$A$156=1,MAX('TABLA DE DECISION'!CM$159:CM$208)-'TABLA DE DECISION'!CM160,'TABLA DE DECISION'!CM160-MIN('TABLA DE DECISION'!CM$159:CM$208))) ->  | AI4: =IF('TABLA DE DECISION'!CN160="","",IF('TABLA DE DECISION'!$A$156=1,MAX('TABLA DE DECISION'!CN$159:CN$208)-'TABLA DE DECISION'!CN160,'TABLA DE DECISION'!CN160-MIN('TABLA DE DECISION'!CN$159:CN$208))) ->  | AJ4: =IF('TABLA DE DECISION'!CO160="","",IF('TABLA DE DECISION'!$A$156=1,MAX('TABLA DE DECISION'!CO$159:CO$208)-'TABLA DE DECISION'!CO160,'TABLA DE DECISION'!CO160-MIN('TABLA DE DECISION'!CO$159:CO$208))) ->  | AK4: =IF('TABLA DE DECISION'!CP160="","",IF('TABLA DE DECISION'!$A$156=1,MAX('TABLA DE DECISION'!CP$159:CP$208)-'TABLA DE DECISION'!CP160,'TABLA DE DECISION'!CP160-MIN('TABLA DE DECISION'!CP$159:CP$208))) ->  | AL4: =IF('TABLA DE DECISION'!CQ160="","",IF('TABLA DE DECISION'!$A$156=1,MAX('TABLA DE DECISION'!CQ$159:CQ$208)-'TABLA DE DECISION'!CQ160,'TABLA DE DECISION'!CQ160-MIN('TABLA DE DECISION'!CQ$159:CQ$208))) ->  | AM4: =IF('TABLA DE DECISION'!CR160="","",IF('TABLA DE DECISION'!$A$156=1,MAX('TABLA DE DECISION'!CR$159:CR$208)-'TABLA DE DECISION'!CR160,'TABLA DE DECISION'!CR160-MIN('TABLA DE DECISION'!CR$159:CR$208))) ->  | AN4: =IF('TABLA DE DECISION'!CS160="","",IF('TABLA DE DECISION'!$A$156=1,MAX('TABLA DE DECISION'!CS$159:CS$208)-'TABLA DE DECISION'!CS160,'TABLA DE DECISION'!CS160-MIN('TABLA DE DECISION'!CS$159:CS$208))) ->  | AO4: =IF('TABLA DE DECISION'!CT160="","",IF('TABLA DE DECISION'!$A$156=1,MAX('TABLA DE DECISION'!CT$159:CT$208)-'TABLA DE DECISION'!CT160,'TABLA DE DECISION'!CT160-MIN('TABLA DE DECISION'!CT$159:CT$208))) ->  | AP4: =IF('TABLA DE DECISION'!CU160="","",IF('TABLA DE DECISION'!$A$156=1,MAX('TABLA DE DECISION'!CU$159:CU$208)-'TABLA DE DECISION'!CU160,'TABLA DE DECISION'!CU160-MIN('TABLA DE DECISION'!CU$159:CU$208))) ->  | AQ4: =IF('TABLA DE DECISION'!CV160="","",IF('TABLA DE DECISION'!$A$156=1,MAX('TABLA DE DECISION'!CV$159:CV$208)-'TABLA DE DECISION'!CV160,'TABLA DE DECISION'!CV160-MIN('TABLA DE DECISION'!CV$159:CV$208))) ->  | AR4: =IF('TABLA DE DECISION'!CW160="","",IF('TABLA DE DECISION'!$A$156=1,MAX('TABLA DE DECISION'!CW$159:CW$208)-'TABLA DE DECISION'!CW160,'TABLA DE DECISION'!CW160-MIN('TABLA DE DECISION'!CW$159:CW$208))) ->  | AS4: =IF('TABLA DE DECISION'!CX160="","",IF('TABLA DE DECISION'!$A$156=1,MAX('TABLA DE DECISION'!CX$159:CX$208)-'TABLA DE DECISION'!CX160,'TABLA DE DECISION'!CX160-MIN('TABLA DE DECISION'!CX$159:CX$208))) ->  | AT4: =IF('TABLA DE DECISION'!CY160="","",IF('TABLA DE DECISION'!$A$156=1,MAX('TABLA DE DECISION'!CY$159:CY$208)-'TABLA DE DECISION'!CY160,'TABLA DE DECISION'!CY160-MIN('TABLA DE DECISION'!CY$159:CY$208))) ->  | AU4: =IF('TABLA DE DECISION'!CZ160="","",IF('TABLA DE DECISION'!$A$156=1,MAX('TABLA DE DECISION'!CZ$159:CZ$208)-'TABLA DE DECISION'!CZ160,'TABLA DE DECISION'!CZ160-MIN('TABLA DE DECISION'!CZ$159:CZ$208))) ->  | AV4: =IF('TABLA DE DECISION'!DA160="","",IF('TABLA DE DECISION'!$A$156=1,MAX('TABLA DE DECISION'!DA$159:DA$208)-'TABLA DE DECISION'!DA160,'TABLA DE DECISION'!DA160-MIN('TABLA DE DECISION'!DA$159:DA$208))) ->  | AW4: =IF('TABLA DE DECISION'!DB160="","",IF('TABLA DE DECISION'!$A$156=1,MAX('TABLA DE DECISION'!DB$159:DB$208)-'TABLA DE DECISION'!DB160,'TABLA DE DECISION'!DB160-MIN('TABLA DE DECISION'!DB$159:DB$208))) ->  | AX4: =IF('TABLA DE DECISION'!DC160="","",IF('TABLA DE DECISION'!$A$156=1,MAX('TABLA DE DECISION'!DC$159:DC$208)-'TABLA DE DECISION'!DC160,'TABLA DE DECISION'!DC160-MIN('TABLA DE DECISION'!DC$159:DC$208))) ->  | AY4: =IF('TABLA DE DECISION'!DD160="","",IF('TABLA DE DECISION'!$A$156=1,MAX('TABLA DE DECISION'!DD$159:DD$208)-'TABLA DE DECISION'!DD160,'TABLA DE DECISION'!DD160-MIN('TABLA DE DECISION'!DD$159:DD$208))) ->  | AZ4: =IF('TABLA DE DECISION'!DE160="","",IF('TABLA DE DECISION'!$A$156=1,MAX('TABLA DE DECISION'!DE$159:DE$208)-'TABLA DE DECISION'!DE160,'TABLA DE DECISION'!DE160-MIN('TABLA DE DECISION'!DE$159:DE$208))) ->  | BB4: =IF(C4="","",SUMPRODUCT(C4:AZ4,'TABLA DE DECISION'!BH$156:DE$156)) -> 1750
A5: =IF('TABLA DE DECISION'!BF161="","",'TABLA DE DECISION'!BF161) ->  | B5: =IF('TABLA DE DECISION'!BG161="","",'TABLA DE DECISION'!BG161) -> a3 | C5: =IF('TABLA DE DECISION'!BH161="","",IF('TABLA DE DECISION'!$A$156=1,MAX('TABLA DE DECISION'!BH$159:BH$208)-'TABLA DE DECISION'!BH161,'TABLA DE DECISION'!BH161-MIN('TABLA DE DECISION'!BH$159:BH$208))) -> 5000 | D5: =IF('TABLA DE DECISION'!BI161="","",IF('TABLA DE DECISION'!$A$156=1,MAX('TABLA DE DECISION'!BI$159:BI$208)-'TABLA DE DECISION'!BI161,'TABLA DE DECISION'!BI161-MIN('TABLA DE DECISION'!BI$159:BI$208))) -> 2500 | E5: =IF('TABLA DE DECISION'!BJ161="","",IF('TABLA DE DECISION'!$A$156=1,MAX('TABLA DE DECISION'!BJ$159:BJ$208)-'TABLA DE DECISION'!BJ161,'TABLA DE DECISION'!BJ161-MIN('TABLA DE DECISION'!BJ$159:BJ$208))) -> 0 | F5: =IF('TABLA DE DECISION'!BK161="","",IF('TABLA DE DECISION'!$A$156=1,MAX('TABLA DE DECISION'!BK$159:BK$208)-'TABLA DE DECISION'!BK161,'TABLA DE DECISION'!BK161-MIN('TABLA DE DECISION'!BK$159:BK$208))) ->  | G5: =IF('TABLA DE DECISION'!BL161="","",IF('TABLA DE DECISION'!$A$156=1,MAX('TABLA DE DECISION'!BL$159:BL$208)-'TABLA DE DECISION'!BL161,'TABLA DE DECISION'!BL161-MIN('TABLA DE DECISION'!BL$159:BL$208))) ->  | H5: =IF('TABLA DE DECISION'!BM161="","",IF('TABLA DE DECISION'!$A$156=1,MAX('TABLA DE DECISION'!BM$159:BM$208)-'TABLA DE DECISION'!BM161,'TABLA DE DECISION'!BM161-MIN('TABLA DE DECISION'!BM$159:BM$208))) ->  | I5: =IF('TABLA DE DECISION'!BN161="","",IF('TABLA DE DECISION'!$A$156=1,MAX('TABLA DE DECISION'!BN$159:BN$208)-'TABLA DE DECISION'!BN161,'TABLA DE DECISION'!BN161-MIN('TABLA DE DECISION'!BN$159:BN$208))) ->  | J5: =IF('TABLA DE DECISION'!BO161="","",IF('TABLA DE DECISION'!$A$156=1,MAX('TABLA DE DECISION'!BO$159:BO$208)-'TABLA DE DECISION'!BO161,'TABLA DE DECISION'!BO161-MIN('TABLA DE DECISION'!BO$159:BO$208))) ->  | K5: =IF('TABLA DE DECISION'!BP161="","",IF('TABLA DE DECISION'!$A$156=1,MAX('TABLA DE DECISION'!BP$159:BP$208)-'TABLA DE DECISION'!BP161,'TABLA DE DECISION'!BP161-MIN('TABLA DE DECISION'!BP$159:BP$208))) ->  | L5: =IF('TABLA DE DECISION'!BQ161="","",IF('TABLA DE DECISION'!$A$156=1,MAX('TABLA DE DECISION'!BQ$159:BQ$208)-'TABLA DE DECISION'!BQ161,'TABLA DE DECISION'!BQ161-MIN('TABLA DE DECISION'!BQ$159:BQ$208))) ->  | M5: =IF('TABLA DE DECISION'!BR161="","",IF('TABLA DE DECISION'!$A$156=1,MAX('TABLA DE DECISION'!BR$159:BR$208)-'TABLA DE DECISION'!BR161,'TABLA DE DECISION'!BR161-MIN('TABLA DE DECISION'!BR$159:BR$208))) ->  | N5: =IF('TABLA DE DECISION'!BS161="","",IF('TABLA DE DECISION'!$A$156=1,MAX('TABLA DE DECISION'!BS$159:BS$208)-'TABLA DE DECISION'!BS161,'TABLA DE DECISION'!BS161-MIN('TABLA DE DECISION'!BS$159:BS$208))) ->  | O5: =IF('TABLA DE DECISION'!BT161="","",IF('TABLA DE DECISION'!$A$156=1,MAX('TABLA DE DECISION'!BT$159:BT$208)-'TABLA DE DECISION'!BT161,'TABLA DE DECISION'!BT161-MIN('TABLA DE DECISION'!BT$159:BT$208))) ->  | P5: =IF('TABLA DE DECISION'!BU161="","",IF('TABLA DE DECISION'!$A$156=1,MAX('TABLA DE DECISION'!BU$159:BU$208)-'TABLA DE DECISION'!BU161,'TABLA DE DECISION'!BU161-MIN('TABLA DE DECISION'!BU$159:BU$208))) ->  | Q5: =IF('TABLA DE DECISION'!BV161="","",IF('TABLA DE DECISION'!$A$156=1,MAX('TABLA DE DECISION'!BV$159:BV$208)-'TABLA DE DECISION'!BV161,'TABLA DE DECISION'!BV161-MIN('TABLA DE DECISION'!BV$159:BV$208))) ->  | R5: =IF('TABLA DE DECISION'!BW161="","",IF('TABLA DE DECISION'!$A$156=1,MAX('TABLA DE DECISION'!BW$159:BW$208)-'TABLA DE DECISION'!BW161,'TABLA DE DECISION'!BW161-MIN('TABLA DE DECISION'!BW$159:BW$208))) ->  | S5: =IF('TABLA DE DECISION'!BX161="","",IF('TABLA DE DECISION'!$A$156=1,MAX('TABLA DE DECISION'!BX$159:BX$208)-'TABLA DE DECISION'!BX161,'TABLA DE DECISION'!BX161-MIN('TABLA DE DECISION'!BX$159:BX$208))) ->  | T5: =IF('TABLA DE DECISION'!BY161="","",IF('TABLA DE DECISION'!$A$156=1,MAX('TABLA DE DECISION'!BY$159:BY$208)-'TABLA DE DECISION'!BY161,'TABLA DE DECISION'!BY161-MIN('TABLA DE DECISION'!BY$159:BY$208))) ->  | U5: =IF('TABLA DE DECISION'!BZ161="","",IF('TABLA DE DECISION'!$A$156=1,MAX('TABLA DE DECISION'!BZ$159:BZ$208)-'TABLA DE DECISION'!BZ161,'TABLA DE DECISION'!BZ161-MIN('TABLA DE DECISION'!BZ$159:BZ$208))) ->  | V5: =IF('TABLA DE DECISION'!CA161="","",IF('TABLA DE DECISION'!$A$156=1,MAX('TABLA DE DECISION'!CA$159:CA$208)-'TABLA DE DECISION'!CA161,'TABLA DE DECISION'!CA161-MIN('TABLA DE DECISION'!CA$159:CA$208))) ->  | W5: =IF('TABLA DE DECISION'!CB161="","",IF('TABLA DE DECISION'!$A$156=1,MAX('TABLA DE DECISION'!CB$159:CB$208)-'TABLA DE DECISION'!CB161,'TABLA DE DECISION'!CB161-MIN('TABLA DE DECISION'!CB$159:CB$208))) ->  | X5: =IF('TABLA DE DECISION'!CC161="","",IF('TABLA DE DECISION'!$A$156=1,MAX('TABLA DE DECISION'!CC$159:CC$208)-'TABLA DE DECISION'!CC161,'TABLA DE DECISION'!CC161-MIN('TABLA DE DECISION'!CC$159:CC$208))) ->  | Y5: =IF('TABLA DE DECISION'!CD161="","",IF('TABLA DE DECISION'!$A$156=1,MAX('TABLA DE DECISION'!CD$159:CD$208)-'TABLA DE DECISION'!CD161,'TABLA DE DECISION'!CD161-MIN('TABLA DE DECISION'!CD$159:CD$208))) ->  | Z5: =IF('TABLA DE DECISION'!CE161="","",IF('TABLA DE DECISION'!$A$156=1,MAX('TABLA DE DECISION'!CE$159:CE$208)-'TABLA DE DECISION'!CE161,'TABLA DE DECISION'!CE161-MIN('TABLA DE DECISION'!CE$159:CE$208))) ->  | AA5: =IF('TABLA DE DECISION'!CF161="","",IF('TABLA DE DECISION'!$A$156=1,MAX('TABLA DE DECISION'!CF$159:CF$208)-'TABLA DE DECISION'!CF161,'TABLA DE DECISION'!CF161-MIN('TABLA DE DECISION'!CF$159:CF$208))) ->  | AB5: =IF('TABLA DE DECISION'!CG161="","",IF('TABLA DE DECISION'!$A$156=1,MAX('TABLA DE DECISION'!CG$159:CG$208)-'TABLA DE DECISION'!CG161,'TABLA DE DECISION'!CG161-MIN('TABLA DE DECISION'!CG$159:CG$208))) ->  | AC5: =IF('TABLA DE DECISION'!CH161="","",IF('TABLA DE DECISION'!$A$156=1,MAX('TABLA DE DECISION'!CH$159:CH$208)-'TABLA DE DECISION'!CH161,'TABLA DE DECISION'!CH161-MIN('TABLA DE DECISION'!CH$159:CH$208))) ->  | AD5: =IF('TABLA DE DECISION'!CI161="","",IF('TABLA DE DECISION'!$A$156=1,MAX('TABLA DE DECISION'!CI$159:CI$208)-'TABLA DE DECISION'!CI161,'TABLA DE DECISION'!CI161-MIN('TABLA DE DECISION'!CI$159:CI$208))) ->  | AE5: =IF('TABLA DE DECISION'!CJ161="","",IF('TABLA DE DECISION'!$A$156=1,MAX('TABLA DE DECISION'!CJ$159:CJ$208)-'TABLA DE DECISION'!CJ161,'TABLA DE DECISION'!CJ161-MIN('TABLA DE DECISION'!CJ$159:CJ$208))) ->  | AF5: =IF('TABLA DE DECISION'!CK161="","",IF('TABLA DE DECISION'!$A$156=1,MAX('TABLA DE DECISION'!CK$159:CK$208)-'TABLA DE DECISION'!CK161,'TABLA DE DECISION'!CK161-MIN('TABLA DE DECISION'!CK$159:CK$208))) ->  | AG5: =IF('TABLA DE DECISION'!CL161="","",IF('TABLA DE DECISION'!$A$156=1,MAX('TABLA DE DECISION'!CL$159:CL$208)-'TABLA DE DECISION'!CL161,'TABLA DE DECISION'!CL161-MIN('TABLA DE DECISION'!CL$159:CL$208))) ->  | AH5: =IF('TABLA DE DECISION'!CM161="","",IF('TABLA DE DECISION'!$A$156=1,MAX('TABLA DE DECISION'!CM$159:CM$208)-'TABLA DE DECISION'!CM161,'TABLA DE DECISION'!CM161-MIN('TABLA DE DECISION'!CM$159:CM$208))) ->  | AI5: =IF('TABLA DE DECISION'!CN161="","",IF('TABLA DE DECISION'!$A$156=1,MAX('TABLA DE DECISION'!CN$159:CN$208)-'TABLA DE DECISION'!CN161,'TABLA DE DECISION'!CN161-MIN('TABLA DE DECISION'!CN$159:CN$208))) ->  | AJ5: =IF('TABLA DE DECISION'!CO161="","",IF('TABLA DE DECISION'!$A$156=1,MAX('TABLA DE DECISION'!CO$159:CO$208)-'TABLA DE DECISION'!CO161,'TABLA DE DECISION'!CO161-MIN('TABLA DE DECISION'!CO$159:CO$208))) ->  | AK5: =IF('TABLA DE DECISION'!CP161="","",IF('TABLA DE DECISION'!$A$156=1,MAX('TABLA DE DECISION'!CP$159:CP$208)-'TABLA DE DECISION'!CP161,'TABLA DE DECISION'!CP161-MIN('TABLA DE DECISION'!CP$159:CP$208))) ->  | AL5: =IF('TABLA DE DECISION'!CQ161="","",IF('TABLA DE DECISION'!$A$156=1,MAX('TABLA DE DECISION'!CQ$159:CQ$208)-'TABLA DE DECISION'!CQ161,'TABLA DE DECISION'!CQ161-MIN('TABLA DE DECISION'!CQ$159:CQ$208))) ->  | AM5: =IF('TABLA DE DECISION'!CR161="","",IF('TABLA DE DECISION'!$A$156=1,MAX('TABLA DE DECISION'!CR$159:CR$208)-'TABLA DE DECISION'!CR161,'TABLA DE DECISION'!CR161-MIN('TABLA DE DECISION'!CR$159:CR$208))) ->  | AN5: =IF('TABLA DE DECISION'!CS161="","",IF('TABLA DE DECISION'!$A$156=1,MAX('TABLA DE DECISION'!CS$159:CS$208)-'TABLA DE DECISION'!CS161,'TABLA DE DECISION'!CS161-MIN('TABLA DE DECISION'!CS$159:CS$208))) ->  | AO5: =IF('TABLA DE DECISION'!CT161="","",IF('TABLA DE DECISION'!$A$156=1,MAX('TABLA DE DECISION'!CT$159:CT$208)-'TABLA DE DECISION'!CT161,'TABLA DE DECISION'!CT161-MIN('TABLA DE DECISION'!CT$159:CT$208))) ->  | AP5: =IF('TABLA DE DECISION'!CU161="","",IF('TABLA DE DECISION'!$A$156=1,MAX('TABLA DE DECISION'!CU$159:CU$208)-'TABLA DE DECISION'!CU161,'TABLA DE DECISION'!CU161-MIN('TABLA DE DECISION'!CU$159:CU$208))) ->  | AQ5: =IF('TABLA DE DECISION'!CV161="","",IF('TABLA DE DECISION'!$A$156=1,MAX('TABLA DE DECISION'!CV$159:CV$208)-'TABLA DE DECISION'!CV161,'TABLA DE DECISION'!CV161-MIN('TABLA DE DECISION'!CV$159:CV$208))) ->  | AR5: =IF('TABLA DE DECISION'!CW161="","",IF('TABLA DE DECISION'!$A$156=1,MAX('TABLA DE DECISION'!CW$159:CW$208)-'TABLA DE DECISION'!CW161,'TABLA DE DECISION'!CW161-MIN('TABLA DE DECISION'!CW$159:CW$208))) ->  | AS5: =IF('TABLA DE DECISION'!CX161="","",IF('TABLA DE DECISION'!$A$156=1,MAX('TABLA DE DECISION'!CX$159:CX$208)-'TABLA DE DECISION'!CX161,'TABLA DE DECISION'!CX161-MIN('TABLA DE DECISION'!CX$159:CX$208))) ->  | AT5: =IF('TABLA DE DECISION'!CY161="","",IF('TABLA DE DECISION'!$A$156=1,MAX('TABLA DE DECISION'!CY$159:CY$208)-'TABLA DE DECISION'!CY161,'TABLA DE DECISION'!CY161-MIN('TABLA DE DECISION'!CY$159:CY$208))) ->  | AU5: =IF('TABLA DE DECISION'!CZ161="","",IF('TABLA DE DECISION'!$A$156=1,MAX('TABLA DE DECISION'!CZ$159:CZ$208)-'TABLA DE DECISION'!CZ161,'TABLA DE DECISION'!CZ161-MIN('TABLA DE DECISION'!CZ$159:CZ$208))) ->  | AV5: =IF('TABLA DE DECISION'!DA161="","",IF('TABLA DE DECISION'!$A$156=1,MAX('TABLA DE DECISION'!DA$159:DA$208)-'TABLA DE DECISION'!DA161,'TABLA DE DECISION'!DA161-MIN('TABLA DE DECISION'!DA$159:DA$208))) ->  | AW5: =IF('TABLA DE DECISION'!DB161="","",IF('TABLA DE DECISION'!$A$156=1,MAX('TABLA DE DECISION'!DB$159:DB$208)-'TABLA DE DECISION'!DB161,'TABLA DE DECISION'!DB161-MIN('TABLA DE DECISION'!DB$159:DB$208))) ->  | AX5: =IF('TABLA DE DECISION'!DC161="","",IF('TABLA DE DECISION'!$A$156=1,MAX('TABLA DE DECISION'!DC$159:DC$208)-'TABLA DE DECISION'!DC161,'TABLA DE DECISION'!DC161-MIN('TABLA DE DECISION'!DC$159:DC$208))) ->  | AY5: =IF('TABLA DE DECISION'!DD161="","",IF('TABLA DE DECISION'!$A$156=1,MAX('TABLA DE DECISION'!DD$159:DD$208)-'TABLA DE DECISION'!DD161,'TABLA DE DECISION'!DD161-MIN('TABLA DE DECISION'!DD$159:DD$208))) ->  | AZ5: =IF('TABLA DE DECISION'!DE161="","",IF('TABLA DE DECISION'!$A$156=1,MAX('TABLA DE DECISION'!DE$159:DE$208)-'TABLA DE DECISION'!DE161,'TABLA DE DECISION'!DE161-MIN('TABLA DE DECISION'!DE$159:DE$208))) ->  | BB5: =IF(C5="","",SUMPRODUCT(C5:AZ5,'TABLA DE DECISION'!BH$156:DE$156)) -> 3250
A6: =IF('TABLA DE DECISION'!BF162="","",'TABLA DE DECISION'!BF162) ->  | B6: =IF('TABLA DE DECISION'!BG162="","",'TABLA DE DECISION'!BG162) -> a4 | C6: =IF('TABLA DE DECISION'!BH162="","",IF('TABLA DE DECISION'!$A$156=1,MAX('TABLA DE DECISION'!BH$159:BH$208)-'TABLA DE DECISION'!BH162,'TABLA DE DECISION'!BH162-MIN('TABLA DE DECISION'!BH$159:BH$208))) ->  | D6: =IF('TABLA DE DECISION'!BI162="","",IF('TABLA DE DECISION'!$A$156=1,MAX('TABLA DE DECISION'!BI$159:BI$208)-'TABLA DE DECISION'!BI162,'TABLA DE DECISION'!BI162-MIN('TABLA DE DECISION'!BI$159:BI$208))) ->  | E6: =IF('TABLA DE DECISION'!BJ162="","",IF('TABLA DE DECISION'!$A$156=1,MAX('TABLA DE DECISION'!BJ$159:BJ$208)-'TABLA DE DECISION'!BJ162,'TABLA DE DECISION'!BJ162-MIN('TABLA DE DECISION'!BJ$159:BJ$208))) ->  | F6: =IF('TABLA DE DECISION'!BK162="","",IF('TABLA DE DECISION'!$A$156=1,MAX('TABLA DE DECISION'!BK$159:BK$208)-'TABLA DE DECISION'!BK162,'TABLA DE DECISION'!BK162-MIN('TABLA DE DECISION'!BK$159:BK$208))) ->  | G6: =IF('TABLA DE DECISION'!BL162="","",IF('TABLA DE DECISION'!$A$156=1,MAX('TABLA DE DECISION'!BL$159:BL$208)-'TABLA DE DECISION'!BL162,'TABLA DE DECISION'!BL162-MIN('TABLA DE DECISION'!BL$159:BL$208))) ->  | H6: =IF('TABLA DE DECISION'!BM162="","",IF('TABLA DE DECISION'!$A$156=1,MAX('TABLA DE DECISION'!BM$159:BM$208)-'TABLA DE DECISION'!BM162,'TABLA DE DECISION'!BM162-MIN('TABLA DE DECISION'!BM$159:BM$208))) ->  | I6: =IF('TABLA DE DECISION'!BN162="","",IF('TABLA DE DECISION'!$A$156=1,MAX('TABLA DE DECISION'!BN$159:BN$208)-'TABLA DE DECISION'!BN162,'TABLA DE DECISION'!BN162-MIN('TABLA DE DECISION'!BN$159:BN$208))) ->  | J6: =IF('TABLA DE DECISION'!BO162="","",IF('TABLA DE DECISION'!$A$156=1,MAX('TABLA DE DECISION'!BO$159:BO$208)-'TABLA DE DECISION'!BO162,'TABLA DE DECISION'!BO162-MIN('TABLA DE DECISION'!BO$159:BO$208))) ->  | K6: =IF('TABLA DE DECISION'!BP162="","",IF('TABLA DE DECISION'!$A$156=1,MAX('TABLA DE DECISION'!BP$159:BP$208)-'TABLA DE DECISION'!BP162,'TABLA DE DECISION'!BP162-MIN('TABLA DE DECISION'!BP$159:BP$208))) ->  | L6: =IF('TABLA DE DECISION'!BQ162="","",IF('TABLA DE DECISION'!$A$156=1,MAX('TABLA DE DECISION'!BQ$159:BQ$208)-'TABLA DE DECISION'!BQ162,'TABLA DE DECISION'!BQ162-MIN('TABLA DE DECISION'!BQ$159:BQ$208))) ->  | M6: =IF('TABLA DE DECISION'!BR162="","",IF('TABLA DE DECISION'!$A$156=1,MAX('TABLA DE DECISION'!BR$159:BR$208)-'TABLA DE DECISION'!BR162,'TABLA DE DECISION'!BR162-MIN('TABLA DE DECISION'!BR$159:BR$208))) ->  | N6: =IF('TABLA DE DECISION'!BS162="","",IF('TABLA DE DECISION'!$A$156=1,MAX('TABLA DE DECISION'!BS$159:BS$208)-'TABLA DE DECISION'!BS162,'TABLA DE DECISION'!BS162-MIN('TABLA DE DECISION'!BS$159:BS$208))) ->  | O6: =IF('TABLA DE DECISION'!BT162="","",IF('TABLA DE DECISION'!$A$156=1,MAX('TABLA DE DECISION'!BT$159:BT$208)-'TABLA DE DECISION'!BT162,'TABLA DE DECISION'!BT162-MIN('TABLA DE DECISION'!BT$159:BT$208))) ->  | P6: =IF('TABLA DE DECISION'!BU162="","",IF('TABLA DE DECISION'!$A$156=1,MAX('TABLA DE DECISION'!BU$159:BU$208)-'TABLA DE DECISION'!BU162,'TABLA DE DECISION'!BU162-MIN('TABLA DE DECISION'!BU$159:BU$208))) ->  | Q6: =IF('TABLA DE DECISION'!BV162="","",IF('TABLA DE DECISION'!$A$156=1,MAX('TABLA DE DECISION'!BV$159:BV$208)-'TABLA DE DECISION'!BV162,'TABLA DE DECISION'!BV162-MIN('TABLA DE DECISION'!BV$159:BV$208))) ->  | R6: =IF('TABLA DE DECISION'!BW162="","",IF('TABLA DE DECISION'!$A$156=1,MAX('TABLA DE DECISION'!BW$159:BW$208)-'TABLA DE DECISION'!BW162,'TABLA DE DECISION'!BW162-MIN('TABLA DE DECISION'!BW$159:BW$208))) ->  | S6: =IF('TABLA DE DECISION'!BX162="","",IF('TABLA DE DECISION'!$A$156=1,MAX('TABLA DE DECISION'!BX$159:BX$208)-'TABLA DE DECISION'!BX162,'TABLA DE DECISION'!BX162-MIN('TABLA DE DECISION'!BX$159:BX$208))) ->  | T6: =IF('TABLA DE DECISION'!BY162="","",IF('TABLA DE DECISION'!$A$156=1,MAX('TABLA DE DECISION'!BY$159:BY$208)-'TABLA DE DECISION'!BY162,'TABLA DE DECISION'!BY162-MIN('TABLA DE DECISION'!BY$159:BY$208))) ->  | U6: =IF('TABLA DE DECISION'!BZ162="","",IF('TABLA DE DECISION'!$A$156=1,MAX('TABLA DE DECISION'!BZ$159:BZ$208)-'TABLA DE DECISION'!BZ162,'TABLA DE DECISION'!BZ162-MIN('TABLA DE DECISION'!BZ$159:BZ$208))) ->  | V6: =IF('TABLA DE DECISION'!CA162="","",IF('TABLA DE DECISION'!$A$156=1,MAX('TABLA DE DECISION'!CA$159:CA$208)-'TABLA DE DECISION'!CA162,'TABLA DE DECISION'!CA162-MIN('TABLA DE DECISION'!CA$159:CA$208))) ->  | W6: =IF('TABLA DE DECISION'!CB162="","",IF('TABLA DE DECISION'!$A$156=1,MAX('TABLA DE DECISION'!CB$159:CB$208)-'TABLA DE DECISION'!CB162,'TABLA DE DECISION'!CB162-MIN('TABLA DE DECISION'!CB$159:CB$208))) ->  | X6: =IF('TABLA DE DECISION'!CC162="","",IF('TABLA DE DECISION'!$A$156=1,MAX('TABLA DE DECISION'!CC$159:CC$208)-'TABLA DE DECISION'!CC162,'TABLA DE DECISION'!CC162-MIN('TABLA DE DECISION'!CC$159:CC$208))) ->  | Y6: =IF('TABLA DE DECISION'!CD162="","",IF('TABLA DE DECISION'!$A$156=1,MAX('TABLA DE DECISION'!CD$159:CD$208)-'TABLA DE DECISION'!CD162,'TABLA DE DECISION'!CD162-MIN('TABLA DE DECISION'!CD$159:CD$208))) ->  | Z6: =IF('TABLA DE DECISION'!CE162="","",IF('TABLA DE DECISION'!$A$156=1,MAX('TABLA DE DECISION'!CE$159:CE$208)-'TABLA DE DECISION'!CE162,'TABLA DE DECISION'!CE162-MIN('TABLA DE DECISION'!CE$159:CE$208))) ->  | AA6: =IF('TABLA DE DECISION'!CF162="","",IF('TABLA DE DECISION'!$A$156=1,MAX('TABLA DE DECISION'!CF$159:CF$208)-'TABLA DE DECISION'!CF162,'TABLA DE DECISION'!CF162-MIN('TABLA DE DECISION'!CF$159:CF$208))) ->  | AB6: =IF('TABLA DE DECISION'!CG162="","",IF('TABLA DE DECISION'!$A$156=1,MAX('TABLA DE DECISION'!CG$159:CG$208)-'TABLA DE DECISION'!CG162,'TABLA DE DECISION'!CG162-MIN('TABLA DE DECISION'!CG$159:CG$208))) ->  | AC6: =IF('TABLA DE DECISION'!CH162="","",IF('TABLA DE DECISION'!$A$156=1,MAX('TABLA DE DECISION'!CH$159:CH$208)-'TABLA DE DECISION'!CH162,'TABLA DE DECISION'!CH162-MIN('TABLA DE DECISION'!CH$159:CH$208))) ->  | AD6: =IF('TABLA DE DECISION'!CI162="","",IF('TABLA DE DECISION'!$A$156=1,MAX('TABLA DE DECISION'!CI$159:CI$208)-'TABLA DE DECISION'!CI162,'TABLA DE DECISION'!CI162-MIN('TABLA DE DECISION'!CI$159:CI$208))) ->  | AE6: =IF('TABLA DE DECISION'!CJ162="","",IF('TABLA DE DECISION'!$A$156=1,MAX('TABLA DE DECISION'!CJ$159:CJ$208)-'TABLA DE DECISION'!CJ162,'TABLA DE DECISION'!CJ162-MIN('TABLA DE DECISION'!CJ$159:CJ$208))) ->  | AF6: =IF('TABLA DE DECISION'!CK162="","",IF('TABLA DE DECISION'!$A$156=1,MAX('TABLA DE DECISION'!CK$159:CK$208)-'TABLA DE DECISION'!CK162,'TABLA DE DECISION'!CK162-MIN('TABLA DE DECISION'!CK$159:CK$208))) ->  | AG6: =IF('TABLA DE DECISION'!CL162="","",IF('TABLA DE DECISION'!$A$156=1,MAX('TABLA DE DECISION'!CL$159:CL$208)-'TABLA DE DECISION'!CL162,'TABLA DE DECISION'!CL162-MIN('TABLA DE DECISION'!CL$159:CL$208))) ->  | AH6: =IF('TABLA DE DECISION'!CM162="","",IF('TABLA DE DECISION'!$A$156=1,MAX('TABLA DE DECISION'!CM$159:CM$208)-'TABLA DE DECISION'!CM162,'TABLA DE DECISION'!CM162-MIN('TABLA DE DECISION'!CM$159:CM$208))) ->  | AI6: =IF('TABLA DE DECISION'!CN162="","",IF('TABLA DE DECISION'!$A$156=1,MAX('TABLA DE DECISION'!CN$159:CN$208)-'TABLA DE DECISION'!CN162,'TABLA DE DECISION'!CN162-MIN('TABLA DE DECISION'!CN$159:CN$208))) ->  | AJ6: =IF('TABLA DE DECISION'!CO162="","",IF('TABLA DE DECISION'!$A$156=1,MAX('TABLA DE DECISION'!CO$159:CO$208)-'TABLA DE DECISION'!CO162,'TABLA DE DECISION'!CO162-MIN('TABLA DE DECISION'!CO$159:CO$208))) ->  | AK6: =IF('TABLA DE DECISION'!CP162="","",IF('TABLA DE DECISION'!$A$156=1,MAX('TABLA DE DECISION'!CP$159:CP$208)-'TABLA DE DECISION'!CP162,'TABLA DE DECISION'!CP162-MIN('TABLA DE DECISION'!CP$159:CP$208))) ->  | AL6: =IF('TABLA DE DECISION'!CQ162="","",IF('TABLA DE DECISION'!$A$156=1,MAX('TABLA DE DECISION'!CQ$159:CQ$208)-'TABLA DE DECISION'!CQ162,'TABLA DE DECISION'!CQ162-MIN('TABLA DE DECISION'!CQ$159:CQ$208))) ->  | AM6: =IF('TABLA DE DECISION'!CR162="","",IF('TABLA DE DECISION'!$A$156=1,MAX('TABLA DE DECISION'!CR$159:CR$208)-'TABLA DE DECISION'!CR162,'TABLA DE DECISION'!CR162-MIN('TABLA DE DECISION'!CR$159:CR$208))) ->  | AN6: =IF('TABLA DE DECISION'!CS162="","",IF('TABLA DE DECISION'!$A$156=1,MAX('TABLA DE DECISION'!CS$159:CS$208)-'TABLA DE DECISION'!CS162,'TABLA DE DECISION'!CS162-MIN('TABLA DE DECISION'!CS$159:CS$208))) ->  | AO6: =IF('TABLA DE DECISION'!CT162="","",IF('TABLA DE DECISION'!$A$156=1,MAX('TABLA DE DECISION'!CT$159:CT$208)-'TABLA DE DECISION'!CT162,'TABLA DE DECISION'!CT162-MIN('TABLA DE DECISION'!CT$159:CT$208))) ->  | AP6: =IF('TABLA DE DECISION'!CU162="","",IF('TABLA DE DECISION'!$A$156=1,MAX('TABLA DE DECISION'!CU$159:CU$208)-'TABLA DE DECISION'!CU162,'TABLA DE DECISION'!CU162-MIN('TABLA DE DECISION'!CU$159:CU$208))) ->  | AQ6: =IF('TABLA DE DECISION'!CV162="","",IF('TABLA DE DECISION'!$A$156=1,MAX('TABLA DE DECISION'!CV$159:CV$208)-'TABLA DE DECISION'!CV162,'TABLA DE DECISION'!CV162-MIN('TABLA DE DECISION'!CV$159:CV$208))) ->  | AR6: =IF('TABLA DE DECISION'!CW162="","",IF('TABLA DE DECISION'!$A$156=1,MAX('TABLA DE DECISION'!CW$159:CW$208)-'TABLA DE DECISION'!CW162,'TABLA DE DECISION'!CW162-MIN('TABLA DE DECISION'!CW$159:CW$208))) ->  | AS6: =IF('TABLA DE DECISION'!CX162="","",IF('TABLA DE DECISION'!$A$156=1,MAX('TABLA DE DECISION'!CX$159:CX$208)-'TABLA DE DECISION'!CX162,'TABLA DE DECISION'!CX162-MIN('TABLA DE DECISION'!CX$159:CX$208))) ->  | AT6: =IF('TABLA DE DECISION'!CY162="","",IF('TABLA DE DECISION'!$A$156=1,MAX('TABLA DE DECISION'!CY$159:CY$208)-'TABLA DE DECISION'!CY162,'TABLA DE DECISION'!CY162-MIN('TABLA DE DECISION'!CY$159:CY$208))) ->  | AU6: =IF('TABLA DE DECISION'!CZ162="","",IF('TABLA DE DECISION'!$A$156=1,MAX('TABLA DE DECISION'!CZ$159:CZ$208)-'TABLA DE DECISION'!CZ162,'TABLA DE DECISION'!CZ162-MIN('TABLA DE DECISION'!CZ$159:CZ$208))) ->  | AV6: =IF('TABLA DE DECISION'!DA162="","",IF('TABLA DE DECISION'!$A$156=1,MAX('TABLA DE DECISION'!DA$159:DA$208)-'TABLA DE DECISION'!DA162,'TABLA DE DECISION'!DA162-MIN('TABLA DE DECISION'!DA$159:DA$208))) ->  | AW6: =IF('TABLA DE DECISION'!DB162="","",IF('TABLA DE DECISION'!$A$156=1,MAX('TABLA DE DECISION'!DB$159:DB$208)-'TABLA DE DECISION'!DB162,'TABLA DE DECISION'!DB162-MIN('TABLA DE DECISION'!DB$159:DB$208))) ->  | AX6: =IF('TABLA DE DECISION'!DC162="","",IF('TABLA DE DECISION'!$A$156=1,MAX('TABLA DE DECISION'!DC$159:DC$208)-'TABLA DE DECISION'!DC162,'TABLA DE DECISION'!DC162-MIN('TABLA DE DECISION'!DC$159:DC$208))) ->  | AY6: =IF('TABLA DE DECISION'!DD162="","",IF('TABLA DE DECISION'!$A$156=1,MAX('TABLA DE DECISION'!DD$159:DD$208)-'TABLA DE DECISION'!DD162,'TABLA DE DECISION'!DD162-MIN('TABLA DE DECISION'!DD$159:DD$208))) ->  | AZ6: =IF('TABLA DE DECISION'!DE162="","",IF('TABLA DE DECISION'!$A$156=1,MAX('TABLA DE DECISION'!DE$159:DE$208)-'TABLA DE DECISION'!DE162,'TABLA DE DECISION'!DE162-MIN('TABLA DE DECISION'!DE$159:DE$208))) ->  | BB6: =IF(C6="","",SUMPRODUCT(C6:AZ6,'TABLA DE DECISION'!BH$156:DE$156)) -> 
A7: =IF('TABLA DE DECISION'!BF163="","",'TABLA DE DECISION'!BF163) ->  | B7: =IF('TABLA DE DECISION'!BG163="","",'TABLA DE DECISION'!BG163) -> a5 | C7: =IF('TABLA DE DECISION'!BH163="","",IF('TABLA DE DECISION'!$A$156=1,MAX('TABLA DE DECISION'!BH$159:BH$208)-'TABLA DE DECISION'!BH163,'TABLA DE DECISION'!BH163-MIN('TABLA DE DECISION'!BH$159:BH$208))) ->  | D7: =IF('TABLA DE DECISION'!BI163="","",IF('TABLA DE DECISION'!$A$156=1,MAX('TABLA DE DECISION'!BI$159:BI$208)-'TABLA DE DECISION'!BI163,'TABLA DE DECISION'!BI163-MIN('TABLA DE DECISION'!BI$159:BI$208))) ->  | E7: =IF('TABLA DE DECISION'!BJ163="","",IF('TABLA DE DECISION'!$A$156=1,MAX('TABLA DE DECISION'!BJ$159:BJ$208)-'TABLA DE DECISION'!BJ163,'TABLA DE DECISION'!BJ163-MIN('TABLA DE DECISION'!BJ$159:BJ$208))) ->  | F7: =IF('TABLA DE DECISION'!BK163="","",IF('TABLA DE DECISION'!$A$156=1,MAX('TABLA DE DECISION'!BK$159:BK$208)-'TABLA DE DECISION'!BK163,'TABLA DE DECISION'!BK163-MIN('TABLA DE DECISION'!BK$159:BK$208))) ->  | G7: =IF('TABLA DE DECISION'!BL163="","",IF('TABLA DE DECISION'!$A$156=1,MAX('TABLA DE DECISION'!BL$159:BL$208)-'TABLA DE DECISION'!BL163,'TABLA DE DECISION'!BL163-MIN('TABLA DE DECISION'!BL$159:BL$208))) ->  | H7: =IF('TABLA DE DECISION'!BM163="","",IF('TABLA DE DECISION'!$A$156=1,MAX('TABLA DE DECISION'!BM$159:BM$208)-'TABLA DE DECISION'!BM163,'TABLA DE DECISION'!BM163-MIN('TABLA DE DECISION'!BM$159:BM$208))) ->  | I7: =IF('TABLA DE DECISION'!BN163="","",IF('TABLA DE DECISION'!$A$156=1,MAX('TABLA DE DECISION'!BN$159:BN$208)-'TABLA DE DECISION'!BN163,'TABLA DE DECISION'!BN163-MIN('TABLA DE DECISION'!BN$159:BN$208))) ->  | J7: =IF('TABLA DE DECISION'!BO163="","",IF('TABLA DE DECISION'!$A$156=1,MAX('TABLA DE DECISION'!BO$159:BO$208)-'TABLA DE DECISION'!BO163,'TABLA DE DECISION'!BO163-MIN('TABLA DE DECISION'!BO$159:BO$208))) ->  | K7: =IF('TABLA DE DECISION'!BP163="","",IF('TABLA DE DECISION'!$A$156=1,MAX('TABLA DE DECISION'!BP$159:BP$208)-'TABLA DE DECISION'!BP163,'TABLA DE DECISION'!BP163-MIN('TABLA DE DECISION'!BP$159:BP$208))) ->  | L7: =IF('TABLA DE DECISION'!BQ163="","",IF('TABLA DE DECISION'!$A$156=1,MAX('TABLA DE DECISION'!BQ$159:BQ$208)-'TABLA DE DECISION'!BQ163,'TABLA DE DECISION'!BQ163-MIN('TABLA DE DECISION'!BQ$159:BQ$208))) ->  | M7: =IF('TABLA DE DECISION'!BR163="","",IF('TABLA DE DECISION'!$A$156=1,MAX('TABLA DE DECISION'!BR$159:BR$208)-'TABLA DE DECISION'!BR163,'TABLA DE DECISION'!BR163-MIN('TABLA DE DECISION'!BR$159:BR$208))) ->  | N7: =IF('TABLA DE DECISION'!BS163="","",IF('TABLA DE DECISION'!$A$156=1,MAX('TABLA DE DECISION'!BS$159:BS$208)-'TABLA DE DECISION'!BS163,'TABLA DE DECISION'!BS163-MIN('TABLA DE DECISION'!BS$159:BS$208))) ->  | O7: =IF('TABLA DE DECISION'!BT163="","",IF('TABLA DE DECISION'!$A$156=1,MAX('TABLA DE DECISION'!BT$159:BT$208)-'TABLA DE DECISION'!BT163,'TABLA DE DECISION'!BT163-MIN('TABLA DE DECISION'!BT$159:BT$208))) ->  | P7: =IF('TABLA DE DECISION'!BU163="","",IF('TABLA DE DECISION'!$A$156=1,MAX('TABLA DE DECISION'!BU$159:BU$208)-'TABLA DE DECISION'!BU163,'TABLA DE DECISION'!BU163-MIN('TABLA DE DECISION'!BU$159:BU$208))) ->  | Q7: =IF('TABLA DE DECISION'!BV163="","",IF('TABLA DE DECISION'!$A$156=1,MAX('TABLA DE DECISION'!BV$159:BV$208)-'TABLA DE DECISION'!BV163,'TABLA DE DECISION'!BV163-MIN('TABLA DE DECISION'!BV$159:BV$208))) ->  | R7: =IF('TABLA DE DECISION'!BW163="","",IF('TABLA DE DECISION'!$A$156=1,MAX('TABLA DE DECISION'!BW$159:BW$208)-'TABLA DE DECISION'!BW163,'TABLA DE DECISION'!BW163-MIN('TABLA DE DECISION'!BW$159:BW$208))) ->  | S7: =IF('TABLA DE DECISION'!BX163="","",IF('TABLA DE DECISION'!$A$156=1,MAX('TABLA DE DECISION'!BX$159:BX$208)-'TABLA DE DECISION'!BX163,'TABLA DE DECISION'!BX163-MIN('TABLA DE DECISION'!BX$159:BX$208))) ->  | T7: =IF('TABLA DE DECISION'!BY163="","",IF('TABLA DE DECISION'!$A$156=1,MAX('TABLA DE DECISION'!BY$159:BY$208)-'TABLA DE DECISION'!BY163,'TABLA DE DECISION'!BY163-MIN('TABLA DE DECISION'!BY$159:BY$208))) ->  | U7: =IF('TABLA DE DECISION'!BZ163="","",IF('TABLA DE DECISION'!$A$156=1,MAX('TABLA DE DECISION'!BZ$159:BZ$208)-'TABLA DE DECISION'!BZ163,'TABLA DE DECISION'!BZ163-MIN('TABLA DE DECISION'!BZ$159:BZ$208))) ->  | V7: =IF('TABLA DE DECISION'!CA163="","",IF('TABLA DE DECISION'!$A$156=1,MAX('TABLA DE DECISION'!CA$159:CA$208)-'TABLA DE DECISION'!CA163,'TABLA DE DECISION'!CA163-MIN('TABLA DE DECISION'!CA$159:CA$208))) ->  | W7: =IF('TABLA DE DECISION'!CB163="","",IF('TABLA DE DECISION'!$A$156=1,MAX('TABLA DE DECISION'!CB$159:CB$208)-'TABLA DE DECISION'!CB163,'TABLA DE DECISION'!CB163-MIN('TABLA DE DECISION'!CB$159:CB$208))) ->  | X7: =IF('TABLA DE DECISION'!CC163="","",IF('TABLA DE DECISION'!$A$156=1,MAX('TABLA DE DECISION'!CC$159:CC$208)-'TABLA DE DECISION'!CC163,'TABLA DE DECISION'!CC163-MIN('TABLA DE DECISION'!CC$159:CC$208))) ->  | Y7: =IF('TABLA DE DECISION'!CD163="","",IF('TABLA DE DECISION'!$A$156=1,MAX('TABLA DE DECISION'!CD$159:CD$208)-'TABLA DE DECISION'!CD163,'TABLA DE DECISION'!CD163-MIN('TABLA DE DECISION'!CD$159:CD$208))) ->  | Z7: =IF('TABLA DE DECISION'!CE163="","",IF('TABLA DE DECISION'!$A$156=1,MAX('TABLA DE DECISION'!CE$159:CE$208)-'TABLA DE DECISION'!CE163,'TABLA DE DECISION'!CE163-MIN('TABLA DE DECISION'!CE$159:CE$208))) ->  | AA7: =IF('TABLA DE DECISION'!CF163="","",IF('TABLA DE DECISION'!$A$156=1,MAX('TABLA DE DECISION'!CF$159:CF$208)-'TABLA DE DECISION'!CF163,'TABLA DE DECISION'!CF163-MIN('TABLA DE DECISION'!CF$159:CF$208))) ->  | AB7: =IF('TABLA DE DECISION'!CG163="","",IF('TABLA DE DECISION'!$A$156=1,MAX('TABLA DE DECISION'!CG$159:CG$208)-'TABLA DE DECISION'!CG163,'TABLA DE DECISION'!CG163-MIN('TABLA DE DECISION'!CG$159:CG$208))) ->  | AC7: =IF('TABLA DE DECISION'!CH163="","",IF('TABLA DE DECISION'!$A$156=1,MAX('TABLA DE DECISION'!CH$159:CH$208)-'TABLA DE DECISION'!CH163,'TABLA DE DECISION'!CH163-MIN('TABLA DE DECISION'!CH$159:CH$208))) ->  | AD7: =IF('TABLA DE DECISION'!CI163="","",IF('TABLA DE DECISION'!$A$156=1,MAX('TABLA DE DECISION'!CI$159:CI$208)-'TABLA DE DECISION'!CI163,'TABLA DE DECISION'!CI163-MIN('TABLA DE DECISION'!CI$159:CI$208))) ->  | AE7: =IF('TABLA DE DECISION'!CJ163="","",IF('TABLA DE DECISION'!$A$156=1,MAX('TABLA DE DECISION'!CJ$159:CJ$208)-'TABLA DE DECISION'!CJ163,'TABLA DE DECISION'!CJ163-MIN('TABLA DE DECISION'!CJ$159:CJ$208))) ->  | AF7: =IF('TABLA DE DECISION'!CK163="","",IF('TABLA DE DECISION'!$A$156=1,MAX('TABLA DE DECISION'!CK$159:CK$208)-'TABLA DE DECISION'!CK163,'TABLA DE DECISION'!CK163-MIN('TABLA DE DECISION'!CK$159:CK$208))) ->  | AG7: =IF('TABLA DE DECISION'!CL163="","",IF('TABLA DE DECISION'!$A$156=1,MAX('TABLA DE DECISION'!CL$159:CL$208)-'TABLA DE DECISION'!CL163,'TABLA DE DECISION'!CL163-MIN('TABLA DE DECISION'!CL$159:CL$208))) ->  | AH7: =IF('TABLA DE DECISION'!CM163="","",IF('TABLA DE DECISION'!$A$156=1,MAX('TABLA DE DECISION'!CM$159:CM$208)-'TABLA DE DECISION'!CM163,'TABLA DE DECISION'!CM163-MIN('TABLA DE DECISION'!CM$159:CM$208))) ->  | AI7: =IF('TABLA DE DECISION'!CN163="","",IF('TABLA DE DECISION'!$A$156=1,MAX('TABLA DE DECISION'!CN$159:CN$208)-'TABLA DE DECISION'!CN163,'TABLA DE DECISION'!CN163-MIN('TABLA DE DECISION'!CN$159:CN$208))) ->  | AJ7: =IF('TABLA DE DECISION'!CO163="","",IF('TABLA DE DECISION'!$A$156=1,MAX('TABLA DE DECISION'!CO$159:CO$208)-'TABLA DE DECISION'!CO163,'TABLA DE DECISION'!CO163-MIN('TABLA DE DECISION'!CO$159:CO$208))) ->  | AK7: =IF('TABLA DE DECISION'!CP163="","",IF('TABLA DE DECISION'!$A$156=1,MAX('TABLA DE DECISION'!CP$159:CP$208)-'TABLA DE DECISION'!CP163,'TABLA DE DECISION'!CP163-MIN('TABLA DE DECISION'!CP$159:CP$208))) ->  | AL7: =IF('TABLA DE DECISION'!CQ163="","",IF('TABLA DE DECISION'!$A$156=1,MAX('TABLA DE DECISION'!CQ$159:CQ$208)-'TABLA DE DECISION'!CQ163,'TABLA DE DECISION'!CQ163-MIN('TABLA DE DECISION'!CQ$159:CQ$208))) ->  | AM7: =IF('TABLA DE DECISION'!CR163="","",IF('TABLA DE DECISION'!$A$156=1,MAX('TABLA DE DECISION'!CR$159:CR$208)-'TABLA DE DECISION'!CR163,'TABLA DE DECISION'!CR163-MIN('TABLA DE DECISION'!CR$159:CR$208))) ->  | AN7: =IF('TABLA DE DECISION'!CS163="","",IF('TABLA DE DECISION'!$A$156=1,MAX('TABLA DE DECISION'!CS$159:CS$208)-'TABLA DE DECISION'!CS163,'TABLA DE DECISION'!CS163-MIN('TABLA DE DECISION'!CS$159:CS$208))) ->  | AO7: =IF('TABLA DE DECISION'!CT163="","",IF('TABLA DE DECISION'!$A$156=1,MAX('TABLA DE DECISION'!CT$159:CT$208)-'TABLA DE DECISION'!CT163,'TABLA DE DECISION'!CT163-MIN('TABLA DE DECISION'!CT$159:CT$208))) ->  | AP7: =IF('TABLA DE DECISION'!CU163="","",IF('TABLA DE DECISION'!$A$156=1,MAX('TABLA DE DECISION'!CU$159:CU$208)-'TABLA DE DECISION'!CU163,'TABLA DE DECISION'!CU163-MIN('TABLA DE DECISION'!CU$159:CU$208))) ->  | AQ7: =IF('TABLA DE DECISION'!CV163="","",IF('TABLA DE DECISION'!$A$156=1,MAX('TABLA DE DECISION'!CV$159:CV$208)-'TABLA DE DECISION'!CV163,'TABLA DE DECISION'!CV163-MIN('TABLA DE DECISION'!CV$159:CV$208))) ->  | AR7: =IF('TABLA DE DECISION'!CW163="","",IF('TABLA DE DECISION'!$A$156=1,MAX('TABLA DE DECISION'!CW$159:CW$208)-'TABLA DE DECISION'!CW163,'TABLA DE DECISION'!CW163-MIN('TABLA DE DECISION'!CW$159:CW$208))) ->  | AS7: =IF('TABLA DE DECISION'!CX163="","",IF('TABLA DE DECISION'!$A$156=1,MAX('TABLA DE DECISION'!CX$159:CX$208)-'TABLA DE DECISION'!CX163,'TABLA DE DECISION'!CX163-MIN('TABLA DE DECISION'!CX$159:CX$208))) ->  | AT7: =IF('TABLA DE DECISION'!CY163="","",IF('TABLA DE DECISION'!$A$156=1,MAX('TABLA DE DECISION'!CY$159:CY$208)-'TABLA DE DECISION'!CY163,'TABLA DE DECISION'!CY163-MIN('TABLA DE DECISION'!CY$159:CY$208))) ->  | AU7: =IF('TABLA DE DECISION'!CZ163="","",IF('TABLA DE DECISION'!$A$156=1,MAX('TABLA DE DECISION'!CZ$159:CZ$208)-'TABLA DE DECISION'!CZ163,'TABLA DE DECISION'!CZ163-MIN('TABLA DE DECISION'!CZ$159:CZ$208))) ->  | AV7: =IF('TABLA DE DECISION'!DA163="","",IF('TABLA DE DECISION'!$A$156=1,MAX('TABLA DE DECISION'!DA$159:DA$208)-'TABLA DE DECISION'!DA163,'TABLA DE DECISION'!DA163-MIN('TABLA DE DECISION'!DA$159:DA$208))) ->  | AW7: =IF('TABLA DE DECISION'!DB163="","",IF('TABLA DE DECISION'!$A$156=1,MAX('TABLA DE DECISION'!DB$159:DB$208)-'TABLA DE DECISION'!DB163,'TABLA DE DECISION'!DB163-MIN('TABLA DE DECISION'!DB$159:DB$208))) ->  | AX7: =IF('TABLA DE DECISION'!DC163="","",IF('TABLA DE DECISION'!$A$156=1,MAX('TABLA DE DECISION'!DC$159:DC$208)-'TABLA DE DECISION'!DC163,'TABLA DE DECISION'!DC163-MIN('TABLA DE DECISION'!DC$159:DC$208))) ->  | AY7: =IF('TABLA DE DECISION'!DD163="","",IF('TABLA DE DECISION'!$A$156=1,MAX('TABLA DE DECISION'!DD$159:DD$208)-'TABLA DE DECISION'!DD163,'TABLA DE DECISION'!DD163-MIN('TABLA DE DECISION'!DD$159:DD$208))) ->  | AZ7: =IF('TABLA DE DECISION'!DE163="","",IF('TABLA DE DECISION'!$A$156=1,MAX('TABLA DE DECISION'!DE$159:DE$208)-'TABLA DE DECISION'!DE163,'TABLA DE DECISION'!DE163-MIN('TABLA DE DECISION'!DE$159:DE$208))) ->  | BB7: =IF(C7="","",SUMPRODUCT(C7:AZ7,'TABLA DE DECISION'!BH$156:DE$156)) -> 
A8: =IF('TABLA DE DECISION'!BF164="","",'TABLA DE DECISION'!BF164) ->  | B8: =IF('TABLA DE DECISION'!BG164="","",'TABLA DE DECISION'!BG164) -> a6 | C8: =IF('TABLA DE DECISION'!BH164="","",IF('TABLA DE DECISION'!$A$156=1,MAX('TABLA DE DECISION'!BH$159:BH$208)-'TABLA DE DECISION'!BH164,'TABLA DE DECISION'!BH164-MIN('TABLA DE DECISION'!BH$159:BH$208))) ->  | D8: =IF('TABLA DE DECISION'!BI164="","",IF('TABLA DE DECISION'!$A$156=1,MAX('TABLA DE DECISION'!BI$159:BI$208)-'TABLA DE DECISION'!BI164,'TABLA DE DECISION'!BI164-MIN('TABLA DE DECISION'!BI$159:BI$208))) ->  | E8: =IF('TABLA DE DECISION'!BJ164="","",IF('TABLA DE DECISION'!$A$156=1,MAX('TABLA DE DECISION'!BJ$159:BJ$208)-'TABLA DE DECISION'!BJ164,'TABLA DE DECISION'!BJ164-MIN('TABLA DE DECISION'!BJ$159:BJ$208))) ->  | F8: =IF('TABLA DE DECISION'!BK164="","",IF('TABLA DE DECISION'!$A$156=1,MAX('TABLA DE DECISION'!BK$159:BK$208)-'TABLA DE DECISION'!BK164,'TABLA DE DECISION'!BK164-MIN('TABLA DE DECISION'!BK$159:BK$208))) ->  | G8: =IF('TABLA DE DECISION'!BL164="","",IF('TABLA DE DECISION'!$A$156=1,MAX('TABLA DE DECISION'!BL$159:BL$208)-'TABLA DE DECISION'!BL164,'TABLA DE DECISION'!BL164-MIN('TABLA DE DECISION'!BL$159:BL$208))) ->  | H8: =IF('TABLA DE DECISION'!BM164="","",IF('TABLA DE DECISION'!$A$156=1,MAX('TABLA DE DECISION'!BM$159:BM$208)-'TABLA DE DECISION'!BM164,'TABLA DE DECISION'!BM164-MIN('TABLA DE DECISION'!BM$159:BM$208))) ->  | I8: =IF('TABLA DE DECISION'!BN164="","",IF('TABLA DE DECISION'!$A$156=1,MAX('TABLA DE DECISION'!BN$159:BN$208)-'TABLA DE DECISION'!BN164,'TABLA DE DECISION'!BN164-MIN('TABLA DE DECISION'!BN$159:BN$208))) ->  | J8: =IF('TABLA DE DECISION'!BO164="","",IF('TABLA DE DECISION'!$A$156=1,MAX('TABLA DE DECISION'!BO$159:BO$208)-'TABLA DE DECISION'!BO164,'TABLA DE DECISION'!BO164-MIN('TABLA DE DECISION'!BO$159:BO$208))) ->  | K8: =IF('TABLA DE DECISION'!BP164="","",IF('TABLA DE DECISION'!$A$156=1,MAX('TABLA DE DECISION'!BP$159:BP$208)-'TABLA DE DECISION'!BP164,'TABLA DE DECISION'!BP164-MIN('TABLA DE DECISION'!BP$159:BP$208))) ->  | L8: =IF('TABLA DE DECISION'!BQ164="","",IF('TABLA DE DECISION'!$A$156=1,MAX('TABLA DE DECISION'!BQ$159:BQ$208)-'TABLA DE DECISION'!BQ164,'TABLA DE DECISION'!BQ164-MIN('TABLA DE DECISION'!BQ$159:BQ$208))) ->  | M8: =IF('TABLA DE DECISION'!BR164="","",IF('TABLA DE DECISION'!$A$156=1,MAX('TABLA DE DECISION'!BR$159:BR$208)-'TABLA DE DECISION'!BR164,'TABLA DE DECISION'!BR164-MIN('TABLA DE DECISION'!BR$159:BR$208))) ->  | N8: =IF('TABLA DE DECISION'!BS164="","",IF('TABLA DE DECISION'!$A$156=1,MAX('TABLA DE DECISION'!BS$159:BS$208)-'TABLA DE DECISION'!BS164,'TABLA DE DECISION'!BS164-MIN('TABLA DE DECISION'!BS$159:BS$208))) ->  | O8: =IF('TABLA DE DECISION'!BT164="","",IF('TABLA DE DECISION'!$A$156=1,MAX('TABLA DE DECISION'!BT$159:BT$208)-'TABLA DE DECISION'!BT164,'TABLA DE DECISION'!BT164-MIN('TABLA DE DECISION'!BT$159:BT$208))) ->  | P8: =IF('TABLA DE DECISION'!BU164="","",IF('TABLA DE DECISION'!$A$156=1,MAX('TABLA DE DECISION'!BU$159:BU$208)-'TABLA DE DECISION'!BU164,'TABLA DE DECISION'!BU164-MIN('TABLA DE DECISION'!BU$159:BU$208))) ->  | Q8: =IF('TABLA DE DECISION'!BV164="","",IF('TABLA DE DECISION'!$A$156=1,MAX('TABLA DE DECISION'!BV$159:BV$208)-'TABLA DE DECISION'!BV164,'TABLA DE DECISION'!BV164-MIN('TABLA DE DECISION'!BV$159:BV$208))) ->  | R8: =IF('TABLA DE DECISION'!BW164="","",IF('TABLA DE DECISION'!$A$156=1,MAX('TABLA DE DECISION'!BW$159:BW$208)-'TABLA DE DECISION'!BW164,'TABLA DE DECISION'!BW164-MIN('TABLA DE DECISION'!BW$159:BW$208))) ->  | S8: =IF('TABLA DE DECISION'!BX164="","",IF('TABLA DE DECISION'!$A$156=1,MAX('TABLA DE DECISION'!BX$159:BX$208)-'TABLA DE DECISION'!BX164,'TABLA DE DECISION'!BX164-MIN('TABLA DE DECISION'!BX$159:BX$208))) ->  | T8: =IF('TABLA DE DECISION'!BY164="","",IF('TABLA DE DECISION'!$A$156=1,MAX('TABLA DE DECISION'!BY$159:BY$208)-'TABLA DE DECISION'!BY164,'TABLA DE DECISION'!BY164-MIN('TABLA DE DECISION'!BY$159:BY$208))) ->  | U8: =IF('TABLA DE DECISION'!BZ164="","",IF('TABLA DE DECISION'!$A$156=1,MAX('TABLA DE DECISION'!BZ$159:BZ$208)-'TABLA DE DECISION'!BZ164,'TABLA DE DECISION'!BZ164-MIN('TABLA DE DECISION'!BZ$159:BZ$208))) ->  | V8: =IF('TABLA DE DECISION'!CA164="","",IF('TABLA DE DECISION'!$A$156=1,MAX('TABLA DE DECISION'!CA$159:CA$208)-'TABLA DE DECISION'!CA164,'TABLA DE DECISION'!CA164-MIN('TABLA DE DECISION'!CA$159:CA$208))) ->  | W8: =IF('TABLA DE DECISION'!CB164="","",IF('TABLA DE DECISION'!$A$156=1,MAX('TABLA DE DECISION'!CB$159:CB$208)-'TABLA DE DECISION'!CB164,'TABLA DE DECISION'!CB164-MIN('TABLA DE DECISION'!CB$159:CB$208))) ->  | X8: =IF('TABLA DE DECISION'!CC164="","",IF('TABLA DE DECISION'!$A$156=1,MAX('TABLA DE DECISION'!CC$159:CC$208)-'TABLA DE DECISION'!CC164,'TABLA DE DECISION'!CC164-MIN('TABLA DE DECISION'!CC$159:CC$208))) ->  | Y8: =IF('TABLA DE DECISION'!CD164="","",IF('TABLA DE DECISION'!$A$156=1,MAX('TABLA DE DECISION'!CD$159:CD$208)-'TABLA DE DECISION'!CD164,'TABLA DE DECISION'!CD164-MIN('TABLA DE DECISION'!CD$159:CD$208))) ->  | Z8: =IF('TABLA DE DECISION'!CE164="","",IF('TABLA DE DECISION'!$A$156=1,MAX('TABLA DE DECISION'!CE$159:CE$208)-'TABLA DE DECISION'!CE164,'TABLA DE DECISION'!CE164-MIN('TABLA DE DECISION'!CE$159:CE$208))) ->  | AA8: =IF('TABLA DE DECISION'!CF164="","",IF('TABLA DE DECISION'!$A$156=1,MAX('TABLA DE DECISION'!CF$159:CF$208)-'TABLA DE DECISION'!CF164,'TABLA DE DECISION'!CF164-MIN('TABLA DE DECISION'!CF$159:CF$208))) ->  | AB8: =IF('TABLA DE DECISION'!CG164="","",IF('TABLA DE DECISION'!$A$156=1,MAX('TABLA DE DECISION'!CG$159:CG$208)-'TABLA DE DECISION'!CG164,'TABLA DE DECISION'!CG164-MIN('TABLA DE DECISION'!CG$159:CG$208))) ->  | AC8: =IF('TABLA DE DECISION'!CH164="","",IF('TABLA DE DECISION'!$A$156=1,MAX('TABLA DE DECISION'!CH$159:CH$208)-'TABLA DE DECISION'!CH164,'TABLA DE DECISION'!CH164-MIN('TABLA DE DECISION'!CH$159:CH$208))) ->  | AD8: =IF('TABLA DE DECISION'!CI164="","",IF('TABLA DE DECISION'!$A$156=1,MAX('TABLA DE DECISION'!CI$159:CI$208)-'TABLA DE DECISION'!CI164,'TABLA DE DECISION'!CI164-MIN('TABLA DE DECISION'!CI$159:CI$208))) ->  | AE8: =IF('TABLA DE DECISION'!CJ164="","",IF('TABLA DE DECISION'!$A$156=1,MAX('TABLA DE DECISION'!CJ$159:CJ$208)-'TABLA DE DECISION'!CJ164,'TABLA DE DECISION'!CJ164-MIN('TABLA DE DECISION'!CJ$159:CJ$208))) ->  | AF8: =IF('TABLA DE DECISION'!CK164="","",IF('TABLA DE DECISION'!$A$156=1,MAX('TABLA DE DECISION'!CK$159:CK$208)-'TABLA DE DECISION'!CK164,'TABLA DE DECISION'!CK164-MIN('TABLA DE DECISION'!CK$159:CK$208))) ->  | AG8: =IF('TABLA DE DECISION'!CL164="","",IF('TABLA DE DECISION'!$A$156=1,MAX('TABLA DE DECISION'!CL$159:CL$208)-'TABLA DE DECISION'!CL164,'TABLA DE DECISION'!CL164-MIN('TABLA DE DECISION'!CL$159:CL$208))) ->  | AH8: =IF('TABLA DE DECISION'!CM164="","",IF('TABLA DE DECISION'!$A$156=1,MAX('TABLA DE DECISION'!CM$159:CM$208)-'TABLA DE DECISION'!CM164,'TABLA DE DECISION'!CM164-MIN('TABLA DE DECISION'!CM$159:CM$208))) ->  | AI8: =IF('TABLA DE DECISION'!CN164="","",IF('TABLA DE DECISION'!$A$156=1,MAX('TABLA DE DECISION'!CN$159:CN$208)-'TABLA DE DECISION'!CN164,'TABLA DE DECISION'!CN164-MIN('TABLA DE DECISION'!CN$159:CN$208))) ->  | AJ8: =IF('TABLA DE DECISION'!CO164="","",IF('TABLA DE DECISION'!$A$156=1,MAX('TABLA DE DECISION'!CO$159:CO$208)-'TABLA DE DECISION'!CO164,'TABLA DE DECISION'!CO164-MIN('TABLA DE DECISION'!CO$159:CO$208))) ->  | AK8: =IF('TABLA DE DECISION'!CP164="","",IF('TABLA DE DECISION'!$A$156=1,MAX('TABLA DE DECISION'!CP$159:CP$208)-'TABLA DE DECISION'!CP164,'TABLA DE DECISION'!CP164-MIN('TABLA DE DECISION'!CP$159:CP$208))) ->  | AL8: =IF('TABLA DE DECISION'!CQ164="","",IF('TABLA DE DECISION'!$A$156=1,MAX('TABLA DE DECISION'!CQ$159:CQ$208)-'TABLA DE DECISION'!CQ164,'TABLA DE DECISION'!CQ164-MIN('TABLA DE DECISION'!CQ$159:CQ$208))) ->  | AM8: =IF('TABLA DE DECISION'!CR164="","",IF('TABLA DE DECISION'!$A$156=1,MAX('TABLA DE DECISION'!CR$159:CR$208)-'TABLA DE DECISION'!CR164,'TABLA DE DECISION'!CR164-MIN('TABLA DE DECISION'!CR$159:CR$208))) ->  | AN8: =IF('TABLA DE DECISION'!CS164="","",IF('TABLA DE DECISION'!$A$156=1,MAX('TABLA DE DECISION'!CS$159:CS$208)-'TABLA DE DECISION'!CS164,'TABLA DE DECISION'!CS164-MIN('TABLA DE DECISION'!CS$159:CS$208))) ->  | AO8: =IF('TABLA DE DECISION'!CT164="","",IF('TABLA DE DECISION'!$A$156=1,MAX('TABLA DE DECISION'!CT$159:CT$208)-'TABLA DE DECISION'!CT164,'TABLA DE DECISION'!CT164-MIN('TABLA DE DECISION'!CT$159:CT$208))) ->  | AP8: =IF('TABLA DE DECISION'!CU164="","",IF('TABLA DE DECISION'!$A$156=1,MAX('TABLA DE DECISION'!CU$159:CU$208)-'TABLA DE DECISION'!CU164,'TABLA DE DECISION'!CU164-MIN('TABLA DE DECISION'!CU$159:CU$208))) ->  | AQ8: =IF('TABLA DE DECISION'!CV164="","",IF('TABLA DE DECISION'!$A$156=1,MAX('TABLA DE DECISION'!CV$159:CV$208)-'TABLA DE DECISION'!CV164,'TABLA DE DECISION'!CV164-MIN('TABLA DE DECISION'!CV$159:CV$208))) ->  | AR8: =IF('TABLA DE DECISION'!CW164="","",IF('TABLA DE DECISION'!$A$156=1,MAX('TABLA DE DECISION'!CW$159:CW$208)-'TABLA DE DECISION'!CW164,'TABLA DE DECISION'!CW164-MIN('TABLA DE DECISION'!CW$159:CW$208))) ->  | AS8: =IF('TABLA DE DECISION'!CX164="","",IF('TABLA DE DECISION'!$A$156=1,MAX('TABLA DE DECISION'!CX$159:CX$208)-'TABLA DE DECISION'!CX164,'TABLA DE DECISION'!CX164-MIN('TABLA DE DECISION'!CX$159:CX$208))) ->  | AT8: =IF('TABLA DE DECISION'!CY164="","",IF('TABLA DE DECISION'!$A$156=1,MAX('TABLA DE DECISION'!CY$159:CY$208)-'TABLA DE DECISION'!CY164,'TABLA DE DECISION'!CY164-MIN('TABLA DE DECISION'!CY$159:CY$208))) ->  | AU8: =IF('TABLA DE DECISION'!CZ164="","",IF('TABLA DE DECISION'!$A$156=1,MAX('TABLA DE DECISION'!CZ$159:CZ$208)-'TABLA DE DECISION'!CZ164,'TABLA DE DECISION'!CZ164-MIN('TABLA DE DECISION'!CZ$159:CZ$208))) ->  | AV8: =IF('TABLA DE DECISION'!DA164="","",IF('TABLA DE DECISION'!$A$156=1,MAX('TABLA DE DECISION'!DA$159:DA$208)-'TABLA DE DECISION'!DA164,'TABLA DE DECISION'!DA164-MIN('TABLA DE DECISION'!DA$159:DA$208))) ->  | AW8: =IF('TABLA DE DECISION'!DB164="","",IF('TABLA DE DECISION'!$A$156=1,MAX('TABLA DE DECISION'!DB$159:DB$208)-'TABLA DE DECISION'!DB164,'TABLA DE DECISION'!DB164-MIN('TABLA DE DECISION'!DB$159:DB$208))) ->  | AX8: =IF('TABLA DE DECISION'!DC164="","",IF('TABLA DE DECISION'!$A$156=1,MAX('TABLA DE DECISION'!DC$159:DC$208)-'TABLA DE DECISION'!DC164,'TABLA DE DECISION'!DC164-MIN('TABLA DE DECISION'!DC$159:DC$208))) ->  | AY8: =IF('TABLA DE DECISION'!DD164="","",IF('TABLA DE DECISION'!$A$156=1,MAX('TABLA DE DECISION'!DD$159:DD$208)-'TABLA DE DECISION'!DD164,'TABLA DE DECISION'!DD164-MIN('TABLA DE DECISION'!DD$159:DD$208))) ->  | AZ8: =IF('TABLA DE DECISION'!DE164="","",IF('TABLA DE DECISION'!$A$156=1,MAX('TABLA DE DECISION'!DE$159:DE$208)-'TABLA DE DECISION'!DE164,'TABLA DE DECISION'!DE164-MIN('TABLA DE DECISION'!DE$159:DE$208))) ->  | BB8: =IF(C8="","",SUMPRODUCT(C8:AZ8,'TABLA DE DECISION'!BH$156:DE$156)) -> 
A9: =IF('TABLA DE DECISION'!BF165="","",'TABLA DE DECISION'!BF165) ->  | B9: =IF('TABLA DE DECISION'!BG165="","",'TABLA DE DECISION'!BG165) -> a7 | C9: =IF('TABLA DE DECISION'!BH165="","",IF('TABLA DE DECISION'!$A$156=1,MAX('TABLA DE DECISION'!BH$159:BH$208)-'TABLA DE DECISION'!BH165,'TABLA DE DECISION'!BH165-MIN('TABLA DE DECISION'!BH$159:BH$208))) ->  | D9: =IF('TABLA DE DECISION'!BI165="","",IF('TABLA DE DECISION'!$A$156=1,MAX('TABLA DE DECISION'!BI$159:BI$208)-'TABLA DE DECISION'!BI165,'TABLA DE DECISION'!BI165-MIN('TABLA DE DECISION'!BI$159:BI$208))) ->  | E9: =IF('TABLA DE DECISION'!BJ165="","",IF('TABLA DE DECISION'!$A$156=1,MAX('TABLA DE DECISION'!BJ$159:BJ$208)-'TABLA DE DECISION'!BJ165,'TABLA DE DECISION'!BJ165-MIN('TABLA DE DECISION'!BJ$159:BJ$208))) ->  | F9: =IF('TABLA DE DECISION'!BK165="","",IF('TABLA DE DECISION'!$A$156=1,MAX('TABLA DE DECISION'!BK$159:BK$208)-'TABLA DE DECISION'!BK165,'TABLA DE DECISION'!BK165-MIN('TABLA DE DECISION'!BK$159:BK$208))) ->  | G9: =IF('TABLA DE DECISION'!BL165="","",IF('TABLA DE DECISION'!$A$156=1,MAX('TABLA DE DECISION'!BL$159:BL$208)-'TABLA DE DECISION'!BL165,'TABLA DE DECISION'!BL165-MIN('TABLA DE DECISION'!BL$159:BL$208))) ->  | H9: =IF('TABLA DE DECISION'!BM165="","",IF('TABLA DE DECISION'!$A$156=1,MAX('TABLA DE DECISION'!BM$159:BM$208)-'TABLA DE DECISION'!BM165,'TABLA DE DECISION'!BM165-MIN('TABLA DE DECISION'!BM$159:BM$208))) ->  | I9: =IF('TABLA DE DECISION'!BN165="","",IF('TABLA DE DECISION'!$A$156=1,MAX('TABLA DE DECISION'!BN$159:BN$208)-'TABLA DE DECISION'!BN165,'TABLA DE DECISION'!BN165-MIN('TABLA DE DECISION'!BN$159:BN$208))) ->  | J9: =IF('TABLA DE DECISION'!BO165="","",IF('TABLA DE DECISION'!$A$156=1,MAX('TABLA DE DECISION'!BO$159:BO$208)-'TABLA DE DECISION'!BO165,'TABLA DE DECISION'!BO165-MIN('TABLA DE DECISION'!BO$159:BO$208))) ->  | K9: =IF('TABLA DE DECISION'!BP165="","",IF('TABLA DE DECISION'!$A$156=1,MAX('TABLA DE DECISION'!BP$159:BP$208)-'TABLA DE DECISION'!BP165,'TABLA DE DECISION'!BP165-MIN('TABLA DE DECISION'!BP$159:BP$208))) ->  | L9: =IF('TABLA DE DECISION'!BQ165="","",IF('TABLA DE DECISION'!$A$156=1,MAX('TABLA DE DECISION'!BQ$159:BQ$208)-'TABLA DE DECISION'!BQ165,'TABLA DE DECISION'!BQ165-MIN('TABLA DE DECISION'!BQ$159:BQ$208))) ->  | M9: =IF('TABLA DE DECISION'!BR165="","",IF('TABLA DE DECISION'!$A$156=1,MAX('TABLA DE DECISION'!BR$159:BR$208)-'TABLA DE DECISION'!BR165,'TABLA DE DECISION'!BR165-MIN('TABLA DE DECISION'!BR$159:BR$208))) ->  | N9: =IF('TABLA DE DECISION'!BS165="","",IF('TABLA DE DECISION'!$A$156=1,MAX('TABLA DE DECISION'!BS$159:BS$208)-'TABLA DE DECISION'!BS165,'TABLA DE DECISION'!BS165-MIN('TABLA DE DECISION'!BS$159:BS$208))) ->  | O9: =IF('TABLA DE DECISION'!BT165="","",IF('TABLA DE DECISION'!$A$156=1,MAX('TABLA DE DECISION'!BT$159:BT$208)-'TABLA DE DECISION'!BT165,'TABLA DE DECISION'!BT165-MIN('TABLA DE DECISION'!BT$159:BT$208))) ->  | P9: =IF('TABLA DE DECISION'!BU165="","",IF('TABLA DE DECISION'!$A$156=1,MAX('TABLA DE DECISION'!BU$159:BU$208)-'TABLA DE DECISION'!BU165,'TABLA DE DECISION'!BU165-MIN('TABLA DE DECISION'!BU$159:BU$208))) ->  | Q9: =IF('TABLA DE DECISION'!BV165="","",IF('TABLA DE DECISION'!$A$156=1,MAX('TABLA DE DECISION'!BV$159:BV$208)-'TABLA DE DECISION'!BV165,'TABLA DE DECISION'!BV165-MIN('TABLA DE DECISION'!BV$159:BV$208))) ->  | R9: =IF('TABLA DE DECISION'!BW165="","",IF('TABLA DE DECISION'!$A$156=1,MAX('TABLA DE DECISION'!BW$159:BW$208)-'TABLA DE DECISION'!BW165,'TABLA DE DECISION'!BW165-MIN('TABLA DE DECISION'!BW$159:BW$208))) ->  | S9: =IF('TABLA DE DECISION'!BX165="","",IF('TABLA DE DECISION'!$A$156=1,MAX('TABLA DE DECISION'!BX$159:BX$208)-'TABLA DE DECISION'!BX165,'TABLA DE DECISION'!BX165-MIN('TABLA DE DECISION'!BX$159:BX$208))) ->  | T9: =IF('TABLA DE DECISION'!BY165="","",IF('TABLA DE DECISION'!$A$156=1,MAX('TABLA DE DECISION'!BY$159:BY$208)-'TABLA DE DECISION'!BY165,'TABLA DE DECISION'!BY165-MIN('TABLA DE DECISION'!BY$159:BY$208))) ->  | U9: =IF('TABLA DE DECISION'!BZ165="","",IF('TABLA DE DECISION'!$A$156=1,MAX('TABLA DE DECISION'!BZ$159:BZ$208)-'TABLA DE DECISION'!BZ165,'TABLA DE DECISION'!BZ165-MIN('TABLA DE DECISION'!BZ$159:BZ$208))) ->  | V9: =IF('TABLA DE DECISION'!CA165="","",IF('TABLA DE DECISION'!$A$156=1,MAX('TABLA DE DECISION'!CA$159:CA$208)-'TABLA DE DECISION'!CA165,'TABLA DE DECISION'!CA165-MIN('TABLA DE DECISION'!CA$159:CA$208))) ->  | W9: =IF('TABLA DE DECISION'!CB165="","",IF('TABLA DE DECISION'!$A$156=1,MAX('TABLA DE DECISION'!CB$159:CB$208)-'TABLA DE DECISION'!CB165,'TABLA DE DECISION'!CB165-MIN('TABLA DE DECISION'!CB$159:CB$208))) ->  | X9: =IF('TABLA DE DECISION'!CC165="","",IF('TABLA DE DECISION'!$A$156=1,MAX('TABLA DE DECISION'!CC$159:CC$208)-'TABLA DE DECISION'!CC165,'TABLA DE DECISION'!CC165-MIN('TABLA DE DECISION'!CC$159:CC$208))) ->  | Y9: =IF('TABLA DE DECISION'!CD165="","",IF('TABLA DE DECISION'!$A$156=1,MAX('TABLA DE DECISION'!CD$159:CD$208)-'TABLA DE DECISION'!CD165,'TABLA DE DECISION'!CD165-MIN('TABLA DE DECISION'!CD$159:CD$208))) ->  | Z9: =IF('TABLA DE DECISION'!CE165="","",IF('TABLA DE DECISION'!$A$156=1,MAX('TABLA DE DECISION'!CE$159:CE$208)-'TABLA DE DECISION'!CE165,'TABLA DE DECISION'!CE165-MIN('TABLA DE DECISION'!CE$159:CE$208))) ->  | AA9: =IF('TABLA DE DECISION'!CF165="","",IF('TABLA DE DECISION'!$A$156=1,MAX('TABLA DE DECISION'!CF$159:CF$208)-'TABLA DE DECISION'!CF165,'TABLA DE DECISION'!CF165-MIN('TABLA DE DECISION'!CF$159:CF$208))) ->  | AB9: =IF('TABLA DE DECISION'!CG165="","",IF('TABLA DE DECISION'!$A$156=1,MAX('TABLA DE DECISION'!CG$159:CG$208)-'TABLA DE DECISION'!CG165,'TABLA DE DECISION'!CG165-MIN('TABLA DE DECISION'!CG$159:CG$208))) ->  | AC9: =IF('TABLA DE DECISION'!CH165="","",IF('TABLA DE DECISION'!$A$156=1,MAX('TABLA DE DECISION'!CH$159:CH$208)-'TABLA DE DECISION'!CH165,'TABLA DE DECISION'!CH165-MIN('TABLA DE DECISION'!CH$159:CH$208))) ->  | AD9: =IF('TABLA DE DECISION'!CI165="","",IF('TABLA DE DECISION'!$A$156=1,MAX('TABLA DE DECISION'!CI$159:CI$208)-'TABLA DE DECISION'!CI165,'TABLA DE DECISION'!CI165-MIN('TABLA DE DECISION'!CI$159:CI$208))) ->  | AE9: =IF('TABLA DE DECISION'!CJ165="","",IF('TABLA DE DECISION'!$A$156=1,MAX('TABLA DE DECISION'!CJ$159:CJ$208)-'TABLA DE DECISION'!CJ165,'TABLA DE DECISION'!CJ165-MIN('TABLA DE DECISION'!CJ$159:CJ$208))) ->  | AF9: =IF('TABLA DE DECISION'!CK165="","",IF('TABLA DE DECISION'!$A$156=1,MAX('TABLA DE DECISION'!CK$159:CK$208)-'TABLA DE DECISION'!CK165,'TABLA DE DECISION'!CK165-MIN('TABLA DE DECISION'!CK$159:CK$208))) ->  | AG9: =IF('TABLA DE DECISION'!CL165="","",IF('TABLA DE DECISION'!$A$156=1,MAX('TABLA DE DECISION'!CL$159:CL$208)-'TABLA DE DECISION'!CL165,'TABLA DE DECISION'!CL165-MIN('TABLA DE DECISION'!CL$159:CL$208))) ->  | AH9: =IF('TABLA DE DECISION'!CM165="","",IF('TABLA DE DECISION'!$A$156=1,MAX('TABLA DE DECISION'!CM$159:CM$208)-'TABLA DE DECISION'!CM165,'TABLA DE DECISION'!CM165-MIN('TABLA DE DECISION'!CM$159:CM$208))) ->  | AI9: =IF('TABLA DE DECISION'!CN165="","",IF('TABLA DE DECISION'!$A$156=1,MAX('TABLA DE DECISION'!CN$159:CN$208)-'TABLA DE DECISION'!CN165,'TABLA DE DECISION'!CN165-MIN('TABLA DE DECISION'!CN$159:CN$208))) ->  | AJ9: =IF('TABLA DE DECISION'!CO165="","",IF('TABLA DE DECISION'!$A$156=1,MAX('TABLA DE DECISION'!CO$159:CO$208)-'TABLA DE DECISION'!CO165,'TABLA DE DECISION'!CO165-MIN('TABLA DE DECISION'!CO$159:CO$208))) ->  | AK9: =IF('TABLA DE DECISION'!CP165="","",IF('TABLA DE DECISION'!$A$156=1,MAX('TABLA DE DECISION'!CP$159:CP$208)-'TABLA DE DECISION'!CP165,'TABLA DE DECISION'!CP165-MIN('TABLA DE DECISION'!CP$159:CP$208))) ->  | AL9: =IF('TABLA DE DECISION'!CQ165="","",IF('TABLA DE DECISION'!$A$156=1,MAX('TABLA DE DECISION'!CQ$159:CQ$208)-'TABLA DE DECISION'!CQ165,'TABLA DE DECISION'!CQ165-MIN('TABLA DE DECISION'!CQ$159:CQ$208))) ->  | AM9: =IF('TABLA DE DECISION'!CR165="","",IF('TABLA DE DECISION'!$A$156=1,MAX('TABLA DE DECISION'!CR$159:CR$208)-'TABLA DE DECISION'!CR165,'TABLA DE DECISION'!CR165-MIN('TABLA DE DECISION'!CR$159:CR$208))) ->  | AN9: =IF('TABLA DE DECISION'!CS165="","",IF('TABLA DE DECISION'!$A$156=1,MAX('TABLA DE DECISION'!CS$159:CS$208)-'TABLA DE DECISION'!CS165,'TABLA DE DECISION'!CS165-MIN('TABLA DE DECISION'!CS$159:CS$208))) ->  | AO9: =IF('TABLA DE DECISION'!CT165="","",IF('TABLA DE DECISION'!$A$156=1,MAX('TABLA DE DECISION'!CT$159:CT$208)-'TABLA DE DECISION'!CT165,'TABLA DE DECISION'!CT165-MIN('TABLA DE DECISION'!CT$159:CT$208))) ->  | AP9: =IF('TABLA DE DECISION'!CU165="","",IF('TABLA DE DECISION'!$A$156=1,MAX('TABLA DE DECISION'!CU$159:CU$208)-'TABLA DE DECISION'!CU165,'TABLA DE DECISION'!CU165-MIN('TABLA DE DECISION'!CU$159:CU$208))) ->  | AQ9: =IF('TABLA DE DECISION'!CV165="","",IF('TABLA DE DECISION'!$A$156=1,MAX('TABLA DE DECISION'!CV$159:CV$208)-'TABLA DE DECISION'!CV165,'TABLA DE DECISION'!CV165-MIN('TABLA DE DECISION'!CV$159:CV$208))) ->  | AR9: =IF('TABLA DE DECISION'!CW165="","",IF('TABLA DE DECISION'!$A$156=1,MAX('TABLA DE DECISION'!CW$159:CW$208)-'TABLA DE DECISION'!CW165,'TABLA DE DECISION'!CW165-MIN('TABLA DE DECISION'!CW$159:CW$208))) ->  | AS9: =IF('TABLA DE DECISION'!CX165="","",IF('TABLA DE DECISION'!$A$156=1,MAX('TABLA DE DECISION'!CX$159:CX$208)-'TABLA DE DECISION'!CX165,'TABLA DE DECISION'!CX165-MIN('TABLA DE DECISION'!CX$159:CX$208))) ->  | AT9: =IF('TABLA DE DECISION'!CY165="","",IF('TABLA DE DECISION'!$A$156=1,MAX('TABLA DE DECISION'!CY$159:CY$208)-'TABLA DE DECISION'!CY165,'TABLA DE DECISION'!CY165-MIN('TABLA DE DECISION'!CY$159:CY$208))) ->  | AU9: =IF('TABLA DE DECISION'!CZ165="","",IF('TABLA DE DECISION'!$A$156=1,MAX('TABLA DE DECISION'!CZ$159:CZ$208)-'TABLA DE DECISION'!CZ165,'TABLA DE DECISION'!CZ165-MIN('TABLA DE DECISION'!CZ$159:CZ$208))) ->  | AV9: =IF('TABLA DE DECISION'!DA165="","",IF('TABLA DE DECISION'!$A$156=1,MAX('TABLA DE DECISION'!DA$159:DA$208)-'TABLA DE DECISION'!DA165,'TABLA DE DECISION'!DA165-MIN('TABLA DE DECISION'!DA$159:DA$208))) ->  | AW9: =IF('TABLA DE DECISION'!DB165="","",IF('TABLA DE DECISION'!$A$156=1,MAX('TABLA DE DECISION'!DB$159:DB$208)-'TABLA DE DECISION'!DB165,'TABLA DE DECISION'!DB165-MIN('TABLA DE DECISION'!DB$159:DB$208))) ->  | AX9: =IF('TABLA DE DECISION'!DC165="","",IF('TABLA DE DECISION'!$A$156=1,MAX('TABLA DE DECISION'!DC$159:DC$208)-'TABLA DE DECISION'!DC165,'TABLA DE DECISION'!DC165-MIN('TABLA DE DECISION'!DC$159:DC$208))) ->  | AY9: =IF('TABLA DE DECISION'!DD165="","",IF('TABLA DE DECISION'!$A$156=1,MAX('TABLA DE DECISION'!DD$159:DD$208)-'TABLA DE DECISION'!DD165,'TABLA DE DECISION'!DD165-MIN('TABLA DE DECISION'!DD$159:DD$208))) ->  | AZ9: =IF('TABLA DE DECISION'!DE165="","",IF('TABLA DE DECISION'!$A$156=1,MAX('TABLA DE DECISION'!DE$159:DE$208)-'TABLA DE DECISION'!DE165,'TABLA DE DECISION'!DE165-MIN('TABLA DE DECISION'!DE$159:DE$208))) ->  | BB9: =IF(C9="","",SUMPRODUCT(C9:AZ9,'TABLA DE DECISION'!BH$156:DE$156)) -> 
A10: =IF('TABLA DE DECISION'!BF166="","",'TABLA DE DECISION'!BF166) ->  | B10: =IF('TABLA DE DECISION'!BG166="","",'TABLA DE DECISION'!BG166) -> a8 | C10: =IF('TABLA DE DECISION'!BH166="","",IF('TABLA DE DECISION'!$A$156=1,MAX('TABLA DE DECISION'!BH$159:BH$208)-'TABLA DE DECISION'!BH166,'TABLA DE DECISION'!BH166-MIN('TABLA DE DECISION'!BH$159:BH$208))) ->  | D10: =IF('TABLA DE DECISION'!BI166="","",IF('TABLA DE DECISION'!$A$156=1,MAX('TABLA DE DECISION'!BI$159:BI$208)-'TABLA DE DECISION'!BI166,'TABLA DE DECISION'!BI166-MIN('TABLA DE DECISION'!BI$159:BI$208))) ->  | E10: =IF('TABLA DE DECISION'!BJ166="","",IF('TABLA DE DECISION'!$A$156=1,MAX('TABLA DE DECISION'!BJ$159:BJ$208)-'TABLA DE DECISION'!BJ166,'TABLA DE DECISION'!BJ166-MIN('TABLA DE DECISION'!BJ$159:BJ$208))) ->  | F10: =IF('TABLA DE DECISION'!BK166="","",IF('TABLA DE DECISION'!$A$156=1,MAX('TABLA DE DECISION'!BK$159:BK$208)-'TABLA DE DECISION'!BK166,'TABLA DE DECISION'!BK166-MIN('TABLA DE DECISION'!BK$159:BK$208))) ->  | G10: =IF('TABLA DE DECISION'!BL166="","",IF('TABLA DE DECISION'!$A$156=1,MAX('TABLA DE DECISION'!BL$159:BL$208)-'TABLA DE DECISION'!BL166,'TABLA DE DECISION'!BL166-MIN('TABLA DE DECISION'!BL$159:BL$208))) ->  | H10: =IF('TABLA DE DECISION'!BM166="","",IF('TABLA DE DECISION'!$A$156=1,MAX('TABLA DE DECISION'!BM$159:BM$208)-'TABLA DE DECISION'!BM166,'TABLA DE DECISION'!BM166-MIN('TABLA DE DECISION'!BM$159:BM$208))) ->  | I10: =IF('TABLA DE DECISION'!BN166="","",IF('TABLA DE DECISION'!$A$156=1,MAX('TABLA DE DECISION'!BN$159:BN$208)-'TABLA DE DECISION'!BN166,'TABLA DE DECISION'!BN166-MIN('TABLA DE DECISION'!BN$159:BN$208))) ->  | J10: =IF('TABLA DE DECISION'!BO166="","",IF('TABLA DE DECISION'!$A$156=1,MAX('TABLA DE DECISION'!BO$159:BO$208)-'TABLA DE DECISION'!BO166,'TABLA DE DECISION'!BO166-MIN('TABLA DE DECISION'!BO$159:BO$208))) ->  | K10: =IF('TABLA DE DECISION'!BP166="","",IF('TABLA DE DECISION'!$A$156=1,MAX('TABLA DE DECISION'!BP$159:BP$208)-'TABLA DE DECISION'!BP166,'TABLA DE DECISION'!BP166-MIN('TABLA DE DECISION'!BP$159:BP$208))) ->  | L10: =IF('TABLA DE DECISION'!BQ166="","",IF('TABLA DE DECISION'!$A$156=1,MAX('TABLA DE DECISION'!BQ$159:BQ$208)-'TABLA DE DECISION'!BQ166,'TABLA DE DECISION'!BQ166-MIN('TABLA DE DECISION'!BQ$159:BQ$208))) ->  | M10: =IF('TABLA DE DECISION'!BR166="","",IF('TABLA DE DECISION'!$A$156=1,MAX('TABLA DE DECISION'!BR$159:BR$208)-'TABLA DE DECISION'!BR166,'TABLA DE DECISION'!BR166-MIN('TABLA DE DECISION'!BR$159:BR$208))) ->  | N10: =IF('TABLA DE DECISION'!BS166="","",IF('TABLA DE DECISION'!$A$156=1,MAX('TABLA DE DECISION'!BS$159:BS$208)-'TABLA DE DECISION'!BS166,'TABLA DE DECISION'!BS166-MIN('TABLA DE DECISION'!BS$159:BS$208))) ->  | O10: =IF('TABLA DE DECISION'!BT166="","",IF('TABLA DE DECISION'!$A$156=1,MAX('TABLA DE DECISION'!BT$159:BT$208)-'TABLA DE DECISION'!BT166,'TABLA DE DECISION'!BT166-MIN('TABLA DE DECISION'!BT$159:BT$208))) ->  | P10: =IF('TABLA DE DECISION'!BU166="","",IF('TABLA DE DECISION'!$A$156=1,MAX('TABLA DE DECISION'!BU$159:BU$208)-'TABLA DE DECISION'!BU166,'TABLA DE DECISION'!BU166-MIN('TABLA DE DECISION'!BU$159:BU$208))) ->  | Q10: =IF('TABLA DE DECISION'!BV166="","",IF('TABLA DE DECISION'!$A$156=1,MAX('TABLA DE DECISION'!BV$159:BV$208)-'TABLA DE DECISION'!BV166,'TABLA DE DECISION'!BV166-MIN('TABLA DE DECISION'!BV$159:BV$208))) ->  | R10: =IF('TABLA DE DECISION'!BW166="","",IF('TABLA DE DECISION'!$A$156=1,MAX('TABLA DE DECISION'!BW$159:BW$208)-'TABLA DE DECISION'!BW166,'TABLA DE DECISION'!BW166-MIN('TABLA DE DECISION'!BW$159:BW$208))) ->  | S10: =IF('TABLA DE DECISION'!BX166="","",IF('TABLA DE DECISION'!$A$156=1,MAX('TABLA DE DECISION'!BX$159:BX$208)-'TABLA DE DECISION'!BX166,'TABLA DE DECISION'!BX166-MIN('TABLA DE DECISION'!BX$159:BX$208))) ->  | T10: =IF('TABLA DE DECISION'!BY166="","",IF('TABLA DE DECISION'!$A$156=1,MAX('TABLA DE DECISION'!BY$159:BY$208)-'TABLA DE DECISION'!BY166,'TABLA DE DECISION'!BY166-MIN('TABLA DE DECISION'!BY$159:BY$208))) ->  | U10: =IF('TABLA DE DECISION'!BZ166="","",IF('TABLA DE DECISION'!$A$156=1,MAX('TABLA DE DECISION'!BZ$159:BZ$208)-'TABLA DE DECISION'!BZ166,'TABLA DE DECISION'!BZ166-MIN('TABLA DE DECISION'!BZ$159:BZ$208))) ->  | V10: =IF('TABLA DE DECISION'!CA166="","",IF('TABLA DE DECISION'!$A$156=1,MAX('TABLA DE DECISION'!CA$159:CA$208)-'TABLA DE DECISION'!CA166,'TABLA DE DECISION'!CA166-MIN('TABLA DE DECISION'!CA$159:CA$208))) ->  | W10: =IF('TABLA DE DECISION'!CB166="","",IF('TABLA DE DECISION'!$A$156=1,MAX('TABLA DE DECISION'!CB$159:CB$208)-'TABLA DE DECISION'!CB166,'TABLA DE DECISION'!CB166-MIN('TABLA DE DECISION'!CB$159:CB$208))) ->  | X10: =IF('TABLA DE DECISION'!CC166="","",IF('TABLA DE DECISION'!$A$156=1,MAX('TABLA DE DECISION'!CC$159:CC$208)-'TABLA DE DECISION'!CC166,'TABLA DE DECISION'!CC166-MIN('TABLA DE DECISION'!CC$159:CC$208))) ->  | Y10: =IF('TABLA DE DECISION'!CD166="","",IF('TABLA DE DECISION'!$A$156=1,MAX('TABLA DE DECISION'!CD$159:CD$208)-'TABLA DE DECISION'!CD166,'TABLA DE DECISION'!CD166-MIN('TABLA DE DECISION'!CD$159:CD$208))) ->  | Z10: =IF('TABLA DE DECISION'!CE166="","",IF('TABLA DE DECISION'!$A$156=1,MAX('TABLA DE DECISION'!CE$159:CE$208)-'TABLA DE DECISION'!CE166,'TABLA DE DECISION'!CE166-MIN('TABLA DE DECISION'!CE$159:CE$208))) ->  | AA10: =IF('TABLA DE DECISION'!CF166="","",IF('TABLA DE DECISION'!$A$156=1,MAX('TABLA DE DECISION'!CF$159:CF$208)-'TABLA DE DECISION'!CF166,'TABLA DE DECISION'!CF166-MIN('TABLA DE DECISION'!CF$159:CF$208))) ->  | AB10: =IF('TABLA DE DECISION'!CG166="","",IF('TABLA DE DECISION'!$A$156=1,MAX('TABLA DE DECISION'!CG$159:CG$208)-'TABLA DE DECISION'!CG166,'TABLA DE DECISION'!CG166-MIN('TABLA DE DECISION'!CG$159:CG$208))) ->  | AC10: =IF('TABLA DE DECISION'!CH166="","",IF('TABLA DE DECISION'!$A$156=1,MAX('TABLA DE DECISION'!CH$159:CH$208)-'TABLA DE DECISION'!CH166,'TABLA DE DECISION'!CH166-MIN('TABLA DE DECISION'!CH$159:CH$208))) ->  | AD10: =IF('TABLA DE DECISION'!CI166="","",IF('TABLA DE DECISION'!$A$156=1,MAX('TABLA DE DECISION'!CI$159:CI$208)-'TABLA DE DECISION'!CI166,'TABLA DE DECISION'!CI166-MIN('TABLA DE DECISION'!CI$159:CI$208))) ->  | AE10: =IF('TABLA DE DECISION'!CJ166="","",IF('TABLA DE DECISION'!$A$156=1,MAX('TABLA DE DECISION'!CJ$159:CJ$208)-'TABLA DE DECISION'!CJ166,'TABLA DE DECISION'!CJ166-MIN('TABLA DE DECISION'!CJ$159:CJ$208))) ->  | AF10: =IF('TABLA DE DECISION'!CK166="","",IF('TABLA DE DECISION'!$A$156=1,MAX('TABLA DE DECISION'!CK$159:CK$208)-'TABLA DE DECISION'!CK166,'TABLA DE DECISION'!CK166-MIN('TABLA DE DECISION'!CK$159:CK$208))) ->  | AG10: =IF('TABLA DE DECISION'!CL166="","",IF('TABLA DE DECISION'!$A$156=1,MAX('TABLA DE DECISION'!CL$159:CL$208)-'TABLA DE DECISION'!CL166,'TABLA DE DECISION'!CL166-MIN('TABLA DE DECISION'!CL$159:CL$208))) ->  | AH10: =IF('TABLA DE DECISION'!CM166="","",IF('TABLA DE DECISION'!$A$156=1,MAX('TABLA DE DECISION'!CM$159:CM$208)-'TABLA DE DECISION'!CM166,'TABLA DE DECISION'!CM166-MIN('TABLA DE DECISION'!CM$159:CM$208))) ->  | AI10: =IF('TABLA DE DECISION'!CN166="","",IF('TABLA DE DECISION'!$A$156=1,MAX('TABLA DE DECISION'!CN$159:CN$208)-'TABLA DE DECISION'!CN166,'TABLA DE DECISION'!CN166-MIN('TABLA DE DECISION'!CN$159:CN$208))) ->  | AJ10: =IF('TABLA DE DECISION'!CO166="","",IF('TABLA DE DECISION'!$A$156=1,MAX('TABLA DE DECISION'!CO$159:CO$208)-'TABLA DE DECISION'!CO166,'TABLA DE DECISION'!CO166-MIN('TABLA DE DECISION'!CO$159:CO$208))) ->  | AK10: =IF('TABLA DE DECISION'!CP166="","",IF('TABLA DE DECISION'!$A$156=1,MAX('TABLA DE DECISION'!CP$159:CP$208)-'TABLA DE DECISION'!CP166,'TABLA DE DECISION'!CP166-MIN('TABLA DE DECISION'!CP$159:CP$208))) ->  | AL10: =IF('TABLA DE DECISION'!CQ166="","",IF('TABLA DE DECISION'!$A$156=1,MAX('TABLA DE DECISION'!CQ$159:CQ$208)-'TABLA DE DECISION'!CQ166,'TABLA DE DECISION'!CQ166-MIN('TABLA DE DECISION'!CQ$159:CQ$208))) ->  | AM10: =IF('TABLA DE DECISION'!CR166="","",IF('TABLA DE DECISION'!$A$156=1,MAX('TABLA DE DECISION'!CR$159:CR$208)-'TABLA DE DECISION'!CR166,'TABLA DE DECISION'!CR166-MIN('TABLA DE DECISION'!CR$159:CR$208))) ->  | AN10: =IF('TABLA DE DECISION'!CS166="","",IF('TABLA DE DECISION'!$A$156=1,MAX('TABLA DE DECISION'!CS$159:CS$208)-'TABLA DE DECISION'!CS166,'TABLA DE DECISION'!CS166-MIN('TABLA DE DECISION'!CS$159:CS$208))) ->  | AO10: =IF('TABLA DE DECISION'!CT166="","",IF('TABLA DE DECISION'!$A$156=1,MAX('TABLA DE DECISION'!CT$159:CT$208)-'TABLA DE DECISION'!CT166,'TABLA DE DECISION'!CT166-MIN('TABLA DE DECISION'!CT$159:CT$208))) ->  | AP10: =IF('TABLA DE DECISION'!CU166="","",IF('TABLA DE DECISION'!$A$156=1,MAX('TABLA DE DECISION'!CU$159:CU$208)-'TABLA DE DECISION'!CU166,'TABLA DE DECISION'!CU166-MIN('TABLA DE DECISION'!CU$159:CU$208))) ->  | AQ10: =IF('TABLA DE DECISION'!CV166="","",IF('TABLA DE DECISION'!$A$156=1,MAX('TABLA DE DECISION'!CV$159:CV$208)-'TABLA DE DECISION'!CV166,'TABLA DE DECISION'!CV166-MIN('TABLA DE DECISION'!CV$159:CV$208))) ->  | AR10: =IF('TABLA DE DECISION'!CW166="","",IF('TABLA DE DECISION'!$A$156=1,MAX('TABLA DE DECISION'!CW$159:CW$208)-'TABLA DE DECISION'!CW166,'TABLA DE DECISION'!CW166-MIN('TABLA DE DECISION'!CW$159:CW$208))) ->  | AS10: =IF('TABLA DE DECISION'!CX166="","",IF('TABLA DE DECISION'!$A$156=1,MAX('TABLA DE DECISION'!CX$159:CX$208)-'TABLA DE DECISION'!CX166,'TABLA DE DECISION'!CX166-MIN('TABLA DE DECISION'!CX$159:CX$208))) ->  | AT10: =IF('TABLA DE DECISION'!CY166="","",IF('TABLA DE DECISION'!$A$156=1,MAX('TABLA DE DECISION'!CY$159:CY$208)-'TABLA DE DECISION'!CY166,'TABLA DE DECISION'!CY166-MIN('TABLA DE DECISION'!CY$159:CY$208))) ->  | AU10: =IF('TABLA DE DECISION'!CZ166="","",IF('TABLA DE DECISION'!$A$156=1,MAX('TABLA DE DECISION'!CZ$159:CZ$208)-'TABLA DE DECISION'!CZ166,'TABLA DE DECISION'!CZ166-MIN('TABLA DE DECISION'!CZ$159:CZ$208))) ->  | AV10: =IF('TABLA DE DECISION'!DA166="","",IF('TABLA DE DECISION'!$A$156=1,MAX('TABLA DE DECISION'!DA$159:DA$208)-'TABLA DE DECISION'!DA166,'TABLA DE DECISION'!DA166-MIN('TABLA DE DECISION'!DA$159:DA$208))) ->  | AW10: =IF('TABLA DE DECISION'!DB166="","",IF('TABLA DE DECISION'!$A$156=1,MAX('TABLA DE DECISION'!DB$159:DB$208)-'TABLA DE DECISION'!DB166,'TABLA DE DECISION'!DB166-MIN('TABLA DE DECISION'!DB$159:DB$208))) ->  | AX10: =IF('TABLA DE DECISION'!DC166="","",IF('TABLA DE DECISION'!$A$156=1,MAX('TABLA DE DECISION'!DC$159:DC$208)-'TABLA DE DECISION'!DC166,'TABLA DE DECISION'!DC166-MIN('TABLA DE DECISION'!DC$159:DC$208))) ->  | AY10: =IF('TABLA DE DECISION'!DD166="","",IF('TABLA DE DECISION'!$A$156=1,MAX('TABLA DE DECISION'!DD$159:DD$208)-'TABLA DE DECISION'!DD166,'TABLA DE DECISION'!DD166-MIN('TABLA DE DECISION'!DD$159:DD$208))) ->  | AZ10: =IF('TABLA DE DECISION'!DE166="","",IF('TABLA DE DECISION'!$A$156=1,MAX('TABLA DE DECISION'!DE$159:DE$208)-'TABLA DE DECISION'!DE166,'TABLA DE DECISION'!DE166-MIN('TABLA DE DECISION'!DE$159:DE$208))) ->  | BB10: =IF(C10="","",SUMPRODUCT(C10:AZ10,'TABLA DE DECISION'!BH$156:DE$156)) -> 
A11: =IF('TABLA DE DECISION'!BF167="","",'TABLA DE DECISION'!BF167) ->  | B11: =IF('TABLA DE DECISION'!BG167="","",'TABLA DE DECISION'!BG167) -> a9 | C11: =IF('TABLA DE DECISION'!BH167="","",IF('TABLA DE DECISION'!$A$156=1,MAX('TABLA DE DECISION'!BH$159:BH$208)-'TABLA DE DECISION'!BH167,'TABLA DE DECISION'!BH167-MIN('TABLA DE DECISION'!BH$159:BH$208))) ->  | D11: =IF('TABLA DE DECISION'!BI167="","",IF('TABLA DE DECISION'!$A$156=1,MAX('TABLA DE DECISION'!BI$159:BI$208)-'TABLA DE DECISION'!BI167,'TABLA DE DECISION'!BI167-MIN('TABLA DE DECISION'!BI$159:BI$208))) ->  | E11: =IF('TABLA DE DECISION'!BJ167="","",IF('TABLA DE DECISION'!$A$156=1,MAX('TABLA DE DECISION'!BJ$159:BJ$208)-'TABLA DE DECISION'!BJ167,'TABLA DE DECISION'!BJ167-MIN('TABLA DE DECISION'!BJ$159:BJ$208))) ->  | F11: =IF('TABLA DE DECISION'!BK167="","",IF('TABLA DE DECISION'!$A$156=1,MAX('TABLA DE DECISION'!BK$159:BK$208)-'TABLA DE DECISION'!BK167,'TABLA DE DECISION'!BK167-MIN('TABLA DE DECISION'!BK$159:BK$208))) ->  | G11: =IF('TABLA DE DECISION'!BL167="","",IF('TABLA DE DECISION'!$A$156=1,MAX('TABLA DE DECISION'!BL$159:BL$208)-'TABLA DE DECISION'!BL167,'TABLA DE DECISION'!BL167-MIN('TABLA DE DECISION'!BL$159:BL$208))) ->  | H11: =IF('TABLA DE DECISION'!BM167="","",IF('TABLA DE DECISION'!$A$156=1,MAX('TABLA DE DECISION'!BM$159:BM$208)-'TABLA DE DECISION'!BM167,'TABLA DE DECISION'!BM167-MIN('TABLA DE DECISION'!BM$159:BM$208))) ->  | I11: =IF('TABLA DE DECISION'!BN167="","",IF('TABLA DE DECISION'!$A$156=1,MAX('TABLA DE DECISION'!BN$159:BN$208)-'TABLA DE DECISION'!BN167,'TABLA DE DECISION'!BN167-MIN('TABLA DE DECISION'!BN$159:BN$208))) ->  | J11: =IF('TABLA DE DECISION'!BO167="","",IF('TABLA DE DECISION'!$A$156=1,MAX('TABLA DE DECISION'!BO$159:BO$208)-'TABLA DE DECISION'!BO167,'TABLA DE DECISION'!BO167-MIN('TABLA DE DECISION'!BO$159:BO$208))) ->  | K11: =IF('TABLA DE DECISION'!BP167="","",IF('TABLA DE DECISION'!$A$156=1,MAX('TABLA DE DECISION'!BP$159:BP$208)-'TABLA DE DECISION'!BP167,'TABLA DE DECISION'!BP167-MIN('TABLA DE DECISION'!BP$159:BP$208))) ->  | L11: =IF('TABLA DE DECISION'!BQ167="","",IF('TABLA DE DECISION'!$A$156=1,MAX('TABLA DE DECISION'!BQ$159:BQ$208)-'TABLA DE DECISION'!BQ167,'TABLA DE DECISION'!BQ167-MIN('TABLA DE DECISION'!BQ$159:BQ$208))) ->  | M11: =IF('TABLA DE DECISION'!BR167="","",IF('TABLA DE DECISION'!$A$156=1,MAX('TABLA DE DECISION'!BR$159:BR$208)-'TABLA DE DECISION'!BR167,'TABLA DE DECISION'!BR167-MIN('TABLA DE DECISION'!BR$159:BR$208))) ->  | N11: =IF('TABLA DE DECISION'!BS167="","",IF('TABLA DE DECISION'!$A$156=1,MAX('TABLA DE DECISION'!BS$159:BS$208)-'TABLA DE DECISION'!BS167,'TABLA DE DECISION'!BS167-MIN('TABLA DE DECISION'!BS$159:BS$208))) ->  | O11: =IF('TABLA DE DECISION'!BT167="","",IF('TABLA DE DECISION'!$A$156=1,MAX('TABLA DE DECISION'!BT$159:BT$208)-'TABLA DE DECISION'!BT167,'TABLA DE DECISION'!BT167-MIN('TABLA DE DECISION'!BT$159:BT$208))) ->  | P11: =IF('TABLA DE DECISION'!BU167="","",IF('TABLA DE DECISION'!$A$156=1,MAX('TABLA DE DECISION'!BU$159:BU$208)-'TABLA DE DECISION'!BU167,'TABLA DE DECISION'!BU167-MIN('TABLA DE DECISION'!BU$159:BU$208))) ->  | Q11: =IF('TABLA DE DECISION'!BV167="","",IF('TABLA DE DECISION'!$A$156=1,MAX('TABLA DE DECISION'!BV$159:BV$208)-'TABLA DE DECISION'!BV167,'TABLA DE DECISION'!BV167-MIN('TABLA DE DECISION'!BV$159:BV$208))) ->  | R11: =IF('TABLA DE DECISION'!BW167="","",IF('TABLA DE DECISION'!$A$156=1,MAX('TABLA DE DECISION'!BW$159:BW$208)-'TABLA DE DECISION'!BW167,'TABLA DE DECISION'!BW167-MIN('TABLA DE DECISION'!BW$159:BW$208))) ->  | S11: =IF('TABLA DE DECISION'!BX167="","",IF('TABLA DE DECISION'!$A$156=1,MAX('TABLA DE DECISION'!BX$159:BX$208)-'TABLA DE DECISION'!BX167,'TABLA DE DECISION'!BX167-MIN('TABLA DE DECISION'!BX$159:BX$208))) ->  | T11: =IF('TABLA DE DECISION'!BY167="","",IF('TABLA DE DECISION'!$A$156=1,MAX('TABLA DE DECISION'!BY$159:BY$208)-'TABLA DE DECISION'!BY167,'TABLA DE DECISION'!BY167-MIN('TABLA DE DECISION'!BY$159:BY$208))) ->  | U11: =IF('TABLA DE DECISION'!BZ167="","",IF('TABLA DE DECISION'!$A$156=1,MAX('TABLA DE DECISION'!BZ$159:BZ$208)-'TABLA DE DECISION'!BZ167,'TABLA DE DECISION'!BZ167-MIN('TABLA DE DECISION'!BZ$159:BZ$208))) ->  | V11: =IF('TABLA DE DECISION'!CA167="","",IF('TABLA DE DECISION'!$A$156=1,MAX('TABLA DE DECISION'!CA$159:CA$208)-'TABLA DE DECISION'!CA167,'TABLA DE DECISION'!CA167-MIN('TABLA DE DECISION'!CA$159:CA$208))) ->  | W11: =IF('TABLA DE DECISION'!CB167="","",IF('TABLA DE DECISION'!$A$156=1,MAX('TABLA DE DECISION'!CB$159:CB$208)-'TABLA DE DECISION'!CB167,'TABLA DE DECISION'!CB167-MIN('TABLA DE DECISION'!CB$159:CB$208))) ->  | X11: =IF('TABLA DE DECISION'!CC167="","",IF('TABLA DE DECISION'!$A$156=1,MAX('TABLA DE DECISION'!CC$159:CC$208)-'TABLA DE DECISION'!CC167,'TABLA DE DECISION'!CC167-MIN('TABLA DE DECISION'!CC$159:CC$208))) ->  | Y11: =IF('TABLA DE DECISION'!CD167="","",IF('TABLA DE DECISION'!$A$156=1,MAX('TABLA DE DECISION'!CD$159:CD$208)-'TABLA DE DECISION'!CD167,'TABLA DE DECISION'!CD167-MIN('TABLA DE DECISION'!CD$159:CD$208))) ->  | Z11: =IF('TABLA DE DECISION'!CE167="","",IF('TABLA DE DECISION'!$A$156=1,MAX('TABLA DE DECISION'!CE$159:CE$208)-'TABLA DE DECISION'!CE167,'TABLA DE DECISION'!CE167-MIN('TABLA DE DECISION'!CE$159:CE$208))) ->  | AA11: =IF('TABLA DE DECISION'!CF167="","",IF('TABLA DE DECISION'!$A$156=1,MAX('TABLA DE DECISION'!CF$159:CF$208)-'TABLA DE DECISION'!CF167,'TABLA DE DECISION'!CF167-MIN('TABLA DE DECISION'!CF$159:CF$208))) ->  | AB11: =IF('TABLA DE DECISION'!CG167="","",IF('TABLA DE DECISION'!$A$156=1,MAX('TABLA DE DECISION'!CG$159:CG$208)-'TABLA DE DECISION'!CG167,'TABLA DE DECISION'!CG167-MIN('TABLA DE DECISION'!CG$159:CG$208))) ->  | AC11: =IF('TABLA DE DECISION'!CH167="","",IF('TABLA DE DECISION'!$A$156=1,MAX('TABLA DE DECISION'!CH$159:CH$208)-'TABLA DE DECISION'!CH167,'TABLA DE DECISION'!CH167-MIN('TABLA DE DECISION'!CH$159:CH$208))) ->  | AD11: =IF('TABLA DE DECISION'!CI167="","",IF('TABLA DE DECISION'!$A$156=1,MAX('TABLA DE DECISION'!CI$159:CI$208)-'TABLA DE DECISION'!CI167,'TABLA DE DECISION'!CI167-MIN('TABLA DE DECISION'!CI$159:CI$208))) ->  | AE11: =IF('TABLA DE DECISION'!CJ167="","",IF('TABLA DE DECISION'!$A$156=1,MAX('TABLA DE DECISION'!CJ$159:CJ$208)-'TABLA DE DECISION'!CJ167,'TABLA DE DECISION'!CJ167-MIN('TABLA DE DECISION'!CJ$159:CJ$208))) ->  | AF11: =IF('TABLA DE DECISION'!CK167="","",IF('TABLA DE DECISION'!$A$156=1,MAX('TABLA DE DECISION'!CK$159:CK$208)-'TABLA DE DECISION'!CK167,'TABLA DE DECISION'!CK167-MIN('TABLA DE DECISION'!CK$159:CK$208))) ->  | AG11: =IF('TABLA DE DECISION'!CL167="","",IF('TABLA DE DECISION'!$A$156=1,MAX('TABLA DE DECISION'!CL$159:CL$208)-'TABLA DE DECISION'!CL167,'TABLA DE DECISION'!CL167-MIN('TABLA DE DECISION'!CL$159:CL$208))) ->  | AH11: =IF('TABLA DE DECISION'!CM167="","",IF('TABLA DE DECISION'!$A$156=1,MAX('TABLA DE DECISION'!CM$159:CM$208)-'TABLA DE DECISION'!CM167,'TABLA DE DECISION'!CM167-MIN('TABLA DE DECISION'!CM$159:CM$208))) ->  | AI11: =IF('TABLA DE DECISION'!CN167="","",IF('TABLA DE DECISION'!$A$156=1,MAX('TABLA DE DECISION'!CN$159:CN$208)-'TABLA DE DECISION'!CN167,'TABLA DE DECISION'!CN167-MIN('TABLA DE DECISION'!CN$159:CN$208))) ->  | AJ11: =IF('TABLA DE DECISION'!CO167="","",IF('TABLA DE DECISION'!$A$156=1,MAX('TABLA DE DECISION'!CO$159:CO$208)-'TABLA DE DECISION'!CO167,'TABLA DE DECISION'!CO167-MIN('TABLA DE DECISION'!CO$159:CO$208))) ->  | AK11: =IF('TABLA DE DECISION'!CP167="","",IF('TABLA DE DECISION'!$A$156=1,MAX('TABLA DE DECISION'!CP$159:CP$208)-'TABLA DE DECISION'!CP167,'TABLA DE DECISION'!CP167-MIN('TABLA DE DECISION'!CP$159:CP$208))) ->  | AL11: =IF('TABLA DE DECISION'!CQ167="","",IF('TABLA DE DECISION'!$A$156=1,MAX('TABLA DE DECISION'!CQ$159:CQ$208)-'TABLA DE DECISION'!CQ167,'TABLA DE DECISION'!CQ167-MIN('TABLA DE DECISION'!CQ$159:CQ$208))) ->  | AM11: =IF('TABLA DE DECISION'!CR167="","",IF('TABLA DE DECISION'!$A$156=1,MAX('TABLA DE DECISION'!CR$159:CR$208)-'TABLA DE DECISION'!CR167,'TABLA DE DECISION'!CR167-MIN('TABLA DE DECISION'!CR$159:CR$208))) ->  | AN11: =IF('TABLA DE DECISION'!CS167="","",IF('TABLA DE DECISION'!$A$156=1,MAX('TABLA DE DECISION'!CS$159:CS$208)-'TABLA DE DECISION'!CS167,'TABLA DE DECISION'!CS167-MIN('TABLA DE DECISION'!CS$159:CS$208))) ->  | AO11: =IF('TABLA DE DECISION'!CT167="","",IF('TABLA DE DECISION'!$A$156=1,MAX('TABLA DE DECISION'!CT$159:CT$208)-'TABLA DE DECISION'!CT167,'TABLA DE DECISION'!CT167-MIN('TABLA DE DECISION'!CT$159:CT$208))) ->  | AP11: =IF('TABLA DE DECISION'!CU167="","",IF('TABLA DE DECISION'!$A$156=1,MAX('TABLA DE DECISION'!CU$159:CU$208)-'TABLA DE DECISION'!CU167,'TABLA DE DECISION'!CU167-MIN('TABLA DE DECISION'!CU$159:CU$208))) ->  | AQ11: =IF('TABLA DE DECISION'!CV167="","",IF('TABLA DE DECISION'!$A$156=1,MAX('TABLA DE DECISION'!CV$159:CV$208)-'TABLA DE DECISION'!CV167,'TABLA DE DECISION'!CV167-MIN('TABLA DE DECISION'!CV$159:CV$208))) ->  | AR11: =IF('TABLA DE DECISION'!CW167="","",IF('TABLA DE DECISION'!$A$156=1,MAX('TABLA DE DECISION'!CW$159:CW$208)-'TABLA DE DECISION'!CW167,'TABLA DE DECISION'!CW167-MIN('TABLA DE DECISION'!CW$159:CW$208))) ->  | AS11: =IF('TABLA DE DECISION'!CX167="","",IF('TABLA DE DECISION'!$A$156=1,MAX('TABLA DE DECISION'!CX$159:CX$208)-'TABLA DE DECISION'!CX167,'TABLA DE DECISION'!CX167-MIN('TABLA DE DECISION'!CX$159:CX$208))) ->  | AT11: =IF('TABLA DE DECISION'!CY167="","",IF('TABLA DE DECISION'!$A$156=1,MAX('TABLA DE DECISION'!CY$159:CY$208)-'TABLA DE DECISION'!CY167,'TABLA DE DECISION'!CY167-MIN('TABLA DE DECISION'!CY$159:CY$208))) ->  | AU11: =IF('TABLA DE DECISION'!CZ167="","",IF('TABLA DE DECISION'!$A$156=1,MAX('TABLA DE DECISION'!CZ$159:CZ$208)-'TABLA DE DECISION'!CZ167,'TABLA DE DECISION'!CZ167-MIN('TABLA DE DECISION'!CZ$159:CZ$208))) ->  | AV11: =IF('TABLA DE DECISION'!DA167="","",IF('TABLA DE DECISION'!$A$156=1,MAX('TABLA DE DECISION'!DA$159:DA$208)-'TABLA DE DECISION'!DA167,'TABLA DE DECISION'!DA167-MIN('TABLA DE DECISION'!DA$159:DA$208))) ->  | AW11: =IF('TABLA DE DECISION'!DB167="","",IF('TABLA DE DECISION'!$A$156=1,MAX('TABLA DE DECISION'!DB$159:DB$208)-'TABLA DE DECISION'!DB167,'TABLA DE DECISION'!DB167-MIN('TABLA DE DECISION'!DB$159:DB$208))) ->  | AX11: =IF('TABLA DE DECISION'!DC167="","",IF('TABLA DE DECISION'!$A$156=1,MAX('TABLA DE DECISION'!DC$159:DC$208)-'TABLA DE DECISION'!DC167,'TABLA DE DECISION'!DC167-MIN('TABLA DE DECISION'!DC$159:DC$208))) ->  | AY11: =IF('TABLA DE DECISION'!DD167="","",IF('TABLA DE DECISION'!$A$156=1,MAX('TABLA DE DECISION'!DD$159:DD$208)-'TABLA DE DECISION'!DD167,'TABLA DE DECISION'!DD167-MIN('TABLA DE DECISION'!DD$159:DD$208))) ->  | AZ11: =IF('TABLA DE DECISION'!DE167="","",IF('TABLA DE DECISION'!$A$156=1,MAX('TABLA DE DECISION'!DE$159:DE$208)-'TABLA DE DECISION'!DE167,'TABLA DE DECISION'!DE167-MIN('TABLA DE DECISION'!DE$159:DE$208))) ->  | BB11: =IF(C11="","",SUMPRODUCT(C11:AZ11,'TABLA DE DECISION'!BH$156:DE$156)) -> 
A12: =IF('TABLA DE DECISION'!BF168="","",'TABLA DE DECISION'!BF168) ->  | B12: =IF('TABLA DE DECISION'!BG168="","",'TABLA DE DECISION'!BG168) -> a10 | C12: =IF('TABLA DE DECISION'!BH168="","",IF('TABLA DE DECISION'!$A$156=1,MAX('TABLA DE DECISION'!BH$159:BH$208)-'TABLA DE DECISION'!BH168,'TABLA DE DECISION'!BH168-MIN('TABLA DE DECISION'!BH$159:BH$208))) ->  | D12: =IF('TABLA DE DECISION'!BI168="","",IF('TABLA DE DECISION'!$A$156=1,MAX('TABLA DE DECISION'!BI$159:BI$208)-'TABLA DE DECISION'!BI168,'TABLA DE DECISION'!BI168-MIN('TABLA DE DECISION'!BI$159:BI$208))) ->  | E12: =IF('TABLA DE DECISION'!BJ168="","",IF('TABLA DE DECISION'!$A$156=1,MAX('TABLA DE DECISION'!BJ$159:BJ$208)-'TABLA DE DECISION'!BJ168,'TABLA DE DECISION'!BJ168-MIN('TABLA DE DECISION'!BJ$159:BJ$208))) ->  | F12: =IF('TABLA DE DECISION'!BK168="","",IF('TABLA DE DECISION'!$A$156=1,MAX('TABLA DE DECISION'!BK$159:BK$208)-'TABLA DE DECISION'!BK168,'TABLA DE DECISION'!BK168-MIN('TABLA DE DECISION'!BK$159:BK$208))) ->  | G12: =IF('TABLA DE DECISION'!BL168="","",IF('TABLA DE DECISION'!$A$156=1,MAX('TABLA DE DECISION'!BL$159:BL$208)-'TABLA DE DECISION'!BL168,'TABLA DE DECISION'!BL168-MIN('TABLA DE DECISION'!BL$159:BL$208))) ->  | H12: =IF('TABLA DE DECISION'!BM168="","",IF('TABLA DE DECISION'!$A$156=1,MAX('TABLA DE DECISION'!BM$159:BM$208)-'TABLA DE DECISION'!BM168,'TABLA DE DECISION'!BM168-MIN('TABLA DE DECISION'!BM$159:BM$208))) ->  | I12: =IF('TABLA DE DECISION'!BN168="","",IF('TABLA DE DECISION'!$A$156=1,MAX('TABLA DE DECISION'!BN$159:BN$208)-'TABLA DE DECISION'!BN168,'TABLA DE DECISION'!BN168-MIN('TABLA DE DECISION'!BN$159:BN$208))) ->  | J12: =IF('TABLA DE DECISION'!BO168="","",IF('TABLA DE DECISION'!$A$156=1,MAX('TABLA DE DECISION'!BO$159:BO$208)-'TABLA DE DECISION'!BO168,'TABLA DE DECISION'!BO168-MIN('TABLA DE DECISION'!BO$159:BO$208))) ->  | K12: =IF('TABLA DE DECISION'!BP168="","",IF('TABLA DE DECISION'!$A$156=1,MAX('TABLA DE DECISION'!BP$159:BP$208)-'TABLA DE DECISION'!BP168,'TABLA DE DECISION'!BP168-MIN('TABLA DE DECISION'!BP$159:BP$208))) ->  | L12: =IF('TABLA DE DECISION'!BQ168="","",IF('TABLA DE DECISION'!$A$156=1,MAX('TABLA DE DECISION'!BQ$159:BQ$208)-'TABLA DE DECISION'!BQ168,'TABLA DE DECISION'!BQ168-MIN('TABLA DE DECISION'!BQ$159:BQ$208))) ->  | M12: =IF('TABLA DE DECISION'!BR168="","",IF('TABLA DE DECISION'!$A$156=1,MAX('TABLA DE DECISION'!BR$159:BR$208)-'TABLA DE DECISION'!BR168,'TABLA DE DECISION'!BR168-MIN('TABLA DE DECISION'!BR$159:BR$208))) ->  | N12: =IF('TABLA DE DECISION'!BS168="","",IF('TABLA DE DECISION'!$A$156=1,MAX('TABLA DE DECISION'!BS$159:BS$208)-'TABLA DE DECISION'!BS168,'TABLA DE DECISION'!BS168-MIN('TABLA DE DECISION'!BS$159:BS$208))) ->  | O12: =IF('TABLA DE DECISION'!BT168="","",IF('TABLA DE DECISION'!$A$156=1,MAX('TABLA DE DECISION'!BT$159:BT$208)-'TABLA DE DECISION'!BT168,'TABLA DE DECISION'!BT168-MIN('TABLA DE DECISION'!BT$159:BT$208))) ->  | P12: =IF('TABLA DE DECISION'!BU168="","",IF('TABLA DE DECISION'!$A$156=1,MAX('TABLA DE DECISION'!BU$159:BU$208)-'TABLA DE DECISION'!BU168,'TABLA DE DECISION'!BU168-MIN('TABLA DE DECISION'!BU$159:BU$208))) ->  | Q12: =IF('TABLA DE DECISION'!BV168="","",IF('TABLA DE DECISION'!$A$156=1,MAX('TABLA DE DECISION'!BV$159:BV$208)-'TABLA DE DECISION'!BV168,'TABLA DE DECISION'!BV168-MIN('TABLA DE DECISION'!BV$159:BV$208))) ->  | R12: =IF('TABLA DE DECISION'!BW168="","",IF('TABLA DE DECISION'!$A$156=1,MAX('TABLA DE DECISION'!BW$159:BW$208)-'TABLA DE DECISION'!BW168,'TABLA DE DECISION'!BW168-MIN('TABLA DE DECISION'!BW$159:BW$208))) ->  | S12: =IF('TABLA DE DECISION'!BX168="","",IF('TABLA DE DECISION'!$A$156=1,MAX('TABLA DE DECISION'!BX$159:BX$208)-'TABLA DE DECISION'!BX168,'TABLA DE DECISION'!BX168-MIN('TABLA DE DECISION'!BX$159:BX$208))) ->  | T12: =IF('TABLA DE DECISION'!BY168="","",IF('TABLA DE DECISION'!$A$156=1,MAX('TABLA DE DECISION'!BY$159:BY$208)-'TABLA DE DECISION'!BY168,'TABLA DE DECISION'!BY168-MIN('TABLA DE DECISION'!BY$159:BY$208))) ->  | U12: =IF('TABLA DE DECISION'!BZ168="","",IF('TABLA DE DECISION'!$A$156=1,MAX('TABLA DE DECISION'!BZ$159:BZ$208)-'TABLA DE DECISION'!BZ168,'TABLA DE DECISION'!BZ168-MIN('TABLA DE DECISION'!BZ$159:BZ$208))) ->  | V12: =IF('TABLA DE DECISION'!CA168="","",IF('TABLA DE DECISION'!$A$156=1,MAX('TABLA DE DECISION'!CA$159:CA$208)-'TABLA DE DECISION'!CA168,'TABLA DE DECISION'!CA168-MIN('TABLA DE DECISION'!CA$159:CA$208))) ->  | W12: =IF('TABLA DE DECISION'!CB168="","",IF('TABLA DE DECISION'!$A$156=1,MAX('TABLA DE DECISION'!CB$159:CB$208)-'TABLA DE DECISION'!CB168,'TABLA DE DECISION'!CB168-MIN('TABLA DE DECISION'!CB$159:CB$208))) ->  | X12: =IF('TABLA DE DECISION'!CC168="","",IF('TABLA DE DECISION'!$A$156=1,MAX('TABLA DE DECISION'!CC$159:CC$208)-'TABLA DE DECISION'!CC168,'TABLA DE DECISION'!CC168-MIN('TABLA DE DECISION'!CC$159:CC$208))) ->  | Y12: =IF('TABLA DE DECISION'!CD168="","",IF('TABLA DE DECISION'!$A$156=1,MAX('TABLA DE DECISION'!CD$159:CD$208)-'TABLA DE DECISION'!CD168,'TABLA DE DECISION'!CD168-MIN('TABLA DE DECISION'!CD$159:CD$208))) ->  | Z12: =IF('TABLA DE DECISION'!CE168="","",IF('TABLA DE DECISION'!$A$156=1,MAX('TABLA DE DECISION'!CE$159:CE$208)-'TABLA DE DECISION'!CE168,'TABLA DE DECISION'!CE168-MIN('TABLA DE DECISION'!CE$159:CE$208))) ->  | AA12: =IF('TABLA DE DECISION'!CF168="","",IF('TABLA DE DECISION'!$A$156=1,MAX('TABLA DE DECISION'!CF$159:CF$208)-'TABLA DE DECISION'!CF168,'TABLA DE DECISION'!CF168-MIN('TABLA DE DECISION'!CF$159:CF$208))) ->  | AB12: =IF('TABLA DE DECISION'!CG168="","",IF('TABLA DE DECISION'!$A$156=1,MAX('TABLA DE DECISION'!CG$159:CG$208)-'TABLA DE DECISION'!CG168,'TABLA DE DECISION'!CG168-MIN('TABLA DE DECISION'!CG$159:CG$208))) ->  | AC12: =IF('TABLA DE DECISION'!CH168="","",IF('TABLA DE DECISION'!$A$156=1,MAX('TABLA DE DECISION'!CH$159:CH$208)-'TABLA DE DECISION'!CH168,'TABLA DE DECISION'!CH168-MIN('TABLA DE DECISION'!CH$159:CH$208))) ->  | AD12: =IF('TABLA DE DECISION'!CI168="","",IF('TABLA DE DECISION'!$A$156=1,MAX('TABLA DE DECISION'!CI$159:CI$208)-'TABLA DE DECISION'!CI168,'TABLA DE DECISION'!CI168-MIN('TABLA DE DECISION'!CI$159:CI$208))) ->  | AE12: =IF('TABLA DE DECISION'!CJ168="","",IF('TABLA DE DECISION'!$A$156=1,MAX('TABLA DE DECISION'!CJ$159:CJ$208)-'TABLA DE DECISION'!CJ168,'TABLA DE DECISION'!CJ168-MIN('TABLA DE DECISION'!CJ$159:CJ$208))) ->  | AF12: =IF('TABLA DE DECISION'!CK168="","",IF('TABLA DE DECISION'!$A$156=1,MAX('TABLA DE DECISION'!CK$159:CK$208)-'TABLA DE DECISION'!CK168,'TABLA DE DECISION'!CK168-MIN('TABLA DE DECISION'!CK$159:CK$208))) ->  | AG12: =IF('TABLA DE DECISION'!CL168="","",IF('TABLA DE DECISION'!$A$156=1,MAX('TABLA DE DECISION'!CL$159:CL$208)-'TABLA DE DECISION'!CL168,'TABLA DE DECISION'!CL168-MIN('TABLA DE DECISION'!CL$159:CL$208))) ->  | AH12: =IF('TABLA DE DECISION'!CM168="","",IF('TABLA DE DECISION'!$A$156=1,MAX('TABLA DE DECISION'!CM$159:CM$208)-'TABLA DE DECISION'!CM168,'TABLA DE DECISION'!CM168-MIN('TABLA DE DECISION'!CM$159:CM$208))) ->  | AI12: =IF('TABLA DE DECISION'!CN168="","",IF('TABLA DE DECISION'!$A$156=1,MAX('TABLA DE DECISION'!CN$159:CN$208)-'TABLA DE DECISION'!CN168,'TABLA DE DECISION'!CN168-MIN('TABLA DE DECISION'!CN$159:CN$208))) ->  | AJ12: =IF('TABLA DE DECISION'!CO168="","",IF('TABLA DE DECISION'!$A$156=1,MAX('TABLA DE DECISION'!CO$159:CO$208)-'TABLA DE DECISION'!CO168,'TABLA DE DECISION'!CO168-MIN('TABLA DE DECISION'!CO$159:CO$208))) ->  | AK12: =IF('TABLA DE DECISION'!CP168="","",IF('TABLA DE DECISION'!$A$156=1,MAX('TABLA DE DECISION'!CP$159:CP$208)-'TABLA DE DECISION'!CP168,'TABLA DE DECISION'!CP168-MIN('TABLA DE DECISION'!CP$159:CP$208))) ->  | AL12: =IF('TABLA DE DECISION'!CQ168="","",IF('TABLA DE DECISION'!$A$156=1,MAX('TABLA DE DECISION'!CQ$159:CQ$208)-'TABLA DE DECISION'!CQ168,'TABLA DE DECISION'!CQ168-MIN('TABLA DE DECISION'!CQ$159:CQ$208))) ->  | AM12: =IF('TABLA DE DECISION'!CR168="","",IF('TABLA DE DECISION'!$A$156=1,MAX('TABLA DE DECISION'!CR$159:CR$208)-'TABLA DE DECISION'!CR168,'TABLA DE DECISION'!CR168-MIN('TABLA DE DECISION'!CR$159:CR$208))) ->  | AN12: =IF('TABLA DE DECISION'!CS168="","",IF('TABLA DE DECISION'!$A$156=1,MAX('TABLA DE DECISION'!CS$159:CS$208)-'TABLA DE DECISION'!CS168,'TABLA DE DECISION'!CS168-MIN('TABLA DE DECISION'!CS$159:CS$208))) ->  | AO12: =IF('TABLA DE DECISION'!CT168="","",IF('TABLA DE DECISION'!$A$156=1,MAX('TABLA DE DECISION'!CT$159:CT$208)-'TABLA DE DECISION'!CT168,'TABLA DE DECISION'!CT168-MIN('TABLA DE DECISION'!CT$159:CT$208))) ->  | AP12: =IF('TABLA DE DECISION'!CU168="","",IF('TABLA DE DECISION'!$A$156=1,MAX('TABLA DE DECISION'!CU$159:CU$208)-'TABLA DE DECISION'!CU168,'TABLA DE DECISION'!CU168-MIN('TABLA DE DECISION'!CU$159:CU$208))) ->  | AQ12: =IF('TABLA DE DECISION'!CV168="","",IF('TABLA DE DECISION'!$A$156=1,MAX('TABLA DE DECISION'!CV$159:CV$208)-'TABLA DE DECISION'!CV168,'TABLA DE DECISION'!CV168-MIN('TABLA DE DECISION'!CV$159:CV$208))) ->  | AR12: =IF('TABLA DE DECISION'!CW168="","",IF('TABLA DE DECISION'!$A$156=1,MAX('TABLA DE DECISION'!CW$159:CW$208)-'TABLA DE DECISION'!CW168,'TABLA DE DECISION'!CW168-MIN('TABLA DE DECISION'!CW$159:CW$208))) ->  | AS12: =IF('TABLA DE DECISION'!CX168="","",IF('TABLA DE DECISION'!$A$156=1,MAX('TABLA DE DECISION'!CX$159:CX$208)-'TABLA DE DECISION'!CX168,'TABLA DE DECISION'!CX168-MIN('TABLA DE DECISION'!CX$159:CX$208))) ->  | AT12: =IF('TABLA DE DECISION'!CY168="","",IF('TABLA DE DECISION'!$A$156=1,MAX('TABLA DE DECISION'!CY$159:CY$208)-'TABLA DE DECISION'!CY168,'TABLA DE DECISION'!CY168-MIN('TABLA DE DECISION'!CY$159:CY$208))) ->  | AU12: =IF('TABLA DE DECISION'!CZ168="","",IF('TABLA DE DECISION'!$A$156=1,MAX('TABLA DE DECISION'!CZ$159:CZ$208)-'TABLA DE DECISION'!CZ168,'TABLA DE DECISION'!CZ168-MIN('TABLA DE DECISION'!CZ$159:CZ$208))) ->  | AV12: =IF('TABLA DE DECISION'!DA168="","",IF('TABLA DE DECISION'!$A$156=1,MAX('TABLA DE DECISION'!DA$159:DA$208)-'TABLA DE DECISION'!DA168,'TABLA DE DECISION'!DA168-MIN('TABLA DE DECISION'!DA$159:DA$208))) ->  | AW12: =IF('TABLA DE DECISION'!DB168="","",IF('TABLA DE DECISION'!$A$156=1,MAX('TABLA DE DECISION'!DB$159:DB$208)-'TABLA DE DECISION'!DB168,'TABLA DE DECISION'!DB168-MIN('TABLA DE DECISION'!DB$159:DB$208))) ->  | AX12: =IF('TABLA DE DECISION'!DC168="","",IF('TABLA DE DECISION'!$A$156=1,MAX('TABLA DE DECISION'!DC$159:DC$208)-'TABLA DE DECISION'!DC168,'TABLA DE DECISION'!DC168-MIN('TABLA DE DECISION'!DC$159:DC$208))) ->  | AY12: =IF('TABLA DE DECISION'!DD168="","",IF('TABLA DE DECISION'!$A$156=1,MAX('TABLA DE DECISION'!DD$159:DD$208)-'TABLA DE DECISION'!DD168,'TABLA DE DECISION'!DD168-MIN('TABLA DE DECISION'!DD$159:DD$208))) ->  | AZ12: =IF('TABLA DE DECISION'!DE168="","",IF('TABLA DE DECISION'!$A$156=1,MAX('TABLA DE DECISION'!DE$159:DE$208)-'TABLA DE DECISION'!DE168,'TABLA DE DECISION'!DE168-MIN('TABLA DE DECISION'!DE$159:DE$208))) ->  | BB12: =IF(C12="","",SUMPRODUCT(C12:AZ12,'TABLA DE DECISION'!BH$156:DE$156)) -> 
A13: =IF('TABLA DE DECISION'!BF169="","",'TABLA DE DECISION'!BF169) ->  | B13: =IF('TABLA DE DECISION'!BG169="","",'TABLA DE DECISION'!BG169) -> a11 | C13: =IF('TABLA DE DECISION'!BH169="","",IF('TABLA DE DECISION'!$A$156=1,MAX('TABLA DE DECISION'!BH$159:BH$208)-'TABLA DE DECISION'!BH169,'TABLA DE DECISION'!BH169-MIN('TABLA DE DECISION'!BH$159:BH$208))) ->  | D13: =IF('TABLA DE DECISION'!BI169="","",IF('TABLA DE DECISION'!$A$156=1,MAX('TABLA DE DECISION'!BI$159:BI$208)-'TABLA DE DECISION'!BI169,'TABLA DE DECISION'!BI169-MIN('TABLA DE DECISION'!BI$159:BI$208))) ->  | E13: =IF('TABLA DE DECISION'!BJ169="","",IF('TABLA DE DECISION'!$A$156=1,MAX('TABLA DE DECISION'!BJ$159:BJ$208)-'TABLA DE DECISION'!BJ169,'TABLA DE DECISION'!BJ169-MIN('TABLA DE DECISION'!BJ$159:BJ$208))) ->  | F13: =IF('TABLA DE DECISION'!BK169="","",IF('TABLA DE DECISION'!$A$156=1,MAX('TABLA DE DECISION'!BK$159:BK$208)-'TABLA DE DECISION'!BK169,'TABLA DE DECISION'!BK169-MIN('TABLA DE DECISION'!BK$159:BK$208))) ->  | G13: =IF('TABLA DE DECISION'!BL169="","",IF('TABLA DE DECISION'!$A$156=1,MAX('TABLA DE DECISION'!BL$159:BL$208)-'TABLA DE DECISION'!BL169,'TABLA DE DECISION'!BL169-MIN('TABLA DE DECISION'!BL$159:BL$208))) ->  | H13: =IF('TABLA DE DECISION'!BM169="","",IF('TABLA DE DECISION'!$A$156=1,MAX('TABLA DE DECISION'!BM$159:BM$208)-'TABLA DE DECISION'!BM169,'TABLA DE DECISION'!BM169-MIN('TABLA DE DECISION'!BM$159:BM$208))) ->  | I13: =IF('TABLA DE DECISION'!BN169="","",IF('TABLA DE DECISION'!$A$156=1,MAX('TABLA DE DECISION'!BN$159:BN$208)-'TABLA DE DECISION'!BN169,'TABLA DE DECISION'!BN169-MIN('TABLA DE DECISION'!BN$159:BN$208))) ->  | J13: =IF('TABLA DE DECISION'!BO169="","",IF('TABLA DE DECISION'!$A$156=1,MAX('TABLA DE DECISION'!BO$159:BO$208)-'TABLA DE DECISION'!BO169,'TABLA DE DECISION'!BO169-MIN('TABLA DE DECISION'!BO$159:BO$208))) ->  | K13: =IF('TABLA DE DECISION'!BP169="","",IF('TABLA DE DECISION'!$A$156=1,MAX('TABLA DE DECISION'!BP$159:BP$208)-'TABLA DE DECISION'!BP169,'TABLA DE DECISION'!BP169-MIN('TABLA DE DECISION'!BP$159:BP$208))) ->  | L13: =IF('TABLA DE DECISION'!BQ169="","",IF('TABLA DE DECISION'!$A$156=1,MAX('TABLA DE DECISION'!BQ$159:BQ$208)-'TABLA DE DECISION'!BQ169,'TABLA DE DECISION'!BQ169-MIN('TABLA DE DECISION'!BQ$159:BQ$208))) ->  | M13: =IF('TABLA DE DECISION'!BR169="","",IF('TABLA DE DECISION'!$A$156=1,MAX('TABLA DE DECISION'!BR$159:BR$208)-'TABLA DE DECISION'!BR169,'TABLA DE DECISION'!BR169-MIN('TABLA DE DECISION'!BR$159:BR$208))) ->  | N13: =IF('TABLA DE DECISION'!BS169="","",IF('TABLA DE DECISION'!$A$156=1,MAX('TABLA DE DECISION'!BS$159:BS$208)-'TABLA DE DECISION'!BS169,'TABLA DE DECISION'!BS169-MIN('TABLA DE DECISION'!BS$159:BS$208))) ->  | O13: =IF('TABLA DE DECISION'!BT169="","",IF('TABLA DE DECISION'!$A$156=1,MAX('TABLA DE DECISION'!BT$159:BT$208)-'TABLA DE DECISION'!BT169,'TABLA DE DECISION'!BT169-MIN('TABLA DE DECISION'!BT$159:BT$208))) ->  | P13: =IF('TABLA DE DECISION'!BU169="","",IF('TABLA DE DECISION'!$A$156=1,MAX('TABLA DE DECISION'!BU$159:BU$208)-'TABLA DE DECISION'!BU169,'TABLA DE DECISION'!BU169-MIN('TABLA DE DECISION'!BU$159:BU$208))) ->  | Q13: =IF('TABLA DE DECISION'!BV169="","",IF('TABLA DE DECISION'!$A$156=1,MAX('TABLA DE DECISION'!BV$159:BV$208)-'TABLA DE DECISION'!BV169,'TABLA DE DECISION'!BV169-MIN('TABLA DE DECISION'!BV$159:BV$208))) ->  | R13: =IF('TABLA DE DECISION'!BW169="","",IF('TABLA DE DECISION'!$A$156=1,MAX('TABLA DE DECISION'!BW$159:BW$208)-'TABLA DE DECISION'!BW169,'TABLA DE DECISION'!BW169-MIN('TABLA DE DECISION'!BW$159:BW$208))) ->  | S13: =IF('TABLA DE DECISION'!BX169="","",IF('TABLA DE DECISION'!$A$156=1,MAX('TABLA DE DECISION'!BX$159:BX$208)-'TABLA DE DECISION'!BX169,'TABLA DE DECISION'!BX169-MIN('TABLA DE DECISION'!BX$159:BX$208))) ->  | T13: =IF('TABLA DE DECISION'!BY169="","",IF('TABLA DE DECISION'!$A$156=1,MAX('TABLA DE DECISION'!BY$159:BY$208)-'TABLA DE DECISION'!BY169,'TABLA DE DECISION'!BY169-MIN('TABLA DE DECISION'!BY$159:BY$208))) ->  | U13: =IF('TABLA DE DECISION'!BZ169="","",IF('TABLA DE DECISION'!$A$156=1,MAX('TABLA DE DECISION'!BZ$159:BZ$208)-'TABLA DE DECISION'!BZ169,'TABLA DE DECISION'!BZ169-MIN('TABLA DE DECISION'!BZ$159:BZ$208))) ->  | V13: =IF('TABLA DE DECISION'!CA169="","",IF('TABLA DE DECISION'!$A$156=1,MAX('TABLA DE DECISION'!CA$159:CA$208)-'TABLA DE DECISION'!CA169,'TABLA DE DECISION'!CA169-MIN('TABLA DE DECISION'!CA$159:CA$208))) ->  | W13: =IF('TABLA DE DECISION'!CB169="","",IF('TABLA DE DECISION'!$A$156=1,MAX('TABLA DE DECISION'!CB$159:CB$208)-'TABLA DE DECISION'!CB169,'TABLA DE DECISION'!CB169-MIN('TABLA DE DECISION'!CB$159:CB$208))) ->  | X13: =IF('TABLA DE DECISION'!CC169="","",IF('TABLA DE DECISION'!$A$156=1,MAX('TABLA DE DECISION'!CC$159:CC$208)-'TABLA DE DECISION'!CC169,'TABLA DE DECISION'!CC169-MIN('TABLA DE DECISION'!CC$159:CC$208))) ->  | Y13: =IF('TABLA DE DECISION'!CD169="","",IF('TABLA DE DECISION'!$A$156=1,MAX('TABLA DE DECISION'!CD$159:CD$208)-'TABLA DE DECISION'!CD169,'TABLA DE DECISION'!CD169-MIN('TABLA DE DECISION'!CD$159:CD$208))) ->  | Z13: =IF('TABLA DE DECISION'!CE169="","",IF('TABLA DE DECISION'!$A$156=1,MAX('TABLA DE DECISION'!CE$159:CE$208)-'TABLA DE DECISION'!CE169,'TABLA DE DECISION'!CE169-MIN('TABLA DE DECISION'!CE$159:CE$208))) ->  | AA13: =IF('TABLA DE DECISION'!CF169="","",IF('TABLA DE DECISION'!$A$156=1,MAX('TABLA DE DECISION'!CF$159:CF$208)-'TABLA DE DECISION'!CF169,'TABLA DE DECISION'!CF169-MIN('TABLA DE DECISION'!CF$159:CF$208))) ->  | AB13: =IF('TABLA DE DECISION'!CG169="","",IF('TABLA DE DECISION'!$A$156=1,MAX('TABLA DE DECISION'!CG$159:CG$208)-'TABLA DE DECISION'!CG169,'TABLA DE DECISION'!CG169-MIN('TABLA DE DECISION'!CG$159:CG$208))) ->  | AC13: =IF('TABLA DE DECISION'!CH169="","",IF('TABLA DE DECISION'!$A$156=1,MAX('TABLA DE DECISION'!CH$159:CH$208)-'TABLA DE DECISION'!CH169,'TABLA DE DECISION'!CH169-MIN('TABLA DE DECISION'!CH$159:CH$208))) ->  | AD13: =IF('TABLA DE DECISION'!CI169="","",IF('TABLA DE DECISION'!$A$156=1,MAX('TABLA DE DECISION'!CI$159:CI$208)-'TABLA DE DECISION'!CI169,'TABLA DE DECISION'!CI169-MIN('TABLA DE DECISION'!CI$159:CI$208))) ->  | AE13: =IF('TABLA DE DECISION'!CJ169="","",IF('TABLA DE DECISION'!$A$156=1,MAX('TABLA DE DECISION'!CJ$159:CJ$208)-'TABLA DE DECISION'!CJ169,'TABLA DE DECISION'!CJ169-MIN('TABLA DE DECISION'!CJ$159:CJ$208))) ->  | AF13: =IF('TABLA DE DECISION'!CK169="","",IF('TABLA DE DECISION'!$A$156=1,MAX('TABLA DE DECISION'!CK$159:CK$208)-'TABLA DE DECISION'!CK169,'TABLA DE DECISION'!CK169-MIN('TABLA DE DECISION'!CK$159:CK$208))) ->  | AG13: =IF('TABLA DE DECISION'!CL169="","",IF('TABLA DE DECISION'!$A$156=1,MAX('TABLA DE DECISION'!CL$159:CL$208)-'TABLA DE DECISION'!CL169,'TABLA DE DECISION'!CL169-MIN('TABLA DE DECISION'!CL$159:CL$208))) ->  | AH13: =IF('TABLA DE DECISION'!CM169="","",IF('TABLA DE DECISION'!$A$156=1,MAX('TABLA DE DECISION'!CM$159:CM$208)-'TABLA DE DECISION'!CM169,'TABLA DE DECISION'!CM169-MIN('TABLA DE DECISION'!CM$159:CM$208))) ->  | AI13: =IF('TABLA DE DECISION'!CN169="","",IF('TABLA DE DECISION'!$A$156=1,MAX('TABLA DE DECISION'!CN$159:CN$208)-'TABLA DE DECISION'!CN169,'TABLA DE DECISION'!CN169-MIN('TABLA DE DECISION'!CN$159:CN$208))) ->  | AJ13: =IF('TABLA DE DECISION'!CO169="","",IF('TABLA DE DECISION'!$A$156=1,MAX('TABLA DE DECISION'!CO$159:CO$208)-'TABLA DE DECISION'!CO169,'TABLA DE DECISION'!CO169-MIN('TABLA DE DECISION'!CO$159:CO$208))) ->  | AK13: =IF('TABLA DE DECISION'!CP169="","",IF('TABLA DE DECISION'!$A$156=1,MAX('TABLA DE DECISION'!CP$159:CP$208)-'TABLA DE DECISION'!CP169,'TABLA DE DECISION'!CP169-MIN('TABLA DE DECISION'!CP$159:CP$208))) ->  | AL13: =IF('TABLA DE DECISION'!CQ169="","",IF('TABLA DE DECISION'!$A$156=1,MAX('TABLA DE DECISION'!CQ$159:CQ$208)-'TABLA DE DECISION'!CQ169,'TABLA DE DECISION'!CQ169-MIN('TABLA DE DECISION'!CQ$159:CQ$208))) ->  | AM13: =IF('TABLA DE DECISION'!CR169="","",IF('TABLA DE DECISION'!$A$156=1,MAX('TABLA DE DECISION'!CR$159:CR$208)-'TABLA DE DECISION'!CR169,'TABLA DE DECISION'!CR169-MIN('TABLA DE DECISION'!CR$159:CR$208))) ->  | AN13: =IF('TABLA DE DECISION'!CS169="","",IF('TABLA DE DECISION'!$A$156=1,MAX('TABLA DE DECISION'!CS$159:CS$208)-'TABLA DE DECISION'!CS169,'TABLA DE DECISION'!CS169-MIN('TABLA DE DECISION'!CS$159:CS$208))) ->  | AO13: =IF('TABLA DE DECISION'!CT169="","",IF('TABLA DE DECISION'!$A$156=1,MAX('TABLA DE DECISION'!CT$159:CT$208)-'TABLA DE DECISION'!CT169,'TABLA DE DECISION'!CT169-MIN('TABLA DE DECISION'!CT$159:CT$208))) ->  | AP13: =IF('TABLA DE DECISION'!CU169="","",IF('TABLA DE DECISION'!$A$156=1,MAX('TABLA DE DECISION'!CU$159:CU$208)-'TABLA DE DECISION'!CU169,'TABLA DE DECISION'!CU169-MIN('TABLA DE DECISION'!CU$159:CU$208))) ->  | AQ13: =IF('TABLA DE DECISION'!CV169="","",IF('TABLA DE DECISION'!$A$156=1,MAX('TABLA DE DECISION'!CV$159:CV$208)-'TABLA DE DECISION'!CV169,'TABLA DE DECISION'!CV169-MIN('TABLA DE DECISION'!CV$159:CV$208))) ->  | AR13: =IF('TABLA DE DECISION'!CW169="","",IF('TABLA DE DECISION'!$A$156=1,MAX('TABLA DE DECISION'!CW$159:CW$208)-'TABLA DE DECISION'!CW169,'TABLA DE DECISION'!CW169-MIN('TABLA DE DECISION'!CW$159:CW$208))) ->  | AS13: =IF('TABLA DE DECISION'!CX169="","",IF('TABLA DE DECISION'!$A$156=1,MAX('TABLA DE DECISION'!CX$159:CX$208)-'TABLA DE DECISION'!CX169,'TABLA DE DECISION'!CX169-MIN('TABLA DE DECISION'!CX$159:CX$208))) ->  | AT13: =IF('TABLA DE DECISION'!CY169="","",IF('TABLA DE DECISION'!$A$156=1,MAX('TABLA DE DECISION'!CY$159:CY$208)-'TABLA DE DECISION'!CY169,'TABLA DE DECISION'!CY169-MIN('TABLA DE DECISION'!CY$159:CY$208))) ->  | AU13: =IF('TABLA DE DECISION'!CZ169="","",IF('TABLA DE DECISION'!$A$156=1,MAX('TABLA DE DECISION'!CZ$159:CZ$208)-'TABLA DE DECISION'!CZ169,'TABLA DE DECISION'!CZ169-MIN('TABLA DE DECISION'!CZ$159:CZ$208))) ->  | AV13: =IF('TABLA DE DECISION'!DA169="","",IF('TABLA DE DECISION'!$A$156=1,MAX('TABLA DE DECISION'!DA$159:DA$208)-'TABLA DE DECISION'!DA169,'TABLA DE DECISION'!DA169-MIN('TABLA DE DECISION'!DA$159:DA$208))) ->  | AW13: =IF('TABLA DE DECISION'!DB169="","",IF('TABLA DE DECISION'!$A$156=1,MAX('TABLA DE DECISION'!DB$159:DB$208)-'TABLA DE DECISION'!DB169,'TABLA DE DECISION'!DB169-MIN('TABLA DE DECISION'!DB$159:DB$208))) ->  | AX13: =IF('TABLA DE DECISION'!DC169="","",IF('TABLA DE DECISION'!$A$156=1,MAX('TABLA DE DECISION'!DC$159:DC$208)-'TABLA DE DECISION'!DC169,'TABLA DE DECISION'!DC169-MIN('TABLA DE DECISION'!DC$159:DC$208))) ->  | AY13: =IF('TABLA DE DECISION'!DD169="","",IF('TABLA DE DECISION'!$A$156=1,MAX('TABLA DE DECISION'!DD$159:DD$208)-'TABLA DE DECISION'!DD169,'TABLA DE DECISION'!DD169-MIN('TABLA DE DECISION'!DD$159:DD$208))) ->  | AZ13: =IF('TABLA DE DECISION'!DE169="","",IF('TABLA DE DECISION'!$A$156=1,MAX('TABLA DE DECISION'!DE$159:DE$208)-'TABLA DE DECISION'!DE169,'TABLA DE DECISION'!DE169-MIN('TABLA DE DECISION'!DE$159:DE$208))) ->  | BB13: =IF(C13="","",SUMPRODUCT(C13:AZ13,'TABLA DE DECISION'!BH$156:DE$156)) -> 
A14: =IF('TABLA DE DECISION'!BF170="","",'TABLA DE DECISION'!BF170) ->  | B14: =IF('TABLA DE DECISION'!BG170="","",'TABLA DE DECISION'!BG170) -> a12 | C14: =IF('TABLA DE DECISION'!BH170="","",IF('TABLA DE DECISION'!$A$156=1,MAX('TABLA DE DECISION'!BH$159:BH$208)-'TABLA DE DECISION'!BH170,'TABLA DE DECISION'!BH170-MIN('TABLA DE DECISION'!BH$159:BH$208))) ->  | D14: =IF('TABLA DE DECISION'!BI170="","",IF('TABLA DE DECISION'!$A$156=1,MAX('TABLA DE DECISION'!BI$159:BI$208)-'TABLA DE DECISION'!BI170,'TABLA DE DECISION'!BI170-MIN('TABLA DE DECISION'!BI$159:BI$208))) ->  | E14: =IF('TABLA DE DECISION'!BJ170="","",IF('TABLA DE DECISION'!$A$156=1,MAX('TABLA DE DECISION'!BJ$159:BJ$208)-'TABLA DE DECISION'!BJ170,'TABLA DE DECISION'!BJ170-MIN('TABLA DE DECISION'!BJ$159:BJ$208))) ->  | F14: =IF('TABLA DE DECISION'!BK170="","",IF('TABLA DE DECISION'!$A$156=1,MAX('TABLA DE DECISION'!BK$159:BK$208)-'TABLA DE DECISION'!BK170,'TABLA DE DECISION'!BK170-MIN('TABLA DE DECISION'!BK$159:BK$208))) ->  | G14: =IF('TABLA DE DECISION'!BL170="","",IF('TABLA DE DECISION'!$A$156=1,MAX('TABLA DE DECISION'!BL$159:BL$208)-'TABLA DE DECISION'!BL170,'TABLA DE DECISION'!BL170-MIN('TABLA DE DECISION'!BL$159:BL$208))) ->  | H14: =IF('TABLA DE DECISION'!BM170="","",IF('TABLA DE DECISION'!$A$156=1,MAX('TABLA DE DECISION'!BM$159:BM$208)-'TABLA DE DECISION'!BM170,'TABLA DE DECISION'!BM170-MIN('TABLA DE DECISION'!BM$159:BM$208))) ->  | I14: =IF('TABLA DE DECISION'!BN170="","",IF('TABLA DE DECISION'!$A$156=1,MAX('TABLA DE DECISION'!BN$159:BN$208)-'TABLA DE DECISION'!BN170,'TABLA DE DECISION'!BN170-MIN('TABLA DE DECISION'!BN$159:BN$208))) ->  | J14: =IF('TABLA DE DECISION'!BO170="","",IF('TABLA DE DECISION'!$A$156=1,MAX('TABLA DE DECISION'!BO$159:BO$208)-'TABLA DE DECISION'!BO170,'TABLA DE DECISION'!BO170-MIN('TABLA DE DECISION'!BO$159:BO$208))) ->  | K14: =IF('TABLA DE DECISION'!BP170="","",IF('TABLA DE DECISION'!$A$156=1,MAX('TABLA DE DECISION'!BP$159:BP$208)-'TABLA DE DECISION'!BP170,'TABLA DE DECISION'!BP170-MIN('TABLA DE DECISION'!BP$159:BP$208))) ->  | L14: =IF('TABLA DE DECISION'!BQ170="","",IF('TABLA DE DECISION'!$A$156=1,MAX('TABLA DE DECISION'!BQ$159:BQ$208)-'TABLA DE DECISION'!BQ170,'TABLA DE DECISION'!BQ170-MIN('TABLA DE DECISION'!BQ$159:BQ$208))) ->  | M14: =IF('TABLA DE DECISION'!BR170="","",IF('TABLA DE DECISION'!$A$156=1,MAX('TABLA DE DECISION'!BR$159:BR$208)-'TABLA DE DECISION'!BR170,'TABLA DE DECISION'!BR170-MIN('TABLA DE DECISION'!BR$159:BR$208))) ->  | N14: =IF('TABLA DE DECISION'!BS170="","",IF('TABLA DE DECISION'!$A$156=1,MAX('TABLA DE DECISION'!BS$159:BS$208)-'TABLA DE DECISION'!BS170,'TABLA DE DECISION'!BS170-MIN('TABLA DE DECISION'!BS$159:BS$208))) ->  | O14: =IF('TABLA DE DECISION'!BT170="","",IF('TABLA DE DECISION'!$A$156=1,MAX('TABLA DE DECISION'!BT$159:BT$208)-'TABLA DE DECISION'!BT170,'TABLA DE DECISION'!BT170-MIN('TABLA DE DECISION'!BT$159:BT$208))) ->  | P14: =IF('TABLA DE DECISION'!BU170="","",IF('TABLA DE DECISION'!$A$156=1,MAX('TABLA DE DECISION'!BU$159:BU$208)-'TABLA DE DECISION'!BU170,'TABLA DE DECISION'!BU170-MIN('TABLA DE DECISION'!BU$159:BU$208))) ->  | Q14: =IF('TABLA DE DECISION'!BV170="","",IF('TABLA DE DECISION'!$A$156=1,MAX('TABLA DE DECISION'!BV$159:BV$208)-'TABLA DE DECISION'!BV170,'TABLA DE DECISION'!BV170-MIN('TABLA DE DECISION'!BV$159:BV$208))) ->  | R14: =IF('TABLA DE DECISION'!BW170="","",IF('TABLA DE DECISION'!$A$156=1,MAX('TABLA DE DECISION'!BW$159:BW$208)-'TABLA DE DECISION'!BW170,'TABLA DE DECISION'!BW170-MIN('TABLA DE DECISION'!BW$159:BW$208))) ->  | S14: =IF('TABLA DE DECISION'!BX170="","",IF('TABLA DE DECISION'!$A$156=1,MAX('TABLA DE DECISION'!BX$159:BX$208)-'TABLA DE DECISION'!BX170,'TABLA DE DECISION'!BX170-MIN('TABLA DE DECISION'!BX$159:BX$208))) ->  | T14: =IF('TABLA DE DECISION'!BY170="","",IF('TABLA DE DECISION'!$A$156=1,MAX('TABLA DE DECISION'!BY$159:BY$208)-'TABLA DE DECISION'!BY170,'TABLA DE DECISION'!BY170-MIN('TABLA DE DECISION'!BY$159:BY$208))) ->  | U14: =IF('TABLA DE DECISION'!BZ170="","",IF('TABLA DE DECISION'!$A$156=1,MAX('TABLA DE DECISION'!BZ$159:BZ$208)-'TABLA DE DECISION'!BZ170,'TABLA DE DECISION'!BZ170-MIN('TABLA DE DECISION'!BZ$159:BZ$208))) ->  | V14: =IF('TABLA DE DECISION'!CA170="","",IF('TABLA DE DECISION'!$A$156=1,MAX('TABLA DE DECISION'!CA$159:CA$208)-'TABLA DE DECISION'!CA170,'TABLA DE DECISION'!CA170-MIN('TABLA DE DECISION'!CA$159:CA$208))) ->  | W14: =IF('TABLA DE DECISION'!CB170="","",IF('TABLA DE DECISION'!$A$156=1,MAX('TABLA DE DECISION'!CB$159:CB$208)-'TABLA DE DECISION'!CB170,'TABLA DE DECISION'!CB170-MIN('TABLA DE DECISION'!CB$159:CB$208))) ->  | X14: =IF('TABLA DE DECISION'!CC170="","",IF('TABLA DE DECISION'!$A$156=1,MAX('TABLA DE DECISION'!CC$159:CC$208)-'TABLA DE DECISION'!CC170,'TABLA DE DECISION'!CC170-MIN('TABLA DE DECISION'!CC$159:CC$208))) ->  | Y14: =IF('TABLA DE DECISION'!CD170="","",IF('TABLA DE DECISION'!$A$156=1,MAX('TABLA DE DECISION'!CD$159:CD$208)-'TABLA DE DECISION'!CD170,'TABLA DE DECISION'!CD170-MIN('TABLA DE DECISION'!CD$159:CD$208))) ->  | Z14: =IF('TABLA DE DECISION'!CE170="","",IF('TABLA DE DECISION'!$A$156=1,MAX('TABLA DE DECISION'!CE$159:CE$208)-'TABLA DE DECISION'!CE170,'TABLA DE DECISION'!CE170-MIN('TABLA DE DECISION'!CE$159:CE$208))) ->  | AA14: =IF('TABLA DE DECISION'!CF170="","",IF('TABLA DE DECISION'!$A$156=1,MAX('TABLA DE DECISION'!CF$159:CF$208)-'TABLA DE DECISION'!CF170,'TABLA DE DECISION'!CF170-MIN('TABLA DE DECISION'!CF$159:CF$208))) ->  | AB14: =IF('TABLA DE DECISION'!CG170="","",IF('TABLA DE DECISION'!$A$156=1,MAX('TABLA DE DECISION'!CG$159:CG$208)-'TABLA DE DECISION'!CG170,'TABLA DE DECISION'!CG170-MIN('TABLA DE DECISION'!CG$159:CG$208))) ->  | AC14: =IF('TABLA DE DECISION'!CH170="","",IF('TABLA DE DECISION'!$A$156=1,MAX('TABLA DE DECISION'!CH$159:CH$208)-'TABLA DE DECISION'!CH170,'TABLA DE DECISION'!CH170-MIN('TABLA DE DECISION'!CH$159:CH$208))) ->  | AD14: =IF('TABLA DE DECISION'!CI170="","",IF('TABLA DE DECISION'!$A$156=1,MAX('TABLA DE DECISION'!CI$159:CI$208)-'TABLA DE DECISION'!CI170,'TABLA DE DECISION'!CI170-MIN('TABLA DE DECISION'!CI$159:CI$208))) ->  | AE14: =IF('TABLA DE DECISION'!CJ170="","",IF('TABLA DE DECISION'!$A$156=1,MAX('TABLA DE DECISION'!CJ$159:CJ$208)-'TABLA DE DECISION'!CJ170,'TABLA DE DECISION'!CJ170-MIN('TABLA DE DECISION'!CJ$159:CJ$208))) ->  | AF14: =IF('TABLA DE DECISION'!CK170="","",IF('TABLA DE DECISION'!$A$156=1,MAX('TABLA DE DECISION'!CK$159:CK$208)-'TABLA DE DECISION'!CK170,'TABLA DE DECISION'!CK170-MIN('TABLA DE DECISION'!CK$159:CK$208))) ->  | AG14: =IF('TABLA DE DECISION'!CL170="","",IF('TABLA DE DECISION'!$A$156=1,MAX('TABLA DE DECISION'!CL$159:CL$208)-'TABLA DE DECISION'!CL170,'TABLA DE DECISION'!CL170-MIN('TABLA DE DECISION'!CL$159:CL$208))) ->  | AH14: =IF('TABLA DE DECISION'!CM170="","",IF('TABLA DE DECISION'!$A$156=1,MAX('TABLA DE DECISION'!CM$159:CM$208)-'TABLA DE DECISION'!CM170,'TABLA DE DECISION'!CM170-MIN('TABLA DE DECISION'!CM$159:CM$208))) ->  | AI14: =IF('TABLA DE DECISION'!CN170="","",IF('TABLA DE DECISION'!$A$156=1,MAX('TABLA DE DECISION'!CN$159:CN$208)-'TABLA DE DECISION'!CN170,'TABLA DE DECISION'!CN170-MIN('TABLA DE DECISION'!CN$159:CN$208))) ->  | AJ14: =IF('TABLA DE DECISION'!CO170="","",IF('TABLA DE DECISION'!$A$156=1,MAX('TABLA DE DECISION'!CO$159:CO$208)-'TABLA DE DECISION'!CO170,'TABLA DE DECISION'!CO170-MIN('TABLA DE DECISION'!CO$159:CO$208))) ->  | AK14: =IF('TABLA DE DECISION'!CP170="","",IF('TABLA DE DECISION'!$A$156=1,MAX('TABLA DE DECISION'!CP$159:CP$208)-'TABLA DE DECISION'!CP170,'TABLA DE DECISION'!CP170-MIN('TABLA DE DECISION'!CP$159:CP$208))) ->  | AL14: =IF('TABLA DE DECISION'!CQ170="","",IF('TABLA DE DECISION'!$A$156=1,MAX('TABLA DE DECISION'!CQ$159:CQ$208)-'TABLA DE DECISION'!CQ170,'TABLA DE DECISION'!CQ170-MIN('TABLA DE DECISION'!CQ$159:CQ$208))) ->  | AM14: =IF('TABLA DE DECISION'!CR170="","",IF('TABLA DE DECISION'!$A$156=1,MAX('TABLA DE DECISION'!CR$159:CR$208)-'TABLA DE DECISION'!CR170,'TABLA DE DECISION'!CR170-MIN('TABLA DE DECISION'!CR$159:CR$208))) ->  | AN14: =IF('TABLA DE DECISION'!CS170="","",IF('TABLA DE DECISION'!$A$156=1,MAX('TABLA DE DECISION'!CS$159:CS$208)-'TABLA DE DECISION'!CS170,'TABLA DE DECISION'!CS170-MIN('TABLA DE DECISION'!CS$159:CS$208))) ->  | AO14: =IF('TABLA DE DECISION'!CT170="","",IF('TABLA DE DECISION'!$A$156=1,MAX('TABLA DE DECISION'!CT$159:CT$208)-'TABLA DE DECISION'!CT170,'TABLA DE DECISION'!CT170-MIN('TABLA DE DECISION'!CT$159:CT$208))) ->  | AP14: =IF('TABLA DE DECISION'!CU170="","",IF('TABLA DE DECISION'!$A$156=1,MAX('TABLA DE DECISION'!CU$159:CU$208)-'TABLA DE DECISION'!CU170,'TABLA DE DECISION'!CU170-MIN('TABLA DE DECISION'!CU$159:CU$208))) ->  | AQ14: =IF('TABLA DE DECISION'!CV170="","",IF('TABLA DE DECISION'!$A$156=1,MAX('TABLA DE DECISION'!CV$159:CV$208)-'TABLA DE DECISION'!CV170,'TABLA DE DECISION'!CV170-MIN('TABLA DE DECISION'!CV$159:CV$208))) ->  | AR14: =IF('TABLA DE DECISION'!CW170="","",IF('TABLA DE DECISION'!$A$156=1,MAX('TABLA DE DECISION'!CW$159:CW$208)-'TABLA DE DECISION'!CW170,'TABLA DE DECISION'!CW170-MIN('TABLA DE DECISION'!CW$159:CW$208))) ->  | AS14: =IF('TABLA DE DECISION'!CX170="","",IF('TABLA DE DECISION'!$A$156=1,MAX('TABLA DE DECISION'!CX$159:CX$208)-'TABLA DE DECISION'!CX170,'TABLA DE DECISION'!CX170-MIN('TABLA DE DECISION'!CX$159:CX$208))) ->  | AT14: =IF('TABLA DE DECISION'!CY170="","",IF('TABLA DE DECISION'!$A$156=1,MAX('TABLA DE DECISION'!CY$159:CY$208)-'TABLA DE DECISION'!CY170,'TABLA DE DECISION'!CY170-MIN('TABLA DE DECISION'!CY$159:CY$208))) ->  | AU14: =IF('TABLA DE DECISION'!CZ170="","",IF('TABLA DE DECISION'!$A$156=1,MAX('TABLA DE DECISION'!CZ$159:CZ$208)-'TABLA DE DECISION'!CZ170,'TABLA DE DECISION'!CZ170-MIN('TABLA DE DECISION'!CZ$159:CZ$208))) ->  | AV14: =IF('TABLA DE DECISION'!DA170="","",IF('TABLA DE DECISION'!$A$156=1,MAX('TABLA DE DECISION'!DA$159:DA$208)-'TABLA DE DECISION'!DA170,'TABLA DE DECISION'!DA170-MIN('TABLA DE DECISION'!DA$159:DA$208))) ->  | AW14: =IF('TABLA DE DECISION'!DB170="","",IF('TABLA DE DECISION'!$A$156=1,MAX('TABLA DE DECISION'!DB$159:DB$208)-'TABLA DE DECISION'!DB170,'TABLA DE DECISION'!DB170-MIN('TABLA DE DECISION'!DB$159:DB$208))) ->  | AX14: =IF('TABLA DE DECISION'!DC170="","",IF('TABLA DE DECISION'!$A$156=1,MAX('TABLA DE DECISION'!DC$159:DC$208)-'TABLA DE DECISION'!DC170,'TABLA DE DECISION'!DC170-MIN('TABLA DE DECISION'!DC$159:DC$208))) ->  | AY14: =IF('TABLA DE DECISION'!DD170="","",IF('TABLA DE DECISION'!$A$156=1,MAX('TABLA DE DECISION'!DD$159:DD$208)-'TABLA DE DECISION'!DD170,'TABLA DE DECISION'!DD170-MIN('TABLA DE DECISION'!DD$159:DD$208))) ->  | AZ14: =IF('TABLA DE DECISION'!DE170="","",IF('TABLA DE DECISION'!$A$156=1,MAX('TABLA DE DECISION'!DE$159:DE$208)-'TABLA DE DECISION'!DE170,'TABLA DE DECISION'!DE170-MIN('TABLA DE DECISION'!DE$159:DE$208))) ->  | BB14: =IF(C14="","",SUMPRODUCT(C14:AZ14,'TABLA DE DECISION'!BH$156:DE$156)) -> 
A15: =IF('TABLA DE DECISION'!BF171="","",'TABLA DE DECISION'!BF171) ->  | B15: =IF('TABLA DE DECISION'!BG171="","",'TABLA DE DECISION'!BG171) -> a13 | C15: =IF('TABLA DE DECISION'!BH171="","",IF('TABLA DE DECISION'!$A$156=1,MAX('TABLA DE DECISION'!BH$159:BH$208)-'TABLA DE DECISION'!BH171,'TABLA DE DECISION'!BH171-MIN('TABLA DE DECISION'!BH$159:BH$208))) ->  | D15: =IF('TABLA DE DECISION'!BI171="","",IF('TABLA DE DECISION'!$A$156=1,MAX('TABLA DE DECISION'!BI$159:BI$208)-'TABLA DE DECISION'!BI171,'TABLA DE DECISION'!BI171-MIN('TABLA DE DECISION'!BI$159:BI$208))) ->  | E15: =IF('TABLA DE DECISION'!BJ171="","",IF('TABLA DE DECISION'!$A$156=1,MAX('TABLA DE DECISION'!BJ$159:BJ$208)-'TABLA DE DECISION'!BJ171,'TABLA DE DECISION'!BJ171-MIN('TABLA DE DECISION'!BJ$159:BJ$208))) ->  | F15: =IF('TABLA DE DECISION'!BK171="","",IF('TABLA DE DECISION'!$A$156=1,MAX('TABLA DE DECISION'!BK$159:BK$208)-'TABLA DE DECISION'!BK171,'TABLA DE DECISION'!BK171-MIN('TABLA DE DECISION'!BK$159:BK$208))) ->  | G15: =IF('TABLA DE DECISION'!BL171="","",IF('TABLA DE DECISION'!$A$156=1,MAX('TABLA DE DECISION'!BL$159:BL$208)-'TABLA DE DECISION'!BL171,'TABLA DE DECISION'!BL171-MIN('TABLA DE DECISION'!BL$159:BL$208))) ->  | H15: =IF('TABLA DE DECISION'!BM171="","",IF('TABLA DE DECISION'!$A$156=1,MAX('TABLA DE DECISION'!BM$159:BM$208)-'TABLA DE DECISION'!BM171,'TABLA DE DECISION'!BM171-MIN('TABLA DE DECISION'!BM$159:BM$208))) ->  | I15: =IF('TABLA DE DECISION'!BN171="","",IF('TABLA DE DECISION'!$A$156=1,MAX('TABLA DE DECISION'!BN$159:BN$208)-'TABLA DE DECISION'!BN171,'TABLA DE DECISION'!BN171-MIN('TABLA DE DECISION'!BN$159:BN$208))) ->  | J15: =IF('TABLA DE DECISION'!BO171="","",IF('TABLA DE DECISION'!$A$156=1,MAX('TABLA DE DECISION'!BO$159:BO$208)-'TABLA DE DECISION'!BO171,'TABLA DE DECISION'!BO171-MIN('TABLA DE DECISION'!BO$159:BO$208))) ->  | K15: =IF('TABLA DE DECISION'!BP171="","",IF('TABLA DE DECISION'!$A$156=1,MAX('TABLA DE DECISION'!BP$159:BP$208)-'TABLA DE DECISION'!BP171,'TABLA DE DECISION'!BP171-MIN('TABLA DE DECISION'!BP$159:BP$208))) ->  | L15: =IF('TABLA DE DECISION'!BQ171="","",IF('TABLA DE DECISION'!$A$156=1,MAX('TABLA DE DECISION'!BQ$159:BQ$208)-'TABLA DE DECISION'!BQ171,'TABLA DE DECISION'!BQ171-MIN('TABLA DE DECISION'!BQ$159:BQ$208))) ->  | M15: =IF('TABLA DE DECISION'!BR171="","",IF('TABLA DE DECISION'!$A$156=1,MAX('TABLA DE DECISION'!BR$159:BR$208)-'TABLA DE DECISION'!BR171,'TABLA DE DECISION'!BR171-MIN('TABLA DE DECISION'!BR$159:BR$208))) ->  | N15: =IF('TABLA DE DECISION'!BS171="","",IF('TABLA DE DECISION'!$A$156=1,MAX('TABLA DE DECISION'!BS$159:BS$208)-'TABLA DE DECISION'!BS171,'TABLA DE DECISION'!BS171-MIN('TABLA DE DECISION'!BS$159:BS$208))) ->  | O15: =IF('TABLA DE DECISION'!BT171="","",IF('TABLA DE DECISION'!$A$156=1,MAX('TABLA DE DECISION'!BT$159:BT$208)-'TABLA DE DECISION'!BT171,'TABLA DE DECISION'!BT171-MIN('TABLA DE DECISION'!BT$159:BT$208))) ->  | P15: =IF('TABLA DE DECISION'!BU171="","",IF('TABLA DE DECISION'!$A$156=1,MAX('TABLA DE DECISION'!BU$159:BU$208)-'TABLA DE DECISION'!BU171,'TABLA DE DECISION'!BU171-MIN('TABLA DE DECISION'!BU$159:BU$208))) ->  | Q15: =IF('TABLA DE DECISION'!BV171="","",IF('TABLA DE DECISION'!$A$156=1,MAX('TABLA DE DECISION'!BV$159:BV$208)-'TABLA DE DECISION'!BV171,'TABLA DE DECISION'!BV171-MIN('TABLA DE DECISION'!BV$159:BV$208))) ->  | R15: =IF('TABLA DE DECISION'!BW171="","",IF('TABLA DE DECISION'!$A$156=1,MAX('TABLA DE DECISION'!BW$159:BW$208)-'TABLA DE DECISION'!BW171,'TABLA DE DECISION'!BW171-MIN('TABLA DE DECISION'!BW$159:BW$208))) ->  | S15: =IF('TABLA DE DECISION'!BX171="","",IF('TABLA DE DECISION'!$A$156=1,MAX('TABLA DE DECISION'!BX$159:BX$208)-'TABLA DE DECISION'!BX171,'TABLA DE DECISION'!BX171-MIN('TABLA DE DECISION'!BX$159:BX$208))) ->  | T15: =IF('TABLA DE DECISION'!BY171="","",IF('TABLA DE DECISION'!$A$156=1,MAX('TABLA DE DECISION'!BY$159:BY$208)-'TABLA DE DECISION'!BY171,'TABLA DE DECISION'!BY171-MIN('TABLA DE DECISION'!BY$159:BY$208))) ->  | U15: =IF('TABLA DE DECISION'!BZ171="","",IF('TABLA DE DECISION'!$A$156=1,MAX('TABLA DE DECISION'!BZ$159:BZ$208)-'TABLA DE DECISION'!BZ171,'TABLA DE DECISION'!BZ171-MIN('TABLA DE DECISION'!BZ$159:BZ$208))) ->  | V15: =IF('TABLA DE DECISION'!CA171="","",IF('TABLA DE DECISION'!$A$156=1,MAX('TABLA DE DECISION'!CA$159:CA$208)-'TABLA DE DECISION'!CA171,'TABLA DE DECISION'!CA171-MIN('TABLA DE DECISION'!CA$159:CA$208))) ->  | W15: =IF('TABLA DE DECISION'!CB171="","",IF('TABLA DE DECISION'!$A$156=1,MAX('TABLA DE DECISION'!CB$159:CB$208)-'TABLA DE DECISION'!CB171,'TABLA DE DECISION'!CB171-MIN('TABLA DE DECISION'!CB$159:CB$208))) ->  | X15: =IF('TABLA DE DECISION'!CC171="","",IF('TABLA DE DECISION'!$A$156=1,MAX('TABLA DE DECISION'!CC$159:CC$208)-'TABLA DE DECISION'!CC171,'TABLA DE DECISION'!CC171-MIN('TABLA DE DECISION'!CC$159:CC$208))) ->  | Y15: =IF('TABLA DE DECISION'!CD171="","",IF('TABLA DE DECISION'!$A$156=1,MAX('TABLA DE DECISION'!CD$159:CD$208)-'TABLA DE DECISION'!CD171,'TABLA DE DECISION'!CD171-MIN('TABLA DE DECISION'!CD$159:CD$208))) ->  | Z15: =IF('TABLA DE DECISION'!CE171="","",IF('TABLA DE DECISION'!$A$156=1,MAX('TABLA DE DECISION'!CE$159:CE$208)-'TABLA DE DECISION'!CE171,'TABLA DE DECISION'!CE171-MIN('TABLA DE DECISION'!CE$159:CE$208))) ->  | AA15: =IF('TABLA DE DECISION'!CF171="","",IF('TABLA DE DECISION'!$A$156=1,MAX('TABLA DE DECISION'!CF$159:CF$208)-'TABLA DE DECISION'!CF171,'TABLA DE DECISION'!CF171-MIN('TABLA DE DECISION'!CF$159:CF$208))) ->  | AB15: =IF('TABLA DE DECISION'!CG171="","",IF('TABLA DE DECISION'!$A$156=1,MAX('TABLA DE DECISION'!CG$159:CG$208)-'TABLA DE DECISION'!CG171,'TABLA DE DECISION'!CG171-MIN('TABLA DE DECISION'!CG$159:CG$208))) ->  | AC15: =IF('TABLA DE DECISION'!CH171="","",IF('TABLA DE DECISION'!$A$156=1,MAX('TABLA DE DECISION'!CH$159:CH$208)-'TABLA DE DECISION'!CH171,'TABLA DE DECISION'!CH171-MIN('TABLA DE DECISION'!CH$159:CH$208))) ->  | AD15: =IF('TABLA DE DECISION'!CI171="","",IF('TABLA DE DECISION'!$A$156=1,MAX('TABLA DE DECISION'!CI$159:CI$208)-'TABLA DE DECISION'!CI171,'TABLA DE DECISION'!CI171-MIN('TABLA DE DECISION'!CI$159:CI$208))) ->  | AE15: =IF('TABLA DE DECISION'!CJ171="","",IF('TABLA DE DECISION'!$A$156=1,MAX('TABLA DE DECISION'!CJ$159:CJ$208)-'TABLA DE DECISION'!CJ171,'TABLA DE DECISION'!CJ171-MIN('TABLA DE DECISION'!CJ$159:CJ$208))) ->  | AF15: =IF('TABLA DE DECISION'!CK171="","",IF('TABLA DE DECISION'!$A$156=1,MAX('TABLA DE DECISION'!CK$159:CK$208)-'TABLA DE DECISION'!CK171,'TABLA DE DECISION'!CK171-MIN('TABLA DE DECISION'!CK$159:CK$208))) ->  | AG15: =IF('TABLA DE DECISION'!CL171="","",IF('TABLA DE DECISION'!$A$156=1,MAX('TABLA DE DECISION'!CL$159:CL$208)-'TABLA DE DECISION'!CL171,'TABLA DE DECISION'!CL171-MIN('TABLA DE DECISION'!CL$159:CL$208))) ->  | AH15: =IF('TABLA DE DECISION'!CM171="","",IF('TABLA DE DECISION'!$A$156=1,MAX('TABLA DE DECISION'!CM$159:CM$208)-'TABLA DE DECISION'!CM171,'TABLA DE DECISION'!CM171-MIN('TABLA DE DECISION'!CM$159:CM$208))) ->  | AI15: =IF('TABLA DE DECISION'!CN171="","",IF('TABLA DE DECISION'!$A$156=1,MAX('TABLA DE DECISION'!CN$159:CN$208)-'TABLA DE DECISION'!CN171,'TABLA DE DECISION'!CN171-MIN('TABLA DE DECISION'!CN$159:CN$208))) ->  | AJ15: =IF('TABLA DE DECISION'!CO171="","",IF('TABLA DE DECISION'!$A$156=1,MAX('TABLA DE DECISION'!CO$159:CO$208)-'TABLA DE DECISION'!CO171,'TABLA DE DECISION'!CO171-MIN('TABLA DE DECISION'!CO$159:CO$208))) ->  | AK15: =IF('TABLA DE DECISION'!CP171="","",IF('TABLA DE DECISION'!$A$156=1,MAX('TABLA DE DECISION'!CP$159:CP$208)-'TABLA DE DECISION'!CP171,'TABLA DE DECISION'!CP171-MIN('TABLA DE DECISION'!CP$159:CP$208))) ->  | AL15: =IF('TABLA DE DECISION'!CQ171="","",IF('TABLA DE DECISION'!$A$156=1,MAX('TABLA DE DECISION'!CQ$159:CQ$208)-'TABLA DE DECISION'!CQ171,'TABLA DE DECISION'!CQ171-MIN('TABLA DE DECISION'!CQ$159:CQ$208))) ->  | AM15: =IF('TABLA DE DECISION'!CR171="","",IF('TABLA DE DECISION'!$A$156=1,MAX('TABLA DE DECISION'!CR$159:CR$208)-'TABLA DE DECISION'!CR171,'TABLA DE DECISION'!CR171-MIN('TABLA DE DECISION'!CR$159:CR$208))) ->  | AN15: =IF('TABLA DE DECISION'!CS171="","",IF('TABLA DE DECISION'!$A$156=1,MAX('TABLA DE DECISION'!CS$159:CS$208)-'TABLA DE DECISION'!CS171,'TABLA DE DECISION'!CS171-MIN('TABLA DE DECISION'!CS$159:CS$208))) ->  | AO15: =IF('TABLA DE DECISION'!CT171="","",IF('TABLA DE DECISION'!$A$156=1,MAX('TABLA DE DECISION'!CT$159:CT$208)-'TABLA DE DECISION'!CT171,'TABLA DE DECISION'!CT171-MIN('TABLA DE DECISION'!CT$159:CT$208))) ->  | AP15: =IF('TABLA DE DECISION'!CU171="","",IF('TABLA DE DECISION'!$A$156=1,MAX('TABLA DE DECISION'!CU$159:CU$208)-'TABLA DE DECISION'!CU171,'TABLA DE DECISION'!CU171-MIN('TABLA DE DECISION'!CU$159:CU$208))) ->  | AQ15: =IF('TABLA DE DECISION'!CV171="","",IF('TABLA DE DECISION'!$A$156=1,MAX('TABLA DE DECISION'!CV$159:CV$208)-'TABLA DE DECISION'!CV171,'TABLA DE DECISION'!CV171-MIN('TABLA DE DECISION'!CV$159:CV$208))) ->  | AR15: =IF('TABLA DE DECISION'!CW171="","",IF('TABLA DE DECISION'!$A$156=1,MAX('TABLA DE DECISION'!CW$159:CW$208)-'TABLA DE DECISION'!CW171,'TABLA DE DECISION'!CW171-MIN('TABLA DE DECISION'!CW$159:CW$208))) ->  | AS15: =IF('TABLA DE DECISION'!CX171="","",IF('TABLA DE DECISION'!$A$156=1,MAX('TABLA DE DECISION'!CX$159:CX$208)-'TABLA DE DECISION'!CX171,'TABLA DE DECISION'!CX171-MIN('TABLA DE DECISION'!CX$159:CX$208))) ->  | AT15: =IF('TABLA DE DECISION'!CY171="","",IF('TABLA DE DECISION'!$A$156=1,MAX('TABLA DE DECISION'!CY$159:CY$208)-'TABLA DE DECISION'!CY171,'TABLA DE DECISION'!CY171-MIN('TABLA DE DECISION'!CY$159:CY$208))) ->  | AU15: =IF('TABLA DE DECISION'!CZ171="","",IF('TABLA DE DECISION'!$A$156=1,MAX('TABLA DE DECISION'!CZ$159:CZ$208)-'TABLA DE DECISION'!CZ171,'TABLA DE DECISION'!CZ171-MIN('TABLA DE DECISION'!CZ$159:CZ$208))) ->  | AV15: =IF('TABLA DE DECISION'!DA171="","",IF('TABLA DE DECISION'!$A$156=1,MAX('TABLA DE DECISION'!DA$159:DA$208)-'TABLA DE DECISION'!DA171,'TABLA DE DECISION'!DA171-MIN('TABLA DE DECISION'!DA$159:DA$208))) ->  | AW15: =IF('TABLA DE DECISION'!DB171="","",IF('TABLA DE DECISION'!$A$156=1,MAX('TABLA DE DECISION'!DB$159:DB$208)-'TABLA DE DECISION'!DB171,'TABLA DE DECISION'!DB171-MIN('TABLA DE DECISION'!DB$159:DB$208))) ->  | AX15: =IF('TABLA DE DECISION'!DC171="","",IF('TABLA DE DECISION'!$A$156=1,MAX('TABLA DE DECISION'!DC$159:DC$208)-'TABLA DE DECISION'!DC171,'TABLA DE DECISION'!DC171-MIN('TABLA DE DECISION'!DC$159:DC$208))) ->  | AY15: =IF('TABLA DE DECISION'!DD171="","",IF('TABLA DE DECISION'!$A$156=1,MAX('TABLA DE DECISION'!DD$159:DD$208)-'TABLA DE DECISION'!DD171,'TABLA DE DECISION'!DD171-MIN('TABLA DE DECISION'!DD$159:DD$208))) ->  | AZ15: =IF('TABLA DE DECISION'!DE171="","",IF('TABLA DE DECISION'!$A$156=1,MAX('TABLA DE DECISION'!DE$159:DE$208)-'TABLA DE DECISION'!DE171,'TABLA DE DECISION'!DE171-MIN('TABLA DE DECISION'!DE$159:DE$208))) ->  | BB15: =IF(C15="","",SUMPRODUCT(C15:AZ15,'TABLA DE DECISION'!BH$156:DE$156)) -> 
A16: =IF('TABLA DE DECISION'!BF172="","",'TABLA DE DECISION'!BF172) ->  | B16: =IF('TABLA DE DECISION'!BG172="","",'TABLA DE DECISION'!BG172) -> a14 | C16: =IF('TABLA DE DECISION'!BH172="","",IF('TABLA DE DECISION'!$A$156=1,MAX('TABLA DE DECISION'!BH$159:BH$208)-'TABLA DE DECISION'!BH172,'TABLA DE DECISION'!BH172-MIN('TABLA DE DECISION'!BH$159:BH$208))) ->  | D16: =IF('TABLA DE DECISION'!BI172="","",IF('TABLA DE DECISION'!$A$156=1,MAX('TABLA DE DECISION'!BI$159:BI$208)-'TABLA DE DECISION'!BI172,'TABLA DE DECISION'!BI172-MIN('TABLA DE DECISION'!BI$159:BI$208))) ->  | E16: =IF('TABLA DE DECISION'!BJ172="","",IF('TABLA DE DECISION'!$A$156=1,MAX('TABLA DE DECISION'!BJ$159:BJ$208)-'TABLA DE DECISION'!BJ172,'TABLA DE DECISION'!BJ172-MIN('TABLA DE DECISION'!BJ$159:BJ$208))) ->  | F16: =IF('TABLA DE DECISION'!BK172="","",IF('TABLA DE DECISION'!$A$156=1,MAX('TABLA DE DECISION'!BK$159:BK$208)-'TABLA DE DECISION'!BK172,'TABLA DE DECISION'!BK172-MIN('TABLA DE DECISION'!BK$159:BK$208))) ->  | G16: =IF('TABLA DE DECISION'!BL172="","",IF('TABLA DE DECISION'!$A$156=1,MAX('TABLA DE DECISION'!BL$159:BL$208)-'TABLA DE DECISION'!BL172,'TABLA DE DECISION'!BL172-MIN('TABLA DE DECISION'!BL$159:BL$208))) ->  | H16: =IF('TABLA DE DECISION'!BM172="","",IF('TABLA DE DECISION'!$A$156=1,MAX('TABLA DE DECISION'!BM$159:BM$208)-'TABLA DE DECISION'!BM172,'TABLA DE DECISION'!BM172-MIN('TABLA DE DECISION'!BM$159:BM$208))) ->  | I16: =IF('TABLA DE DECISION'!BN172="","",IF('TABLA DE DECISION'!$A$156=1,MAX('TABLA DE DECISION'!BN$159:BN$208)-'TABLA DE DECISION'!BN172,'TABLA DE DECISION'!BN172-MIN('TABLA DE DECISION'!BN$159:BN$208))) ->  | J16: =IF('TABLA DE DECISION'!BO172="","",IF('TABLA DE DECISION'!$A$156=1,MAX('TABLA DE DECISION'!BO$159:BO$208)-'TABLA DE DECISION'!BO172,'TABLA DE DECISION'!BO172-MIN('TABLA DE DECISION'!BO$159:BO$208))) ->  | K16: =IF('TABLA DE DECISION'!BP172="","",IF('TABLA DE DECISION'!$A$156=1,MAX('TABLA DE DECISION'!BP$159:BP$208)-'TABLA DE DECISION'!BP172,'TABLA DE DECISION'!BP172-MIN('TABLA DE DECISION'!BP$159:BP$208))) ->  | L16: =IF('TABLA DE DECISION'!BQ172="","",IF('TABLA DE DECISION'!$A$156=1,MAX('TABLA DE DECISION'!BQ$159:BQ$208)-'TABLA DE DECISION'!BQ172,'TABLA DE DECISION'!BQ172-MIN('TABLA DE DECISION'!BQ$159:BQ$208))) ->  | M16: =IF('TABLA DE DECISION'!BR172="","",IF('TABLA DE DECISION'!$A$156=1,MAX('TABLA DE DECISION'!BR$159:BR$208)-'TABLA DE DECISION'!BR172,'TABLA DE DECISION'!BR172-MIN('TABLA DE DECISION'!BR$159:BR$208))) ->  | N16: =IF('TABLA DE DECISION'!BS172="","",IF('TABLA DE DECISION'!$A$156=1,MAX('TABLA DE DECISION'!BS$159:BS$208)-'TABLA DE DECISION'!BS172,'TABLA DE DECISION'!BS172-MIN('TABLA DE DECISION'!BS$159:BS$208))) ->  | O16: =IF('TABLA DE DECISION'!BT172="","",IF('TABLA DE DECISION'!$A$156=1,MAX('TABLA DE DECISION'!BT$159:BT$208)-'TABLA DE DECISION'!BT172,'TABLA DE DECISION'!BT172-MIN('TABLA DE DECISION'!BT$159:BT$208))) ->  | P16: =IF('TABLA DE DECISION'!BU172="","",IF('TABLA DE DECISION'!$A$156=1,MAX('TABLA DE DECISION'!BU$159:BU$208)-'TABLA DE DECISION'!BU172,'TABLA DE DECISION'!BU172-MIN('TABLA DE DECISION'!BU$159:BU$208))) ->  | Q16: =IF('TABLA DE DECISION'!BV172="","",IF('TABLA DE DECISION'!$A$156=1,MAX('TABLA DE DECISION'!BV$159:BV$208)-'TABLA DE DECISION'!BV172,'TABLA DE DECISION'!BV172-MIN('TABLA DE DECISION'!BV$159:BV$208))) ->  | R16: =IF('TABLA DE DECISION'!BW172="","",IF('TABLA DE DECISION'!$A$156=1,MAX('TABLA DE DECISION'!BW$159:BW$208)-'TABLA DE DECISION'!BW172,'TABLA DE DECISION'!BW172-MIN('TABLA DE DECISION'!BW$159:BW$208))) ->  | S16: =IF('TABLA DE DECISION'!BX172="","",IF('TABLA DE DECISION'!$A$156=1,MAX('TABLA DE DECISION'!BX$159:BX$208)-'TABLA DE DECISION'!BX172,'TABLA DE DECISION'!BX172-MIN('TABLA DE DECISION'!BX$159:BX$208))) ->  | T16: =IF('TABLA DE DECISION'!BY172="","",IF('TABLA DE DECISION'!$A$156=1,MAX('TABLA DE DECISION'!BY$159:BY$208)-'TABLA DE DECISION'!BY172,'TABLA DE DECISION'!BY172-MIN('TABLA DE DECISION'!BY$159:BY$208))) ->  | U16: =IF('TABLA DE DECISION'!BZ172="","",IF('TABLA DE DECISION'!$A$156=1,MAX('TABLA DE DECISION'!BZ$159:BZ$208)-'TABLA DE DECISION'!BZ172,'TABLA DE DECISION'!BZ172-MIN('TABLA DE DECISION'!BZ$159:BZ$208))) ->  | V16: =IF('TABLA DE DECISION'!CA172="","",IF('TABLA DE DECISION'!$A$156=1,MAX('TABLA DE DECISION'!CA$159:CA$208)-'TABLA DE DECISION'!CA172,'TABLA DE DECISION'!CA172-MIN('TABLA DE DECISION'!CA$159:CA$208))) ->  | W16: =IF('TABLA DE DECISION'!CB172="","",IF('TABLA DE DECISION'!$A$156=1,MAX('TABLA DE DECISION'!CB$159:CB$208)-'TABLA DE DECISION'!CB172,'TABLA DE DECISION'!CB172-MIN('TABLA DE DECISION'!CB$159:CB$208))) ->  | X16: =IF('TABLA DE DECISION'!CC172="","",IF('TABLA DE DECISION'!$A$156=1,MAX('TABLA DE DECISION'!CC$159:CC$208)-'TABLA DE DECISION'!CC172,'TABLA DE DECISION'!CC172-MIN('TABLA DE DECISION'!CC$159:CC$208))) ->  | Y16: =IF('TABLA DE DECISION'!CD172="","",IF('TABLA DE DECISION'!$A$156=1,MAX('TABLA DE DECISION'!CD$159:CD$208)-'TABLA DE DECISION'!CD172,'TABLA DE DECISION'!CD172-MIN('TABLA DE DECISION'!CD$159:CD$208))) ->  | Z16: =IF('TABLA DE DECISION'!CE172="","",IF('TABLA DE DECISION'!$A$156=1,MAX('TABLA DE DECISION'!CE$159:CE$208)-'TABLA DE DECISION'!CE172,'TABLA DE DECISION'!CE172-MIN('TABLA DE DECISION'!CE$159:CE$208))) ->  | AA16: =IF('TABLA DE DECISION'!CF172="","",IF('TABLA DE DECISION'!$A$156=1,MAX('TABLA DE DECISION'!CF$159:CF$208)-'TABLA DE DECISION'!CF172,'TABLA DE DECISION'!CF172-MIN('TABLA DE DECISION'!CF$159:CF$208))) ->  | AB16: =IF('TABLA DE DECISION'!CG172="","",IF('TABLA DE DECISION'!$A$156=1,MAX('TABLA DE DECISION'!CG$159:CG$208)-'TABLA DE DECISION'!CG172,'TABLA DE DECISION'!CG172-MIN('TABLA DE DECISION'!CG$159:CG$208))) ->  | AC16: =IF('TABLA DE DECISION'!CH172="","",IF('TABLA DE DECISION'!$A$156=1,MAX('TABLA DE DECISION'!CH$159:CH$208)-'TABLA DE DECISION'!CH172,'TABLA DE DECISION'!CH172-MIN('TABLA DE DECISION'!CH$159:CH$208))) ->  | AD16: =IF('TABLA DE DECISION'!CI172="","",IF('TABLA DE DECISION'!$A$156=1,MAX('TABLA DE DECISION'!CI$159:CI$208)-'TABLA DE DECISION'!CI172,'TABLA DE DECISION'!CI172-MIN('TABLA DE DECISION'!CI$159:CI$208))) ->  | AE16: =IF('TABLA DE DECISION'!CJ172="","",IF('TABLA DE DECISION'!$A$156=1,MAX('TABLA DE DECISION'!CJ$159:CJ$208)-'TABLA DE DECISION'!CJ172,'TABLA DE DECISION'!CJ172-MIN('TABLA DE DECISION'!CJ$159:CJ$208))) ->  | AF16: =IF('TABLA DE DECISION'!CK172="","",IF('TABLA DE DECISION'!$A$156=1,MAX('TABLA DE DECISION'!CK$159:CK$208)-'TABLA DE DECISION'!CK172,'TABLA DE DECISION'!CK172-MIN('TABLA DE DECISION'!CK$159:CK$208))) ->  | AG16: =IF('TABLA DE DECISION'!CL172="","",IF('TABLA DE DECISION'!$A$156=1,MAX('TABLA DE DECISION'!CL$159:CL$208)-'TABLA DE DECISION'!CL172,'TABLA DE DECISION'!CL172-MIN('TABLA DE DECISION'!CL$159:CL$208))) ->  | AH16: =IF('TABLA DE DECISION'!CM172="","",IF('TABLA DE DECISION'!$A$156=1,MAX('TABLA DE DECISION'!CM$159:CM$208)-'TABLA DE DECISION'!CM172,'TABLA DE DECISION'!CM172-MIN('TABLA DE DECISION'!CM$159:CM$208))) ->  | AI16: =IF('TABLA DE DECISION'!CN172="","",IF('TABLA DE DECISION'!$A$156=1,MAX('TABLA DE DECISION'!CN$159:CN$208)-'TABLA DE DECISION'!CN172,'TABLA DE DECISION'!CN172-MIN('TABLA DE DECISION'!CN$159:CN$208))) ->  | AJ16: =IF('TABLA DE DECISION'!CO172="","",IF('TABLA DE DECISION'!$A$156=1,MAX('TABLA DE DECISION'!CO$159:CO$208)-'TABLA DE DECISION'!CO172,'TABLA DE DECISION'!CO172-MIN('TABLA DE DECISION'!CO$159:CO$208))) ->  | AK16: =IF('TABLA DE DECISION'!CP172="","",IF('TABLA DE DECISION'!$A$156=1,MAX('TABLA DE DECISION'!CP$159:CP$208)-'TABLA DE DECISION'!CP172,'TABLA DE DECISION'!CP172-MIN('TABLA DE DECISION'!CP$159:CP$208))) ->  | AL16: =IF('TABLA DE DECISION'!CQ172="","",IF('TABLA DE DECISION'!$A$156=1,MAX('TABLA DE DECISION'!CQ$159:CQ$208)-'TABLA DE DECISION'!CQ172,'TABLA DE DECISION'!CQ172-MIN('TABLA DE DECISION'!CQ$159:CQ$208))) ->  | AM16: =IF('TABLA DE DECISION'!CR172="","",IF('TABLA DE DECISION'!$A$156=1,MAX('TABLA DE DECISION'!CR$159:CR$208)-'TABLA DE DECISION'!CR172,'TABLA DE DECISION'!CR172-MIN('TABLA DE DECISION'!CR$159:CR$208))) ->  | AN16: =IF('TABLA DE DECISION'!CS172="","",IF('TABLA DE DECISION'!$A$156=1,MAX('TABLA DE DECISION'!CS$159:CS$208)-'TABLA DE DECISION'!CS172,'TABLA DE DECISION'!CS172-MIN('TABLA DE DECISION'!CS$159:CS$208))) ->  | AO16: =IF('TABLA DE DECISION'!CT172="","",IF('TABLA DE DECISION'!$A$156=1,MAX('TABLA DE DECISION'!CT$159:CT$208)-'TABLA DE DECISION'!CT172,'TABLA DE DECISION'!CT172-MIN('TABLA DE DECISION'!CT$159:CT$208))) ->  | AP16: =IF('TABLA DE DECISION'!CU172="","",IF('TABLA DE DECISION'!$A$156=1,MAX('TABLA DE DECISION'!CU$159:CU$208)-'TABLA DE DECISION'!CU172,'TABLA DE DECISION'!CU172-MIN('TABLA DE DECISION'!CU$159:CU$208))) ->  | AQ16: =IF('TABLA DE DECISION'!CV172="","",IF('TABLA DE DECISION'!$A$156=1,MAX('TABLA DE DECISION'!CV$159:CV$208)-'TABLA DE DECISION'!CV172,'TABLA DE DECISION'!CV172-MIN('TABLA DE DECISION'!CV$159:CV$208))) ->  | AR16: =IF('TABLA DE DECISION'!CW172="","",IF('TABLA DE DECISION'!$A$156=1,MAX('TABLA DE DECISION'!CW$159:CW$208)-'TABLA DE DECISION'!CW172,'TABLA DE DECISION'!CW172-MIN('TABLA DE DECISION'!CW$159:CW$208))) ->  | AS16: =IF('TABLA DE DECISION'!CX172="","",IF('TABLA DE DECISION'!$A$156=1,MAX('TABLA DE DECISION'!CX$159:CX$208)-'TABLA DE DECISION'!CX172,'TABLA DE DECISION'!CX172-MIN('TABLA DE DECISION'!CX$159:CX$208))) ->  | AT16: =IF('TABLA DE DECISION'!CY172="","",IF('TABLA DE DECISION'!$A$156=1,MAX('TABLA DE DECISION'!CY$159:CY$208)-'TABLA DE DECISION'!CY172,'TABLA DE DECISION'!CY172-MIN('TABLA DE DECISION'!CY$159:CY$208))) ->  | AU16: =IF('TABLA DE DECISION'!CZ172="","",IF('TABLA DE DECISION'!$A$156=1,MAX('TABLA DE DECISION'!CZ$159:CZ$208)-'TABLA DE DECISION'!CZ172,'TABLA DE DECISION'!CZ172-MIN('TABLA DE DECISION'!CZ$159:CZ$208))) ->  | AV16: =IF('TABLA DE DECISION'!DA172="","",IF('TABLA DE DECISION'!$A$156=1,MAX('TABLA DE DECISION'!DA$159:DA$208)-'TABLA DE DECISION'!DA172,'TABLA DE DECISION'!DA172-MIN('TABLA DE DECISION'!DA$159:DA$208))) ->  | AW16: =IF('TABLA DE DECISION'!DB172="","",IF('TABLA DE DECISION'!$A$156=1,MAX('TABLA DE DECISION'!DB$159:DB$208)-'TABLA DE DECISION'!DB172,'TABLA DE DECISION'!DB172-MIN('TABLA DE DECISION'!DB$159:DB$208))) ->  | AX16: =IF('TABLA DE DECISION'!DC172="","",IF('TABLA DE DECISION'!$A$156=1,MAX('TABLA DE DECISION'!DC$159:DC$208)-'TABLA DE DECISION'!DC172,'TABLA DE DECISION'!DC172-MIN('TABLA DE DECISION'!DC$159:DC$208))) ->  | AY16: =IF('TABLA DE DECISION'!DD172="","",IF('TABLA DE DECISION'!$A$156=1,MAX('TABLA DE DECISION'!DD$159:DD$208)-'TABLA DE DECISION'!DD172,'TABLA DE DECISION'!DD172-MIN('TABLA DE DECISION'!DD$159:DD$208))) ->  | AZ16: =IF('TABLA DE DECISION'!DE172="","",IF('TABLA DE DECISION'!$A$156=1,MAX('TABLA DE DECISION'!DE$159:DE$208)-'TABLA DE DECISION'!DE172,'TABLA DE DECISION'!DE172-MIN('TABLA DE DECISION'!DE$159:DE$208))) ->  | BB16: =IF(C16="","",SUMPRODUCT(C16:AZ16,'TABLA DE DECISION'!BH$156:DE$156)) -> 
A17: =IF('TABLA DE DECISION'!BF173="","",'TABLA DE DECISION'!BF173) ->  | B17: =IF('TABLA DE DECISION'!BG173="","",'TABLA DE DECISION'!BG173) -> a15 | C17: =IF('TABLA DE DECISION'!BH173="","",IF('TABLA DE DECISION'!$A$156=1,MAX('TABLA DE DECISION'!BH$159:BH$208)-'TABLA DE DECISION'!BH173,'TABLA DE DECISION'!BH173-MIN('TABLA DE DECISION'!BH$159:BH$208))) ->  | D17: =IF('TABLA DE DECISION'!BI173="","",IF('TABLA DE DECISION'!$A$156=1,MAX('TABLA DE DECISION'!BI$159:BI$208)-'TABLA DE DECISION'!BI173,'TABLA DE DECISION'!BI173-MIN('TABLA DE DECISION'!BI$159:BI$208))) ->  | E17: =IF('TABLA DE DECISION'!BJ173="","",IF('TABLA DE DECISION'!$A$156=1,MAX('TABLA DE DECISION'!BJ$159:BJ$208)-'TABLA DE DECISION'!BJ173,'TABLA DE DECISION'!BJ173-MIN('TABLA DE DECISION'!BJ$159:BJ$208))) ->  | F17: =IF('TABLA DE DECISION'!BK173="","",IF('TABLA DE DECISION'!$A$156=1,MAX('TABLA DE DECISION'!BK$159:BK$208)-'TABLA DE DECISION'!BK173,'TABLA DE DECISION'!BK173-MIN('TABLA DE DECISION'!BK$159:BK$208))) ->  | G17: =IF('TABLA DE DECISION'!BL173="","",IF('TABLA DE DECISION'!$A$156=1,MAX('TABLA DE DECISION'!BL$159:BL$208)-'TABLA DE DECISION'!BL173,'TABLA DE DECISION'!BL173-MIN('TABLA DE DECISION'!BL$159:BL$208))) ->  | H17: =IF('TABLA DE DECISION'!BM173="","",IF('TABLA DE DECISION'!$A$156=1,MAX('TABLA DE DECISION'!BM$159:BM$208)-'TABLA DE DECISION'!BM173,'TABLA DE DECISION'!BM173-MIN('TABLA DE DECISION'!BM$159:BM$208))) ->  | I17: =IF('TABLA DE DECISION'!BN173="","",IF('TABLA DE DECISION'!$A$156=1,MAX('TABLA DE DECISION'!BN$159:BN$208)-'TABLA DE DECISION'!BN173,'TABLA DE DECISION'!BN173-MIN('TABLA DE DECISION'!BN$159:BN$208))) ->  | J17: =IF('TABLA DE DECISION'!BO173="","",IF('TABLA DE DECISION'!$A$156=1,MAX('TABLA DE DECISION'!BO$159:BO$208)-'TABLA DE DECISION'!BO173,'TABLA DE DECISION'!BO173-MIN('TABLA DE DECISION'!BO$159:BO$208))) ->  | K17: =IF('TABLA DE DECISION'!BP173="","",IF('TABLA DE DECISION'!$A$156=1,MAX('TABLA DE DECISION'!BP$159:BP$208)-'TABLA DE DECISION'!BP173,'TABLA DE DECISION'!BP173-MIN('TABLA DE DECISION'!BP$159:BP$208))) ->  | L17: =IF('TABLA DE DECISION'!BQ173="","",IF('TABLA DE DECISION'!$A$156=1,MAX('TABLA DE DECISION'!BQ$159:BQ$208)-'TABLA DE DECISION'!BQ173,'TABLA DE DECISION'!BQ173-MIN('TABLA DE DECISION'!BQ$159:BQ$208))) ->  | M17: =IF('TABLA DE DECISION'!BR173="","",IF('TABLA DE DECISION'!$A$156=1,MAX('TABLA DE DECISION'!BR$159:BR$208)-'TABLA DE DECISION'!BR173,'TABLA DE DECISION'!BR173-MIN('TABLA DE DECISION'!BR$159:BR$208))) ->  | N17: =IF('TABLA DE DECISION'!BS173="","",IF('TABLA DE DECISION'!$A$156=1,MAX('TABLA DE DECISION'!BS$159:BS$208)-'TABLA DE DECISION'!BS173,'TABLA DE DECISION'!BS173-MIN('TABLA DE DECISION'!BS$159:BS$208))) ->  | O17: =IF('TABLA DE DECISION'!BT173="","",IF('TABLA DE DECISION'!$A$156=1,MAX('TABLA DE DECISION'!BT$159:BT$208)-'TABLA DE DECISION'!BT173,'TABLA DE DECISION'!BT173-MIN('TABLA DE DECISION'!BT$159:BT$208))) ->  | P17: =IF('TABLA DE DECISION'!BU173="","",IF('TABLA DE DECISION'!$A$156=1,MAX('TABLA DE DECISION'!BU$159:BU$208)-'TABLA DE DECISION'!BU173,'TABLA DE DECISION'!BU173-MIN('TABLA DE DECISION'!BU$159:BU$208))) ->  | Q17: =IF('TABLA DE DECISION'!BV173="","",IF('TABLA DE DECISION'!$A$156=1,MAX('TABLA DE DECISION'!BV$159:BV$208)-'TABLA DE DECISION'!BV173,'TABLA DE DECISION'!BV173-MIN('TABLA DE DECISION'!BV$159:BV$208))) ->  | R17: =IF('TABLA DE DECISION'!BW173="","",IF('TABLA DE DECISION'!$A$156=1,MAX('TABLA DE DECISION'!BW$159:BW$208)-'TABLA DE DECISION'!BW173,'TABLA DE DECISION'!BW173-MIN('TABLA DE DECISION'!BW$159:BW$208))) ->  | S17: =IF('TABLA DE DECISION'!BX173="","",IF('TABLA DE DECISION'!$A$156=1,MAX('TABLA DE DECISION'!BX$159:BX$208)-'TABLA DE DECISION'!BX173,'TABLA DE DECISION'!BX173-MIN('TABLA DE DECISION'!BX$159:BX$208))) ->  | T17: =IF('TABLA DE DECISION'!BY173="","",IF('TABLA DE DECISION'!$A$156=1,MAX('TABLA DE DECISION'!BY$159:BY$208)-'TABLA DE DECISION'!BY173,'TABLA DE DECISION'!BY173-MIN('TABLA DE DECISION'!BY$159:BY$208))) ->  | U17: =IF('TABLA DE DECISION'!BZ173="","",IF('TABLA DE DECISION'!$A$156=1,MAX('TABLA DE DECISION'!BZ$159:BZ$208)-'TABLA DE DECISION'!BZ173,'TABLA DE DECISION'!BZ173-MIN('TABLA DE DECISION'!BZ$159:BZ$208))) ->  | V17: =IF('TABLA DE DECISION'!CA173="","",IF('TABLA DE DECISION'!$A$156=1,MAX('TABLA DE DECISION'!CA$159:CA$208)-'TABLA DE DECISION'!CA173,'TABLA DE DECISION'!CA173-MIN('TABLA DE DECISION'!CA$159:CA$208))) ->  | W17: =IF('TABLA DE DECISION'!CB173="","",IF('TABLA DE DECISION'!$A$156=1,MAX('TABLA DE DECISION'!CB$159:CB$208)-'TABLA DE DECISION'!CB173,'TABLA DE DECISION'!CB173-MIN('TABLA DE DECISION'!CB$159:CB$208))) ->  | X17: =IF('TABLA DE DECISION'!CC173="","",IF('TABLA DE DECISION'!$A$156=1,MAX('TABLA DE DECISION'!CC$159:CC$208)-'TABLA DE DECISION'!CC173,'TABLA DE DECISION'!CC173-MIN('TABLA DE DECISION'!CC$159:CC$208))) ->  | Y17: =IF('TABLA DE DECISION'!CD173="","",IF('TABLA DE DECISION'!$A$156=1,MAX('TABLA DE DECISION'!CD$159:CD$208)-'TABLA DE DECISION'!CD173,'TABLA DE DECISION'!CD173-MIN('TABLA DE DECISION'!CD$159:CD$208))) ->  | Z17: =IF('TABLA DE DECISION'!CE173="","",IF('TABLA DE DECISION'!$A$156=1,MAX('TABLA DE DECISION'!CE$159:CE$208)-'TABLA DE DECISION'!CE173,'TABLA DE DECISION'!CE173-MIN('TABLA DE DECISION'!CE$159:CE$208))) ->  | AA17: =IF('TABLA DE DECISION'!CF173="","",IF('TABLA DE DECISION'!$A$156=1,MAX('TABLA DE DECISION'!CF$159:CF$208)-'TABLA DE DECISION'!CF173,'TABLA DE DECISION'!CF173-MIN('TABLA DE DECISION'!CF$159:CF$208))) ->  | AB17: =IF('TABLA DE DECISION'!CG173="","",IF('TABLA DE DECISION'!$A$156=1,MAX('TABLA DE DECISION'!CG$159:CG$208)-'TABLA DE DECISION'!CG173,'TABLA DE DECISION'!CG173-MIN('TABLA DE DECISION'!CG$159:CG$208))) ->  | AC17: =IF('TABLA DE DECISION'!CH173="","",IF('TABLA DE DECISION'!$A$156=1,MAX('TABLA DE DECISION'!CH$159:CH$208)-'TABLA DE DECISION'!CH173,'TABLA DE DECISION'!CH173-MIN('TABLA DE DECISION'!CH$159:CH$208))) ->  | AD17: =IF('TABLA DE DECISION'!CI173="","",IF('TABLA DE DECISION'!$A$156=1,MAX('TABLA DE DECISION'!CI$159:CI$208)-'TABLA DE DECISION'!CI173,'TABLA DE DECISION'!CI173-MIN('TABLA DE DECISION'!CI$159:CI$208))) ->  | AE17: =IF('TABLA DE DECISION'!CJ173="","",IF('TABLA DE DECISION'!$A$156=1,MAX('TABLA DE DECISION'!CJ$159:CJ$208)-'TABLA DE DECISION'!CJ173,'TABLA DE DECISION'!CJ173-MIN('TABLA DE DECISION'!CJ$159:CJ$208))) ->  | AF17: =IF('TABLA DE DECISION'!CK173="","",IF('TABLA DE DECISION'!$A$156=1,MAX('TABLA DE DECISION'!CK$159:CK$208)-'TABLA DE DECISION'!CK173,'TABLA DE DECISION'!CK173-MIN('TABLA DE DECISION'!CK$159:CK$208))) ->  | AG17: =IF('TABLA DE DECISION'!CL173="","",IF('TABLA DE DECISION'!$A$156=1,MAX('TABLA DE DECISION'!CL$159:CL$208)-'TABLA DE DECISION'!CL173,'TABLA DE DECISION'!CL173-MIN('TABLA DE DECISION'!CL$159:CL$208))) ->  | AH17: =IF('TABLA DE DECISION'!CM173="","",IF('TABLA DE DECISION'!$A$156=1,MAX('TABLA DE DECISION'!CM$159:CM$208)-'TABLA DE DECISION'!CM173,'TABLA DE DECISION'!CM173-MIN('TABLA DE DECISION'!CM$159:CM$208))) ->  | AI17: =IF('TABLA DE DECISION'!CN173="","",IF('TABLA DE DECISION'!$A$156=1,MAX('TABLA DE DECISION'!CN$159:CN$208)-'TABLA DE DECISION'!CN173,'TABLA DE DECISION'!CN173-MIN('TABLA DE DECISION'!CN$159:CN$208))) ->  | AJ17: =IF('TABLA DE DECISION'!CO173="","",IF('TABLA DE DECISION'!$A$156=1,MAX('TABLA DE DECISION'!CO$159:CO$208)-'TABLA DE DECISION'!CO173,'TABLA DE DECISION'!CO173-MIN('TABLA DE DECISION'!CO$159:CO$208))) ->  | AK17: =IF('TABLA DE DECISION'!CP173="","",IF('TABLA DE DECISION'!$A$156=1,MAX('TABLA DE DECISION'!CP$159:CP$208)-'TABLA DE DECISION'!CP173,'TABLA DE DECISION'!CP173-MIN('TABLA DE DECISION'!CP$159:CP$208))) ->  | AL17: =IF('TABLA DE DECISION'!CQ173="","",IF('TABLA DE DECISION'!$A$156=1,MAX('TABLA DE DECISION'!CQ$159:CQ$208)-'TABLA DE DECISION'!CQ173,'TABLA DE DECISION'!CQ173-MIN('TABLA DE DECISION'!CQ$159:CQ$208))) ->  | AM17: =IF('TABLA DE DECISION'!CR173="","",IF('TABLA DE DECISION'!$A$156=1,MAX('TABLA DE DECISION'!CR$159:CR$208)-'TABLA DE DECISION'!CR173,'TABLA DE DECISION'!CR173-MIN('TABLA DE DECISION'!CR$159:CR$208))) ->  | AN17: =IF('TABLA DE DECISION'!CS173="","",IF('TABLA DE DECISION'!$A$156=1,MAX('TABLA DE DECISION'!CS$159:CS$208)-'TABLA DE DECISION'!CS173,'TABLA DE DECISION'!CS173-MIN('TABLA DE DECISION'!CS$159:CS$208))) ->  | AO17: =IF('TABLA DE DECISION'!CT173="","",IF('TABLA DE DECISION'!$A$156=1,MAX('TABLA DE DECISION'!CT$159:CT$208)-'TABLA DE DECISION'!CT173,'TABLA DE DECISION'!CT173-MIN('TABLA DE DECISION'!CT$159:CT$208))) ->  | AP17: =IF('TABLA DE DECISION'!CU173="","",IF('TABLA DE DECISION'!$A$156=1,MAX('TABLA DE DECISION'!CU$159:CU$208)-'TABLA DE DECISION'!CU173,'TABLA DE DECISION'!CU173-MIN('TABLA DE DECISION'!CU$159:CU$208))) ->  | AQ17: =IF('TABLA DE DECISION'!CV173="","",IF('TABLA DE DECISION'!$A$156=1,MAX('TABLA DE DECISION'!CV$159:CV$208)-'TABLA DE DECISION'!CV173,'TABLA DE DECISION'!CV173-MIN('TABLA DE DECISION'!CV$159:CV$208))) ->  | AR17: =IF('TABLA DE DECISION'!CW173="","",IF('TABLA DE DECISION'!$A$156=1,MAX('TABLA DE DECISION'!CW$159:CW$208)-'TABLA DE DECISION'!CW173,'TABLA DE DECISION'!CW173-MIN('TABLA DE DECISION'!CW$159:CW$208))) ->  | AS17: =IF('TABLA DE DECISION'!CX173="","",IF('TABLA DE DECISION'!$A$156=1,MAX('TABLA DE DECISION'!CX$159:CX$208)-'TABLA DE DECISION'!CX173,'TABLA DE DECISION'!CX173-MIN('TABLA DE DECISION'!CX$159:CX$208))) ->  | AT17: =IF('TABLA DE DECISION'!CY173="","",IF('TABLA DE DECISION'!$A$156=1,MAX('TABLA DE DECISION'!CY$159:CY$208)-'TABLA DE DECISION'!CY173,'TABLA DE DECISION'!CY173-MIN('TABLA DE DECISION'!CY$159:CY$208))) ->  | AU17: =IF('TABLA DE DECISION'!CZ173="","",IF('TABLA DE DECISION'!$A$156=1,MAX('TABLA DE DECISION'!CZ$159:CZ$208)-'TABLA DE DECISION'!CZ173,'TABLA DE DECISION'!CZ173-MIN('TABLA DE DECISION'!CZ$159:CZ$208))) ->  | AV17: =IF('TABLA DE DECISION'!DA173="","",IF('TABLA DE DECISION'!$A$156=1,MAX('TABLA DE DECISION'!DA$159:DA$208)-'TABLA DE DECISION'!DA173,'TABLA DE DECISION'!DA173-MIN('TABLA DE DECISION'!DA$159:DA$208))) ->  | AW17: =IF('TABLA DE DECISION'!DB173="","",IF('TABLA DE DECISION'!$A$156=1,MAX('TABLA DE DECISION'!DB$159:DB$208)-'TABLA DE DECISION'!DB173,'TABLA DE DECISION'!DB173-MIN('TABLA DE DECISION'!DB$159:DB$208))) ->  | AX17: =IF('TABLA DE DECISION'!DC173="","",IF('TABLA DE DECISION'!$A$156=1,MAX('TABLA DE DECISION'!DC$159:DC$208)-'TABLA DE DECISION'!DC173,'TABLA DE DECISION'!DC173-MIN('TABLA DE DECISION'!DC$159:DC$208))) ->  | AY17: =IF('TABLA DE DECISION'!DD173="","",IF('TABLA DE DECISION'!$A$156=1,MAX('TABLA DE DECISION'!DD$159:DD$208)-'TABLA DE DECISION'!DD173,'TABLA DE DECISION'!DD173-MIN('TABLA DE DECISION'!DD$159:DD$208))) ->  | AZ17: =IF('TABLA DE DECISION'!DE173="","",IF('TABLA DE DECISION'!$A$156=1,MAX('TABLA DE DECISION'!DE$159:DE$208)-'TABLA DE DECISION'!DE173,'TABLA DE DECISION'!DE173-MIN('TABLA DE DECISION'!DE$159:DE$208))) ->  | BB17: =IF(C17="","",SUMPRODUCT(C17:AZ17,'TABLA DE DECISION'!BH$156:DE$156)) -> 
A18: =IF('TABLA DE DECISION'!BF174="","",'TABLA DE DECISION'!BF174) ->  | B18: =IF('TABLA DE DECISION'!BG174="","",'TABLA DE DECISION'!BG174) -> a16 | C18: =IF('TABLA DE DECISION'!BH174="","",IF('TABLA DE DECISION'!$A$156=1,MAX('TABLA DE DECISION'!BH$159:BH$208)-'TABLA DE DECISION'!BH174,'TABLA DE DECISION'!BH174-MIN('TABLA DE DECISION'!BH$159:BH$208))) ->  | D18: =IF('TABLA DE DECISION'!BI174="","",IF('TABLA DE DECISION'!$A$156=1,MAX('TABLA DE DECISION'!BI$159:BI$208)-'TABLA DE DECISION'!BI174,'TABLA DE DECISION'!BI174-MIN('TABLA DE DECISION'!BI$159:BI$208))) ->  | E18: =IF('TABLA DE DECISION'!BJ174="","",IF('TABLA DE DECISION'!$A$156=1,MAX('TABLA DE DECISION'!BJ$159:BJ$208)-'TABLA DE DECISION'!BJ174,'TABLA DE DECISION'!BJ174-MIN('TABLA DE DECISION'!BJ$159:BJ$208))) ->  | F18: =IF('TABLA DE DECISION'!BK174="","",IF('TABLA DE DECISION'!$A$156=1,MAX('TABLA DE DECISION'!BK$159:BK$208)-'TABLA DE DECISION'!BK174,'TABLA DE DECISION'!BK174-MIN('TABLA DE DECISION'!BK$159:BK$208))) ->  | G18: =IF('TABLA DE DECISION'!BL174="","",IF('TABLA DE DECISION'!$A$156=1,MAX('TABLA DE DECISION'!BL$159:BL$208)-'TABLA DE DECISION'!BL174,'TABLA DE DECISION'!BL174-MIN('TABLA DE DECISION'!BL$159:BL$208))) ->  | H18: =IF('TABLA DE DECISION'!BM174="","",IF('TABLA DE DECISION'!$A$156=1,MAX('TABLA DE DECISION'!BM$159:BM$208)-'TABLA DE DECISION'!BM174,'TABLA DE DECISION'!BM174-MIN('TABLA DE DECISION'!BM$159:BM$208))) ->  | I18: =IF('TABLA DE DECISION'!BN174="","",IF('TABLA DE DECISION'!$A$156=1,MAX('TABLA DE DECISION'!BN$159:BN$208)-'TABLA DE DECISION'!BN174,'TABLA DE DECISION'!BN174-MIN('TABLA DE DECISION'!BN$159:BN$208))) ->  | J18: =IF('TABLA DE DECISION'!BO174="","",IF('TABLA DE DECISION'!$A$156=1,MAX('TABLA DE DECISION'!BO$159:BO$208)-'TABLA DE DECISION'!BO174,'TABLA DE DECISION'!BO174-MIN('TABLA DE DECISION'!BO$159:BO$208))) ->  | K18: =IF('TABLA DE DECISION'!BP174="","",IF('TABLA DE DECISION'!$A$156=1,MAX('TABLA DE DECISION'!BP$159:BP$208)-'TABLA DE DECISION'!BP174,'TABLA DE DECISION'!BP174-MIN('TABLA DE DECISION'!BP$159:BP$208))) ->  | L18: =IF('TABLA DE DECISION'!BQ174="","",IF('TABLA DE DECISION'!$A$156=1,MAX('TABLA DE DECISION'!BQ$159:BQ$208)-'TABLA DE DECISION'!BQ174,'TABLA DE DECISION'!BQ174-MIN('TABLA DE DECISION'!BQ$159:BQ$208))) ->  | M18: =IF('TABLA DE DECISION'!BR174="","",IF('TABLA DE DECISION'!$A$156=1,MAX('TABLA DE DECISION'!BR$159:BR$208)-'TABLA DE DECISION'!BR174,'TABLA DE DECISION'!BR174-MIN('TABLA DE DECISION'!BR$159:BR$208))) ->  | N18: =IF('TABLA DE DECISION'!BS174="","",IF('TABLA DE DECISION'!$A$156=1,MAX('TABLA DE DECISION'!BS$159:BS$208)-'TABLA DE DECISION'!BS174,'TABLA DE DECISION'!BS174-MIN('TABLA DE DECISION'!BS$159:BS$208))) ->  | O18: =IF('TABLA DE DECISION'!BT174="","",IF('TABLA DE DECISION'!$A$156=1,MAX('TABLA DE DECISION'!BT$159:BT$208)-'TABLA DE DECISION'!BT174,'TABLA DE DECISION'!BT174-MIN('TABLA DE DECISION'!BT$159:BT$208))) ->  | P18: =IF('TABLA DE DECISION'!BU174="","",IF('TABLA DE DECISION'!$A$156=1,MAX('TABLA DE DECISION'!BU$159:BU$208)-'TABLA DE DECISION'!BU174,'TABLA DE DECISION'!BU174-MIN('TABLA DE DECISION'!BU$159:BU$208))) ->  | Q18: =IF('TABLA DE DECISION'!BV174="","",IF('TABLA DE DECISION'!$A$156=1,MAX('TABLA DE DECISION'!BV$159:BV$208)-'TABLA DE DECISION'!BV174,'TABLA DE DECISION'!BV174-MIN('TABLA DE DECISION'!BV$159:BV$208))) ->  | R18: =IF('TABLA DE DECISION'!BW174="","",IF('TABLA DE DECISION'!$A$156=1,MAX('TABLA DE DECISION'!BW$159:BW$208)-'TABLA DE DECISION'!BW174,'TABLA DE DECISION'!BW174-MIN('TABLA DE DECISION'!BW$159:BW$208))) ->  | S18: =IF('TABLA DE DECISION'!BX174="","",IF('TABLA DE DECISION'!$A$156=1,MAX('TABLA DE DECISION'!BX$159:BX$208)-'TABLA DE DECISION'!BX174,'TABLA DE DECISION'!BX174-MIN('TABLA DE DECISION'!BX$159:BX$208))) ->  | T18: =IF('TABLA DE DECISION'!BY174="","",IF('TABLA DE DECISION'!$A$156=1,MAX('TABLA DE DECISION'!BY$159:BY$208)-'TABLA DE DECISION'!BY174,'TABLA DE DECISION'!BY174-MIN('TABLA DE DECISION'!BY$159:BY$208))) ->  | U18: =IF('TABLA DE DECISION'!BZ174="","",IF('TABLA DE DECISION'!$A$156=1,MAX('TABLA DE DECISION'!BZ$159:BZ$208)-'TABLA DE DECISION'!BZ174,'TABLA DE DECISION'!BZ174-MIN('TABLA DE DECISION'!BZ$159:BZ$208))) ->  | V18: =IF('TABLA DE DECISION'!CA174="","",IF('TABLA DE DECISION'!$A$156=1,MAX('TABLA DE DECISION'!CA$159:CA$208)-'TABLA DE DECISION'!CA174,'TABLA DE DECISION'!CA174-MIN('TABLA DE DECISION'!CA$159:CA$208))) ->  | W18: =IF('TABLA DE DECISION'!CB174="","",IF('TABLA DE DECISION'!$A$156=1,MAX('TABLA DE DECISION'!CB$159:CB$208)-'TABLA DE DECISION'!CB174,'TABLA DE DECISION'!CB174-MIN('TABLA DE DECISION'!CB$159:CB$208))) ->  | X18: =IF('TABLA DE DECISION'!CC174="","",IF('TABLA DE DECISION'!$A$156=1,MAX('TABLA DE DECISION'!CC$159:CC$208)-'TABLA DE DECISION'!CC174,'TABLA DE DECISION'!CC174-MIN('TABLA DE DECISION'!CC$159:CC$208))) ->  | Y18: =IF('TABLA DE DECISION'!CD174="","",IF('TABLA DE DECISION'!$A$156=1,MAX('TABLA DE DECISION'!CD$159:CD$208)-'TABLA DE DECISION'!CD174,'TABLA DE DECISION'!CD174-MIN('TABLA DE DECISION'!CD$159:CD$208))) ->  | Z18: =IF('TABLA DE DECISION'!CE174="","",IF('TABLA DE DECISION'!$A$156=1,MAX('TABLA DE DECISION'!CE$159:CE$208)-'TABLA DE DECISION'!CE174,'TABLA DE DECISION'!CE174-MIN('TABLA DE DECISION'!CE$159:CE$208))) ->  | AA18: =IF('TABLA DE DECISION'!CF174="","",IF('TABLA DE DECISION'!$A$156=1,MAX('TABLA DE DECISION'!CF$159:CF$208)-'TABLA DE DECISION'!CF174,'TABLA DE DECISION'!CF174-MIN('TABLA DE DECISION'!CF$159:CF$208))) ->  | AB18: =IF('TABLA DE DECISION'!CG174="","",IF('TABLA DE DECISION'!$A$156=1,MAX('TABLA DE DECISION'!CG$159:CG$208)-'TABLA DE DECISION'!CG174,'TABLA DE DECISION'!CG174-MIN('TABLA DE DECISION'!CG$159:CG$208))) ->  | AC18: =IF('TABLA DE DECISION'!CH174="","",IF('TABLA DE DECISION'!$A$156=1,MAX('TABLA DE DECISION'!CH$159:CH$208)-'TABLA DE DECISION'!CH174,'TABLA DE DECISION'!CH174-MIN('TABLA DE DECISION'!CH$159:CH$208))) ->  | AD18: =IF('TABLA DE DECISION'!CI174="","",IF('TABLA DE DECISION'!$A$156=1,MAX('TABLA DE DECISION'!CI$159:CI$208)-'TABLA DE DECISION'!CI174,'TABLA DE DECISION'!CI174-MIN('TABLA DE DECISION'!CI$159:CI$208))) ->  | AE18: =IF('TABLA DE DECISION'!CJ174="","",IF('TABLA DE DECISION'!$A$156=1,MAX('TABLA DE DECISION'!CJ$159:CJ$208)-'TABLA DE DECISION'!CJ174,'TABLA DE DECISION'!CJ174-MIN('TABLA DE DECISION'!CJ$159:CJ$208))) ->  | AF18: =IF('TABLA DE DECISION'!CK174="","",IF('TABLA DE DECISION'!$A$156=1,MAX('TABLA DE DECISION'!CK$159:CK$208)-'TABLA DE DECISION'!CK174,'TABLA DE DECISION'!CK174-MIN('TABLA DE DECISION'!CK$159:CK$208))) ->  | AG18: =IF('TABLA DE DECISION'!CL174="","",IF('TABLA DE DECISION'!$A$156=1,MAX('TABLA DE DECISION'!CL$159:CL$208)-'TABLA DE DECISION'!CL174,'TABLA DE DECISION'!CL174-MIN('TABLA DE DECISION'!CL$159:CL$208))) ->  | AH18: =IF('TABLA DE DECISION'!CM174="","",IF('TABLA DE DECISION'!$A$156=1,MAX('TABLA DE DECISION'!CM$159:CM$208)-'TABLA DE DECISION'!CM174,'TABLA DE DECISION'!CM174-MIN('TABLA DE DECISION'!CM$159:CM$208))) ->  | AI18: =IF('TABLA DE DECISION'!CN174="","",IF('TABLA DE DECISION'!$A$156=1,MAX('TABLA DE DECISION'!CN$159:CN$208)-'TABLA DE DECISION'!CN174,'TABLA DE DECISION'!CN174-MIN('TABLA DE DECISION'!CN$159:CN$208))) ->  | AJ18: =IF('TABLA DE DECISION'!CO174="","",IF('TABLA DE DECISION'!$A$156=1,MAX('TABLA DE DECISION'!CO$159:CO$208)-'TABLA DE DECISION'!CO174,'TABLA DE DECISION'!CO174-MIN('TABLA DE DECISION'!CO$159:CO$208))) ->  | AK18: =IF('TABLA DE DECISION'!CP174="","",IF('TABLA DE DECISION'!$A$156=1,MAX('TABLA DE DECISION'!CP$159:CP$208)-'TABLA DE DECISION'!CP174,'TABLA DE DECISION'!CP174-MIN('TABLA DE DECISION'!CP$159:CP$208))) ->  | AL18: =IF('TABLA DE DECISION'!CQ174="","",IF('TABLA DE DECISION'!$A$156=1,MAX('TABLA DE DECISION'!CQ$159:CQ$208)-'TABLA DE DECISION'!CQ174,'TABLA DE DECISION'!CQ174-MIN('TABLA DE DECISION'!CQ$159:CQ$208))) ->  | AM18: =IF('TABLA DE DECISION'!CR174="","",IF('TABLA DE DECISION'!$A$156=1,MAX('TABLA DE DECISION'!CR$159:CR$208)-'TABLA DE DECISION'!CR174,'TABLA DE DECISION'!CR174-MIN('TABLA DE DECISION'!CR$159:CR$208))) ->  | AN18: =IF('TABLA DE DECISION'!CS174="","",IF('TABLA DE DECISION'!$A$156=1,MAX('TABLA DE DECISION'!CS$159:CS$208)-'TABLA DE DECISION'!CS174,'TABLA DE DECISION'!CS174-MIN('TABLA DE DECISION'!CS$159:CS$208))) ->  | AO18: =IF('TABLA DE DECISION'!CT174="","",IF('TABLA DE DECISION'!$A$156=1,MAX('TABLA DE DECISION'!CT$159:CT$208)-'TABLA DE DECISION'!CT174,'TABLA DE DECISION'!CT174-MIN('TABLA DE DECISION'!CT$159:CT$208))) ->  | AP18: =IF('TABLA DE DECISION'!CU174="","",IF('TABLA DE DECISION'!$A$156=1,MAX('TABLA DE DECISION'!CU$159:CU$208)-'TABLA DE DECISION'!CU174,'TABLA DE DECISION'!CU174-MIN('TABLA DE DECISION'!CU$159:CU$208))) ->  | AQ18: =IF('TABLA DE DECISION'!CV174="","",IF('TABLA DE DECISION'!$A$156=1,MAX('TABLA DE DECISION'!CV$159:CV$208)-'TABLA DE DECISION'!CV174,'TABLA DE DECISION'!CV174-MIN('TABLA DE DECISION'!CV$159:CV$208))) ->  | AR18: =IF('TABLA DE DECISION'!CW174="","",IF('TABLA DE DECISION'!$A$156=1,MAX('TABLA DE DECISION'!CW$159:CW$208)-'TABLA DE DECISION'!CW174,'TABLA DE DECISION'!CW174-MIN('TABLA DE DECISION'!CW$159:CW$208))) ->  | AS18: =IF('TABLA DE DECISION'!CX174="","",IF('TABLA DE DECISION'!$A$156=1,MAX('TABLA DE DECISION'!CX$159:CX$208)-'TABLA DE DECISION'!CX174,'TABLA DE DECISION'!CX174-MIN('TABLA DE DECISION'!CX$159:CX$208))) ->  | AT18: =IF('TABLA DE DECISION'!CY174="","",IF('TABLA DE DECISION'!$A$156=1,MAX('TABLA DE DECISION'!CY$159:CY$208)-'TABLA DE DECISION'!CY174,'TABLA DE DECISION'!CY174-MIN('TABLA DE DECISION'!CY$159:CY$208))) ->  | AU18: =IF('TABLA DE DECISION'!CZ174="","",IF('TABLA DE DECISION'!$A$156=1,MAX('TABLA DE DECISION'!CZ$159:CZ$208)-'TABLA DE DECISION'!CZ174,'TABLA DE DECISION'!CZ174-MIN('TABLA DE DECISION'!CZ$159:CZ$208))) ->  | AV18: =IF('TABLA DE DECISION'!DA174="","",IF('TABLA DE DECISION'!$A$156=1,MAX('TABLA DE DECISION'!DA$159:DA$208)-'TABLA DE DECISION'!DA174,'TABLA DE DECISION'!DA174-MIN('TABLA DE DECISION'!DA$159:DA$208))) ->  | AW18: =IF('TABLA DE DECISION'!DB174="","",IF('TABLA DE DECISION'!$A$156=1,MAX('TABLA DE DECISION'!DB$159:DB$208)-'TABLA DE DECISION'!DB174,'TABLA DE DECISION'!DB174-MIN('TABLA DE DECISION'!DB$159:DB$208))) ->  | AX18: =IF('TABLA DE DECISION'!DC174="","",IF('TABLA DE DECISION'!$A$156=1,MAX('TABLA DE DECISION'!DC$159:DC$208)-'TABLA DE DECISION'!DC174,'TABLA DE DECISION'!DC174-MIN('TABLA DE DECISION'!DC$159:DC$208))) ->  | AY18: =IF('TABLA DE DECISION'!DD174="","",IF('TABLA DE DECISION'!$A$156=1,MAX('TABLA DE DECISION'!DD$159:DD$208)-'TABLA DE DECISION'!DD174,'TABLA DE DECISION'!DD174-MIN('TABLA DE DECISION'!DD$159:DD$208))) ->  | AZ18: =IF('TABLA DE DECISION'!DE174="","",IF('TABLA DE DECISION'!$A$156=1,MAX('TABLA DE DECISION'!DE$159:DE$208)-'TABLA DE DECISION'!DE174,'TABLA DE DECISION'!DE174-MIN('TABLA DE DECISION'!DE$159:DE$208))) ->  | BB18: =IF(C18="","",SUMPRODUCT(C18:AZ18,'TABLA DE DECISION'!BH$156:DE$156)) -> 
